Workbook

Sheet Start
D24: Aktivieren Sie die Inhalte um das Bewertungstool zu starten!
B41: Projekt EnPro
B42: Im Projekt ENPRO werden Planungsrichtlinien erarbeitet um Barrieren für eine effiziente und kostengünstige Integration von Solarthermie und
B43: Wärmepumpen in industriellen Prozesse abzubauen.
B45: EnPro Bewertungstool
B46: Das EnPro Bewertungstool ermöglicht eine rasche Abschätzung für die Integration von Solarthermie und/oder Wärmepumpen in einen Industriebetrieb.
B47: Durch das Tool soll der Anwender bei der Integration und der technisch-wirtschaftlichen Bewertung unterstützt werden, um so die Planungskosten zu reduzieren.
B49: Das EnPro Bewertungstool wurde im Rahmen des Projektes "Erneuerbare Prozesswärme - Integration von Solarthermie und Wärmepumpen
B50: in industrielle Prozesse" (kurz EnPro) erstellt.
B51: Auftraggeber des Forschungsprojektes ist die österreichische Forschungsförderungsgesellschaft.
B53: Initiator und Auftraggeber
B54: Österreichische Forschungsförderungsgesellschaft mbH (FFG)
B55: Sensengasse 1, 1090 Wien
B56: Telefon +43 (0)5 7755 – 0
B57: E-Mail office@ffg.at
B59: Für den Inhalt verantwortlich
B60: AEE - Institut für Nachhaltige Technologien
B61: Feldgasse 19, 8200 Gleisdorf
B62: Telefon +43 (0)3112 5886-0
B63: E-Mail office@aee.at
B65: Stand: September 2017
B67: Urheberrecht und Haftungsauschluss
B68: Die Rechte am EnPro Bewertungstools liegen ausschließlich bei den Urhebern und dem Auftraggeber. Jede Vervielfältigung, Weitergabe, Integration in Websites
B69: ist nur mit Zustimmung des Auftraggebers zulässig.
B70: Die Ergebnisse aus der Anwendung des Tools dienen lediglich zur Orientierung und gelten weder gegenüber Behörden noch Dritten als Nachweis oder Gutachten.
B71: Eine Haftung für direkte oder indirekte Schäden aufgrund der Nutzung dieses Tools und errechneter Ergebnisse wird hiermit ausdrücklich ausgeschlossen.

Sheet Kriterien
L13: Auswählen:
R14: Antwort | U14: ST | W14: WP
B15: 1. | C15: Im Betrieb gibt es genügend Platz (mindestens 10 m²) für die Installation eines Pufferspeichers. | R15: =IF(L15="ja",1,(IF(L15="nein",1,""))) ->  | U15: =IF(L15="JA","OK","OK") -> OK
B16: 2. | C16: Eine Amortisationszeit für Investitionen in die Energieversorgung von über 5 Jahren ist akzeptabel. | R16: =IF(L16="ja",1,(IF(L16="nein",1,""))) ->  | U16: =IF(L16="JA","OK","OK") -> OK
B17: 3. | C17: Energiekosten sind ein wichtiger Faktor im Unternehmen. | R17: =IF(L17="ja",1,(IF(L17="nein",1,""))) ->  | U17: OK
B18: 4. | C18: Es besteht ein Prozesswärmebedarf an zumindest 5 Tagen in der Woche. | R18: =IF(L18="ja",1,(IF(L18="nein",1,""))) ->  | U18: OK
B19: 5. | C19: Im Betrieb liegt ein Prozesswärmebedarf mit einem Temperaturniveau unter 150°C vor. | R19: =IF(L19="ja",1,(IF(L19="nein",1,""))) ->  | U19: =IF(L19="JA","OK","KO") -> KO
B25: 6. | C25: Der Betrieb hat auch während der Sommermonate (Juni, Juli, August) einen Bedarf an Prozesswärme. | R25: =IF(L25="ja",1,(IF(L25="nein",1,""))) ->  | U25: =IF(L25="JA","OK","OK") -> OK
B26: 7. | C26: Es stehen Dach- oder sonstige Flächen (Boden) für die Montage einer Solaranlage zur Verfügung. | R26: =IF(L26="ja",1,(IF(L26="nein",1,""))) ->  | U26: =IF(L26="JA","OK","KO") -> KO
B27: 8. | C27: Die vorhandene Fläche ist nach Süden/Südosten/Südwesten orientert bzw. ist ein Flachdach. | R27: =IF(L27="ja",1,(IF(L27="nein",1,""))) ->  | U27: =IF(L27="JA","OK","KO") -> KO
B33: 9. | C33: Im Betrieb gibt es einen Stromanschluss. | R33: =IF(L33="ja",1,(IF(L33="nein",1,""))) ->  | U33: =IF(L33="JA","OK","KO") -> KO
B34: 10. | C34: Im Betrieb gibt es Abwärme von z.B. Kältemaschinen, Kompressoren, etc., die derzeit nicht genutzt wird. | R34: =IF(L34="ja",1,(IF(L34="nein",1,""))) ->  | U34: =IF(L34="JA","OK","OK") -> OK
B35: 11. | C35: Im Betrieb gibt es neben Heizbedarf auch einen Kühlbedarf. | R35: =IF(L35="ja",1,(IF(L35="nein",1,""))) ->  | U35: OK
B36: 12. | C36: Die Wärmequellen und Wärmenutzung befinden sich örtlich nahe beieinander. | R36: =IF(L36="ja",1,(IF(L36="nein",1,""))) ->  | U36: OK
R38: =COUNT(R15:R19,R25:R27,R33:R37) -> 0
V40: =IF(COUNTIF(U15:U36,"KO"),"NEIN","JA") -> NEIN
C41: =IF(U38>0,"Lieber User!","") -> 
C45: =IF(AND(V40="JA",R38=12),"Ihr Betrieb eignet sich nach dieser ersten Abschätzung für die Integration von Solarthermie und/oder Wärmepumpe.",(IF(AND(V40="NEIN",R38=12),"Ihr Betrieb weist nach dieser ersten Abschätzung ein geringes Potential für die Integration von Solarthermie und/oder Wärmepumpe auf.","Bitte wählen Sie im Dropdown Feld eine Antwortmöglichkeit aus die auf Ihren Betrieb zutrifft!"))) -> Bitte wählen Sie im Dropdown Feld eine Antwortmöglichkeit aus die auf Ihren Betrieb zutrifft!
C47: =IF(AND(V40="JA",R38=12),"",(IF(AND(V40="NEIN",R38=12),"Eine detaillierte Betrachtung bestimmter Kriterien ist durchzuführen.",""))) -> 
C49: =IF(R38=12,"Um eine Vorauswahl der Technologie bzw. -kombination zu treffen klicken Sie auf den Button Entscheidungsbaum:","") -> 

Sheet Allgemein
B12: Mitarbeiter
B13: Umsatz | E13: €/a
B15: Betriebstage (Produktion) pro Jahr | E15: d/a
B16: Betriebsstunden (Produktion) pro Tag | E16: h/d
B18: =IF(D18="","Bitte Standort in Karte anklicken","Ausgewählter Standort:") -> Bitte Standort in Karte anklicken
Z20: Ellipse 14 | AA20: Linz
Z21: Ellipse 13 | AA21: Wien
F22: Boden | G22: =D49 -> 0 | Z22: Ellipse 19 | AA22: St Pölten
F23: Dach | G23: =D50 -> 0 | Z23: Ellipse 17 | AA23: Bregenz
Z24: Ellipse 15 | AA24: Eisenstadt
Z25: Ellipse 18 | AA25: Graz
Z26: Ellipse 11 | AA26: Innsbruck
Z27: Ellipse 12 | AA27: Klagenfurt
Z28: Ellipse 16 | AA28: Salzburg
B45: Durchschnittliche Frischwassertemperatur | E45: °C
B46: Durchschnittliche Umgebungstemperatur | E46: °C
B48: Verfügbare Fläche im Betrieb für Wärmepumpe | E48: m²
B49: Verfügbare Fläche am Boden für Solarthermie | E49: m²
B50: Verfügbare Fläche am Dach für Solarthermie | E50: m²

Sheet Energieversorgung
G13: Umrechnungsfaktor
C14: Auswählen: | E14: Verbrauch pro Jahr | G14: Standard | I14: Manuell | K14: Dampf- druck | M14: Eingesetzte Energiemenge pro Jahr | O14: Spezifische Energiekosten | Q14: Energiekosten pro Jahr | AA14: Enthalpie Sattdampf | AC14: Energieinhalt Dampf
B15: Energieträger 1 | F15: =VLOOKUP(C15,Listen!$A$3:$F$10,6,FALSE) ->  | G15: =VLOOKUP(C15,Listen!$A$4:$D$10,4,FALSE) ->  | I15: 10.35 | J15: =VLOOKUP(C15,Listen!$A$3:$F$10,5,FALSE) ->  | L15: =IF($C15="(zugekaufter) Dampf","bar","") ->  | M15: =IF(C15="(zugekaufter) Dampf",AC15,IF(I15<>0,E15*I15,G15*E15)) -> 0 | N15: kWh/a | P15: €/MWh | Q15: =IF(M15>0,M15/1000*O15,"") ->  | R15: €/a | AA15: =VLOOKUP(K15,Dampftafel!B6:I64,7,TRUE) ->  | AB15: kJ/kg | AC15: =E15*(AA15/3600*1000) ->  | AD15: kWh/a
B16: Energieträger 2 | F16: =VLOOKUP(C16,Listen!$A$3:$F$10,6,FALSE) ->  | G16: =VLOOKUP(C16,Listen!$A$4:$D$10,4,FALSE) ->  | J16: =VLOOKUP(C16,Listen!$A$3:$F$10,5,FALSE) ->  | L16: =IF($C16="(zugekaufter) Dampf","bar","") ->  | M16: =IF(C16="(zugekaufter) Dampf",AC16,IF(I16<>0,E16*I16,G16*E16)) ->  | N16: kWh/a | P16: €/MWh | Q16: =IF(M16>0,M16/1000*O16,"") ->  | R16: €/a | AA16: =VLOOKUP(K16,Dampftafel!B7:I65,7,TRUE) ->  | AB16: kJ/kg | AC16: =E16*(AA16/3600*1000) ->  | AD16: kWh/a
B17: Energieträger 3 | F17: =VLOOKUP(C17,Listen!$A$3:$F$10,6,FALSE) ->  | G17: =VLOOKUP(C17,Listen!$A$4:$D$10,4,FALSE) ->  | J17: =VLOOKUP(C17,Listen!$A$3:$F$10,5,FALSE) ->  | M17: =IF(C17="(zugekaufter) Dampf",AC17,IF(I17<>0,E17*I17,G17*E17)) ->  | N17: kWh/a | P17: €/MWh | Q17: =IF(M17>0,M17/1000*O17,"") ->  | R17: €/a | AA17: =VLOOKUP(K17,Dampftafel!B8:I66,7,TRUE) ->  | AB17: kJ/kg | AD17: kWh/a
B18: Energieträger 4 | F18: =VLOOKUP(C18,Listen!$A$3:$F$10,6,FALSE) ->  | G18: =VLOOKUP(C18,Listen!$A$4:$D$10,4,FALSE) ->  | I18: =VLOOKUP(C18,Listen!$A$3:$F$10,5,FALSE) ->  | K18: =IF($C18="Dampf","bar","") ->  | M18: =IF(C18="(zugekaufter) Dampf",AC18,IF(H18<>0,E18*H18,G18*E18)) ->  | N18: kWh/a | P18: €/MWh | Q18: =IF(M18>0,M18/1000*O18,"") ->  | R18: €/a | AA18: =VLOOKUP(K18,Dampftafel!B9:I67,7,TRUE) ->  | AB18: kJ/kg | AD18: kWh/a
B19: Energieträger 5 | F19: =VLOOKUP(C19,Listen!$A$3:$F$10,6,FALSE) ->  | G19: =VLOOKUP(C19,Listen!$A$4:$D$10,4,FALSE) ->  | I19: =VLOOKUP(C19,Listen!$A$3:$F$10,5,FALSE) ->  | M19: =IF(C19="(zugekaufter) Dampf",AC19,IF(H19<>0,E19*H19,G19*E19)) ->  | N19: kWh/a | P19: €/MWh | Q19: =IF(M19>0,M19/1000*O19,"") ->  | R19: €/a | AA19: =VLOOKUP(K19,Dampftafel!B10:I68,7,TRUE) ->  | AB19: kJ/kg | AD19: kWh/a
L21: Summe | M21: =SUM(IFERROR(M15:M19,0)) -> 0 | N21: kWh/a | P21: Summe | Q21: =SUM(IFERROR(Q15:Q19,0)) -> 0 | R21: €/a
B39: Umgebungstemperatur | C39: =Allgemein!D46 -> 0 | D39: °C
C41: Auswählen: | E41: Kessel- Wirkungsgrad | G41: Kessel-Wirkungsgrad berechnet | I41: Brennstoff | K41: Nennleistung | M41: Volllaststunden pro Jahr | O41: Betriebstage pro Jahr | Q41: O2-Gehalt | S41: Strahlungs- verluste | U41: Abgas- temperatur | W41: Brennstoff- einsatz | Y41: Erzeugtes Heißwasser | AH41: Abgasverluste | AJ41: Faktor A | AK41: Faktor B
B42: Warmwasserkessel 1 | F42: % | G42: =IF(E42="",100-AH42-S42,"") ->  | H42: % | L42: kW | N42: h/a | P42: d/a | R42: vol% | T42: % | V42: °C | W42: =K42*M42 -> 0 | X42: kWh/a | Y42: =IF(C42="Kesselwirkungsgrad bekannt",(E42*W42)/100,(W42*G42)/100) ->  | Z42: kWh/a | AH42: =(U42-$C$39)*(AJ42/(21-Q42)+AK42) ->  | AI42: % | AJ42: =VLOOKUP(I42,Listen!$A$3:$H$117,7,FALSE) ->  | AK42: =VLOOKUP(I42,Listen!$A$3:$H$117,8,FALSE) -> 
B43: Warmwasserkessel 2 | F43: % | G43: =IF(E43="",100-AH43-S43,"") ->  | H43: % | L43: kW | N43: h/a | P43: d/a | R43: vol% | T43: % | V43: °C | W43: =K43*M43 -> 0 | X43: kWh/a | Y43: =IF(C43="Kesselwirkungsgrad bekannt",(E43*W43)/100,(W43*G43)/100) ->  | Z43: kWh/a | AH43: =(U43-$C$39)*(AJ43/(21-Q43)+AK43) ->  | AI43: % | AJ43: =VLOOKUP(I43,Listen!$A$3:$H$117,7,FALSE) ->  | AK43: =VLOOKUP(I43,Listen!$A$3:$H$117,8,FALSE) -> 
B44: Warmwasserkessel 3 | F44: % | G44: =IF(E44="",100-AH44-S44,"") ->  | H44: % | L44: kW | N44: h/a | P44: d/a | R44: vol% | T44: % | V44: °C | W44: =K44*M44 -> 0 | X44: kWh/a | Y44: =IF(C44="Kesselwirkungsgrad bekannt",(E44*W44)/100,(W44*G44)/100) ->  | Z44: kWh/a | AH44: =(U44-$C$39)*(AJ44/(21-Q44)+AK44) ->  | AI44: % | AJ44: =VLOOKUP(I44,Listen!$A$3:$H$117,7,FALSE) ->  | AK44: =VLOOKUP(I44,Listen!$A$3:$H$117,8,FALSE) -> 
B45: Warmwasserkessel 4 | F45: % | G45: =IF(E45="",100-AH45-S45,"") ->  | H45: % | L45: kW | N45: h/a | P45: d/a | R45: vol% | T45: % | V45: °C | W45: =K45*M45 -> 0 | X45: kWh/a | Y45: =IF(C45="Kesselwirkungsgrad bekannt",(E45*W45)/100,(W45*G45)/100) ->  | Z45: kWh/a | AH45: =(U45-$C$39)*(AJ45/(21-Q45)+AK45) ->  | AI45: % | AJ45: =VLOOKUP(I45,Listen!$A$3:$H$117,7,FALSE) ->  | AK45: =VLOOKUP(I45,Listen!$A$3:$H$117,8,FALSE) -> 
B46: Warmwasserkessel 5 | F46: % | G46: =IF(E46="",100-AH46-S46,"") ->  | H46: % | L46: kW | N46: h/a | P46: d/a | R46: vol% | T46: % | V46: °C | W46: =K46*M46 -> 0 | X46: kWh/a | Y46: =IF(C46="Kesselwirkungsgrad bekannt",(E46*W46)/100,(W46*G46)/100) ->  | Z46: kWh/a | AH46: =(U46-$C$39)*(AJ46/(21-Q46)+AK46) ->  | AI46: % | AJ46: =VLOOKUP(I46,Listen!$A$3:$H$117,7,FALSE) ->  | AK46: =VLOOKUP(I46,Listen!$A$3:$H$117,8,FALSE) -> 
W47: =SUM(W42:W46) -> 0
C50: Auswählen: | E50: Kessel- Wirkungsgrad | G50: Kessel-Wirkungsgrad berechnet | I50: Brennstoff | K50: Nennleistung | M50: Volllaststunden pro Jahr | O50: Betriebstage pro Jahr | Q50: O2-Gehalt | S50: Strahlungs- verluste | U50: Abgas- temperatur | W50: Absalzungs-/Abschlammungs-verluste | Y50: Dampfdruck | AA50: Temperatur Speisewasser (nach Entgaser) | AC50: Menge Speisewasser | AE50: Erzeugte Dampfmenge | AG50: Energieinhalt Dampf | AJ50: Abgasverluste | AL50: Enthalpie ges. Dampf | AN50: Enthalpie Speisewasser | AP50: Brennstoff- einsatz | AS50: Faktor A | AT50: Faktor B
B51: Dampfkessel 1 | F51: % | G51: =IF(E51="",100-AJ51-S51-W51,"") ->  | H51: % | L51: kW | N51: h/a | P51: d/a | R51: vol% | T51: % | V51: °C | X51: % | Z51: bar | AB51: °C | AD51: kg/s | AE51: =IF(C51="Kesselwirkungsgrad bekannt",((K51*E51/100)/(AL51-AN51))*3.6,((K51*G51/100)/(AL51-AN51))*3.6) ->  | AF51: t/h | AG51: =IF(C51="Kesselwirkungsgrad bekannt",(E51*AP51)/100,(AP51*G51)/100) ->  | AH51: kWh/a | AJ51: =(U51-$C$39)*((AS51/(21-Q51))+AT51) ->  | AK51: % | AL51: =VLOOKUP(Y51,Dampftafel!$B$6:$I$64,7,TRUE) ->  | AM51: kJ/kg | AN51: =VLOOKUP(AA51,Dampftafel!C6:F64,4,TRUE) ->  | AO51: kJ/kg | AP51: =K51*M51 -> 0 | AQ51: kWh/a | AS51: =VLOOKUP(I51,Listen!$A$1:$H$10,7,FALSE) ->  | AT51: =VLOOKUP(I51,Listen!$A$1:$H$10,8,FALSE) -> 
B52: Dampfkessel 2 | F52: % | G52: =IF(E52="",100-AJ52-S52-W52,"") ->  | H52: % | L52: kW | N52: h/a | P52: d/a | R52: vol% | T52: % | V52: °C | X52: % | Z52: bar | AB52: °C | AD52: kg/s | AE52: =IF(C52="Kesselwirkungsgrad bekannt",((K52*E52/100)/(AL52-AN52))*3.6,((K52*G52/100)/(AL52-AN52))*3.6) ->  | AF52: t/h | AG52: =IF(C52="Kesselwirkungsgrad bekannt",(E52*AP52)/100,(AP52*G52)/100) ->  | AH52: kWh/a | AJ52: =(U52-$C$39)*((AS52/(21-Q52))+AT52) ->  | AK52: % | AL52: =VLOOKUP(Y52,Dampftafel!$B$6:$I$64,7,TRUE) ->  | AM52: kJ/kg | AN52: =VLOOKUP(AA52,Dampftafel!C7:F65,4,TRUE) ->  | AO52: kJ/kg | AP52: =K52*M52 -> 0 | AQ52: kWh/a | AS52: =VLOOKUP(I52,Listen!$A$1:$H$10,7,FALSE) ->  | AT52: =VLOOKUP(I52,Listen!$A$1:$H$10,8,FALSE) -> 
B53: Dampfkessel 3 | F53: % | G53: =IF(E53="",100-AJ53-S53-W53,"") ->  | H53: % | L53: kW | N53: h/a | P53: d/a | R53: vol% | T53: % | V53: °C | X53: % | Z53: bar | AB53: °C | AD53: kg/s | AE53: =IF(C53="Kesselwirkungsgrad bekannt",((K53*E53/100)/(AL53-AN53))*3.6,((K53*G53/100)/(AL53-AN53))*3.6) ->  | AF53: t/h | AG53: =IF(C53="Kesselwirkungsgrad bekannt",(E53*AP53)/100,(AP53*G53)/100) ->  | AH53: kWh/a | AJ53: =(U53-$C$39)*((AS53/(21-Q53))+AT53) ->  | AK53: % | AL53: =VLOOKUP(Y53,Dampftafel!$B$6:$I$64,7,TRUE) ->  | AM53: kJ/kg | AN53: =VLOOKUP(AA53,Dampftafel!C8:F66,4,TRUE) ->  | AO53: kJ/kg | AP53: =K53*M53 -> 0 | AQ53: kWh/a | AS53: =VLOOKUP(I53,Listen!$A$1:$H$10,7,FALSE) ->  | AT53: =VLOOKUP(I53,Listen!$A$1:$H$10,8,FALSE) -> 
B54: Dampfkessel 4 | F54: % | G54: =IF(E54="",100-AJ54-S54-W54,"") ->  | H54: % | L54: kW | N54: h/a | P54: d/a | R54: vol% | T54: % | V54: °C | X54: % | Z54: bar | AB54: °C | AD54: kg/s | AE54: =IF(C54="Kesselwirkungsgrad bekannt",((K54*E54/100)/(AL54-AN54))*3.6,((K54*G54/100)/(AL54-AN54))*3.6) ->  | AF54: t/h | AG54: =IF(C54="Kesselwirkungsgrad bekannt",(E54*AP54)/100,(AP54*G54)/100) ->  | AH54: kWh/a | AJ54: =(U54-$C$39)*((AS54/(21-Q54))+AT54) ->  | AK54: % | AL54: =VLOOKUP(Y54,Dampftafel!$B$6:$I$64,7,TRUE) ->  | AM54: kJ/kg | AN54: =VLOOKUP(AA54,Dampftafel!C9:F67,4,TRUE) ->  | AO54: kJ/kg | AP54: =K54*M54 -> 0 | AQ54: kWh/a | AS54: =VLOOKUP(I54,Listen!$A$1:$H$10,7,FALSE) ->  | AT54: =VLOOKUP(I54,Listen!$A$1:$H$10,8,FALSE) -> 
B55: Dampfkessel 5 | F55: % | G55: =IF(E55="",100-AJ55-S55-W55,"") ->  | H55: % | L55: kW | N55: h/a | P55: d/a | R55: vol% | T55: % | V55: °C | X55: % | Z55: bar | AB55: °C | AD55: kg/s | AE55: =IF(C55="Kesselwirkungsgrad bekannt",((K55*E55/100)/(AL55-AN55))*3.6,((K55*G55/100)/(AL55-AN55))*3.6) ->  | AF55: t/h | AG55: =IF(C55="Kesselwirkungsgrad bekannt",(E55*AP55)/100,(AP55*G55)/100) ->  | AH55: kWh/a | AJ55: =(U55-$C$39)*((AS55/(21-Q55))+AT55) ->  | AK55: % | AL55: =VLOOKUP(Y55,Dampftafel!$B$6:$I$64,7,TRUE) ->  | AM55: kJ/kg | AN55: =VLOOKUP(AA55,Dampftafel!C10:F68,4,TRUE) ->  | AO55: kJ/kg | AP55: =K55*M55 -> 0 | AQ55: kWh/a | AS55: =VLOOKUP(I55,Listen!$A$1:$H$10,7,FALSE) ->  | AT55: =VLOOKUP(I55,Listen!$A$1:$H$10,8,FALSE) -> 
AE56: =IF(C56="Kesselwirkungsgrad bekannt",(E56*AN56)/100,(AN56*G56)/100) -> 0 | AN56: =SUM(AP51:AP55) -> 0
C76: Auswählen: | E76: EER | G76: EER berechnet | I76: Leistung elektrisch | K76: Volllaststunden pro Jahr | M76: Betriebstage pro Jahr | O76: Temperatur Kondensator | Q76: Temperatur Verdampfer | S76: Wärmerück-gewinnung | U76: Art der Rückkühlung | W76: Strombedarf | Y76: Kälteleistung | AA76: Leistung Kondensator | AC76: Kältemenge | AE76: Abwärmemenge Kondensator
B77: Kältemaschine 1 | D77: =IF(C77="EER bekannt","ok",(IF(C77="EER unbekannt","ok",""))) ->  | G77: =IF(C77="EER unbekannt",(Q77+273.17)/((O77+273.15)-(Q77+273.15))*0.5,0) -> 0 | J77: kWel | L77: h/a | N77: d/a | P77: °C | R77: °C | W77: =I77*K77 -> 0 | X77: kWh | Y77: =IF(C77="EER bekannt",E77*I77,G77*I77) -> 0 | Z77: kWth | AA77: =Y77+I77 -> 0 | AB77: kW | AC77: =Y77*K77 -> 0 | AD77: kWhth | AE77: =AA77*K77 -> 0 | AF77: kWth
B78: Kältemaschine 2 | G78: 0 | J78: kWel | L78: h/a | N78: d/a | P78: °C | R78: °C | W78: 0 | X78: kWh | Y78: 0 | Z78: kWth | AA78: 0 | AB78: kW | AC78: 0 | AD78: kWhth | AE78: 0 | AF78: kWth
B79: Kältemaschine 3 | G79: 0 | J79: kWel | L79: h/a | N79: d/a | P79: °C | R79: °C | W79: 0 | X79: kWh | Y79: 0 | Z79: kWth | AA79: 0 | AB79: kW | AC79: 0 | AD79: kWhth | AE79: 0 | AF79: kWth
B80: Kältemaschine 4 | G80: 0 | J80: kWel | L80: h/a | N80: d/a | P80: °C | R80: °C | W80: 0 | X80: kWh | Y80: 0 | Z80: kWth | AA80: 0 | AB80: kW | AC80: 0 | AD80: kWhth | AE80: 0 | AF80: kWth
B81: Kältemaschine 5 | G81: 0 | J81: kWel | L81: h/a | N81: d/a | P81: °C | R81: °C | W81: 0 | X81: kWh | Y81: 0 | Z81: kWth | AA81: 0 | AB81: kW | AC81: 0 | AD81: kWhth | AE81: 0 | AF81: kWth
B82: Kältemaschine 6 | G82: 0 | J82: kWel | L82: h/a | N82: d/a | P82: °C | R82: °C | W82: 0 | X82: kWh | Y82: 0 | Z82: kWth | AA82: 0 | AB82: kW | AC82: 0 | AD82: kWhth | AE82: 0 | AF82: kWth
B83: Kältemaschine 7 | G83: 0 | J83: kWel | L83: h/a | N83: d/a | P83: °C | R83: °C | W83: 0 | X83: kWh | Y83: 0 | Z83: kWth | AA83: 0 | AB83: kW | AC83: 0 | AD83: kWhth | AE83: 0 | AF83: kWth
B84: Kältemaschine 8 | G84: 0 | J84: kWel | L84: h/a | N84: d/a | P84: °C | R84: °C | W84: 0 | X84: kWh | Y84: 0 | Z84: kWth | AA84: 0 | AB84: kW | AC84: 0 | AD84: kWhth | AE84: 0 | AF84: kWth
B85: Kältemaschine 9 | G85: 0 | J85: kWel | L85: h/a | N85: d/a | P85: °C | R85: °C | W85: 0 | X85: kWh | Y85: 0 | Z85: kWth | AA85: 0 | AB85: kW | AC85: 0 | AD85: kWhth | AE85: 0 | AF85: kWth
B86: Kältemaschine 10 | G86: 0 | J86: kWel | L86: h/a | N86: d/a | P86: °C | R86: °C | W86: 0 | X86: kWh | Y86: 0 | Z86: kWth | AA86: 0 | AB86: kW | AC86: 0 | AD86: kWhth | AE86: 0 | AF86: kWth
W87: =SUM(W77:W86) -> 0
C107: Auswählen: | E107: Kompressor-leistung | G107: Volllaststunden pro Jahr | I107: Betriebstage pro Jahr | K107: Temperatur Abwärme | M107: Anteil rückgewinnbarer Abwärme | O107: Energiebedarf | Q107: Abwärmemenge | S107: Abzuführende Leistung
B108: Drucklufkompressor 1 | F108: kW | H108: h/a | J108: d/a | L108: °C | N108: % | O108: =E108*G108 -> 0 | P108: kWh | Q108: =S108*G108 -> 0 | R108: kWh/a | S108: =E108*M108/100 -> 0 | T108: kW
B109: Drucklufkompressor 2 | F109: kW | H109: h/a | J109: d/a | L109: °C | N109: % | O109: =E109*G109 -> 0 | P109: kWh | Q109: =S109*G109 -> 0 | R109: kWh/a | S109: =E109*M109/100 -> 0 | T109: kW
B110: Drucklufkompressor 3 | F110: kW | H110: h/a | J110: d/a | L110: °C | N110: % | O110: =E110*G110 -> 0 | P110: kWh | Q110: =S110*G110 -> 0 | R110: kWh/a | S110: =E110*M110/100 -> 0 | T110: kW
B111: Drucklufkompressor 4 | F111: kW | H111: h/a | J111: d/a | L111: °C | N111: % | O111: =E111*G111 -> 0 | P111: kWh | Q111: =S111*G111 -> 0 | R111: kWh/a | S111: =E111*M111/100 -> 0 | T111: kW
B112: Drucklufkompressor 5 | F112: kW | H112: h/a | J112: d/a | L112: °C | N112: % | O112: =E112*G112 -> 0 | P112: kWh | Q112: =S112*G112 -> 0 | R112: kWh/a | S112: =E112*M112/100 -> 0 | T112: kW
M113: =SUM(O108:O112) -> 0 | N113: kWh

Sheet Dampftafel (hidden)
A2: SATTDAMPFEIGENSCHAFTEN | F2: Spezifische Enthalpie
F3: Flüssig | G3: Verdampfen | H3: Dampf | I3: Spezifische Entropie
F4: - hl - | G4: - he - | H4: - hs - | I4: - s -
A5: p abs [kPa] | B5: p abs [bar] | C5: T [°C] | D5: V spez [m³/kg] | E5: Dichte [kg/m³] | F5: [kJ/kg] | G5: [kJ/kg] | H5: [kJ/kg] | I5: (kJ/kgK)
A6: 0.8 | B6: =A6/100 -> 0.008 | C6: 3.8 | D6: 160 | E6: 0.00626 | F6: 15.8 | G6: 2493 | H6: 2509 | I6: 9.058
A7: 2 | B7: 0.02 | C7: 17.5 | D7: 67 | E7: 0.0149 | F7: 73.5 | G7: 2460 | H7: 2534 | I7: 8.725
A8: 5 | B8: 0.05 | C8: 32.9 | D8: 28.2 | E8: 0.0354 | F8: 137.8 | G8: 2424 | H8: 2562 | I8: 8.396
A9: 10 | B9: 0.1 | C9: 45.8 | D9: 14.7 | E9: 0.0682 | F9: 191.8 | G9: 2393 | H9: 2585 | I9: 8.151
A10: 20 | B10: 0.2 | C10: 60.1 | D10: 7.65 | E10: 0.131 | F10: 251.5 | G10: 2358 | H10: 2610 | I10: 7.909
A11: 28 | B11: 0.28 | C11: 67.5 | D11: 5.58 | E11: 0.179 | F11: 282.7 | G11: 2340 | H11: 2623 | I11: 7.793
A12: 35 | B12: 0.35 | C12: 72.7 | D12: 4.53 | E12: 0.221 | F12: 304.3 | G12: 2327 | H12: 2632 | I12: 7.717
A13: 45 | B13: 0.45 | C13: 78.7 | D13: 3.58 | E13: 0.279 | F13: 329.6 | G13: 2312 | H13: 2642 | I13: 7.631
A14: 55 | B14: 0.55 | C14: 83.7 | D14: 2.96 | E14: 0.338 | F14: 350.6 | G14: 2299 | H14: 2650 | I14: 7.562
A15: 65 | B15: 0.65 | C15: 88 | D15: 2.53 | E15: 0.395 | F15: 368.6 | G15: 2288 | H15: 2657 | I15: 7.506
A16: 75 | B16: 0.75 | C16: 91.8 | D16: 2.22 | E16: 0.45 | F16: 384.5 | G16: 2279 | H16: 2663 | I16: 7.457
A17: 85 | B17: 0.85 | C17: 95.2 | D17: 1.97 | E17: 0.507 | F17: 398.6 | G17: 2270 | H17: 2668 | I17: 7.415
A18: 95 | B18: 0.95 | C18: 98.2 | D18: 1.78 | E18: 0.563 | F18: 411.5 | G18: 2262 | H18: 2673 | I18: 7.377
A19: 100 | B19: 1 | C19: 99.6 | D19: 1.69 | E19: 0.59 | F19: 417.5 | G19: 2258 | H19: 2675 | I19: 7.36
A20: 101.33 | B20: 1.0133 | C20: 100 | D20: 1.67 | E20: 0.598 | F20: 419.1 | G20: 2257 | H20: 2676 | I20: 7.355
A21: 110 | B21: 1.1 | C21: 102.3 | D21: 1.55 | E21: 0.646 | F21: 428.8 | G21: 2251 | H21: 2680 | I21: 7.328
A22: 130 | B22: 1.3 | C22: 107.1 | D22: 1.33 | E22: 0.755 | F22: 449.2 | G22: 2238 | H22: 2687 | I22: 7.271
A23: 150 | B23: 1.5 | C23: 111.4 | D23: 1.16 | E23: 0.863 | F23: 467.1 | G23: 2226 | H23: 2698 | I23: 7.223
A24: 170 | B24: 1.7 | C24: 115.2 | D24: 1.03 | E24: 0.97 | F24: 483.2 | G24: 2216 | H24: 2699 | I24: 7.181
A25: 190 | B25: 1.9 | C25: 118.6 | D25: 0.929 | E25: 1.08 | F25: 497.8 | G25: 2206 | H25: 2704 | I25: 7.144
A26: 220 | B26: 2.2 | C26: 123.3 | D26: 0.81 | E26: 1.23 | F26: 517.6 | G26: 2193 | H26: 2711 | I26: 7.095
A27: 260 | B27: 2.6 | C27: 128.7 | D27: 0.693 | E27: 1.44 | F27: 540.9 | G27: 2177 | H27: 2718 | I27: 7.039
A28: 280 | B28: 2.8 | C28: 131.2 | D28: 0.646 | E28: 1.55 | F28: 551.4 | G28: 2170 | H28: 2722 | I28: 7.014
A29: 320 | B29: 3.2 | C29: 135.8 | D29: 0.57 | E29: 1.75 | F29: 570.9 | G29: 2157 | H29: 2728 | I29: 6.969
A30: 360 | B30: 3.6 | C30: 139.9 | D30: 0.51 | E30: 1.96 | F30: 588.5 | G30: 2144 | H30: 2733 | I30: 6.93
A31: 400 | B31: 4 | C31: 143.1 | D31: 0.462 | E31: 2.16 | F31: 604.7 | G31: 2133 | H31: 2738 | I31: 6.894
A32: 440 | B32: 4.4 | C32: 147.1 | D32: 0.423 | E32: 2.36 | F32: 619.6 | G32: 2122 | H32: 2742 | I32: 6.862
A33: 480 | B33: 4.8 | C33: 150.3 | D33: 0.389 | E33: 2.57 | F33: 633.5 | G33: 2112 | H33: 2746 | I33: 6.833
A34: 500 | B34: 5 | C34: 151.8 | D34: 0.375 | E34: 2.67 | F34: 640.1 | G34: 2107 | H34: 2748 | I34: 6.819
A35: 550 | B35: 5.5 | C35: 155.5 | D35: 0.342 | E35: 2.92 | F35: 655.8 | G35: 2096 | H35: 2752 | I35: 6.787
A36: 600 | B36: 6 | C36: 158.8 | D36: 0.315 | E36: 3.175 | F36: 670.4 | G36: 2085 | H36: 2756 | I36: 6.758
A37: 650 | B37: 6.5 | C37: 162 | D37: 0.292 | E37: 3.425 | F37: 684.1 | G37: 2075 | H37: 2759 | I37: 6.73
A38: 700 | B38: =A38/100 -> 7 | C38: 165 | D38: 0.273 | E38: 3.66 | F38: 697.1 | G38: 2065 | H38: 2762 | I38: 6.705
A39: 750 | B39: 7.5 | C39: 167.8 | D39: 0.255 | E39: 3.915 | F39: 709.3 | G39: 2056 | H39: 2765 | I39: 6.682
A40: 800 | B40: 8 | C40: 170.4 | D40: 0.24 | E40: 4.16 | F40: 720.9 | G40: 2047 | H40: 2768 | I40: 6.66
A41: 850 | B41: 8.5 | C41: 172.9 | D41: 0.229 | E41: 4.41 | F41: 732 | G41: 2038 | H41: 2770 | I41: 6.639
A42: 900 | B42: 9 | C42: 175.4 | D42: 0.215 | E42: 4.65 | F42: 742.6 | G42: 2030 | H42: 2772 | I42: 6.619
A43: 950 | B43: 9.5 | C43: 177.7 | D43: 0.204 | E43: 4.9 | F43: 752.8 | G43: 2021 | H43: 2774 | I43: 6.601
A44: 1000 | B44: 10 | C44: 179.9 | D44: 0.194 | E44: 5.15 | F44: 762.6 | G44: 2014 | H44: 2776 | I44: 6.583
A45: 1050 | B45: 10.5 | C45: 182 | D45: 0.186 | E45: 5.39 | F45: 772 | G45: 2006 | H45: 2778 | I45: 6.566
A46: 1150 | B46: 11.5 | C46: 186 | D46: 0.17 | E46: 5.89 | F46: 790 | G46: 1991 | H46: 2781 | I46: 6.534
A47: 1250 | B47: 12.5 | C47: 189.8 | D47: 0.157 | E47: 6.38 | F47: 807 | G47: 1977 | H47: 2784 | I47: 6.505
A48: 1300 | B48: 13 | C48: 191.6 | D48: 0.151 | E48: 6.62 | F48: 815 | G48: 1971 | H48: 2785 | I48: 6.491
A49: 1500 | B49: 15 | C49: 198.3 | D49: 0.132 | E49: 7.59 | F49: 845 | G49: 1945 | H49: 2790 | I49: 6.441
A50: 1600 | B50: 16 | C50: 201.4 | D50: 0.124 | E50: 8.03 | F50: 859 | G50: 1933 | H50: 2792 | I50: 6.418
A51: 1800 | B51: 18 | C51: 207.1 | D51: 0.11 | E51: 9.07 | F51: 885 | G51: 1910 | H51: 2795 | I51: 6.375
A52: 2000 | B52: 20 | C52: 212.4 | D52: 0.0995 | E52: 10.01 | F52: 909 | G52: 1889 | H52: 2797 | I52: 6.337
A53: 2100 | B53: 21 | C53: 214.9 | D53: 0.0945 | E53: 10.54 | F53: 920 | G53: 1878 | H53: 2798 | I53: 6.319
A54: 2300 | B54: 23 | C54: 219.6 | D54: 0.0868 | E54: 11.52 | F54: 942 | G54: 1858 | H54: 2800 | I54: 6.285
A55: 2400 | B55: 24 | C55: 221.8 | D55: 0.0832 | E55: 12.02 | F55: 952 | G55: 1849 | H55: 2800 | I55: 6.269
A56: 2600 | B56: 26 | C56: 226 | D56: 0.0769 | E56: 13.01 | F56: 972 | G56: 1830 | H56: 2801 | I56: 6.239
A57: 2700 | B57: 27 | C57: 228.1 | D57: 0.074 | E57: 13.52 | F57: 981 | G57: 1821 | H57: 2802 | I57: 6.224
A58: 2900 | B58: 29 | C58: 232 | D58: 0.0689 | E58: 14.52 | F58: 1000 | G58: 1803 | H58: 2802 | I58: 6.197
A59: 3000 | B59: 30 | C59: 233.8 | D59: 0.0666 | E59: 15 | F59: 1008 | G59: 1794 | H59: 2802 | I59: 6.184
A60: 3200 | B60: 32 | C60: 237.4 | D60: 0.0624 | E60: 16.02 | F60: 1025 | G60: 1779 | H60: 2802 | I60: 6.158
A61: 3400 | B61: 34 | C61: 240.9 | D61: 0.0587 | E61: 17.04 | F61: 1042 | G61: 1760 | H61: 2802 | I61: 6.134
A62: 3600 | B62: 36 | C62: 244.2 | D62: 0.0554 | E62: 18.06 | F62: 1058 | G62: 1744 | H62: 2802 | I62: 6.112
A63: 3800 | B63: 38 | C63: 247.3 | D63: 0.0524 | E63: 19.08 | F63: 1073 | G63: 1728 | H63: 2801 | I63: 6.09
A64: 4000 | B64: 40 | C64: 250.3 | D64: 0.0497 | E64: 20.09 | F64: 1087 | G64: 1713 | H64: 2800 | I64: 6.069

Sheet Ströme (hidden)
C2: (das ist die erste Zelle / erste Spalte) | E2: Use in Pinch List | F2: start T | G2: end T | H2: m | I2: cp | J2: h | K2: P/U | L2: d/y
B3: Kältemaschine 1 | C3: 1 | D3: Abwärme Kondensator 1 | E3: =IF(AND(Energieversorgung!D77="ok",Energieversorgung!S77="nicht vorhanden"),1,0) -> 0 | F3: =Energieversorgung!O77 -> 0 | G3: =IF(Energieversorgung!U77="nasse Rückkühlung",Allgemein!$D$45,Allgemein!$D$46) -> 0 | H3: =Energieversorgung!AE77/(4.19*(Ströme!F3-Ströme!G3))*3600/(J3*3600) ->  | I3: 4.19 | J3: =Energieversorgung!K77 -> 0 | K3: Process | L3: =Energieversorgung!M77 -> 0
B4: Kältemaschine 2 | C4: 2 | D4: Abwärme Kondensator 2 | E4: =IF(AND(Energieversorgung!D78="ok",Energieversorgung!S78="nicht vorhanden"),1,0) -> 0 | F4: =Energieversorgung!O78 -> 0 | G4: =IF(Energieversorgung!U78="nasse Rückkühlung",Allgemein!$D$45,Allgemein!$D$46) -> 0 | H4: =Energieversorgung!AE78/(4.19*(Ströme!F4-Ströme!G4))*3600/(J4*3600) ->  | I4: 4.19 | J4: =Energieversorgung!K78 -> 0 | K4: Process | L4: =Energieversorgung!M78 -> 0
B5: Kältemaschine 3 | C5: 3 | D5: Abwärme Kondensator 3 | E5: =IF(AND(Energieversorgung!D79="ok",Energieversorgung!S79="nicht vorhanden"),1,0) -> 0 | F5: =Energieversorgung!O79 -> 0 | G5: =IF(Energieversorgung!U79="nasse Rückkühlung",Allgemein!$D$45,Allgemein!$D$46) -> 0 | H5: =Energieversorgung!AE79/(4.19*(Ströme!F5-Ströme!G5))*3600/(J5*3600) ->  | I5: 4.19 | J5: =Energieversorgung!K79 -> 0 | K5: Process | L5: =Energieversorgung!M79 -> 0
B6: Kältemaschine 4 | C6: 4 | D6: Abwärme Kondensator 4 | E6: =IF(AND(Energieversorgung!D80="ok",Energieversorgung!S80="nicht vorhanden"),1,0) -> 0 | F6: =Energieversorgung!O80 -> 0 | G6: =IF(Energieversorgung!U80="nasse Rückkühlung",Allgemein!$D$45,Allgemein!$D$46) -> 0 | H6: =Energieversorgung!AE80/(4.19*(Ströme!F6-Ströme!G6))*3600/(J6*3600) ->  | I6: 4.19 | J6: =Energieversorgung!K80 -> 0 | K6: Process | L6: =Energieversorgung!M80 -> 0
B7: Kältemaschine 5 | C7: 5 | D7: Abwärme Kondensator 5 | E7: =IF(AND(Energieversorgung!D81="ok",Energieversorgung!S81="nicht vorhanden"),1,0) -> 0 | F7: =Energieversorgung!O81 -> 0 | G7: =IF(Energieversorgung!U81="nasse Rückkühlung",Allgemein!$D$45,Allgemein!$D$46) -> 0 | H7: =Energieversorgung!AE81/(4.19*(Ströme!F7-Ströme!G7))*3600/(J7*3600) ->  | I7: 4.19 | J7: =Energieversorgung!K81 -> 0 | K7: Process | L7: =Energieversorgung!M81 -> 0
B8: Kältemaschine 6 | C8: 6 | D8: Abwärme Kondensator 6 | E8: =IF(AND(Energieversorgung!D82="ok",Energieversorgung!S82="nicht vorhanden"),1,0) -> 0 | F8: =Energieversorgung!O82 -> 0 | G8: =IF(Energieversorgung!U82="nasse Rückkühlung",Allgemein!$D$45,Allgemein!$D$46) -> 0 | H8: =Energieversorgung!AE82/(4.19*(Ströme!F8-Ströme!G8))*3600/(J8*3600) ->  | I8: 4.19 | J8: =Energieversorgung!K82 -> 0 | K8: Process | L8: =Energieversorgung!M82 -> 0
B9: Kältemaschine 7 | C9: 7 | D9: Abwärme Kondensator 7 | E9: =IF(AND(Energieversorgung!D83="ok",Energieversorgung!S83="nicht vorhanden"),1,0) -> 0 | F9: =Energieversorgung!O83 -> 0 | G9: =IF(Energieversorgung!U83="nasse Rückkühlung",Allgemein!$D$45,Allgemein!$D$46) -> 0 | H9: =Energieversorgung!AE83/(4.19*(Ströme!F9-Ströme!G9))*3600/(J9*3600) ->  | I9: 4.19 | J9: =Energieversorgung!K83 -> 0 | K9: Process | L9: =Energieversorgung!M83 -> 0
B10: Kältemaschine 8 | C10: 8 | D10: Abwärme Kondensator 8 | E10: =IF(AND(Energieversorgung!D84="ok",Energieversorgung!S84="nicht vorhanden"),1,0) -> 0 | F10: =Energieversorgung!O84 -> 0 | G10: =IF(Energieversorgung!U84="nasse Rückkühlung",Allgemein!$D$45,Allgemein!$D$46) -> 0 | H10: =Energieversorgung!AE84/(4.19*(Ströme!F10-Ströme!G10))*3600/(J10*3600) ->  | I10: 4.19 | J10: =Energieversorgung!K84 -> 0 | K10: Process | L10: =Energieversorgung!M84 -> 0
B11: Kältemaschine 9 | C11: 9 | D11: Abwärme Kondensator 9 | E11: =IF(AND(Energieversorgung!D85="ok",Energieversorgung!S85="nicht vorhanden"),1,0) -> 0 | F11: =Energieversorgung!O85 -> 0 | G11: =IF(Energieversorgung!U85="nasse Rückkühlung",Allgemein!$D$45,Allgemein!$D$46) -> 0 | H11: =Energieversorgung!AE85/(4.19*(Ströme!F11-Ströme!G11))*3600/(J11*3600) ->  | I11: 4.19 | J11: =Energieversorgung!K85 -> 0 | K11: Process | L11: =Energieversorgung!M85 -> 0
B12: Kältemaschine 10 | C12: 10 | D12: Abwärme Kondensator 10 | E12: =IF(AND(Energieversorgung!D86="ok",Energieversorgung!S86="nicht vorhanden"),1,0) -> 0 | F12: =Energieversorgung!O86 -> 0 | G12: =IF(Energieversorgung!U86="nasse Rückkühlung",Allgemein!$D$45,Allgemein!$D$46) -> 0 | H12: =Energieversorgung!AE86/(4.19*(Ströme!F12-Ströme!G12))*3600/(J12*3600) ->  | I12: 4.19 | J12: =Energieversorgung!K86 -> 0 | K12: Process | L12: =Energieversorgung!M86 -> 0
C14: (das ist die erste Zelle / erste Spalte) | E14: Use in Pinch List | F14: start T | G14: end T | H14: m | I14: cp | J14: h | K14: P/U
B15: Kälteverteilung 1 | C15: 1 | D15: Kälteverteilung 1 | E15: =IF(AND(Energieverteilung!E23<>0,Energieverteilung!G23<>0),1,0) -> 0 | F15: =Energieverteilung!E23 -> 0 | G15: =Energieverteilung!G23 -> 0 | H15: =Energieverteilung!Q23/3600*1000 ->  | I15: 4.19 | J15: =Energieversorgung!K77 -> 0 | K15: Process
B16: Kälteverteilung 2 | C16: 2 | D16: Kälteverteilung 2 | E16: =IF(AND(Energieverteilung!E24<>0,Energieverteilung!G24<>0),1,0) -> 0 | F16: =Energieverteilung!E24 -> 0 | G16: =Energieverteilung!G24 -> 0 | H16: =Energieverteilung!Q24/3600*1000 ->  | I16: 4.19 | J16: =Energieversorgung!K78 -> 0 | K16: Process
B17: Kälteverteilung 3 | C17: 3 | D17: Kälteverteilung 3 | E17: =IF(AND(Energieverteilung!E25<>0,Energieverteilung!G25<>0),1,0) -> 0 | F17: =Energieverteilung!E25 -> 0 | G17: =Energieverteilung!G25 -> 0 | H17: =Energieverteilung!Q25/3600*1000 ->  | I17: 4.19 | J17: =Energieversorgung!K79 -> 0 | K17: Process
B18: Kälteverteilung 4 | C18: 4 | D18: Kälteverteilung 4 | E18: =IF(AND(Energieverteilung!E26<>0,Energieverteilung!G26<>0),1,0) -> 0 | F18: =Energieverteilung!E26 -> 0 | G18: =Energieverteilung!G26 -> 0 | H18: =Energieverteilung!Q26/3600*1000 ->  | I18: 4.19 | J18: =Energieversorgung!K80 -> 0 | K18: Process
B19: Kälteverteilung 5 | C19: 5 | D19: Kälteverteilung 5 | E19: =IF(AND(Energieverteilung!E27<>0,Energieverteilung!G27<>0),1,0) -> 0 | F19: =Energieverteilung!E27 -> 0 | G19: =Energieverteilung!G27 -> 0 | H19: =Energieverteilung!Q27/3600*1000 ->  | I19: 4.19 | J19: =Energieversorgung!K81 -> 0 | K19: Process
B20: Kälteverteilung 6 | C20: 6 | D20: Kälteverteilung 6 | E20: =IF(AND(Energieverteilung!E28<>0,Energieverteilung!G28<>0),1,0) -> 0 | F20: =Energieverteilung!E28 -> 0 | G20: =Energieverteilung!G28 -> 0 | H20: =Energieverteilung!Q28/3600*1000 ->  | I20: 4.19 | J20: =Energieversorgung!K82 -> 0 | K20: Process
B21: Kälteverteilung 7 | C21: 7 | D21: Kälteverteilung 7 | E21: =IF(AND(Energieverteilung!E29<>0,Energieverteilung!G29<>0),1,0) -> 0 | F21: =Energieverteilung!E29 -> 0 | G21: =Energieverteilung!G29 -> 0 | H21: =Energieverteilung!Q29/3600*1000 ->  | I21: 4.19 | J21: =Energieversorgung!K83 -> 0 | K21: Process
B22: Kälteverteilung 8 | C22: 8 | D22: Kälteverteilung 8 | E22: =IF(AND(Energieverteilung!E30<>0,Energieverteilung!G30<>0),1,0) -> 0 | F22: =Energieverteilung!E30 -> 0 | G22: =Energieverteilung!G30 -> 0 | H22: =Energieverteilung!Q30/3600*1000 ->  | I22: 4.19 | J22: =Energieversorgung!K84 -> 0 | K22: Process
B23: Kälteverteilung 9 | C23: 9 | D23: Kälteverteilung 9 | E23: =IF(AND(Energieverteilung!E31<>0,Energieverteilung!G31<>0),1,0) -> 0 | F23: =Energieverteilung!E31 -> 0 | G23: =Energieverteilung!G31 -> 0 | H23: =Energieverteilung!Q31/3600*1000 ->  | I23: 4.19 | J23: =Energieversorgung!K85 -> 0 | K23: Process
B24: Kälteverteilung 10 | C24: 10 | D24: Kälteverteilung 10 | E24: =IF(AND(Energieverteilung!E32<>0,Energieverteilung!G32<>0),1,0) -> 0 | F24: =Energieverteilung!E32 -> 0 | G24: =Energieverteilung!G32 -> 0 | H24: =Energieverteilung!Q32/3600*1000 ->  | I24: 4.19 | J24: =Energieversorgung!K86 -> 0 | K24: Process

Sheet Ströme_2 (hidden)
C2: (das ist die erste Zelle / erste Spalte) | E2: Use in Pinch List | F2: start T | G2: end T | H2: m | I2: cp | J2: h | K2: P/U | L2: d/y
B3: Druckluft 1 | C3: 1 | D3: Abwärme Druckluftkompressor 1 | E3: =IF(Energieversorgung!C108="Wärmerückgewinnung nicht vorhanden",1,0) -> 0 | F3: =Energieversorgung!K108 -> 0 | G3: =Allgemein!$D$46 -> 0 | H3: =Energieversorgung!S108/(4.19*(Ströme_2!F3-Ströme_2!G3)) ->  | I3: 4.19 | J3: =Energieversorgung!G108 -> 0 | K3: Process | L3: =Energieversorgung!I108 -> 0
B4: Druckluft 2 | C4: 2 | D4: Abwärme Druckluftkompressor 2 | E4: =IF(Energieversorgung!C109="Wärmerückgewinnung nicht vorhanden",1,0) -> 0 | F4: =Energieversorgung!K109 -> 0 | G4: =Allgemein!$D$46 -> 0 | H4: =Energieversorgung!S109/(4.19*(Ströme_2!F4-Ströme_2!G4)) ->  | I4: 4.19 | J4: =Energieversorgung!G109 -> 0 | K4: Process | L4: =Energieversorgung!I109 -> 0
B5: Druckluft 3 | C5: 3 | D5: Abwärme Druckluftkompressor 3 | E5: =IF(Energieversorgung!C110="Wärmerückgewinnung nicht vorhanden",1,0) -> 0 | F5: =Energieversorgung!K110 -> 0 | G5: =Allgemein!$D$46 -> 0 | H5: =Energieversorgung!S110/(4.19*(Ströme_2!F5-Ströme_2!G5)) ->  | I5: 4.19 | J5: =Energieversorgung!G110 -> 0 | K5: Process | L5: =Energieversorgung!I110 -> 0
B6: Druckluft 4 | C6: 4 | D6: Abwärme Druckluftkompressor 4 | E6: =IF(Energieversorgung!C111="Wärmerückgewinnung nicht vorhanden",1,0) -> 0 | F6: =Energieversorgung!K111 -> 0 | G6: =Allgemein!$D$46 -> 0 | H6: =Energieversorgung!S111/(4.19*(Ströme_2!F6-Ströme_2!G6)) ->  | I6: 4.19 | J6: =Energieversorgung!G111 -> 0 | K6: Process | L6: =Energieversorgung!I111 -> 0
B7: Druckluft 5 | C7: 5 | D7: Abwärme Druckluftkompressor 5 | E7: =IF(Energieversorgung!C112="Wärmerückgewinnung nicht vorhanden",1,0) -> 0 | F7: =Energieversorgung!K112 -> 0 | G7: =Allgemein!$D$46 -> 0 | H7: =Energieversorgung!S112/(4.19*(Ströme_2!F7-Ströme_2!G7)) ->  | I7: 4.19 | J7: =Energieversorgung!G112 -> 0 | K7: Process | L7: =Energieversorgung!I112 -> 0
C9: (das ist die erste Zelle / erste Spalte) | E9: Use in Pinch List | F9: start T | G9: end T | H9: m | I9: cp | J9: h | K9: P/U | L9: d/y
B10: Kesselspeisewasser 1 | C10: 1 | D10: Kesselspeisewasser Kessel 1 | E10: =IF(Energieversorgung!AC51>0,1,0) -> 0 | F10: =Allgemein!$D$45 -> 0 | G10: =Energieversorgung!AA51 -> 0 | H10: =Energieversorgung!AC51 -> 0 | I10: 4.19 | J10: =Energieversorgung!M51 -> 0 | K10: Process | L10: =Energieversorgung!O42 -> 0
B11: Kesselspeisewasser 2 | C11: 2 | D11: Kesselspeisewasser Kessel 2 | E11: =IF(Energieversorgung!AC52>0,1,0) -> 0 | F11: =Allgemein!$D$45 -> 0 | G11: =Energieversorgung!AA52 -> 0 | H11: =Energieversorgung!AC52 -> 0 | I11: 4.19 | J11: =Energieversorgung!M52 -> 0 | K11: Process | L11: =Energieversorgung!O43 -> 0
B12: Kesselspeisewasser 3 | C12: 3 | D12: Kesselspeisewasser Kessel 3 | E12: =IF(Energieversorgung!AC53>0,1,0) -> 0 | F12: =Allgemein!$D$45 -> 0 | G12: =Energieversorgung!AA53 -> 0 | H12: =Energieversorgung!AC53 -> 0 | I12: 4.19 | J12: =Energieversorgung!M53 -> 0 | K12: Process | L12: =Energieversorgung!O44 -> 0
B13: Kesselspeisewasser 4 | C13: 4 | D13: Kesselspeisewasser Kessel 4 | E13: =IF(Energieversorgung!AC54>0,1,0) -> 0 | F13: =Allgemein!$D$45 -> 0 | G13: =Energieversorgung!AA54 -> 0 | H13: =Energieversorgung!AC54 -> 0 | I13: 4.19 | J13: =Energieversorgung!M54 -> 0 | K13: Process | L13: =Energieversorgung!O45 -> 0
B14: Kesselspeisewasser 5 | C14: 5 | D14: Kesselspeisewasser Kessel 5 | E14: =IF(Energieversorgung!AC55>0,1,0) -> 0 | F14: =Allgemein!$D$45 -> 0 | G14: =Energieversorgung!AA55 -> 0 | H14: =Energieversorgung!AC55 -> 0 | I14: 4.19 | J14: =Energieversorgung!M55 -> 0 | K14: Process | L14: =Energieversorgung!O46 -> 0
C16: (das ist die erste Zelle / erste Spalte) | E16: Use in Pinch List | F16: start T | G16: end T | H16: m | I16: cp | J16: h | K16: P/U | L16: d/y
B17: Kondensat 1
B18: Kondensat 2
B19: Kondensat 3
B20: Kondensat 4
B21: Kondensat 5
C23: (das ist die erste Zelle / erste Spalte) | E23: Use in Pinch List | F23: start T | G23: end T | H23: m | I23: cp | J23: h | K23: P/U
B24: Warmwasser Verteilung 1 | C24: 1 | D24: Warmwasserverteilung 1 | E24: =IF(AND(Energieverteilung!E13>0,Energieverteilung!G13>0),1,0) -> 0 | F24: =Energieverteilung!E13 -> 0 | G24: =Energieverteilung!G13 -> 0 | H24: =Energieverteilung!Q13 ->  | I24: 4.19 | J24: =Energieversorgung!M42 -> 0 | K24: Process
B25: Warmwasser Verteilung 2 | C25: 2 | D25: Warmwasserverteilung 2 | E25: =IF(AND(Energieverteilung!E14>0,Energieverteilung!G14>0),1,0) -> 0 | F25: =Energieverteilung!E14 -> 0 | G25: =Energieverteilung!G14 -> 0 | H25: =Energieverteilung!Q14 ->  | I25: 4.19 | J25: =Energieversorgung!M43 -> 0 | K25: Process
B26: Warmwasser Verteilung 3 | C26: 3 | D26: Warmwasserverteilung 3 | E26: =IF(AND(Energieverteilung!E15>0,Energieverteilung!G15>0),1,0) -> 0 | F26: =Energieverteilung!E15 -> 0 | G26: =Energieverteilung!G15 -> 0 | H26: =Energieverteilung!Q15 ->  | I26: 4.19 | J26: =Energieversorgung!M44 -> 0 | K26: Process
B27: Warmwasser Verteilung 4 | C27: 4 | D27: Warmwasserverteilung 4 | E27: =IF(AND(Energieverteilung!E16>0,Energieverteilung!G16>0),1,0) -> 0 | F27: =Energieverteilung!E16 -> 0 | G27: =Energieverteilung!G16 -> 0 | H27: =Energieverteilung!Q16 ->  | I27: 4.19 | J27: =Energieversorgung!M45 -> 0 | K27: Process
B28: Warmwasser Verteilung 5 | C28: 5 | D28: Warmwasserverteilung 5 | E28: =IF(AND(Energieverteilung!E17>0,Energieverteilung!G17>0),1,0) -> 0 | F28: =Energieverteilung!E17 -> 0 | G28: =Energieverteilung!G17 -> 0 | H28: =Energieverteilung!Q17 ->  | I28: 4.19 | J28: =Energieversorgung!M46 -> 0 | K28: Process

Sheet Energieverteilung
C12: Energiemenge ohne Verluste | E12: Vorlauf- temperatur | G12: Rücklauf- temperatur | I12: Verteilungs- verluste | K12: Energiemenge mit Verluste | O12: Leistung | Q12: Massenstrom | S12: Brennstoff | U12: Brennstoffeinsatz
B13: Warmwasser | C13: ='Ist-Stand'!I16 ->  | D13: kWh/a | F13: °C | H13: °C | J13: % | K13: =IF(I13="",C13,(C13-(C13*I13/100))) ->  | L13: kWh/a | O13: =K13/Energieversorgung!M42 ->  | P13: kW | Q13: =O13/(4.19*(E13-G13)) ->  | R13: kg/s | S13: =Energieversorgung!I42 -> 0 | U13: =Energieversorgung!W42 -> 0 | V13: kWh/a
B14: Warmwasser | C14: ='Ist-Stand'!I17 ->  | D14: kWh/a | F14: °C | H14: °C | J14: % | K14: =IF(I14="",C14,(C14-(C14*I14/100))) ->  | L14: kWh/a | O14: =K14/Energieversorgung!M43 ->  | P14: kW | Q14: =O14/(4.19*(E14-G14)) ->  | R14: kg/s | S14: =Energieversorgung!I43 -> 0 | U14: =Energieversorgung!W43 -> 0 | V14: kWh/a
B15: Warmwasser | C15: ='Ist-Stand'!I18 ->  | D15: kWh/a | F15: °C | H15: °C | J15: % | L15: kWh/a | O15: =K15/Energieversorgung!M44 ->  | P15: kW | R15: kg/s | S15: =Energieversorgung!I44 -> 0 | U15: =Energieversorgung!W44 -> 0 | V15: kWh/a
B16: Warmwasser | C16: ='Ist-Stand'!I19 ->  | D16: kWh/a | F16: °C | H16: °C | J16: % | L16: kWh/a | O16: =K16/Energieversorgung!M45 ->  | P16: kW | R16: kg/s | S16: =Energieversorgung!I45 -> 0 | U16: =Energieversorgung!W45 -> 0 | V16: kWh/a
B17: Warmwasser | C17: ='Ist-Stand'!I20 ->  | D17: kWh/a | F17: °C | H17: °C | J17: % | L17: kWh/a | O17: =K17/Energieversorgung!M46 ->  | P17: kW | R17: kg/s | S17: =Energieversorgung!I46 -> 0 | U17: =Energieversorgung!W46 -> 0 | V17: kWh/a
K18: =SUM(IFERROR(K13:K17,0)) -> 0 | L18: kWh/a
C22: Energiemenge ohne Verluste | E22: Vorlauf- temperatur | G22: Rücklauf- temperatur | I22: Verteilungs- verluste | K22: Energiemenge mit Verluste | O22: Leistung | Q22: Massenstrom | S22: Brennstoff | U22: Brennstoffeinsatz (Stromverbrauch)
B23: Kältemenge | C23: =Energieversorgung!AC77 -> 0 | D23: kWh/a | F23: °C | H23: °C | J23: % | K23: =IF(I23="",C23,(C23-(I23*C23/100))) -> 0 | L23: kWh/a | O23: =Energieversorgung!Y77 -> 0 | P23: kW | Q23: =O23/(4.19*(G23-E23)) ->  | R23: kg/s | S23: Strom | U23: =Energieversorgung!W77 -> 0 | V23: kWh/a
B24: Kältemenge | C24: =Energieversorgung!AC78 -> 0 | D24: kWh/a | F24: °C | H24: °C | J24: % | K24: =IF(I24="",C24,(C24-(I24*C24/100))) -> 0 | L24: kWh/a | O24: =Energieversorgung!Y78 -> 0 | P24: kW | Q24: =O24/(4.19*(G24-E24)) ->  | R24: kg/s | S24: Strom | U24: =Energieversorgung!W78 -> 0 | V24: kWh/a
B25: Kältemenge | C25: =Energieversorgung!AC79 -> 0 | D25: kWh/a | F25: °C | H25: °C | J25: % | K25: 0 | L25: kWh/a | O25: =Energieversorgung!Y79 -> 0 | P25: kW | R25: kg/s | S25: Strom | U25: =Energieversorgung!W79 -> 0 | V25: kWh/a
B26: Kältemenge | C26: =Energieversorgung!AC80 -> 0 | D26: kWh/a | F26: °C | H26: °C | J26: % | K26: 0 | L26: kWh/a | O26: =Energieversorgung!Y80 -> 0 | P26: kW | R26: kg/s | S26: Strom | U26: =Energieversorgung!W80 -> 0 | V26: kWh/a
B27: Kältemenge | C27: =Energieversorgung!AC81 -> 0 | D27: kWh/a | F27: °C | H27: °C | J27: % | K27: 0 | L27: kWh/a | O27: =Energieversorgung!Y81 -> 0 | P27: kW | R27: kg/s | S27: Strom | U27: =Energieversorgung!W81 -> 0 | V27: kWh/a
B28: Kältemenge | C28: =Energieversorgung!AC82 -> 0 | D28: kWh/a | F28: °C | H28: °C | J28: % | K28: 0 | L28: kWh/a | O28: =Energieversorgung!Y82 -> 0 | P28: kW | R28: kg/s | S28: Strom | U28: =Energieversorgung!W82 -> 0 | V28: kWh/a
B29: Kältemenge | C29: =Energieversorgung!AC83 -> 0 | D29: kWh/a | F29: °C | H29: °C | J29: % | K29: 0 | L29: kWh/a | O29: =Energieversorgung!Y83 -> 0 | P29: kW | R29: kg/s | S29: Strom | U29: =Energieversorgung!W83 -> 0 | V29: kWh/a
B30: Kältemenge | C30: =Energieversorgung!AC84 -> 0 | D30: kWh/a | F30: °C | H30: °C | J30: % | K30: 0 | L30: kWh/a | O30: =Energieversorgung!Y84 -> 0 | P30: kW | R30: kg/s | S30: Strom | U30: =Energieversorgung!W84 -> 0 | V30: kWh/a
B31: Kältemenge | C31: =Energieversorgung!AC85 -> 0 | D31: kWh/a | F31: °C | H31: °C | J31: % | K31: 0 | L31: kWh/a | O31: =Energieversorgung!Y85 -> 0 | P31: kW | R31: kg/s | S31: Strom | U31: =Energieversorgung!W85 -> 0 | V31: kWh/a
B32: Kältemenge | C32: =Energieversorgung!AC86 -> 0 | D32: kWh/a | F32: °C | H32: °C | J32: % | K32: 0 | L32: kWh/a | O32: =Energieversorgung!Y86 -> 0 | P32: kW | R32: kg/s | S32: Strom | U32: =Energieversorgung!W86 -> 0 | V32: kWh/a
K36: =SUM(IFERROR(K23:K32,0)) -> 0
C37: Energiemenge ohne Verluste | E37: Verteilungs- verluste | K37: Energiemenge mit Verluste | S37: Brennstoff | U37: Brennstoffeinsatz
B38: Dampf | C38: ='Ist-Stand'!I31 ->  | D38: kWh/a | F38: % | K38: =IF(E38="",C38,(C38-(C38*E38/100))) ->  | L38: kWh/a | S38: =Energieversorgung!I51 -> 0 | U38: =Energieversorgung!AP51 -> 0 | V38: kWh/a
B39: Dampf | C39: ='Ist-Stand'!I32 ->  | D39: kWh/a | F39: % | K39: =IF(E39="",C39,(C39-(C39*E39/100))) ->  | L39: kWh/a | S39: =Energieversorgung!I52 -> 0 | U39: =Energieversorgung!AP52 -> 0 | V39: kWh/a
B40: Dampf | C40: ='Ist-Stand'!I33 ->  | D40: kWh/a | F40: % | K40: =IF(E40="",C40,(C40-(C40*E40/100))) ->  | L40: kWh/a | S40: =Energieversorgung!I53 -> 0 | U40: =Energieversorgung!AP53 -> 0 | V40: kWh/a
B41: Dampf | C41: ='Ist-Stand'!I34 ->  | D41: kWh/a | F41: % | K41: =IF(E41="",C41,(C41-(C41*E41/100))) ->  | L41: kWh/a | S41: =Energieversorgung!I54 -> 0 | U41: =Energieversorgung!AP54 -> 0 | V41: kWh/a
B42: Dampf | C42: ='Ist-Stand'!I35 ->  | D42: kWh/a | F42: % | K42: =IF(E42="",C42,(C42-(C42*E42/100))) ->  | L42: kWh/a | S42: =Energieversorgung!I55 -> 0 | U42: =Energieversorgung!AP55 -> 0 | V42: kWh/a
K43: =SUM(IFERROR(K38:K41,0)) -> 0
C49: Energiemenge ohne Verluste | E49: Verteilungs- verluste | K49: Energiemenge mit Verluste
B50: Biogas | C50: =VLOOKUP(B50,Energieversorgung!$C$15:$N$19,11,FALSE)-SUMIF($S$13:$U$42,B50,$U$13:$U$42) ->  | F50: % | K50: =IF(E50="",C50,(C50-(C50*E50/100))) ->  | L50: kWh/a
B51: Biomasse (Hackschnitzel) | C51: =VLOOKUP(B51,Energieversorgung!$C$15:$N$19,11,FALSE)-SUMIF($S$13:$U$42,B51,$U$13:$U$42) ->  | D51: kWh/a | F51: % | K51: =IF(E51="",C51,(C51-(C51*E51/100))) ->  | L51: kWh/a
B52: (zugekaufter) Dampf | C52: =VLOOKUP(B52,Energieversorgung!$C$15:$N$19,11,FALSE)-SUMIF($S$13:$U$42,B52,$U$13:$U$42) ->  | D52: kWh/a | F52: % | K52: =IF(E52="",C52,(C52-(C52*E52/100))) ->  | L52: kWh/a
B53: Diesel | C53: =VLOOKUP(B53,Energieversorgung!$C$15:$N$19,11,FALSE)-SUMIF($S$13:$U$42,B53,$U$13:$U$42) ->  | D53: kWh/a | F53: % | K53: =IF(E53="",C53,(C53-(C53*E53/100))) ->  | L53: kWh/a
B54: Erdgas | C54: =VLOOKUP(B54,Energieversorgung!$C$15:$N$19,11,FALSE)-SUMIF($S$13:$U$42,B54,$U$13:$U$42) ->  | D54: kWh/a | F54: % | L54: kWh/a
B55: Fernwärme | C55: =VLOOKUP(B55,Energieversorgung!$C$15:$N$19,11,FALSE)-SUMIF($S$13:$U$42,B55,$U$13:$U$42) ->  | D55: kWh/a | F55: % | L55: kWh/a
B56: Kohle | C56: =VLOOKUP(B56,Energieversorgung!$C$15:$N$19,11,FALSE)-SUMIF($S$13:$U$42,B56,$U$13:$U$42) ->  | D56: kWh/a | F56: % | L56: kWh/a
B57: LPG | C57: =VLOOKUP(B57,Energieversorgung!$C$15:$N$19,11,FALSE)-SUMIF($S$13:$U$42,B57,$U$13:$U$42) ->  | D57: kWh/a | F57: % | L57: kWh/a
B58: Öl | C58: =VLOOKUP(B58,Energieversorgung!$C$15:$N$19,11,FALSE)-SUMIF($S$13:$U$42,B58,$U$13:$U$42) ->  | D58: kWh/a | F58: % | L58: kWh/a
B59: Petrol | C59: =VLOOKUP(B59,Energieversorgung!$C$15:$N$19,11,FALSE)-SUMIF($S$13:$U$42,B59,$U$13:$U$42) ->  | D59: kWh/a | F59: % | L59: kWh/a
B60: Strom | C60: =VLOOKUP(B60,Energieversorgung!$C$15:$N$19,11,FALSE)-SUMIF($S$13:$U$42,B60,$U$13:$U$42) ->  | D60: kWh/a | F60: % | L60: kWh/a
B62: =IFERROR(C50,"") -> 

Sheet Ist-Stand
D15: Energiemenge | I15: Bereitgestellte Energiemenge | Q15: Energiemenge mit Verluste
B16: Energieträger 1 | C16: =IF(Energieversorgung!C15>0,Energieversorgung!C15,"") ->  | D16: =IF(Energieversorgung!M15>0,Energieversorgung!M15,0) -> 0 | E16: kWh/a | H16: Warmwasserkessel 1 | I16: =IF(Energieversorgung!Y42>0,Energieversorgung!Y42,0) ->  | J16: kWh/a | P16: Warmwasser | Q16: =Energieverteilung!K18 -> 0 | R16: kWh/a
B17: Energieträger 2 | C17: =IF(Energieversorgung!C16>0,Energieversorgung!C16,"") ->  | D17: =IF(Energieversorgung!M16>0,Energieversorgung!M16,0) ->  | E17: kWh/a | H17: Warmwasserkessel 2 | I17: =IF(Energieversorgung!Y43>0,Energieversorgung!Y43,0) ->  | J17: kWh/a | P17: Dampf | Q17: =Energieverteilung!K43 -> 0 | R17: kWh/a | W17: =IF(Q17>0,P17,"") -> 
B18: Energieträger 3 | C18: =IF(Energieversorgung!C17>0,Energieversorgung!C17,"") ->  | D18: =IF(Energieversorgung!M17>0,Energieversorgung!M17,0) ->  | E18: kWh/a | H18: Warmwasserkessel 3 | I18: =IF(Energieversorgung!Y44>0,Energieversorgung!Y44,0) ->  | J18: kWh/a | P18: Kaltwasser | Q18: =Energieverteilung!K36 -> 0 | R18: kWh/a
B19: Energieträger 4 | C19: =IF(Energieversorgung!C18>0,Energieversorgung!C18,"") ->  | D19: =IF(Energieversorgung!M18>0,Energieversorgung!M18,0) ->  | E19: kWh/a | H19: Warmwasserkessel 4 | I19: =IF(Energieversorgung!Y45>0,Energieversorgung!Y45,0) ->  | J19: kWh/a | P19: =IF(D16>0,C16&" "&"direkt","") ->  | Q19: =VLOOKUP(C16,Energieverteilung!$B$50:$K$60,10,FALSE) ->  | R19: kWh/a
B20: Energieträger 5 | C20: =IF(Energieversorgung!C19>0,Energieversorgung!C19,"") ->  | D20: =IF(Energieversorgung!M19>0,Energieversorgung!M19,0) ->  | E20: kWh/a | H20: Warmwasserkessel 5 | I20: =IF(Energieversorgung!Y46>0,Energieversorgung!Y46,0) ->  | J20: kWh/a | P20: =IF(D17>0,C17&" "&"direkt","") ->  | Q20: =VLOOKUP(C17,Energieverteilung!$B$50:$K$60,10,FALSE) ->  | R20: kWh/a
C21: Summe | D21: =SUM(IFERROR(D16:D20,0)) -> 0 | E21: kWh/a | H21: Warmwasser | I21: =SUM(IFERROR(I16:I20,0)) -> 0 | J21: kWh/a | P21: =IF(D18>0,C18&" "&"direkt","") ->  | Q21: =VLOOKUP(C18,Energieverteilung!$B$50:$K$60,10,FALSE) ->  | R21: kWh/a
P22: =IF(D19>0,C19&" "&"direkt","") ->  | Q22: =VLOOKUP(C19,Energieverteilung!$B$50:$K$60,10,FALSE) ->  | R22: kWh/a
P23: =IF(D20>0,C20&" "&"direkt","") ->  | Q23: =VLOOKUP(C20,Energieverteilung!$B$50:$K$60,10,FALSE) ->  | R23: kWh/a
P24: =IF(D21>0,C21&" "&"direkt","") ->  | Q24: =VLOOKUP(C21,Energieverteilung!$B$50:$K$60,10,FALSE) ->  | R24: kWh/a
P25: =IF(D22>0,C22&" "&"direkt","") ->  | Q25: =VLOOKUP(C22,Energieverteilung!$B$50:$K$60,10,FALSE) ->  | R25: kWh/a
P26: =IF(D23>0,C23&" "&"direkt","") ->  | Q26: =VLOOKUP(C23,Energieverteilung!$B$50:$K$60,10,FALSE) ->  | R26: kWh/a
P27: =IF(D24>0,C24&" "&"direkt","") ->  | Q27: =VLOOKUP(C24,Energieverteilung!$B$50:$K$60,10,FALSE) ->  | R27: kWh/a
P28: =IF(D25>0,C25&" "&"direkt","") ->  | Q28: =VLOOKUP(C25,Energieverteilung!$B$50:$K$60,10,FALSE) ->  | R28: kWh/a
P29: =IF(D18>0,C18&" "&"direkt","") ->  | Q29: =VLOOKUP(C26,Energieverteilung!$B$50:$K$60,10,FALSE) ->  | R29: kWh/a
P30: =IF(D19>0,C19&" "&"direkt","") ->  | Q30: =VLOOKUP(C27,Energieverteilung!$B$50:$K$60,10,FALSE) ->  | R30: kWh/a
C31: Zu Bereitstellung | D31: =SUM(IFERROR(Energieverteilung!U13:U42,0)) -> 0 | E31: kWh/a | H31: Dampfkessel 1 | I31: =Energieversorgung!AG51 ->  | J31: kWh/a | P31: =IF(D20>0,C20&" "&"direkt","") ->  | Q31: =VLOOKUP(C28,Energieverteilung!$B$50:$K$60,10,FALSE) ->  | R31: kWh/a
H32: Dampfkessel 2 | I32: =Energieversorgung!AG52 ->  | J32: kWh/a
C33: Direkte Nutzung | D33: =SUM(IFERROR(Energieverteilung!K50:K60,0)) -> 0 | E33: kWh/a | H33: Dampfkessel 3 | I33: =Energieversorgung!AG53 ->  | J33: kWh/a
H34: Dampfkessel 4 | I34: =Energieversorgung!AG54 ->  | J34: kWh/a
H35: Dampfkessel 5 | I35: =Energieversorgung!AG55 ->  | J35: kWh/a | P35: Energie zu Prozessen | Q35: =SUM(IFERROR(Q16:Q31,0)) -> 0 | R35: kWh/a
H36: Dampf | I36: =SUM(IFERROR(I31:I35,0)) -> 0 | J36: kWh/a
H45: Kältemaschine 1 | I45: =Energieversorgung!AC77 -> 0 | J45: kWh/a
H46: Kältemaschine 2 | I46: =Energieversorgung!AC78 -> 0 | J46: kWh/a
H47: Kältemaschine 3 | I47: =Energieversorgung!AC79 -> 0 | J47: kWh/a
H48: Kältemaschine 4 | I48: =Energieversorgung!AC80 -> 0 | J48: kWh/a
H49: Kältemaschine 5 | I49: =Energieversorgung!AC81 -> 0 | J49: kWh/a
H50: Kältemaschine 6 | I50: =Energieversorgung!AC82 -> 0 | J50: kWh/a
H51: Kältemaschine 7 | I51: =Energieversorgung!AC83 -> 0 | J51: kWh/a
H52: Kältemaschine 8 | I52: =Energieversorgung!AC84 -> 0 | J52: kWh/a
H53: Kältemaschine 9 | I53: =Energieversorgung!AC85 -> 0 | J53: kWh/a
H54: Kältemaschine 10 | I54: =Energieversorgung!AC86 -> 0 | J54: kWh/a
H55: Kaltwasser | I55: =SUM(IFERROR(I45:I54,0)) -> 0 | J55: kWh/a
H68: Bereitgestellte Energiemenge | I68: =SUM(IFERROR(I16:I54,0)) -> 0 | J68: kWh/a

Sheet Metall (hidden)
B12: Energieverbrauch des Betriebes | C12: ='Ist-Stand'!Q35 -> 0 | D12: kWh/a
B14: Energieverbrauch der definierten Prozesse | C14: =E92 -> 0 | D14: kWh/a | E14: =IF(C14>C12, "Achtung! Der Energieverbrauch des Betriebes ist zu gering um den Verbrauch der Prozesse abzudecken!","") -> 
B16: Übereinstimmung | C16: =C14/C12*100 ->  | D16: %
B21: Prozess | C21: Anzahl angeben
A23: Max 10 | B23: Raumwärme | C23: 0
A25: Max 10 | B25: Raumkühlung | C25: 0
A27: Max 5 | B27: Warmwasser | C27: 0
A29: Max 5 | B29: Prozess "XY" heizen | C29: 0
A31: Max 5 | B31: Prozess "XY" kühlen | C31: 0
A33: Max 5 | B33: Galvanikbad heizen | C33: 0
A35: Max 5 | B35: Galvanikbad kühlen | C35: 0
B55: Prozess | E55: Energieverbrauch berechnet
A56: 1 | B56: Raumwärme | E56: =IF(Raumwärme!Q11>0,Raumwärme!Q11,0) -> 0 | F56: kWh/a
A57: 2 | B57: Raumwärme | E57: =IF(Raumwärme!Q12>0,Raumwärme!Q12,0) -> 0 | F57: kWh/a
A58: 3 | B58: Raumwärme | E58: =IF(Raumwärme!Q13>0,Raumwärme!Q13,0) -> 0 | F58: kWh/a
A59: 4 | B59: Raumwärme | E59: =IF(Raumwärme!Q14>0,Raumwärme!Q14,0) -> 0 | F59: kWh/a
A60: 5 | B60: Raumwärme | E60: =IF(Raumwärme!Q15>0,Raumwärme!Q15,0) -> 0 | F60: kWh/a
A61: 6 | B61: Raumkühlung | E61: =IF(Raumkühlung!Q11>0,Raumkühlung!Q11,0) -> 0 | F61: kWh/a
A62: 7 | B62: Raumkühlung | E62: =IF(Raumkühlung!Q12>0,Raumkühlung!Q12,0) -> 0 | F62: kWh/a
A63: 8 | B63: Raumkühlung | E63: =IF(Raumkühlung!Q13>0,Raumkühlung!Q13,0) -> 0 | F63: kWh/a
A64: 9 | B64: Raumkühlung | E64: =IF(Raumkühlung!Q14>0,Raumkühlung!Q14,0) -> 0 | F64: kWh/a
A65: 10 | B65: Raumkühlung | E65: =IF(Raumkühlung!Q15>0,Raumkühlung!Q15,0) -> 0 | F65: kWh/a
A66: 11 | B66: Warmwasser | E66: =IF(Warmwasser!Q20>0,Warmwasser!Q20,0) -> 0 | F66: kWh/a
A67: 12 | B67: Warmwasser | E67: =IF(Warmwasser!Q54>0,Warmwasser!Q54,0) -> 0 | F67: kWh/a
A68: 13 | B68: Warmwasser | E68: =IF(Warmwasser!Q88>0,Warmwasser!Q88,0) -> 0 | F68: kWh/a
A69: 14 | B69: Warmwasser | E69: =IF(Warmwasser!O122>0,Warmwasser!O122,0) -> 0 | F69: kWh/a
A70: 15 | B70: Warmwasser | E70: =IF(Warmwasser!Q156>0,Warmwasser!Q156,0) -> 0 | F70: kWh/a
A71: 16 | B71: Galvanikbad heizen | E71: =IF(Galvanikbad_Heizen!N23>0,Galvanikbad_Heizen!N23,0) -> 0 | F71: kWh/a
A72: 17 | B72: Galvanikbad heizen | E72: =IF(Galvanikbad_Heizen!N56>0,Galvanikbad_Heizen!N56,0) -> 0 | F72: kWh/a
A73: 18 | B73: Galvanikbad heizen | E73: =IF(Galvanikbad_Heizen!N91>0,Galvanikbad_Heizen!N91,0) -> 0 | F73: kWh/a
A74: 19 | B74: Galvanikbad heizen | E74: =IF(Galvanikbad_Heizen!N125>0,Galvanikbad_Heizen!N125,0) -> 0 | F74: kWh/a
A75: 20 | B75: Galvanikbad heizen | E75: =IF(Galvanikbad_Heizen!N159>0,Galvanikbad_Heizen!N159,0) -> 0 | F75: kWh/a
A76: 21 | B76: Galvanikbad kühlen | E76: =IF(Galvanikbad_Kühlen!P20>0,Galvanikbad_Kühlen!P20,0) -> 0 | F76: kWh/a
A77: 22 | B77: Galvanikbad kühlen | E77: =IF(Galvanikbad_Kühlen!P54>0,Galvanikbad_Kühlen!P54,0) -> 0 | F77: kWh/a
A78: 23 | B78: Galvanikbad kühlen | E78: =IF(Galvanikbad_Kühlen!P88>0,Galvanikbad_Kühlen!P88,0) -> 0 | F78: kWh/a
A79: 24 | B79: Galvanikbad kühlen | E79: =IF(Galvanikbad_Kühlen!P122>0,Galvanikbad_Kühlen!P122,0) -> 0 | F79: kWh/a
A80: 25 | B80: Galvanikbad kühlen | E80: =IF(Galvanikbad_Kühlen!P156>0,Galvanikbad_Kühlen!P156,0) -> 0 | F80: kWh/a
A81: 26 | B81: Prozess XY heizen | E81: =IF(Prozess_Heizen!S20>0,Prozess_Heizen!S20,0) -> 0 | F81: kWh/a
A82: 27 | B82: Prozess XY heizen | E82: =IF(Prozess_Heizen!S54>0,Prozess_Heizen!S54,0) -> 0 | F82: kWh/a
A83: 28 | B83: Prozess XY heizen | E83: =IF(Prozess_Heizen!S88>0,Prozess_Heizen!S88,0) -> 0 | F83: kWh/a
A84: 29 | B84: Prozess XY heizen | E84: =IF(Prozess_Heizen!S122>0,Prozess_Heizen!S122,0) -> 0 | F84: kWh/a
A85: 30 | B85: Prozess XY heizen | E85: =IF(Prozess_Heizen!S156>0,Prozess_Heizen!S156,0) -> 0 | F85: kWh/a
A86: 31 | B86: Prozess XY kühlen | E86: =IF(Prozess_Kühlen!S20>0,Prozess_Kühlen!S20,0) -> 0 | F86: kWh/a
A87: 32 | B87: Prozess XY kühlen | E87: =IF(Prozess_Kühlen!S54>0,Prozess_Kühlen!S54,0) -> 0 | F87: kWh/a
A88: 33 | B88: Prozess XY kühlen | E88: =IF(Prozess_Kühlen!S88>0,Prozess_Kühlen!S88,0) -> 0 | F88: kWh/a
A89: 34 | B89: Prozess XY kühlen | E89: =IF(Prozess_Kühlen!S122>0,Prozess_Kühlen!S122,0) -> 0 | F89: kWh/a
A90: 35 | B90: Prozess XY kühlen | E90: =IF(Prozess_Kühlen!S154>0,Prozess_Kühlen!S154,0) -> 0 | F90: kWh/a
C92: Summe | E92: =IFERROR(SUM(E56:E90),0) -> 0 | F92: kWh/a

Sheet Lebensmittel (hidden)
B12: Energieverbrauch des Betriebes | C12: ='Ist-Stand'!Q35 -> 0 | D12: kWh/a
B14: Energieverbrauch der definierten Prozesse | C14: =E93 -> 0 | D14: kWh/a | E14: =IF(C14>C12, "Achtung! Der Energieverbrauch des Betriebes ist zu gering um den Verbrauch der Prozesse abzudecken!","") -> 
B16: Übereinstimmung | C16: =C14/C12*100 ->  | D16: %
B21: Prozess | C21: Anzahl angeben
A23: Max 10 | B23: Raumwärme | C23: 0
A25: Max 10 | B25: Raumkühlung | C25: 0
A27: Max 5 | B27: Warmwasser | C27: 0
A29: Max 5 | B29: Prozess XY heizen | C29: 0
A31: Max 5 | B31: Prozess XY kühlen | C31: 0
A33: Max 5 | B33: Prozessbad heizen | C33: 0
A35: Max 5 | B35: Prozessbad kühlen | C35: 0
B55: Prozess | E55: Energieverbrauch berechnet
A56: 1 | B56: Raumwärme | E56: =IF(Raumwärme!Q11>0,Raumwärme!Q11,0) -> 0 | F56: kWh/a
A57: 2 | B57: Raumwärme | E57: =IF(Raumwärme!Q12>0,Raumwärme!Q12,0) -> 0 | F57: kWh/a
A58: 3 | B58: Raumwärme | E58: =IF(Raumwärme!Q13>0,Raumwärme!Q13,0) -> 0 | F58: kWh/a
A59: 4 | B59: Raumwärme | E59: =IF(Raumwärme!Q14>0,Raumwärme!Q14,0) -> 0 | F59: kWh/a
A60: 5 | B60: Raumwärme | E60: =IF(Raumwärme!Q15>0,Raumwärme!Q15,0) -> 0 | F60: kWh/a
A61: 6 | B61: Raumkühlung | E61: =IF(Raumkühlung!Q11>0,Raumkühlung!Q11,0) -> 0 | F61: kWh/a
A62: 7 | B62: Raumkühlung | E62: =IF(Raumkühlung!Q12>0,Raumkühlung!Q12,0) -> 0 | F62: kWh/a
A63: 8 | B63: Raumkühlung | E63: =IF(Raumkühlung!Q13>0,Raumkühlung!Q13,0) -> 0 | F63: kWh/a
A64: 9 | B64: Raumkühlung | E64: =IF(Raumkühlung!Q14>0,Raumkühlung!Q14,0) -> 0 | F64: kWh/a
A65: 10 | B65: Raumkühlung | E65: =IF(Raumkühlung!Q15>0,Raumkühlung!Q15,0) -> 0 | F65: kWh/a
A66: 11 | B66: Warmwasser | E66: =IF(Warmwasser!Q20>0,Warmwasser!Q20,0) -> 0 | F66: kWh/a
A67: 12 | B67: Warmwasser | E67: =IF(Warmwasser!Q54>0,Warmwasser!Q54,0) -> 0 | F67: kWh/a
A68: 13 | B68: Warmwasser | E68: =IF(Warmwasser!Q88>0,Warmwasser!Q88,0) -> 0 | F68: kWh/a
A69: 14 | B69: Warmwasser | E69: =IF(Warmwasser!Q122>0,Warmwasser!Q122,0) -> 0 | F69: kWh/a
A70: 15 | B70: Warmwasser | E70: =IF(Warmwasser!Q156>0,Warmwasser!Q156,0) -> 0 | F70: kWh/a
A71: 16 | B71: Prozessbad heizen | E71: =IF(Galvanikbad_Heizen!N23>0,Galvanikbad_Heizen!N23,0) -> 0 | F71: kWh/a
A72: 17 | B72: Prozessbad heizen | E72: =IF(Galvanikbad_Heizen!N56>0,Galvanikbad_Heizen!N56,0) -> 0 | F72: kWh/a
A73: 18 | B73: Prozessbad heizen | E73: =IF(Galvanikbad_Heizen!N91>0,Galvanikbad_Heizen!N91,0) -> 0 | F73: kWh/a
A74: 19 | B74: Prozessbad heizen | E74: =IF(Galvanikbad_Heizen!N125>0,Galvanikbad_Heizen!N125,0) -> 0 | F74: kWh/a
A75: 20 | B75: Prozessbad heizen | E75: =IF(Galvanikbad_Heizen!N159>0,Galvanikbad_Heizen!N159,0) -> 0 | F75: kWh/a
A76: 21 | B76: Prozessbad kühlen | E76: =IF(Galvanikbad_Kühlen!P20>0,Galvanikbad_Kühlen!P20,0) -> 0 | F76: kWh/a
A77: 22 | B77: Prozessbad kühlen | E77: =IF(Galvanikbad_Kühlen!P54>0,Galvanikbad_Kühlen!P54,0) -> 0 | F77: kWh/a
A78: 23 | B78: Prozessbad kühlen | E78: =IF(Galvanikbad_Kühlen!P88>0,Galvanikbad_Kühlen!P88,0) -> 0 | F78: kWh/a
A79: 24 | B79: Prozessbad kühlen | E79: =IF(Galvanikbad_Kühlen!P122>0,Galvanikbad_Kühlen!P122,0) -> 0 | F79: kWh/a
A80: 25 | B80: Prozessbad kühlen | E80: =IF(Galvanikbad_Kühlen!P156>0,Galvanikbad_Kühlen!P156,0) -> 0 | F80: kWh/a
A81: 26 | B81: Prozess XY heizen | E81: =IF(Prozess_Heizen!S20>0,Prozess_Heizen!S20,0) -> 0 | F81: kWh/a
A82: 27 | B82: Prozess XY heizen | E82: =IF(Prozess_Heizen!S54>0,Prozess_Heizen!S54,0) -> 0 | F82: kWh/a
A83: 28 | B83: Prozess XY heizen | E83: =IF(Prozess_Heizen!S88>0,Prozess_Heizen!S88,0) -> 0 | F83: kWh/a
A84: 29 | B84: Prozess XY heizen | E84: =IF(Prozess_Heizen!S122>0,Prozess_Heizen!S122,0) -> 0 | F84: kWh/a
A85: 30 | B85: Prozess XY heizen | E85: =IF(Prozess_Heizen!S156>0,Prozess_Heizen!S156,0) -> 0 | F85: kWh/a
A86: 31 | B86: Prozess XY kühlen | E86: =IF(Prozess_Kühlen!S20>0,Prozess_Kühlen!S20,0) -> 0 | F86: kWh/a
A87: 32 | B87: Prozess XY kühlen | E87: =IF(Prozess_Kühlen!S54>0,Prozess_Kühlen!S54,0) -> 0 | F87: kWh/a
A88: 33 | B88: Prozess XY kühlen | E88: =IF(Prozess_Kühlen!S88>0,Prozess_Kühlen!S88,0) -> 0 | F88: kWh/a
A89: 34 | B89: Prozess XY kühlen | E89: =IF(Prozess_Kühlen!S122>0,Prozess_Kühlen!S122,0) -> 0 | F89: kWh/a
A90: 35 | B90: Prozess XY kühlen | E90: =IF(Prozess_Kühlen!S154>0,Prozess_Kühlen!S154,0) -> 0 | F90: kWh/a
C93: Summe | E93: =IFERROR(SUM(E56:E91),0) -> 0 | F93: kWh/a

Sheet Papier (hidden)
B12: Energieverbrauch des Betriebes | C12: ='Ist-Stand'!Q35 -> 0 | D12: kWh/a
B14: Energieverbrauch der definierten Prozesse | C14: =E92 -> 0 | D14: kWh/a | E14: =IF(C14>C12, "Achtung! Der Energieverbrauch des Betriebes ist zu gering um den Verbrauch der Prozesse abzudecken!","") -> 
B16: Übereinstimmung | C16: =C14/C12*100 ->  | D16: %
B21: Prozess | C21: Anzahl angeben
A23: Max 10 | B23: Raumwärme | C23: 0
A25: Max 10 | B25: Raumkühlung | C25: 0
A27: Max 5 | B27: Warmwasser | C27: 0
A29: Max 5 | B29: Prozess XY heizen | C29: 0
A31: Max 5 | B31: Prozess XY kühlen | C31: 0
A33: Max 5 | B33: Prozessbad heizen | C33: 0
A35: Max 5 | B35: Prozessbad kühlen | C35: 0
B55: Prozess | E55: Energieverbrauch berechnet
A56: 1 | B56: Raumwärme | E56: =IF(Raumwärme!Q11>0,Raumwärme!Q11,0) -> 0 | F56: kWh/a
A57: 2 | B57: Raumwärme | E57: =IF(Raumwärme!Q12>0,Raumwärme!Q12,0) -> 0 | F57: kWh/a
A58: 3 | B58: Raumwärme | E58: =IF(Raumwärme!Q13>0,Raumwärme!Q13,0) -> 0 | F58: kWh/a
A59: 4 | B59: Raumwärme | E59: =IF(Raumwärme!Q14>0,Raumwärme!Q14,0) -> 0 | F59: kWh/a
A60: 5 | B60: Raumwärme | E60: =IF(Raumwärme!Q15>0,Raumwärme!Q15,0) -> 0 | F60: kWh/a
A61: 6 | B61: Raumkühlung | E61: =IF(Raumkühlung!Q11>0,Raumkühlung!Q11,0) -> 0 | F61: kWh/a
A62: 7 | B62: Raumkühlung | E62: =IF(Raumkühlung!Q12>0,Raumkühlung!Q12,0) -> 0 | F62: kWh/a
A63: 8 | B63: Raumkühlung | E63: =IF(Raumkühlung!Q13>0,Raumkühlung!Q13,0) -> 0 | F63: kWh/a
A64: 9 | B64: Raumkühlung | E64: =IF(Raumkühlung!Q14>0,Raumkühlung!Q14,0) -> 0 | F64: kWh/a
A65: 10 | B65: Raumkühlung | E65: =IF(Raumkühlung!Q15>0,Raumkühlung!Q15,0) -> 0 | F65: kWh/a
A66: 11 | B66: Warmwasser | E66: =IF(Warmwasser!Q20>0,Warmwasser!Q20,0) -> 0 | F66: kWh/a
A67: 12 | B67: Warmwasser | E67: =IF(Warmwasser!Q54>0,Warmwasser!Q54,0) -> 0 | F67: kWh/a
A68: 13 | B68: Warmwasser | E68: =IF(Warmwasser!Q88>0,Warmwasser!Q88,0) -> 0 | F68: kWh/a
A69: 14 | B69: Warmwasser | E69: =IF(Warmwasser!Q122>0,Warmwasser!Q122,0) -> 0 | F69: kWh/a
A70: 15 | B70: Warmwasser | E70: =IF(Warmwasser!Q156>0,Warmwasser!Q156,0) -> 0 | F70: kWh/a
A71: 16 | B71: Prozessbad heizen | E71: =IF(Galvanikbad_Heizen!N23>0,Galvanikbad_Heizen!N23,0) -> 0 | F71: kWh/a
A72: 17 | B72: Prozessbad heizen | E72: =IF(Galvanikbad_Heizen!N56>0,Galvanikbad_Heizen!N56,0) -> 0 | F72: kWh/a
A73: 18 | B73: Prozessbad heizen | E73: =IF(Galvanikbad_Heizen!N91>0,Galvanikbad_Heizen!N91,0) -> 0 | F73: kWh/a
A74: 19 | B74: Prozessbad heizen | E74: =IF(Galvanikbad_Heizen!N125>0,Galvanikbad_Heizen!N125,0) -> 0 | F74: kWh/a
A75: 20 | B75: Prozessbad heizen | E75: =IF(Galvanikbad_Heizen!N159>0,Galvanikbad_Heizen!N159,0) -> 0 | F75: kWh/a
A76: 21 | B76: Prozessbad kühlen | E76: =IF(Galvanikbad_Kühlen!P20>0,Galvanikbad_Kühlen!P20,0) -> 0 | F76: kWh/a
A77: 22 | B77: Prozessbad kühlen | E77: =IF(Galvanikbad_Kühlen!P54>0,Galvanikbad_Kühlen!P54,0) -> 0 | F77: kWh/a
A78: 23 | B78: Prozessbad kühlen | E78: =IF(Galvanikbad_Kühlen!P88>0,Galvanikbad_Kühlen!P88,0) -> 0 | F78: kWh/a
A79: 24 | B79: Prozessbad kühlen | E79: =IF(Galvanikbad_Kühlen!P122>0,Galvanikbad_Kühlen!P122,0) -> 0 | F79: kWh/a
A80: 25 | B80: Prozessbad kühlen | E80: =IF(Galvanikbad_Kühlen!P156>0,Galvanikbad_Kühlen!P156,0) -> 0 | F80: kWh/a
A81: 26 | B81: Prozess XY heizen | E81: =IF(Prozess_Heizen!S20>0,Prozess_Heizen!S20,0) -> 0 | F81: kWh/a
A82: 27 | B82: Prozess XY heizen | E82: =IF(Prozess_Heizen!S54>0,Prozess_Heizen!S54,0) -> 0 | F82: kWh/a
A83: 28 | B83: Prozess XY heizen | E83: =IF(Prozess_Heizen!S88>0,Prozess_Heizen!S88,0) -> 0 | F83: kWh/a
A84: 29 | B84: Prozess XY heizen | E84: =IF(Prozess_Heizen!S122>0,Prozess_Heizen!S122,0) -> 0 | F84: kWh/a
A85: 30 | B85: Prozess XY heizen | E85: =IF(Prozess_Heizen!S156>0,Prozess_Heizen!S156,0) -> 0 | F85: kWh/a
A86: 32 | B86: Prozess XY kühlen | E86: =IF(Prozess_Kühlen!S20>0,Prozess_Kühlen!S20,0) -> 0 | F86: kWh/a
A87: 33 | B87: Prozessbad kühlen | E87: =IF(Prozess_Kühlen!S54>0,Prozess_Kühlen!S54,0) -> 0 | F87: kWh/a
A88: 34 | B88: Prozessbad kühlen | E88: =IF(Prozess_Kühlen!S88>0,Prozess_Kühlen!S88,0) -> 0 | F88: kWh/a
A89: 35 | B89: Prozessbad kühlen | E89: =IF(Prozess_Kühlen!S122>0,Prozess_Kühlen!S122,0) -> 0 | F89: kWh/a
A90: 36 | B90: Prozessbad kühlen | E90: =IF(Prozess_Kühlen!S154>0,Prozess_Kühlen!S154,0) -> 0 | F90: kWh/a
C92: Summe | E92: =IFERROR(SUM(E56:E90),0) -> 0 | F92: kWh/a

Sheet Dämmstoffe (hidden)
B12: Energieverbrauch des Betriebes | C12: ='Ist-Stand'!Q35 -> 0 | D12: kWh/a
B14: Energieverbrauch der definierten Prozesse | C14: =E93 -> 0 | D14: kWh/a | E14: =IF(C14>C12, "Achtung! Der Energieverbrauch des Betriebes ist zu gering um den Verbrauch der Prozesse abzudecken!","") -> 
B16: Übereinstimmung | C16: =C14/C12*100 ->  | D16: %
B21: Prozess | C21: Anzahl angeben
A23: Max 10 | B23: Raumwärme | C23: 0
A25: Max 10 | B25: Raumkühlung | C25: 0
A27: Max 5 | B27: Warmwasser | C27: 0
A29: Max 5 | B29: Prozess XY heizen | C29: 0
A31: Max 5 | B31: Prozess XY kühlen | C31: 0
A33: Max 5 | B33: Prozessbad heizen | C33: 0
A35: Max 5 | B35: Prozessbad kühlen | C35: 0
B55: Prozess | E55: Energieverbrauch berechnet
A56: 1 | B56: Raumwärme | E56: =IF(Raumwärme!Q11>0,Raumwärme!Q11,0) -> 0 | F56: kWh/a
A57: 2 | B57: Raumwärme | E57: =IF(Raumwärme!Q12>0,Raumwärme!Q12,0) -> 0 | F57: kWh/a
A58: 3 | B58: Raumwärme | E58: =IF(Raumwärme!Q13>0,Raumwärme!Q13,0) -> 0 | F58: kWh/a
A59: 4 | B59: Raumwärme | E59: =IF(Raumwärme!Q14>0,Raumwärme!Q14,0) -> 0 | F59: kWh/a
A60: 5 | B60: Raumwärme | E60: =IF(Raumwärme!Q15>0,Raumwärme!Q15,0) -> 0 | F60: kWh/a
A61: 11 | B61: Raumkühlung | E61: =IF(Raumkühlung!Q11>0,Raumkühlung!Q11,0) -> 0 | F61: kWh/a
A62: 12 | B62: Raumkühlung | E62: =IF(Raumkühlung!Q12>0,Raumkühlung!Q12,0) -> 0 | F62: kWh/a
A63: 13 | B63: Raumkühlung | E63: =IF(Raumkühlung!Q13>0,Raumkühlung!Q13,0) -> 0 | F63: kWh/a
A64: 14 | B64: Raumkühlung | E64: =IF(Raumkühlung!Q14>0,Raumkühlung!Q14,0) -> 0 | F64: kWh/a
A65: 15 | B65: Raumkühlung | E65: =IF(Raumkühlung!Q15>0,Raumkühlung!Q15,0) -> 0 | F65: kWh/a
A66: 21 | B66: Warmwasser | E66: =IF(Warmwasser!Q20>0,Warmwasser!Q20,0) -> 0 | F66: kWh/a
A67: 22 | B67: Warmwasser | E67: =IF(Warmwasser!Q54>0,Warmwasser!Q54,0) -> 0 | F67: kWh/a
A68: 23 | B68: Warmwasser | E68: =IF(Warmwasser!Q88>0,Warmwasser!Q88,0) -> 0 | F68: kWh/a
A69: 24 | B69: Warmwasser | E69: =IF(Warmwasser!Q122>0,Warmwasser!Q122,0) -> 0 | F69: kWh/a
A70: 25 | B70: Warmwasser | E70: =IF(Warmwasser!Q156>0,Warmwasser!Q156,0) -> 0 | F70: kWh/a
A71: 26 | B71: Prozessbad heizen | E71: =IF(Galvanikbad_Heizen!N23>0,Galvanikbad_Heizen!N23,0) -> 0 | F71: kWh/a
A72: 27 | B72: Prozessbad heizen | E72: =IF(Galvanikbad_Heizen!N56>0,Galvanikbad_Heizen!N56,0) -> 0 | F72: kWh/a
A73: 28 | B73: Prozessbad heizen | E73: =IF(Galvanikbad_Heizen!N91>0,Galvanikbad_Heizen!N91,0) -> 0 | F73: kWh/a
A74: 29 | B74: Prozessbad heizen | E74: =IF(Galvanikbad_Heizen!N125>0,Galvanikbad_Heizen!N125,0) -> 0 | F74: kWh/a
A75: 30 | B75: Prozessbad heizen | E75: =IF(Galvanikbad_Heizen!N159>0,Galvanikbad_Heizen!N159,0) -> 0 | F75: kWh/a
A76: 31 | B76: Prozessbad kühlen | E76: =IF(Galvanikbad_Kühlen!P20>0,Galvanikbad_Kühlen!P20,0) -> 0 | F76: kWh/a
A77: 32 | B77: Prozessbad kühlen | E77: =IF(Galvanikbad_Kühlen!P54>0,Galvanikbad_Kühlen!P54,0) -> 0 | F77: kWh/a
A78: 33 | B78: Prozessbad kühlen | E78: =IF(Galvanikbad_Kühlen!P88>0,Galvanikbad_Kühlen!P88,0) -> 0 | F78: kWh/a
A79: 34 | B79: Prozessbad kühlen | E79: =IF(Galvanikbad_Kühlen!P122>0,Galvanikbad_Kühlen!P122,0) -> 0 | F79: kWh/a
A80: 35 | B80: Prozessbad kühlen | E80: =IF(Galvanikbad_Kühlen!P156>0,Galvanikbad_Kühlen!P156,0) -> 0 | F80: kWh/a
A81: 36 | B81: Prozess XY heizen | E81: =IF(Prozess_Heizen!S20>0,Prozess_Heizen!S20,0) -> 0 | F81: kWh/a
A82: 37 | B82: Prozess XY heizen | E82: =IF(Prozess_Heizen!S54>0,Prozess_Heizen!S54,0) -> 0 | F82: kWh/a
A83: 38 | B83: Prozess XY heizen | E83: =IF(Prozess_Heizen!S88>0,Prozess_Heizen!S88,0) -> 0 | F83: kWh/a
A84: 39 | B84: Prozess XY heizen | E84: =IF(Prozess_Heizen!S122>0,Prozess_Heizen!S122,0) -> 0 | F84: kWh/a
A85: 40 | B85: Prozess XY heizen | E85: =IF(Prozess_Heizen!S156>0,Prozess_Heizen!S156,0) -> 0 | F85: kWh/a
A86: 41 | B86: Prozess XY kühlen | E86: =IF(Prozess_Kühlen!S20>0,Prozess_Kühlen!S20,0) -> 0 | F86: kWh/a
A87: 42 | B87: Prozess XY kühlen | E87: =IF(Prozess_Kühlen!S54>0,Prozess_Kühlen!S54,0) -> 0 | F87: kWh/a
A88: 43 | B88: Prozess XY kühlen | E88: =IF(Prozess_Kühlen!S88>0,Prozess_Kühlen!S88,0) -> 0 | F88: kWh/a
A89: 44 | B89: Prozess XY kühlen | E89: =IF(Prozess_Kühlen!S122>0,Prozess_Kühlen!S122,0) -> 0 | F89: kWh/a
A90: 45 | B90: Prozess XY kühlen | E90: =IF(Prozess_Kühlen!S154>0,Prozess_Kühlen!S154,0) -> 0 | F90: kWh/a
C93: Summe | E93: =IFERROR(SUM(E56:E91),0) -> 0 | F93: kWh/a

Sheet Wäscherei (hidden)
B12: Energieverbrauch des Betriebes | C12: ='Ist-Stand'!Q35 -> 0 | D12: kWh/a
B14: Energieverbrauch der definierten Prozesse | C14: =E93 -> 0 | D14: kWh/a | E14: =IF(C14>C12, "Achtung! Der Energieverbrauch des Betriebes ist zu gering um den Verbrauch der Prozesse abzudecken!","") -> 
B16: Übereinstimmung | C16: =C14/C12*100 ->  | D16: %
B21: Prozess | C21: Anzahl angeben
A23: Max 10 | B23: Raumwärme | C23: 0
A25: Max 10 | B25: Raumkühlung | C25: 0
A27: Max 5 | B27: Warmwasser | C27: 0
A29: Max 5 | B29: Prozess XY heizen | C29: 0
A31: Max 5 | B31: Prozess XY kühlen | C31: 0
A33: Max 5 | B33: Bad heizen | C33: 0
A35: Max 5 | B35: Bad kühlen | C35: 0
B55: Prozess | E55: Energieverbrauch berechnet
A56: 1 | B56: Raumwärme | E56: =IF(Raumwärme!Q11>0,Raumwärme!Q11,0) -> 0 | F56: kWh/a
A57: 2 | B57: Raumwärme | E57: =IF(Raumwärme!Q12>0,Raumwärme!Q12,0) -> 0 | F57: kWh/a
A58: 3 | B58: Raumwärme | E58: =IF(Raumwärme!Q13>0,Raumwärme!Q13,0) -> 0 | F58: kWh/a
A59: 4 | B59: Raumwärme | E59: =IF(Raumwärme!Q14>0,Raumwärme!Q14,0) -> 0 | F59: kWh/a
A60: 5 | B60: Raumwärme | E60: =IF(Raumwärme!Q15>0,Raumwärme!Q15,0) -> 0 | F60: kWh/a
A61: 16 | B61: Raumkühlung | E61: =IF(Raumkühlung!Q11>0,Raumkühlung!Q11,0) -> 0 | F61: kWh/a
A62: 17 | B62: Raumkühlung | E62: =IF(Raumkühlung!Q12>0,Raumkühlung!Q12,0) -> 0 | F62: kWh/a
A63: 18 | B63: Raumkühlung | E63: =IF(Raumkühlung!Q13>0,Raumkühlung!Q13,0) -> 0 | F63: kWh/a
A64: 19 | B64: Raumkühlung | E64: =IF(Raumkühlung!Q14>0,Raumkühlung!Q14,0) -> 0 | F64: kWh/a
A65: 20 | B65: Raumkühlung | E65: =IF(Raumkühlung!Q15>0,Raumkühlung!Q15,0) -> 0 | F65: kWh/a
A66: 31 | B66: Warmwasser | E66: =IF(Warmwasser!Q20>0,Warmwasser!Q20,0) -> 0 | F66: kWh/a
A67: 32 | B67: Warmwasser | E67: =IF(Warmwasser!Q54>0,Warmwasser!Q54,0) -> 0 | F67: kWh/a
A68: 33 | B68: Warmwasser | E68: =IF(Warmwasser!Q88>0,Warmwasser!Q88,0) -> 0 | F68: kWh/a
A69: 34 | B69: Warmwasser | E69: =IF(Warmwasser!Q122>0,Warmwasser!Q122,0) -> 0 | F69: kWh/a
A70: 35 | B70: Warmwasser | E70: =IF(Warmwasser!Q156>0,Warmwasser!Q156,0) -> 0 | F70: kWh/a
A71: 36 | B71: Prozessbad heizen | E71: =IF(Galvanikbad_Heizen!N23>0,Galvanikbad_Heizen!N23,0) -> 0 | F71: kWh/a
A72: 37 | B72: Prozessbad heizen | E72: =IF(Galvanikbad_Heizen!N56>0,Galvanikbad_Heizen!N56,0) -> 0 | F72: kWh/a
A73: 38 | B73: Prozessbad heizen | E73: =IF(Galvanikbad_Heizen!N91>0,Galvanikbad_Heizen!N91,0) -> 0 | F73: kWh/a
A74: 39 | B74: Prozessbad heizen | E74: =IF(Galvanikbad_Heizen!N125>0,Galvanikbad_Heizen!N125,0) -> 0 | F74: kWh/a
A75: 40 | B75: Prozessbad heizen | E75: =IF(Galvanikbad_Heizen!N159>0,Galvanikbad_Heizen!N159,0) -> 0 | F75: kWh/a
A76: 41 | B76: Prozessbad kühlen | E76: =IF(Galvanikbad_Kühlen!P20>0,Galvanikbad_Kühlen!P20,0) -> 0 | F76: kWh/a
A77: 42 | B77: Prozessbad kühlen | E77: =IF(Galvanikbad_Kühlen!P54>0,Galvanikbad_Kühlen!P54,0) -> 0 | F77: kWh/a
A78: 43 | B78: Prozessbad kühlen | E78: =IF(Galvanikbad_Kühlen!P88>0,Galvanikbad_Kühlen!P88,0) -> 0 | F78: kWh/a
A79: 44 | B79: Prozessbad kühlen | E79: =IF(Galvanikbad_Kühlen!P122>0,Galvanikbad_Kühlen!P122,0) -> 0 | F79: kWh/a
A80: 45 | B80: Prozessbad kühlen | E80: =IF(Galvanikbad_Kühlen!P156>0,Galvanikbad_Kühlen!P156,0) -> 0 | F80: kWh/a
B81: Prozess XY heizen | E81: =IF(Prozess_Heizen!S20>0,Prozess_Heizen!S20,0) -> 0 | F81: kWh/a
B82: Prozess XY heizen | E82: =IF(Prozess_Heizen!S54>0,Prozess_Heizen!S54,0) -> 0 | F82: kWh/a
B83: Prozess XY heizen | E83: =IF(Prozess_Heizen!S88>0,Prozess_Heizen!S88,0) -> 0 | F83: kWh/a
B84: Prozess XY heizen | E84: =IF(Prozess_Heizen!S122>0,Prozess_Heizen!S122,0) -> 0 | F84: kWh/a
B85: Prozess XY heizen | E85: =IF(Prozess_Heizen!S156>0,Prozess_Heizen!S156,0) -> 0 | F85: kWh/a
B86: Prozess XY kühlen | E86: =IF(Prozess_Kühlen!S20>0,Prozess_Kühlen!S20,0) -> 0 | F86: kWh/a
B87: Prozess XY kühlen | E87: =IF(Prozess_Kühlen!S54>0,Prozess_Kühlen!S54,0) -> 0 | F87: kWh/a
B88: Prozess XY kühlen | E88: =IF(Prozess_Kühlen!S88>0,Prozess_Kühlen!S88,0) -> 0 | F88: kWh/a
B89: Prozess XY kühlen | E89: =IF(Prozess_Kühlen!S122>0,Prozess_Kühlen!S122,0) -> 0 | F89: kWh/a
B90: Prozess XY kühlen | E90: =IF(Prozess_Kühlen!S154>0,Prozess_Kühlen!S154,0) -> 0 | F90: kWh/a
C93: Summe | E93: =IFERROR(SUM(E56:E90),0) -> 0 | F93: kWh/a

Sheet Freie Branche
B12: Energieverbrauch des Betriebes | C12: ='Ist-Stand'!Q35 -> 0 | D12: kWh/a
B14: Energieverbrauch der definierten Prozesse | C14: =E92 -> 0 | D14: kWh/a | E14: =IF(C14>C12, "Achtung! Der Energieverbrauch des Betriebes ist zu gering um den Verbrauch der Prozesse abzudecken!","") -> 
B16: Übereinstimmung | C16: =C14/C12*100 ->  | D16: %
B21: Prozess | C21: Anzahl angeben
A23: Max 10 | B23: Raumwärme | C23: 0
A25: Max 10 | B25: Raumkühlung | C25: 0
A27: Max 5 | B27: Warmwasser | C27: 0
A29: Max 5 | B29: Prozess "XY" heizen | C29: 0
A31: Max 5 | B31: Prozess "XY" kühlen | C31: 0
A33: Max 5 | B33: Prozessbad heizen | C33: 0
A35: Max 5 | B35: Prozessbad kühlen | C35: 0
B55: Prozess | E55: Energieverbrauch berechnet
A56: 1 | B56: Raumwärme | E56: =IF(Raumwärme!Q11>0,Raumwärme!Q11,0) -> 0 | F56: kWh/a
A57: 2 | B57: Raumwärme | E57: =IF(Raumwärme!Q12>0,Raumwärme!Q12,0) -> 0 | F57: kWh/a
A58: 3 | B58: Raumwärme | E58: =IF(Raumwärme!Q13>0,Raumwärme!Q13,0) -> 0 | F58: kWh/a
A59: 4 | B59: Raumwärme | E59: =IF(Raumwärme!Q14>0,Raumwärme!Q14,0) -> 0 | F59: kWh/a
A60: 5 | B60: Raumwärme | E60: =IF(Raumwärme!Q15>0,Raumwärme!Q15,0) -> 0 | F60: kWh/a
A61: 6 | B61: Raumkühlung | E61: =IF(Raumkühlung!Q11>0,Raumkühlung!Q11,0) -> 0 | F61: kWh/a
A62: 7 | B62: Raumkühlung | E62: =IF(Raumkühlung!Q12>0,Raumkühlung!Q12,0) -> 0 | F62: kWh/a
A63: 8 | B63: Raumkühlung | E63: =IF(Raumkühlung!Q13>0,Raumkühlung!Q13,0) -> 0 | F63: kWh/a
A64: 9 | B64: Raumkühlung | E64: =IF(Raumkühlung!Q14>0,Raumkühlung!Q14,0) -> 0 | F64: kWh/a
A65: 10 | B65: Raumkühlung | E65: =IF(Raumkühlung!Q15>0,Raumkühlung!Q15,0) -> 0 | F65: kWh/a
A66: 11 | B66: Warmwasser | E66: =IF(Warmwasser!Q20>0,Warmwasser!Q20,0) -> 0 | F66: kWh/a
A67: 12 | B67: Warmwasser | E67: =IF(Warmwasser!Q54>0,Warmwasser!Q54,0) -> 0 | F67: kWh/a
A68: 13 | B68: Warmwasser | E68: =IF(Warmwasser!Q88>0,Warmwasser!Q88,0) -> 0 | F68: kWh/a
A69: 14 | B69: Warmwasser | E69: =IF(Warmwasser!Q122>0,Warmwasser!Q122,0) -> 0 | F69: kWh/a
A70: 15 | B70: Warmwasser | E70: =IF(Warmwasser!Q156>0,Warmwasser!Q156,0) -> 0 | F70: kWh/a
A71: 16 | B71: Galvanikbad heizen | E71: =IF(Galvanikbad_Heizen!N23>0,Galvanikbad_Heizen!N23,0) -> 0 | F71: kWh/a
A72: 17 | B72: Galvanikbad heizen | E72: =IF(Galvanikbad_Heizen!N56>0,Galvanikbad_Heizen!N56,0) -> 0 | F72: kWh/a
A73: 18 | B73: Galvanikbad heizen | E73: =IF(Galvanikbad_Heizen!N91>0,Galvanikbad_Heizen!N91,0) -> 0 | F73: kWh/a
A74: 19 | B74: Galvanikbad heizen | E74: =IF(Galvanikbad_Heizen!N125>0,Galvanikbad_Heizen!N125,0) -> 0 | F74: kWh/a
A75: 20 | B75: Galvanikbad heizen | E75: =IF(Galvanikbad_Heizen!N159>0,Galvanikbad_Heizen!N159,0) -> 0 | F75: kWh/a
A76: 21 | B76: Galvanikbad kühlen | E76: =IF(Galvanikbad_Kühlen!P20>0,Galvanikbad_Kühlen!P20,0) -> 0 | F76: kWh/a
A77: 22 | B77: Galvanikbad kühlen | E77: =IF(Galvanikbad_Kühlen!P54>0,Galvanikbad_Kühlen!P54,0) -> 0 | F77: kWh/a
A78: 23 | B78: Galvanikbad kühlen | E78: =IF(Galvanikbad_Kühlen!P88>0,Galvanikbad_Kühlen!P88,0) -> 0 | F78: kWh/a
A79: 24 | B79: Galvanikbad kühlen | E79: =IF(Galvanikbad_Kühlen!P122>0,Galvanikbad_Kühlen!P122,0) -> 0 | F79: kWh/a
A80: 25 | B80: Galvanikbad kühlen | E80: =IF(Galvanikbad_Kühlen!P156>0,Galvanikbad_Kühlen!P156,0) -> 0 | F80: kWh/a
A81: 26 | B81: Prozess XY heizen | E81: =IF(Prozess_Heizen!S20>0,Prozess_Heizen!S20,0) -> 0 | F81: kWh/a
A82: 27 | B82: Prozess XY heizen | E82: =IF(Prozess_Heizen!S54>0,Prozess_Heizen!S54,0) -> 0 | F82: kWh/a
A83: 28 | B83: Prozess XY heizen | E83: =IF(Prozess_Heizen!S88>0,Prozess_Heizen!S88,0) -> 0 | F83: kWh/a
A84: 29 | B84: Prozess XY heizen | E84: =IF(Prozess_Heizen!S122>0,Prozess_Heizen!S122,0) -> 0 | F84: kWh/a
A85: 30 | B85: Prozess XY heizen | E85: =IF(Prozess_Heizen!S156>0,Prozess_Heizen!S156,0) -> 0 | F85: kWh/a
A86: 31 | B86: Prozess XY kühlen | E86: =IF(Prozess_Kühlen!S20>0,Prozess_Kühlen!S20,0) -> 0 | F86: kWh/a
A87: 32 | B87: Prozess XY kühlen | E87: =IF(Prozess_Kühlen!S54>0,Prozess_Kühlen!S54,0) -> 0 | F87: kWh/a
A88: 33 | B88: Prozess XY kühlen | E88: =IF(Prozess_Kühlen!S88>0,Prozess_Kühlen!S88,0) -> 0 | F88: kWh/a
A89: 34 | B89: Prozess XY kühlen | E89: =IF(Prozess_Kühlen!S122>0,Prozess_Kühlen!S122,0) -> 0 | F89: kWh/a
A90: 35 | B90: Prozess XY kühlen | E90: =IF(Prozess_Kühlen!S154>0,Prozess_Kühlen!S154,0) -> 0 | F90: kWh/a
C92: Summe | E92: =IFERROR(SUM(E56:E90),0) -> 0 | F92: kWh/a

Sheet Raumwärme
C10: Energie-versorgung | E10: Fläche | G10: Spezifischer Heizwärmebedarf | I10: Heiztage pro Jahr | K10: Heizstunden pro Tag | M10: Vorlauf Temperatur | O10: Rücklauf Temperatur | Q10: Heizwärmebedarf pro Jahr | S10: Heizleistung | U10: Massenstrom | W10: (das ist die erste Zelle / erste Spalte) | Y10: Use in Pinch List | Z10: start T | AA10: end T | AB10: m | AC10: cp | AD10: h | AE10: P/U | AF10: Tage pro Jahr
B11: Raum 1 | F11: m² | H11: kWh/(m².a) | J11: d/a | L11: h/d | N11: °C | P11: °C | Q11: =E11*G11 -> 0 | R11: kWh/a | S11: =Q11/(I11*K11) ->  | T11: kW | U11: =S11/((M11-O11)*4.18) ->  | V11: kg/s | W11: 1 | X11: Raumwärme_1 | Y11: =IF(C11="",0,1) -> 0 | Z11: =O11 -> 0 | AA11: =M11 -> 0 | AB11: =U11 ->  | AC11: 4.19 | AD11: =K11*I11 -> 0 | AE11: Prozess | AF11: =I11 -> 0
B12: Raum 2 | F12: =F11 -> m² | H12: =H11 -> kWh/(m².a) | J12: d/a | L12: h/d | N12: °C | P12: °C | Q12: =E12*G12 -> 0 | R12: kWh/a | S12: =Q12/(I12*K12) ->  | T12: kW | U12: =S12/((M12-O12)*4.18) ->  | V12: kg/s | W12: 2 | X12: Raumwärme_2 | Y12: =IF(C12="",0,1) -> 0 | Z12: =O12 -> 0 | AA12: =M12 -> 0 | AB12: =U12 ->  | AC12: 4.19 | AD12: =K12*I12 -> 0 | AE12: Prozess | AF12: =I12 -> 0
B13: Raum 3 | F13: =F12 -> m² | H13: =H12 -> kWh/(m².a) | J13: d/a | L13: h/d | N13: °C | P13: °C | Q13: 0 | R13: kWh/a | T13: kW | V13: kg/s | W13: 3 | X13: Raumwärme_3 | Y13: 0 | Z13: 0 | AA13: 0 | AC13: 4.19 | AD13: 0 | AE13: Prozess | AF13: 0
B14: Raum 4 | F14: m² | H14: kWh/(m².a) | J14: d/a | L14: h/d | N14: °C | P14: °C | Q14: 0 | R14: kWh/a | T14: kW | V14: kg/s | W14: 4 | X14: Raumwärme_4 | Y14: 0 | Z14: 0 | AA14: 0 | AC14: 4.19 | AD14: 0 | AE14: Prozess | AF14: 0
B15: Raum 5 | F15: =F14 -> m² | H15: =H14 -> kWh/(m².a) | J15: d/a | L15: h/d | N15: °C | P15: °C | Q15: =E15*G15 -> 0 | R15: kWh/a | T15: kW | U15: =S15/((M15-O15)*4.18) ->  | V15: kg/s | W15: 5 | X15: Raumwärme_5 | Y15: 0 | Z15: 0 | AA15: 0 | AC15: 4.19 | AD15: 0 | AE15: Prozess | AF15: 0
B17: Raum 6 | F17: =F15 -> m² | H17: =H15 -> kWh/(m².a) | J17: d/a | L17: h/d | N17: °C | P17: °C | Q17: 0 | R17: kWh/a | T17: kW | V17: kg/s | W17: 6 | X17: Raumwärme_6 | Y17: 0 | Z17: 0 | AA17: 0 | AC17: 4.19 | AD17: 0 | AE17: Prozess | AF17: 0
B18: Raum 7 | F18: m² | H18: kWh/(m².a) | J18: d/a | L18: h/d | N18: °C | P18: °C | Q18: 0 | R18: kWh/a | T18: kW | V18: kg/s | W18: 7 | X18: Raumwärme_7 | Y18: 0 | Z18: 0 | AA18: 0 | AC18: 4.19 | AD18: 0 | AE18: Prozess | AF18: 0
B19: Raum 8 | F19: m² | H19: kWh/(m².a) | J19: d/a | L19: h/d | N19: °C | P19: °C | Q19: 0 | R19: kWh/a | T19: kW | V19: kg/s | W19: 8 | X19: Raumwärme_8 | Y19: 0 | Z19: 0 | AA19: 0 | AC19: 4.19 | AD19: 0 | AE19: Prozess | AF19: 0
B20: Raum 9 | F20: m² | H20: kWh/(m².a) | J20: d/a | L20: h/d | N20: °C | P20: °C | Q20: 0 | R20: kWh/a | T20: kW | V20: kg/s | W20: 9 | X20: Raumwärme_9 | Y20: 0 | Z20: 0 | AA20: 0 | AC20: 4.19 | AD20: 0 | AE20: Prozess | AF20: 0
B21: Raum 10 | F21: m² | H21: =H20 -> kWh/(m².a) | J21: d/a | L21: h/d | N21: °C | P21: °C | Q21: 0 | R21: kWh/a | T21: kW | V21: kg/s | W21: 10 | X21: Raumwärme_10 | Y21: 0 | Z21: 0 | AA21: 0 | AC21: 4.19 | AD21: 0 | AE21: Prozess | AF21: 0
P24: Summe | Q24: =SUM(Q11:Q22) -> 0 | R24: kWh/a

Sheet Raumkühlung
C10: Energie-versorgung | E10: Fläche | G10: Spezifischer Kühlbedarf | I10: Tage mit Kühlbedarf pro Jahr | K10: Kühlstunden pro Tag | M10: Vorlauf Temperatur | O10: Rücklauf Temperatur | Q10: Kühlbedarf pro Jahr | S10: Kühlleistung | U10: Massenstrom | W10: (das ist die erste Zelle / erste Spalte) | Y10: Use in Pinch List | Z10: start T | AA10: end T | AB10: m | AC10: cp | AD10: h | AE10: P/U | AF10: Tage pro Jahr
B11: Raum 1 | F11: m² | H11: kWh/(m².a) | J11: d/a | L11: h/d | N11: °C | P11: °C | Q11: =E11*G11 -> 0 | R11: kWh/a | S11: =Q11/(K11*I11) ->  | T11: kW | U11: =S11/((O11-M11)*4.19) ->  | W11: 1 | X11: Raumkühlung_1 | Y11: =IF(C11="",0,1) -> 0 | Z11: =O11 -> 0 | AA11: =M11 -> 0 | AB11: =U11 ->  | AC11: 4.19 | AD11: =I11*K11 -> 0 | AE11: Prozess | AF11: =I11 -> 0
B12: Raum 2 | F12: =F11 -> m² | H12: =H11 -> kWh/(m².a) | J12: d/a | L12: h/d | N12: °C | P12: °C | Q12: =E12*G12 -> 0 | R12: kWh/a | S12: =Q12/(K12*I12) ->  | T12: kW | U12: =S12/((O12-M12)*4.19) ->  | W12: 2 | X12: Raumkühlung_2 | Y12: =IF(C12="",0,1) -> 0 | Z12: =O12 -> 0 | AA12: =M12 -> 0 | AB12: =U12 ->  | AC12: 4.19 | AD12: =I12*K12 -> 0 | AE12: Prozess | AF12: =I12 -> 0
B13: Raum 3 | F13: =F12 -> m² | H13: =H12 -> kWh/(m².a) | J13: d/a | L13: h/d | N13: °C | P13: °C | Q13: 0 | R13: kWh/a | T13: kW | W13: 3 | X13: Raumkühlung_3 | Y13: 0 | Z13: 0 | AA13: 0 | AC13: 4.19 | AD13: 0 | AE13: Prozess | AF13: 0
B14: Raum 4 | F14: m² | H14: kWh/(m².a) | J14: d/a | L14: h/d | N14: °C | P14: °C | Q14: 0 | R14: kWh/a | T14: kW | W14: 4 | X14: Raumkühlung_4 | Y14: 0 | Z14: 0 | AA14: 0 | AC14: 4.19 | AD14: 0 | AE14: Prozess | AF14: 0
B15: Raum 5 | F15: =F14 -> m² | H15: =H14 -> kWh/(m².a) | J15: d/a | L15: h/d | N15: °C | P15: °C | Q15: =E15*G15 -> 0 | R15: kWh/a | T15: kW | W15: 5 | X15: Raumkühlung_5 | Y15: =IF(C15="",0,1) -> 0 | Z15: 0 | AA15: 0 | AC15: 4.19 | AD15: 0 | AE15: Prozess | AF15: 0
B17: Raum 6 | F17: =F15 -> m² | H17: =H15 -> kWh/(m².a) | J17: d/a | L17: h/d | N17: °C | P17: °C | Q17: 0 | R17: kWh/a | T17: kW | W17: 6 | X17: Raumkühlung_6 | Y17: =IF(C17="",0,1) -> 0 | Z17: 0 | AA17: 0 | AC17: 4.19 | AD17: 0 | AE17: Prozess | AF17: 0
B18: Raum 7 | F18: m² | H18: kWh/(m².a) | J18: d/a | L18: h/d | N18: °C | P18: °C | Q18: 0 | R18: kWh/a | T18: kW | W18: 7 | X18: Raumkühlung_7 | Y18: 0 | Z18: 0 | AA18: 0 | AC18: 4.19 | AD18: 0 | AE18: Prozess | AF18: 0
B19: Raum 8 | F19: m² | H19: kWh/(m².a) | J19: d/a | L19: h/d | N19: °C | P19: °C | Q19: 0 | R19: kWh/a | T19: kW | W19: 8 | X19: Raumkühlung_8 | Y19: 0 | Z19: 0 | AA19: 0 | AC19: 4.19 | AD19: 0 | AE19: Prozess | AF19: 0
B20: Raum 9 | F20: m² | H20: kWh/(m².a) | J20: d/a | L20: h/d | N20: °C | P20: °C | Q20: 0 | R20: kWh/a | T20: kW | W20: 9 | X20: Raumkühlung_9 | Y20: 0 | Z20: 0 | AA20: 0 | AC20: 4.19 | AD20: 0 | AE20: Prozess | AF20: 0
B21: Raum 10 | F21: m² | H21: =H20 -> kWh/(m².a) | J21: d/a | L21: h/d | N21: °C | P21: °C | Q21: 0 | R21: kWh/a | T21: kW | W21: 10 | X21: Raumkühlung_10 | Y21: 0 | Z21: 0 | AA21: 0 | AC21: 4.19 | AD21: 0 | AE21: Prozess | AF21: 0
P24: Summe | Q24: =SUM(Q11:Q23) -> 0 | R24: kWh/a

Sheet Warmwasser
B13: Prozessname | D13: Energieversorgung | F13: Betriebstage pro Jahr
G14: d/a
B17: Auswählen: | D17: Start- Temperatur | F17: End- Temperatur | H17: Massenstrom | J17: Masse | L17: Vollaststunden pro Jahr | N17: Dauer eines Vorganges | P17: Anzahl der Vorgänge pro Jahr | Q17: Energieverbrauch
E18: °C | G18: °C | I18: kg/s | K18: kg/Vorgang | M18: h/a | O18: h | Q18: =IF(B18="Kontinuierlich",H18*4.19*(F18-D18)*L18,G31*4.19*(F18-D18)*N18*P18) ->  | R18: kWh/a
E19: °C | G19: °C | I19: kg/s | O19: h | Q19: =IF(B19="Kontinuierlich",H19*4.19*(F19-D19)*L19*$F$14,H19*4.19*(F19-D19)*N19*P19*$F$14) -> 0 | R19: kWh/a
Q20: =SUM(IFERROR(Q18:Q19,0)) -> 0 | R20: kWh/a
B23: Auswählen: | D23: Wärmerück- gewinnung | F23: Abwassermenge | H23: Abwasser -Temperatur | J23: Abkühl -Temperatur | L23: Vollaststunden pro Jahr
G24: kg/s | I24: °C | K24: °C | M24: h/a
B29: Für Pinch Liste (versteckt)
B30: (das ist die erste Zelle / erste Spalte) | D30: Use in Pinch List | E30: start T | F30: end T | G30: m | H30: cp | I30: h | J30: P/U | K30: d/y
B31: 1 | C31: =(B14&" "&B18) ->  | D31: =IF(B18="",0,1) -> 0 | E31: =D18 -> 0 | F31: =F18 -> 0 | G31: =IF(B18="Kontinuierlich",H18,J18/N18/3600) ->  | H31: 4.19 | I31: =IF(B18="Kontinuierlich",L18,N18*P18) -> 0 | J31: Prozess | K31: =$F$14 -> 0
B32: 2 | C32: =(B14&" "&B19) ->  | D32: =IF(B19="",0,1) -> 0 | E32: =D19 -> 0 | F32: =F19 -> 0 | G32: =IF(B19="Kontinuierlich",H19,J19/N19/3600) ->  | H32: 4.19 | I32: =IF(B19="Kontinuierlich",L19,N19*P19) -> 0 | J32: Prozess | K32: =$F$14 -> 0
B33: 3 | C33: =(B14&" "&B24) ->  | D33: =IF(B24="",0,1) -> 0 | E33: =H24 -> 0 | F33: =J24 -> 0 | G33: =F24 -> 0 | H33: 4.19 | I33: =L24 -> 0 | J33: Prozess | K33: =$F$14 -> 0
B47: Prozessname | D47: Energieversorgung | F47: Betriebstage pro Jahr
G48: d/a
B51: Auswählen: | D51: Start- Temperatur | F51: End- Temperatur | H51: Massenstrom | J51: Masse | L51: Vollaststunden pro Jahr | N51: Dauer eines Vorganges | P51: Anzahl der Vorgänge pro Jahr | Q51: Energieverbrauch
E52: °C | G52: °C | I52: kg/s | K52: kg/Vorgang | M52: h/a | O52: h | Q52: =IF(B52="Kontinuierlich",H52*4.19*(F52-D52)*L52,G65*4.19*(F52-D52)*N52*P52) ->  | R52: kWh/a
E53: °C | G53: °C | I53: kg/s | O53: h | Q53: =IF(B53="Kontinuierlich",H53*4.19*(F53-D53)*L53*$F$14,H53*4.19*(F53-D53)*N53*P53*$F$14) -> 0 | R53: kWh/a
Q54: =SUM(IFERROR(Q52:Q53,0)) -> 0 | R54: kWh/a
B57: Auswählen: | D57: Wärmerück- gewinnung | F57: Abwassermenge | H57: Abwasser -Temperatur | J57: Abkühl -Temperatur | L57: Vollaststunden pro Jahr
G58: kg/s | I58: °C | K58: °C | M58: h/a
B63: Für Pinch Liste (versteckt)
B64: (das ist die erste Zelle / erste Spalte) | D64: Use in Pinch List | E64: start T | F64: end T | G64: m | H64: cp | I64: h | J64: P/U | K64: d/y
B65: 1 | C65: =(B48&" "&B52) ->  | D65: =IF(B52="",0,1) -> 0 | E65: =D52 -> 0 | F65: =F52 -> 0 | G65: =IF(B52="Kontinuierlich",H52,J52/N52/3600) ->  | H65: 4.19 | I65: =IF(B52="Kontinuierlich",L52,N52*P52) -> 0 | J65: Prozess | K65: =$F$14 -> 0
B66: 2 | C66: =(B48&" "&B53) ->  | D66: =IF(B53="",0,1) -> 0 | E66: =D53 -> 0 | F66: =F53 -> 0 | G66: =IF(B53="Kontinuierlich",H53,J53/N53/3600) ->  | H66: 4.19 | I66: =IF(B53="Kontinuierlich",L53,N53*P53) -> 0 | J66: Prozess | K66: =$F$14 -> 0
B67: 3 | C67: =(B48&" "&B58) ->  | D67: =IF(B58="",0,1) -> 0 | E67: =H58 -> 0 | F67: =J58 -> 0 | G67: =F58 -> 0 | H67: 4.19 | I67: =J58 -> 0 | J67: Prozess | K67: =$F$14 -> 0
B81: Prozessname | D81: Energieversorgung | F81: Betriebstage pro Jahr
G82: d/a
B85: Auswählen: | D85: Start- Temperatur | F85: End- Temperatur | H85: Massenstrom | J85: Masse | L85: Vollaststunden pro Jahr | N85: Dauer eines Vorganges | P85: Anzahl der Vorgänge pro Jahr | Q85: Energieverbrauch
E86: °C | G86: °C | I86: kg/s | K86: kg/Vorgang | M86: h/a | O86: h | Q86: =IF(B86="Kontinuierlich",H86*4.19*(F86-D86)*L86,G99*4.19*(F86-D86)*N86*P86) ->  | R86: kWh/a
E87: °C | G87: °C | I87: kg/s | O87: h | Q87: =IF(B87="Kontinuierlich",H87*4.19*(F87-D87)*L87*$F$14,H87*4.19*(F87-D87)*N87*P87*$F$14) -> 0 | R87: kWh/a
Q88: =SUM(IFERROR(Q86:Q87,0)) -> 0 | R88: kWh/a
B91: Auswählen: | D91: Wärmerück- gewinnung | F91: Abwassermenge | H91: Abwasser -Temperatur | J91: Abkühl -Temperatur | L91: Vollaststunden pro Jahr
G92: kg/s | I92: °C | K92: °C | M92: h/a
B97: Für Pinch Liste (versteckt)
B98: (das ist die erste Zelle / erste Spalte) | D98: Use in Pinch List | E98: start T | F98: end T | G98: m | H98: cp | I98: h | J98: P/U | K98: d/y
B99: 1 | C99: =(B82&" "&B86) ->  | D99: =IF(B86="",0,1) -> 0 | E99: =D86 -> 0 | F99: =F86 -> 0 | G99: =IF(B86="Kontinuierlich",H86,J86/N86/3600) ->  | H99: 4.19 | I99: =IF(B86="Kontinuierlich",L86,N86*P86) -> 0 | J99: Prozess | K99: =$F$14 -> 0
B100: 2 | C100: =(B82&" "&B87) ->  | D100: =IF(B87="",0,1) -> 0 | E100: =D87 -> 0 | F100: =F87 -> 0 | G100: =IF(B87="Kontinuierlich",H87,J87/N87/3600) ->  | H100: 4.19 | I100: =IF(B87="Kontinuierlich",L87,N87*P87) -> 0 | J100: Prozess | K100: =$F$14 -> 0
B101: 3 | C101: =(B82&" "&B92) ->  | D101: =IF(B92="",0,1) -> 0 | E101: =H92 -> 0 | F101: =J92 -> 0 | G101: =F92 -> 0 | H101: 4.19 | I101: =J92 -> 0 | J101: Prozess | K101: =$F$14 -> 0
B115: Prozessname | D115: Energieversorgung | F115: Betriebstage pro Jahr
G116: d/a
B119: Auswählen: | D119: Start- Temperatur | F119: End- Temperatur | H119: Massenstrom | J119: Masse | L119: Vollaststunden pro Jahr | N119: Dauer eines Vorganges | P119: Anzahl der Vorgänge pro Jahr | Q119: Energieverbrauch
E120: °C | G120: °C | I120: kg/s | K120: kg/Vorgang | M120: h/a | O120: h | Q120: =IF(B120="Kontinuierlich",H120*4.19*(F120-D120)*L120,G133*4.19*(F120-D120)*N120*P120) ->  | R120: kWh/a
E121: °C | G121: °C | I121: kg/s | O121: h | Q121: =IF(B121="Kontinuierlich",H121*4.19*(F121-D121)*L121*$F$14,H121*4.19*(F121-D121)*N121*P121*$F$14) -> 0 | R121: kWh/a
Q122: =SUM(IFERROR(Q120:Q121,0)) -> 0 | R122: kWh/a
B125: Auswählen: | D125: Wärmerück- gewinnung | F125: Abwassermenge | H125: Abwasser -Temperatur | J125: Abkühl -Temperatur | L125: Vollaststunden pro Jahr
G126: kg/s | I126: °C | K126: °C | M126: h/a
B131: Für Pinch Liste (versteckt)
B132: (das ist die erste Zelle / erste Spalte) | D132: Use in Pinch List | E132: start T | F132: end T | G132: m | H132: cp | I132: h | J132: P/U | K132: d/y
B133: 1 | C133: =(B116&" "&B120) ->  | D133: =IF(B120="",0,1) -> 0 | E133: =D120 -> 0 | F133: =F120 -> 0 | G133: =IF(B120="Kontinuierlich",H120,J120/N120/3600) ->  | H133: 4.19 | I133: =IF(B120="Kontinuierlich",L120,N120*P120) -> 0 | J133: Prozess | K133: =$F$14 -> 0
B134: 2 | C134: =(B116&" "&B121) ->  | D134: =IF(B121="",0,1) -> 0 | E134: =D121 -> 0 | F134: =F121 -> 0 | G134: =IF(B121="Kontinuierlich",H121,J121/N121/3600) ->  | H134: 4.19 | I134: =IF(B121="Kontinuierlich",L121,N121*P121) -> 0 | J134: Prozess | K134: =$F$14 -> 0
B135: 3 | C135: =(B116&" "&B126) ->  | D135: =IF(B126="",0,1) -> 0 | E135: =H126 -> 0 | F135: =J126 -> 0 | G135: =F126 -> 0 | H135: 4.19 | I135: =L126 -> 0 | J135: Prozess | K135: =$F$14 -> 0
B149: Prozessname | D149: Energieversorgung | F149: Betriebstage pro Jahr
G150: d/a
B153: Auswählen: | D153: Start- Temperatur | F153: End- Temperatur | H153: Massenstrom | J153: Masse | L153: Vollaststunden pro Jahr | N153: Dauer eines Vorganges | P153: Anzahl der Vorgänge pro Jahr | Q153: Energieverbrauch
E154: °C | G154: °C | I154: kg/s | K154: kg/Vorgang | M154: h/a | O154: h | Q154: =IF(B154="Kontinuierlich",H154*4.19*(F154-D154)*L154,G167*4.19*(F154-D154)*N154*P154) ->  | R154: kWh/a
E155: °C | G155: °C | I155: kg/s | O155: h | Q155: =IF(B155="Kontinuierlich",H155*4.19*(F155-D155)*L155*$F$14,H155*4.19*(F155-D155)*N155*P155*$F$14) -> 0 | R155: kWh/a
Q156: =SUM(IFERROR(Q154:Q155,0)) -> 0 | R156: kWh/a
B159: Auswählen: | D159: Wärmerück- gewinnung | F159: Abwassermenge | H159: Abwasser -Temperatur | J159: Abkühl -Temperatur | L159: Vollaststunden pro Jahr
G160: kg/s | I160: °C | K160: °C | M160: h/a
B165: Für Pinch Liste (versteckt)
B166: (das ist die erste Zelle / erste Spalte) | D166: Use in Pinch List | E166: start T | F166: end T | G166: m | H166: cp | I166: h | J166: P/U | K166: d/y
B167: 1 | C167: =(B150&" "&B154) ->  | D167: =IF(B154="",0,1) -> 0 | E167: =D154 -> 0 | F167: =F154 -> 0 | G167: =IF(B154="Kontinuierlich",H154,J154/N154/3600) ->  | H167: 4.19 | I167: =IF(B154="Kontinuierlich",L154,N154*P154) -> 0 | J167: Prozess | K167: =$F$14 -> 0
B168: 2 | C168: =(B150&" "&B155) ->  | D168: =IF(B155="",0,1) -> 0 | E168: =D155 -> 0 | F168: =F155 -> 0 | G168: =IF(B155="Kontinuierlich",H155,J155/N155/3600) ->  | H168: 4.19 | I168: =IF(B155="Kontinuierlich",L155,N155*P155) -> 0 | J168: Prozess | K168: =$F$14 -> 0
B169: 3 | C169: =(B150&" "&B160) ->  | D169: =IF(B160="",0,1) -> 0 | E169: =H160 -> 0 | F169: =J160 -> 0 | G169: =F160 -> 0 | H169: 4.19 | I169: =L160 -> 0 | J169: Prozess | K169: =$F$14 -> 0

Sheet Prozess_Heizen
B13: Prozessname | D13: Energieversorgung | F13: Betriebstage
G14: d/a
B17: Auswählen: | D17: Start- Temperatur | F17: End- Temperatur | H17: spez. Wärmekapazität | J17: Massenstrom | L17: Masse | N17: Volllaststunden pro Jahr | P17: Dauer eines Vorganges | R17: Anzahl der Vorgänge pro Jahr | S17: Energieverbrauch
E18: °C | G18: °C | I18: kJ/(kg.K) | K18: kg/s | M18: kg/Vorgang | O18: h/a | Q18: h | S18: =IF(B18="Kontinuierlich",J18*H18*(F18-D18)*N18,G31*H18*(F18-D18)*R18*P18) ->  | T18: kWh/a
E19: °C | G19: °C | I19: =I18 -> kJ/(kg.K) | K19: kg/s | M19: kg/Vorgang | O19: h/a | Q19: h | S19: =IF(B19="Kontinuierlich",J19*H19*(F19-D19)*N19,G32*H19*(F19-D19)*R19*P19) ->  | T19: kWh/a
S20: =SUM(IFERROR(S18:S19,0)) -> 0 | T20: kWh/a
B23: Auswählen: | D23: Wärmerück- gewinnung | F23: Abwärme- Temperatur | H23: spez. Wärmekapazität | J23: spez. Wärmekapazität Feuchter Luft berechnen | L23: relativer Feuchtegehalt | N23: Abkühl- Temperatur | P23: Massenstrom | R23: Vollaststunden pro Jahr
G24: °C | I24: kJ/(kg.K) | M24: % | O24: °C | Q24: kg/s | S24: h/a
G25: °C | I25: kJ/(kg.K) | M25: % | O25: °C | Q25: kg/s | S25: h/a
G26: °C | I26: kJ/(kg.K) | M26: % | O26: °C | Q26: kg/s | S26: h/a
B29: Für Pinch Liste (versteckt)
B30: (das ist die erste Zelle / erste Spalte) | D30: Use in Pinch List | E30: start T | F30: end T | G30: m | H30: cp | I30: h | J30: P/U | K30: d/y
B31: 1 | C31: =(B14&" "&B18) ->  | D31: =IF(B18="",0,1) -> 0 | E31: =D18 -> 0 | F31: =F18 -> 0 | G31: =IF(B18="Kontinuierlich",J18,(L18/P18/3600)) ->  | H31: =H18 -> 0 | I31: =IF(B18="Kontinuierlich",N18,P18*R18) -> 0 | J31: Prozess | K31: =$F$14 -> 0
B32: 2 | C32: =(B14&" "&B19) ->  | D32: =IF(B19="",0,1) -> 0 | E32: =D19 -> 0 | F32: =F19 -> 0 | G32: =IF(B19="Kontinuierlich",J19,(L19/P19/3600)) ->  | H32: =H19 -> 0 | I32: =IF(B19="Kontinuierlich",N19,P19*R19) -> 0 | J32: Prozess | K32: =$F$14 -> 0
B33: 3 | C33: =(B14&" "&B24) ->  | D33: =IF(B24="",0,1) -> 0 | E33: =F24 -> 0 | F33: =N24 -> 0 | G33: =P24 -> 0 | H33: =H24 -> 0 | I33: =R24 -> 0 | J33: Prozess | K33: =$F$14 -> 0
B34: 4 | C34: =(B14&" "&B25) ->  | D34: =IF(B25="",0,1) -> 0 | E34: =F25 -> 0 | F34: =N25 -> 0 | G34: =P25 -> 0 | H34: =H25 -> 0 | I34: =R25 -> 0 | J34: Prozess | K34: =$F$14 -> 0
B35: 5 | C35: =(B14&" "&B26) ->  | D35: =IF(B26="",0,1) -> 0 | E35: =F26 -> 0 | F35: 0 | G35: 0 | H35: =H26 -> 0 | I35: =R26 -> 0 | J35: Prozess | K35: =$F$14 -> 0
B47: Prozessname | D47: Energieversorgung | F47: Betriebstage
G48: d/a
B51: Auswählen: | D51: Start- Temperatur | F51: End- Temperatur | H51: spez. Wärmekapazität | J51: Massenstrom | L51: Masse | N51: Volllaststunden pro Jahr | P51: Dauer eines Vorganges | R51: Anzahl der Vorgänge pro Jahr | S51: Energieverbrauch
E52: °C | G52: °C | I52: kJ/(kg.K) | K52: kg/s | M52: kg/Vorgang | O52: h/a | Q52: h | S52: =IF(B52="Kontinuierlich",J52*H52*(F52-D52)*N52,G65*H52*(F52-D52)*R52*P52) ->  | T52: kWh/a
E53: °C | G53: °C | I53: =I52 -> kJ/(kg.K) | K53: kg/s | M53: kg/Vorgang | O53: h/a | Q53: h | S53: =IF(B53="Kontinuierlich",J53*H53*(F53-D53)*N53,G66*H53*(F53-D53)*R53*P53) ->  | T53: kWh/a
S54: =SUM(IFERROR(S52:S53,0)) -> 0 | T54: kWh/a
B57: Auswählen: | D57: Wärmerück- gewinnung | F57: Abwärme- Temperatur | H57: spez. Wärmekapazität | J57: spez. Wärmekapazität Feuchter Luft berechnen | L57: relativer Feuchtegehalt | N57: Abkühl- Temperatur | P57: Massenstrom | R57: Vollaststunden pro Jahr
G58: °C | I58: kJ/(kg.K) | M58: % | O58: °C | Q58: kg/s | S58: h/a
G59: °C | I59: =I58 -> kJ/(kg.K) | M59: % | O59: °C | Q59: kg/s | S59: h/a
G60: °C | I60: =I59 -> kJ/(kg.K) | M60: % | O60: °C | Q60: kg/s | S60: h/a
B63: Für Pinch Liste (versteckt)
B64: (das ist die erste Zelle / erste Spalte) | D64: Use in Pinch List | E64: start T | F64: end T | G64: m | H64: cp | I64: h | J64: P/U | K64: d/y
B65: 1 | C65: =(B48&" "&B52) ->  | D65: =IF(B52="",0,1) -> 0 | E65: =D52 -> 0 | F65: =F52 -> 0 | G65: =IF(B52="Kontinuierlich",J52,(L52/P52/3600)) ->  | H65: =H52 -> 0 | I65: =IF(B52="Kontinuierlich",N52,P52*R52) -> 0 | J65: Prozess | K65: =$F$48 -> 0
B66: 2 | C66: =(B48&" "&B53) ->  | D66: =IF(B53="",0,1) -> 0 | E66: =D53 -> 0 | F66: =F53 -> 0 | G66: =IF(B53="Kontinuierlich",J53,(L53/P53/3600)) ->  | H66: =H53 -> 0 | I66: =IF(B53="Kontinuierlich",N53,P53*R53) -> 0 | J66: Prozess | K66: =$F$48 -> 0
B67: 3 | C67: =(B48&" "&B58) ->  | D67: =IF(B58="",0,1) -> 0 | E67: =F58 -> 0 | F67: =N58 -> 0 | G67: =P58 -> 0 | H67: =H58 -> 0 | I67: =R58 -> 0 | J67: Prozess | K67: 0
B68: 4 | C68: =(B48&" "&B59) ->  | D68: =IF(B59="",0,1) -> 0 | E68: =F59 -> 0 | F68: =N59 -> 0 | G68: =P59 -> 0 | H68: =H59 -> 0 | I68: =R59 -> 0 | J68: Prozess | K68: 0
B69: 5 | C69: =(B48&" "&B60) ->  | D69: =IF(B60="",0,1) -> 0 | E69: =F60 -> 0 | F69: 0 | G69: =P60 -> 0 | H69: =H60 -> 0 | I69: =R60 -> 0 | J69: Prozess | K69: =$F$14 -> 0
B81: Prozessname | D81: Energieversorgung | F81: Betriebstage
G82: d/a
B85: Auswählen: | D85: Start- Temperatur | F85: End- Temperatur | H85: spez. Wärmekapazität | J85: Massenstrom | L85: Masse | N85: Volllaststunden pro Jahr | P85: Dauer eines Vorganges | R85: Anzahl der Vorgänge pro Jahr | S85: Energieverbrauch
E86: °C | G86: °C | I86: kJ/(kg.K) | K86: kg/s | M86: kg/Vorgang | O86: h/a | Q86: h | S86: =IF(B86="Kontinuierlich",J86*H86*(F86-D86)*N86,G99*H86*(F86-D86)*R86*P86) ->  | T86: kWh/a
E87: °C | G87: °C | I87: =I86 -> kJ/(kg.K) | K87: kg/s | M87: kg/Vorgang | O87: h/a | Q87: h | S87: =IF(B87="Kontinuierlich",J87*H87*(F87-D87)*N87,G100*H87*(F87-D87)*R87*P87) ->  | T87: kWh/a
S88: =SUM(IFERROR(S86:S87,0)) -> 0 | T88: kWh/a
B91: Auswählen: | D91: Wärmerück- gewinnung | F91: Abwärme- Temperatur | H91: spez. Wärmekapazität | J91: spez. Wärmekapazität Feuchter Luft berechnen | L91: relativer Feuchtegehalt | N91: Abkühl- Temperatur | P91: Massenstrom | R91: Vollaststunden pro Jahr
G92: °C | I92: kJ/(kg.K) | M92: % | O92: °C | Q92: kg/s | S92: h/a
G93: °C | I93: =I92 -> kJ/(kg.K) | M93: % | O93: °C | Q93: kg/s | S93: h/a
G94: °C | I94: =I93 -> kJ/(kg.K) | M94: % | O94: °C | Q94: kg/s | S94: h/a
B97: Für Pinch Liste (versteckt)
B98: (das ist die erste Zelle / erste Spalte) | D98: Use in Pinch List | E98: start T | F98: end T | G98: m | H98: cp | I98: h | J98: P/U | K98: d/y
B99: 1 | C99: =(B82&" "&B86) ->  | D99: =IF(B86="",0,1) -> 0 | E99: =D86 -> 0 | F99: =F86 -> 0 | G99: =IF(B86="Kontinuierlich",J86,(L86/P86/3600)) ->  | H99: =H86 -> 0 | I99: =IF(B86="Kontinuierlich",N86,P86*R86) -> 0 | J99: Prozess | K99: =$F$82 -> 0
B100: 2 | C100: =(B82&" "&B87) ->  | D100: =IF(B87="",0,1) -> 0 | E100: =D87 -> 0 | F100: =F87 -> 0 | G100: =IF(B87="Kontinuierlich",J87,(L87/P87/3600)) ->  | H100: =H87 -> 0 | I100: =IF(B87="Kontinuierlich",N87,P87*R87) -> 0 | J100: Prozess | K100: =$F$82 -> 0
B101: 3 | C101: =(B82&" "&B92) ->  | D101: =IF(B92="",0,1) -> 0 | E101: =F92 -> 0 | F101: =N92 -> 0 | G101: =P92 -> 0 | H101: =H92 -> 0 | I101: =R92 -> 0 | J101: Prozess | K101: 0
B102: 4 | C102: =(B82&" "&B93) ->  | D102: =IF(B93="",0,1) -> 0 | E102: =F93 -> 0 | F102: =N93 -> 0 | G102: =P93 -> 0 | H102: =H93 -> 0 | I102: =R93 -> 0 | J102: Prozess | K102: 0
B103: 5 | C103: =(B83&" "&B94) ->  | D103: =IF(B94="",0,1) -> 0 | E103: =F94 -> 0 | F103: 0 | G103: =P94 -> 0 | H103: =H94 -> 0 | I103: =R94 -> 0 | J103: Prozess | K103: 0
B115: Prozessname | D115: Energieversorgung | F115: Betriebstage
G116: d/a
B119: Auswählen: | D119: Start- Temperatur | F119: End- Temperatur | H119: spez. Wärmekapazität | J119: Massenstrom | L119: Masse | N119: Volllaststunden pro Jahr | P119: Dauer eines Vorganges | R119: Anzahl der Vorgänge pro Jahr | S119: Energieverbrauch
E120: °C | G120: °C | I120: kJ/(kg.K) | K120: kg/s | M120: kg/Vorgang | O120: h/a | Q120: h | S120: =IF(B120="Kontinuierlich",J120*H120*(F120-D120)*N120,G133*H120*(F120-D120)*R120*P120) ->  | T120: kWh/a
E121: °C | G121: °C | I121: =I120 -> kJ/(kg.K) | K121: kg/s | M121: kg/Vorgang | O121: h/a | Q121: h | S121: =IF(B121="Kontinuierlich",J121*H121*(F121-D121)*N121,G134*H121*(F121-D121)*R121*P121) ->  | T121: kWh/a
S122: =SUM(IFERROR(S120:S121,0)) -> 0 | T122: kWh/a
B125: Auswählen: | D125: Wärmerück- gewinnung | F125: Abwärme- Temperatur | H125: spez. Wärmekapazität | J125: spez. Wärmekapazität Feuchter Luft berechnen | L125: relativer Feuchtegehalt | N125: Abkühl- Temperatur | P125: Massenstrom | R125: Vollaststunden pro Jahr
G126: °C | I126: kJ/(kg.K) | M126: % | O126: °C | Q126: kg/s | S126: h/a
G127: °C | I127: =I126 -> kJ/(kg.K) | M127: % | O127: °C | Q127: kg/s | S127: h/a
G128: °C | I128: =I127 -> kJ/(kg.K) | M128: % | O128: °C | Q128: kg/s | S128: h/a
B131: Für Pinch Liste (versteckt)
B132: (das ist die erste Zelle / erste Spalte) | D132: Use in Pinch List | E132: start T | F132: end T | G132: m | H132: cp | I132: h | J132: P/U | K132: d/y
B133: 1 | C133: =(B116&" "&B120) ->  | D133: =IF(B120="",0,1) -> 0 | E133: =D120 -> 0 | F133: =F120 -> 0 | G133: =IF(B120="Kontinuierlich",J120,(L120/P120/3600)) ->  | H133: =H120 -> 0 | I133: =IF(B120="Kontinuierlich",N120,P120*R120) -> 0 | J133: Prozess | K133: =$F$116 -> 0
B134: 2 | C134: =(B116&" "&B121) ->  | D134: =IF(B121="",0,1) -> 0 | E134: =D121 -> 0 | F134: =F121 -> 0 | G134: =IF(B121="Kontinuierlich",J121,(L121/P121/3600)) ->  | H134: =H121 -> 0 | I134: =IF(B121="Kontinuierlich",N121,P121*R121) -> 0 | J134: Prozess | K134: =$F$116 -> 0
B135: 3 | C135: =(B116&" "&B126) ->  | D135: =IF(B126="",0,1) -> 0 | E135: =F126 -> 0 | F135: =N126 -> 0 | G135: =P126 -> 0 | H135: =H126 -> 0 | I135: =R126 -> 0 | J135: Prozess | K135: 0
B136: 4 | C136: =(B116&" "&B127) ->  | D136: =IF(B127="",0,1) -> 0 | E136: =F127 -> 0 | F136: =N127 -> 0 | G136: =P127 -> 0 | H136: =H127 -> 0 | I136: =R127 -> 0 | J136: Prozess | K136: 0
B137: 5 | C137: =(B117&" "&B128) ->  | D137: =IF(B128="",0,1) -> 0 | E137: =F128 -> 0 | F137: 0 | G137: =P128 -> 0 | H137: =H128 -> 0 | I137: =R128 -> 0 | J137: Prozess | K137: 0
B149: Prozessname | D149: Energieversorgung | F149: Betriebstage
G150: d/a
B153: Auswählen: | D153: Start- Temperatur | F153: End- Temperatur | H153: spez. Wärmekapazität | J153: Massenstrom | L153: Masse | N153: Volllaststunden pro Jahr | P153: Dauer eines Vorganges | R153: Anzahl der Vorgänge pro Jahr | S153: Energieverbrauch
E154: °C | G154: °C | I154: kJ/(kg.K) | K154: kg/s | M154: kg/Vorgang | O154: h/a | Q154: h | S154: =IF(B154="Kontinuierlich",J154*H154*(F154-D154)*N154,G167*H154*(F154-D154)*R154*P154) ->  | T154: kWh/a
E155: °C | G155: °C | I155: =I154 -> kJ/(kg.K) | K155: kg/s | M155: kg/Vorgang | O155: h/a | Q155: h | S155: =IF(B155="Kontinuierlich",J155*H155*(F155-D155)*N155,G168*H155*(F155-D155)*R155*P155) ->  | T155: kWh/a
S156: =SUM(IFERROR(S154:S155,0)) -> 0 | T156: kWh/a
B159: Auswählen: | D159: Wärmerück- gewinnung | F159: Abwärme- Temperatur | H159: spez. Wärmekapazität | J159: spez. Wärmekapazität Feuchter Luft berechnen | L159: relativer Feuchtegehalt | N159: Abkühl- Temperatur | P159: Massenstrom | R159: Vollaststunden pro Jahr
G160: °C | I160: kJ/(kg.K) | M160: % | O160: °C | Q160: kg/s | S160: h/a
G161: °C | I161: =I160 -> kJ/(kg.K) | M161: % | O161: °C | Q161: kg/s | S161: h/a
G162: °C | I162: =I161 -> kJ/(kg.K) | M162: % | O162: °C | Q162: kg/s | S162: h/a
B165: Für Pinch Liste (versteckt)
B166: (das ist die erste Zelle / erste Spalte) | D166: Use in Pinch List | E166: start T | F166: end T | G166: m | H166: cp | I166: h | J166: P/U | K166: d/y
B167: 1 | C167: =(B150&" "&B154) ->  | D167: =IF(B154="",0,1) -> 0 | E167: =D154 -> 0 | F167: =F154 -> 0 | G167: =IF(B154="Kontinuierlich",J154,(L154/P154/3600)) ->  | H167: =H154 -> 0 | I167: =IF(B154="Kontinuierlich",N154,P154*R154) -> 0 | J167: Prozess | K167: =$F$150 -> 0
B168: 2 | C168: =(B150&" "&B155) ->  | D168: =IF(B155="",0,1) -> 0 | E168: =D155 -> 0 | F168: =F155 -> 0 | G168: =IF(B155="Kontinuierlich",J155,(L155/P155/3600)) ->  | H168: =H155 -> 0 | I168: =IF(B155="Kontinuierlich",N155,P155*R155) -> 0 | J168: Prozess | K168: =$F$150 -> 0
B169: 3 | C169: =(B150&" "&B160) ->  | D169: =IF(B160="",0,1) -> 0 | E169: =F160 -> 0 | F169: =N160 -> 0 | G169: =P160 -> 0 | H169: =H160 -> 0 | I169: =R160 -> 0 | J169: Prozess | K169: 0
B170: 4 | C170: =(B150&" "&B161) ->  | D170: =IF(B161="",0,1) -> 0 | E170: =F161 -> 0 | F170: =N161 -> 0 | G170: =P161 -> 0 | H170: =H161 -> 0 | I170: =R161 -> 0 | J170: Prozess | K170: 0
B171: 5 | C171: =(B151&" "&B162) ->  | D171: =IF(B162="",0,1) -> 0 | E171: =F162 -> 0 | F171: 0 | G171: =J162 -> 0 | H171: =H162 -> 0 | I171: =L162 -> 0 | J171: Prozess | K171: 0

Sheet varCS (hidden)
A1: 20 | B1: 80 | C1: 15 | D1: 1 | E1: 0 | F1: 0 | G1: 1200 | H1: 900 | I1: 0 | J1: 200 | K1: 1080000 | L1: prozes 1 heiz Kontinuierlich | M1: Prozess | Q1: 1 | R1: 2 | S1: 3 | T1: 4 | U1: 5 | V1: 6 | W1: 7 | X1: 8 | Y1: 9 | Z1: 10 | AA1: 11
A2: 0 | B2: 0 | C2: 0 | D2: 0 | E2: 0 | F2: 0 | G2: 0 | H2: 0 | I2: 0 | J2: 0 | K2: 0 | Q2: t start | R2: t end | S2: mcp | T2: rank | U2: hour st | V2: hour end | W2: tot time | X2: P | Y2: days | Z2: weeks | AA2: E
A3: 0 | B3: 0 | C3: 0 | D3: 0 | E3: 0 | F3: 0 | G3: 0 | H3: 0 | I3: 0 | J3: 0 | K3: 0
A4: 0 | B4: 0 | C4: 0 | D4: 0 | E4: 0 | F4: 0 | G4: 0 | H4: 0 | I4: 0 | J4: 0 | K4: 0
A5: 0 | B5: 0 | C5: 0 | D5: 0 | E5: 0 | F5: 0 | G5: 0 | H5: 0 | I5: 0 | J5: 0 | K5: 0
A6: 0 | B6: 0 | C6: 0 | D6: 0 | E6: 0 | F6: 0 | G6: 0 | H6: 0 | I6: 0 | J6: 0 | K6: 0
A7: 0 | B7: 0 | C7: 0 | D7: 0 | E7: 0 | F7: 0 | G7: 0 | H7: 0 | I7: 0 | J7: 0 | K7: 0
A8: 0 | B8: 0 | C8: 0 | D8: 0 | E8: 0 | F8: 0 | G8: 0 | H8: 0 | I8: 0 | J8: 0 | K8: 0
A9: 0 | B9: 0 | C9: 0 | D9: 0 | E9: 0 | F9: 0 | G9: 0 | H9: 0 | I9: 0 | J9: 0 | K9: 0
A10: 0 | B10: 0 | C10: 0 | D10: 0 | E10: 0 | F10: 0 | G10: 0 | H10: 0 | I10: 0 | J10: 0 | K10: 0
A11: 0 | B11: 0 | C11: 0 | D11: 0 | E11: 0 | F11: 0 | G11: 0 | H11: 0 | I11: 0 | J11: 0 | K11: 0
A12: 0 | B12: 0 | C12: 0 | D12: 0 | E12: 0 | F12: 0 | G12: 0 | H12: 0 | I12: 0 | J12: 0 | K12: 0
A13: 0 | B13: 0 | C13: 0 | D13: 0 | E13: 0 | F13: 0 | G13: 0 | H13: 0 | I13: 0 | J13: 0 | K13: 0
A14: 0 | B14: 0 | C14: 0 | D14: 0 | E14: 0 | F14: 0 | G14: 0 | H14: 0 | I14: 0 | J14: 0 | K14: 0
A15: 0 | B15: 0 | C15: 0 | D15: 0 | E15: 0 | F15: 0 | G15: 0 | H15: 0 | I15: 0 | J15: 0 | K15: 0
A16: 0 | B16: 0 | C16: 0 | D16: 0 | E16: 0 | F16: 0 | G16: 0 | H16: 0 | I16: 0 | J16: 0 | K16: 0
A17: 0 | B17: 0 | C17: 0 | D17: 0 | E17: 0 | F17: 0 | G17: 0 | H17: 0 | I17: 0 | J17: 0 | K17: 0
A18: 0 | B18: 0 | C18: 0 | D18: 0 | E18: 0 | F18: 0 | G18: 0 | H18: 0 | I18: 0 | J18: 0 | K18: 0
A19: 0 | B19: 0 | C19: 0 | D19: 0 | E19: 0 | F19: 0 | G19: 0 | H19: 0 | I19: 0 | J19: 0 | K19: 0
A20: 0 | B20: 0 | C20: 0 | D20: 0 | E20: 0 | F20: 0 | G20: 0 | H20: 0 | I20: 0 | J20: 0 | K20: 0
A21: 0 | B21: 0 | C21: 0 | D21: 0 | E21: 0 | F21: 0 | G21: 0 | H21: 0 | I21: 0 | J21: 0 | K21: 0
A22: 0 | B22: 0 | C22: 0 | D22: 0 | E22: 0 | F22: 0 | G22: 0 | H22: 0 | I22: 0 | J22: 0 | K22: 0
A23: 0 | B23: 0 | C23: 0 | D23: 0 | E23: 0 | F23: 0 | G23: 0 | H23: 0 | I23: 0 | J23: 0 | K23: 0
A24: 0 | B24: 0 | C24: 0 | D24: 0 | E24: 0 | F24: 0 | G24: 0 | H24: 0 | I24: 0 | J24: 0 | K24: 0
A25: 0 | B25: 0 | C25: 0 | D25: 0 | E25: 0 | F25: 0 | G25: 0 | H25: 0 | I25: 0 | J25: 0 | K25: 0
A26: 0 | B26: 0 | C26: 0 | D26: 0 | E26: 0 | F26: 0 | G26: 0 | H26: 0 | I26: 0 | J26: 0 | K26: 0
A27: 0 | B27: 0 | C27: 0 | D27: 0 | E27: 0 | F27: 0 | G27: 0 | H27: 0 | I27: 0 | J27: 0 | K27: 0
A28: 0 | B28: 0 | C28: 0 | D28: 0 | E28: 0 | F28: 0 | G28: 0 | H28: 0 | I28: 0 | J28: 0 | K28: 0
A29: 0 | B29: 0 | C29: 0 | D29: 0 | E29: 0 | F29: 0 | G29: 0 | H29: 0 | I29: 0 | J29: 0 | K29: 0
A30: 0 | B30: 0 | C30: 0 | D30: 0 | E30: 0 | F30: 0 | G30: 0 | H30: 0 | I30: 0 | J30: 0 | K30: 0
A31: 0 | B31: 0 | C31: 0 | D31: 0 | E31: 0 | F31: 0 | G31: 0 | H31: 0 | I31: 0 | J31: 0 | K31: 0
A32: 0 | B32: 0 | C32: 0 | D32: 0 | E32: 0 | F32: 0 | G32: 0 | H32: 0 | I32: 0 | J32: 0 | K32: 0
A33: 0 | B33: 0 | C33: 0 | D33: 0 | E33: 0 | F33: 0 | G33: 0 | H33: 0 | I33: 0 | J33: 0 | K33: 0
A34: 0 | B34: 0 | C34: 0 | D34: 0 | E34: 0 | F34: 0 | G34: 0 | H34: 0 | I34: 0 | J34: 0 | K34: 0
A35: 0 | B35: 0 | C35: 0 | D35: 0 | E35: 0 | F35: 0 | G35: 0 | H35: 0 | I35: 0 | J35: 0 | K35: 0
A36: 0 | B36: 0 | C36: 0 | D36: 0 | E36: 0 | F36: 0 | G36: 0 | H36: 0 | I36: 0 | J36: 0 | K36: 0
A37: 0 | B37: 0 | C37: 0 | D37: 0 | E37: 0 | F37: 0 | G37: 0 | H37: 0 | I37: 0 | J37: 0 | K37: 0
A38: 0 | B38: 0 | C38: 0 | D38: 0 | E38: 0 | F38: 0 | G38: 0 | H38: 0 | I38: 0 | J38: 0 | K38: 0
A39: 0 | B39: 0 | C39: 0 | D39: 0 | E39: 0 | F39: 0 | G39: 0 | H39: 0 | I39: 0 | J39: 0 | K39: 0
A40: 0 | B40: 0 | C40: 0 | D40: 0 | E40: 0 | F40: 0 | G40: 0 | H40: 0 | I40: 0 | J40: 0 | K40: 0
A41: 0 | B41: 0 | C41: 0 | D41: 0 | E41: 0 | F41: 0 | G41: 0 | H41: 0 | I41: 0 | J41: 0 | K41: 0
A42: 0 | B42: 0 | C42: 0 | D42: 0 | E42: 0 | F42: 0 | G42: 0 | H42: 0 | I42: 0 | J42: 0 | K42: 0
A43: 0 | B43: 0 | C43: 0 | D43: 0 | E43: 0 | F43: 0 | G43: 0 | H43: 0 | I43: 0 | J43: 0 | K43: 0
A44: 0 | B44: 0 | C44: 0 | D44: 0 | E44: 0 | F44: 0 | G44: 0 | H44: 0 | I44: 0 | J44: 0 | K44: 0
A45: 0 | B45: 0 | C45: 0 | D45: 0 | E45: 0 | F45: 0 | G45: 0 | H45: 0 | I45: 0 | J45: 0 | K45: 0
A46: 0 | B46: 0 | C46: 0 | D46: 0 | E46: 0 | F46: 0 | G46: 0 | H46: 0 | I46: 0 | J46: 0 | K46: 0
A47: 0 | B47: 0 | C47: 0 | D47: 0 | E47: 0 | F47: 0 | G47: 0 | H47: 0 | I47: 0 | J47: 0 | K47: 0
A48: 0 | B48: 0 | C48: 0 | D48: 0 | E48: 0 | F48: 0 | G48: 0 | H48: 0 | I48: 0 | J48: 0 | K48: 0
A49: 0 | B49: 0 | C49: 0 | D49: 0 | E49: 0 | F49: 0 | G49: 0 | H49: 0 | I49: 0 | J49: 0 | K49: 0
A50: 0 | B50: 0 | C50: 0 | D50: 0 | E50: 0 | F50: 0 | G50: 0 | H50: 0 | I50: 0 | J50: 0 | K50: 0
A51: 0 | B51: 0 | C51: 0 | D51: 0 | E51: 0 | F51: 0 | G51: 0 | H51: 0 | I51: 0 | J51: 0 | K51: 0
A52: 0 | B52: 0 | C52: 0 | D52: 0 | E52: 0 | F52: 0 | G52: 0 | H52: 0 | I52: 0 | J52: 0 | K52: 0
A53: 0 | B53: 0 | C53: 0 | D53: 0 | E53: 0 | F53: 0 | G53: 0 | H53: 0 | I53: 0 | J53: 0 | K53: 0
A54: 0 | B54: 0 | C54: 0 | D54: 0 | E54: 0 | F54: 0 | G54: 0 | H54: 0 | I54: 0 | J54: 0 | K54: 0
A55: 0 | B55: 0 | C55: 0 | D55: 0 | E55: 0 | F55: 0 | G55: 0 | H55: 0 | I55: 0 | J55: 0 | K55: 0
A56: 0 | B56: 0 | C56: 0 | D56: 0 | E56: 0 | F56: 0 | G56: 0 | H56: 0 | I56: 0 | J56: 0 | K56: 0
A57: 0 | B57: 0 | C57: 0 | D57: 0 | E57: 0 | F57: 0 | G57: 0 | H57: 0 | I57: 0 | J57: 0 | K57: 0
A58: 0 | B58: 0 | C58: 0 | D58: 0 | E58: 0 | F58: 0 | G58: 0 | H58: 0 | I58: 0 | J58: 0 | K58: 0
A59: 0 | B59: 0 | C59: 0 | D59: 0 | E59: 0 | F59: 0 | G59: 0 | H59: 0 | I59: 0 | J59: 0 | K59: 0
A60: 0 | B60: 0 | C60: 0 | D60: 0 | E60: 0 | F60: 0 | G60: 0 | H60: 0 | I60: 0 | J60: 0 | K60: 0
A61: 0 | B61: 0 | C61: 0 | D61: 0 | E61: 0 | F61: 0 | G61: 0 | H61: 0 | I61: 0 | J61: 0 | K61: 0
A62: 0 | B62: 0 | C62: 0 | D62: 0 | E62: 0 | F62: 0 | G62: 0 | H62: 0 | I62: 0 | J62: 0 | K62: 0
A63: 0 | B63: 0 | C63: 0 | D63: 0 | E63: 0 | F63: 0 | G63: 0 | H63: 0 | I63: 0 | J63: 0 | K63: 0
A64: 0 | B64: 0 | C64: 0 | D64: 0 | E64: 0 | F64: 0 | G64: 0 | H64: 0 | I64: 0 | J64: 0 | K64: 0
A65: 0 | B65: 0 | C65: 0 | D65: 0 | E65: 0 | F65: 0 | G65: 0 | H65: 0 | I65: 0 | J65: 0 | K65: 0
A66: 0 | B66: 0 | C66: 0 | D66: 0 | E66: 0 | F66: 0 | G66: 0 | H66: 0 | I66: 0 | J66: 0 | K66: 0
A67: 0 | B67: 0 | C67: 0 | D67: 0 | E67: 0 | F67: 0 | G67: 0 | H67: 0 | I67: 0 | J67: 0 | K67: 0
A68: 0 | B68: 0 | C68: 0 | D68: 0 | E68: 0 | F68: 0 | G68: 0 | H68: 0 | I68: 0 | J68: 0 | K68: 0
A69: 0 | B69: 0 | C69: 0 | D69: 0 | E69: 0 | F69: 0 | G69: 0 | H69: 0 | I69: 0 | J69: 0 | K69: 0
A70: 0 | B70: 0 | C70: 0 | D70: 0 | E70: 0 | F70: 0 | G70: 0 | H70: 0 | I70: 0 | J70: 0 | K70: 0
A71: 0 | B71: 0 | C71: 0 | D71: 0 | E71: 0 | F71: 0 | G71: 0 | H71: 0 | I71: 0 | J71: 0 | K71: 0
A72: 0 | B72: 0 | C72: 0 | D72: 0 | E72: 0 | F72: 0 | G72: 0 | H72: 0 | I72: 0 | J72: 0 | K72: 0
A73: 0 | B73: 0 | C73: 0 | D73: 0 | E73: 0 | F73: 0 | G73: 0 | H73: 0 | I73: 0 | J73: 0 | K73: 0
A74: 0 | B74: 0 | C74: 0 | D74: 0 | E74: 0 | F74: 0 | G74: 0 | H74: 0 | I74: 0 | J74: 0 | K74: 0
A75: 0 | B75: 0 | C75: 0 | D75: 0 | E75: 0 | F75: 0 | G75: 0 | H75: 0 | I75: 0 | J75: 0 | K75: 0
A76: 0 | B76: 0 | C76: 0 | D76: 0 | E76: 0 | F76: 0 | G76: 0 | H76: 0 | I76: 0 | J76: 0 | K76: 0
A77: 0 | B77: 0 | C77: 0 | D77: 0 | E77: 0 | F77: 0 | G77: 0 | H77: 0 | I77: 0 | J77: 0 | K77: 0
A78: 0 | B78: 0 | C78: 0 | D78: 0 | E78: 0 | F78: 0 | G78: 0 | H78: 0 | I78: 0 | J78: 0 | K78: 0
A79: 0 | B79: 0 | C79: 0 | D79: 0 | E79: 0 | F79: 0 | G79: 0 | H79: 0 | I79: 0 | J79: 0 | K79: 0
A80: 0 | B80: 0 | C80: 0 | D80: 0 | E80: 0 | F80: 0 | G80: 0 | H80: 0 | I80: 0 | J80: 0 | K80: 0
A81: 0 | B81: 0 | C81: 0 | D81: 0 | E81: 0 | F81: 0 | G81: 0 | H81: 0 | I81: 0 | J81: 0 | K81: 0
A82: 0 | B82: 0 | C82: 0 | D82: 0 | E82: 0 | F82: 0 | G82: 0 | H82: 0 | I82: 0 | J82: 0 | K82: 0
A83: 0 | B83: 0 | C83: 0 | D83: 0 | E83: 0 | F83: 0 | G83: 0 | H83: 0 | I83: 0 | J83: 0 | K83: 0
A84: 0 | B84: 0 | C84: 0 | D84: 0 | E84: 0 | F84: 0 | G84: 0 | H84: 0 | I84: 0 | J84: 0 | K84: 0
A85: 0 | B85: 0 | C85: 0 | D85: 0 | E85: 0 | F85: 0 | G85: 0 | H85: 0 | I85: 0 | J85: 0 | K85: 0
A86: 0 | B86: 0 | C86: 0 | D86: 0 | E86: 0 | F86: 0 | G86: 0 | H86: 0 | I86: 0 | J86: 0 | K86: 0
A87: 0 | B87: 0 | C87: 0 | D87: 0 | E87: 0 | F87: 0 | G87: 0 | H87: 0 | I87: 0 | J87: 0 | K87: 0
A88: 0 | B88: 0 | C88: 0 | D88: 0 | E88: 0 | F88: 0 | G88: 0 | H88: 0 | I88: 0 | J88: 0 | K88: 0
A89: 0 | B89: 0 | C89: 0 | D89: 0 | E89: 0 | F89: 0 | G89: 0 | H89: 0 | I89: 0 | J89: 0 | K89: 0
A90: 0 | B90: 0 | C90: 0 | D90: 0 | E90: 0 | F90: 0 | G90: 0 | H90: 0 | I90: 0 | J90: 0 | K90: 0
A91: 0 | B91: 0 | C91: 0 | D91: 0 | E91: 0 | F91: 0 | G91: 0 | H91: 0 | I91: 0 | J91: 0 | K91: 0
A92: 0 | B92: 0 | C92: 0 | D92: 0 | E92: 0 | F92: 0 | G92: 0 | H92: 0 | I92: 0 | J92: 0 | K92: 0
A93: 0 | B93: 0 | C93: 0 | D93: 0 | E93: 0 | F93: 0 | G93: 0 | H93: 0 | I93: 0 | J93: 0 | K93: 0
A94: 0 | B94: 0 | C94: 0 | D94: 0 | E94: 0 | F94: 0 | G94: 0 | H94: 0 | I94: 0 | J94: 0 | K94: 0
A95: 0 | B95: 0 | C95: 0 | D95: 0 | E95: 0 | F95: 0 | G95: 0 | H95: 0 | I95: 0 | J95: 0 | K95: 0
A96: 0 | B96: 0 | C96: 0 | D96: 0 | E96: 0 | F96: 0 | G96: 0 | H96: 0 | I96: 0 | J96: 0 | K96: 0
A97: 0 | B97: 0 | C97: 0 | D97: 0 | E97: 0 | F97: 0 | G97: 0 | H97: 0 | I97: 0 | J97: 0 | K97: 0
A98: 0 | B98: 0 | C98: 0 | D98: 0 | E98: 0 | F98: 0 | G98: 0 | H98: 0 | I98: 0 | J98: 0 | K98: 0
A99: 0 | B99: 0 | C99: 0 | D99: 0 | E99: 0 | F99: 0 | G99: 0 | H99: 0 | I99: 0 | J99: 0 | K99: 0
A100: 0 | B100: 0 | C100: 0 | D100: 0 | E100: 0 | F100: 0 | G100: 0 | H100: 0 | I100: 0 | J100: 0 | K100: 0

Sheet Verortung_Pinch (hidden)
B2: Definition der Quellen der Pinch-Ströme
B4: Anzahl von Worksheets | D4: =COUNTA(B7:B56) -> 9
B6: Worksheet | C6: Erste Zelle | D6: Erste Spalte | E6: Pinch-Ströme pro Prozess | F6: Anzahl Prozesse | G6: Zeilen zwischen Prozesse
B7: Prozess_Heizen | C7: 30 | D7: 2 | E7: 5 | F7: 5 | G7: 34
B8: Warmwasser | C8: 30 | D8: 2 | E8: 3 | F8: 5 | G8: 34
B9: Raumwärme | C9: 10 | D9: 23 | E9: 1 | F9: 10 | G9: 1
B10: Raumkühlung | C10: 10 | D10: 23 | E10: 1 | F10: 10 | G10: 1
B11: Galvanikbad_Heizen | C11: 30 | D11: 2 | E11: 5 | F11: 5 | G11: 34
B12: Galvanikbad_Kühlen | C12: 28 | D12: 2 | E12: 5 | F12: 5 | G12: 34
B13: Ströme | C13: 2 | D13: 3 | E13: 10 | F13: 1
B14: Ströme_2 | C14: 2 | D14: 3 | E14: 5 | F14: 3 | G14: 7
B15: Prozess_Kühlen | C15: 30 | D15: 2 | E15: 5 | F15: 5 | G15: 34

Sheet varHS (hidden)
A1: 80 | B1: 10 | C1: 3.2 | D1: 1 | E1: 0 | F1: 0 | G1: 1000 | H1: 224 | I1: 0 | J1: 200 | K1: 224000 | L1: test kühl 1 Kontinuierlich | M1: Prozess | R1: 1 | S1: 2 | T1: 3 | U1: 4 | V1: 5 | W1: 6 | X1: 7 | Y1: 8 | Z1: 9 | AA1: 10 | AB1: 11
A2: 80 | B2: 60 | C2: 20 | D2: 2 | E2: 0 | F2: 0 | G2: 1000 | H2: 400 | I2: 0 | J2: 200 | K2: 400000 | L2: kühl 5 Kontinuierlich | M2: Prozess | R2: t start | S2: t end | T2: mcp | U2: rank | V2: hour st | W2: hour end | X2: tot time | Y2: Q | Z2: days | AA2: weeks | AB2: E
A3: 0 | B3: 0 | C3: 0 | D3: 0 | E3: 0 | F3: 0 | G3: 0 | H3: 0 | I3: 0 | J3: 0 | K3: 0
A4: 0 | B4: 0 | C4: 0 | D4: 0 | E4: 0 | F4: 0 | G4: 0 | H4: 0 | I4: 0 | J4: 0 | K4: 0
A5: 0 | B5: 0 | C5: 0 | D5: 0 | E5: 0 | F5: 0 | G5: 0 | H5: 0 | I5: 0 | J5: 0 | K5: 0
A6: 0 | B6: 0 | C6: 0 | D6: 0 | E6: 0 | F6: 0 | G6: 0 | H6: 0 | I6: 0 | J6: 0 | K6: 0
A7: 0 | B7: 0 | C7: 0 | D7: 0 | E7: 0 | F7: 0 | G7: 0 | H7: 0 | I7: 0 | J7: 0 | K7: 0
A8: 0 | B8: 0 | C8: 0 | D8: 0 | E8: 0 | F8: 0 | G8: 0 | H8: 0 | I8: 0 | J8: 0 | K8: 0
A9: 0 | B9: 0 | C9: 0 | D9: 0 | E9: 0 | F9: 0 | G9: 0 | H9: 0 | I9: 0 | J9: 0 | K9: 0
A10: 0 | B10: 0 | C10: 0 | D10: 0 | E10: 0 | F10: 0 | G10: 0 | H10: 0 | I10: 0 | J10: 0 | K10: 0
A11: 0 | B11: 0 | C11: 0 | D11: 0 | E11: 0 | F11: 0 | G11: 0 | H11: 0 | I11: 0 | J11: 0 | K11: 0
A12: 0 | B12: 0 | C12: 0 | D12: 0 | E12: 0 | F12: 0 | G12: 0 | H12: 0 | I12: 0 | J12: 0 | K12: 0
A13: 0 | B13: 0 | C13: 0 | D13: 0 | E13: 0 | F13: 0 | G13: 0 | H13: 0 | I13: 0 | J13: 0 | K13: 0
A14: 0 | B14: 0 | C14: 0 | D14: 0 | E14: 0 | F14: 0 | G14: 0 | H14: 0 | I14: 0 | J14: 0 | K14: 0
A15: 0 | B15: 0 | C15: 0 | D15: 0 | E15: 0 | F15: 0 | G15: 0 | H15: 0 | I15: 0 | J15: 0 | K15: 0
A16: 0 | B16: 0 | C16: 0 | D16: 0 | E16: 0 | F16: 0 | G16: 0 | H16: 0 | I16: 0 | J16: 0 | K16: 0
A17: 0 | B17: 0 | C17: 0 | D17: 0 | E17: 0 | F17: 0 | G17: 0 | H17: 0 | I17: 0 | J17: 0 | K17: 0
A18: 0 | B18: 0 | C18: 0 | D18: 0 | E18: 0 | F18: 0 | G18: 0 | H18: 0 | I18: 0 | J18: 0 | K18: 0
A19: 0 | B19: 0 | C19: 0 | D19: 0 | E19: 0 | F19: 0 | G19: 0 | H19: 0 | I19: 0 | J19: 0 | K19: 0
A20: 0 | B20: 0 | C20: 0 | D20: 0 | E20: 0 | F20: 0 | G20: 0 | H20: 0 | I20: 0 | J20: 0 | K20: 0
A21: 0 | B21: 0 | C21: 0 | D21: 0 | E21: 0 | F21: 0 | G21: 0 | H21: 0 | I21: 0 | J21: 0 | K21: 0
A22: 0 | B22: 0 | C22: 0 | D22: 0 | E22: 0 | F22: 0 | G22: 0 | H22: 0 | I22: 0 | J22: 0 | K22: 0
A23: 0 | B23: 0 | C23: 0 | D23: 0 | E23: 0 | F23: 0 | G23: 0 | H23: 0 | I23: 0 | J23: 0 | K23: 0
A24: 0 | B24: 0 | C24: 0 | D24: 0 | E24: 0 | F24: 0 | G24: 0 | H24: 0 | I24: 0 | J24: 0 | K24: 0
A25: 0 | B25: 0 | C25: 0 | D25: 0 | E25: 0 | F25: 0 | G25: 0 | H25: 0 | I25: 0 | J25: 0 | K25: 0
A26: 0 | B26: 0 | C26: 0 | D26: 0 | E26: 0 | F26: 0 | G26: 0 | H26: 0 | I26: 0 | J26: 0 | K26: 0
A27: 0 | B27: 0 | C27: 0 | D27: 0 | E27: 0 | F27: 0 | G27: 0 | H27: 0 | I27: 0 | J27: 0 | K27: 0
A28: 0 | B28: 0 | C28: 0 | D28: 0 | E28: 0 | F28: 0 | G28: 0 | H28: 0 | I28: 0 | J28: 0 | K28: 0
A29: 0 | B29: 0 | C29: 0 | D29: 0 | E29: 0 | F29: 0 | G29: 0 | H29: 0 | I29: 0 | J29: 0 | K29: 0
A30: 0 | B30: 0 | C30: 0 | D30: 0 | E30: 0 | F30: 0 | G30: 0 | H30: 0 | I30: 0 | J30: 0 | K30: 0
A31: 0 | B31: 0 | C31: 0 | D31: 0 | E31: 0 | F31: 0 | G31: 0 | H31: 0 | I31: 0 | J31: 0 | K31: 0
A32: 0 | B32: 0 | C32: 0 | D32: 0 | E32: 0 | F32: 0 | G32: 0 | H32: 0 | I32: 0 | J32: 0 | K32: 0
A33: 0 | B33: 0 | C33: 0 | D33: 0 | E33: 0 | F33: 0 | G33: 0 | H33: 0 | I33: 0 | J33: 0 | K33: 0
A34: 0 | B34: 0 | C34: 0 | D34: 0 | E34: 0 | F34: 0 | G34: 0 | H34: 0 | I34: 0 | J34: 0 | K34: 0
A35: 0 | B35: 0 | C35: 0 | D35: 0 | E35: 0 | F35: 0 | G35: 0 | H35: 0 | I35: 0 | J35: 0 | K35: 0
A36: 0 | B36: 0 | C36: 0 | D36: 0 | E36: 0 | F36: 0 | G36: 0 | H36: 0 | I36: 0 | J36: 0 | K36: 0
A37: 0 | B37: 0 | C37: 0 | D37: 0 | E37: 0 | F37: 0 | G37: 0 | H37: 0 | I37: 0 | J37: 0 | K37: 0
A38: 0 | B38: 0 | C38: 0 | D38: 0 | E38: 0 | F38: 0 | G38: 0 | H38: 0 | I38: 0 | J38: 0 | K38: 0
A39: 0 | B39: 0 | C39: 0 | D39: 0 | E39: 0 | F39: 0 | G39: 0 | H39: 0 | I39: 0 | J39: 0 | K39: 0
A40: 0 | B40: 0 | C40: 0 | D40: 0 | E40: 0 | F40: 0 | G40: 0 | H40: 0 | I40: 0 | J40: 0 | K40: 0
A41: 0 | B41: 0 | C41: 0 | D41: 0 | E41: 0 | F41: 0 | G41: 0 | H41: 0 | I41: 0 | J41: 0 | K41: 0
A42: 0 | B42: 0 | C42: 0 | D42: 0 | E42: 0 | F42: 0 | G42: 0 | H42: 0 | I42: 0 | J42: 0 | K42: 0
A43: 0 | B43: 0 | C43: 0 | D43: 0 | E43: 0 | F43: 0 | G43: 0 | H43: 0 | I43: 0 | J43: 0 | K43: 0
A44: 0 | B44: 0 | C44: 0 | D44: 0 | E44: 0 | F44: 0 | G44: 0 | H44: 0 | I44: 0 | J44: 0 | K44: 0
A45: 0 | B45: 0 | C45: 0 | D45: 0 | E45: 0 | F45: 0 | G45: 0 | H45: 0 | I45: 0 | J45: 0 | K45: 0
A46: 0 | B46: 0 | C46: 0 | D46: 0 | E46: 0 | F46: 0 | G46: 0 | H46: 0 | I46: 0 | J46: 0 | K46: 0
A47: 0 | B47: 0 | C47: 0 | D47: 0 | E47: 0 | F47: 0 | G47: 0 | H47: 0 | I47: 0 | J47: 0 | K47: 0
A48: 0 | B48: 0 | C48: 0 | D48: 0 | E48: 0 | F48: 0 | G48: 0 | H48: 0 | I48: 0 | J48: 0 | K48: 0
A49: 0 | B49: 0 | C49: 0 | D49: 0 | E49: 0 | F49: 0 | G49: 0 | H49: 0 | I49: 0 | J49: 0 | K49: 0
A50: 0 | B50: 0 | C50: 0 | D50: 0 | E50: 0 | F50: 0 | G50: 0 | H50: 0 | I50: 0 | J50: 0 | K50: 0
A51: 0 | B51: 0 | C51: 0 | D51: 0 | E51: 0 | F51: 0 | G51: 0 | H51: 0 | I51: 0 | J51: 0 | K51: 0
A52: 0 | B52: 0 | C52: 0 | D52: 0 | E52: 0 | F52: 0 | G52: 0 | H52: 0 | I52: 0 | J52: 0 | K52: 0
A53: 0 | B53: 0 | C53: 0 | D53: 0 | E53: 0 | F53: 0 | G53: 0 | H53: 0 | I53: 0 | J53: 0 | K53: 0
A54: 0 | B54: 0 | C54: 0 | D54: 0 | E54: 0 | F54: 0 | G54: 0 | H54: 0 | I54: 0 | J54: 0 | K54: 0
A55: 0 | B55: 0 | C55: 0 | D55: 0 | E55: 0 | F55: 0 | G55: 0 | H55: 0 | I55: 0 | J55: 0 | K55: 0
A56: 0 | B56: 0 | C56: 0 | D56: 0 | E56: 0 | F56: 0 | G56: 0 | H56: 0 | I56: 0 | J56: 0 | K56: 0
A57: 0 | B57: 0 | C57: 0 | D57: 0 | E57: 0 | F57: 0 | G57: 0 | H57: 0 | I57: 0 | J57: 0 | K57: 0
A58: 0 | B58: 0 | C58: 0 | D58: 0 | E58: 0 | F58: 0 | G58: 0 | H58: 0 | I58: 0 | J58: 0 | K58: 0
A59: 0 | B59: 0 | C59: 0 | D59: 0 | E59: 0 | F59: 0 | G59: 0 | H59: 0 | I59: 0 | J59: 0 | K59: 0
A60: 0 | B60: 0 | C60: 0 | D60: 0 | E60: 0 | F60: 0 | G60: 0 | H60: 0 | I60: 0 | J60: 0 | K60: 0
A61: 0 | B61: 0 | C61: 0 | D61: 0 | E61: 0 | F61: 0 | G61: 0 | H61: 0 | I61: 0 | J61: 0 | K61: 0
A62: 0 | B62: 0 | C62: 0 | D62: 0 | E62: 0 | F62: 0 | G62: 0 | H62: 0 | I62: 0 | J62: 0 | K62: 0
A63: 0 | B63: 0 | C63: 0 | D63: 0 | E63: 0 | F63: 0 | G63: 0 | H63: 0 | I63: 0 | J63: 0 | K63: 0
A64: 0 | B64: 0 | C64: 0 | D64: 0 | E64: 0 | F64: 0 | G64: 0 | H64: 0 | I64: 0 | J64: 0 | K64: 0
A65: 0 | B65: 0 | C65: 0 | D65: 0 | E65: 0 | F65: 0 | G65: 0 | H65: 0 | I65: 0 | J65: 0 | K65: 0
A66: 0 | B66: 0 | C66: 0 | D66: 0 | E66: 0 | F66: 0 | G66: 0 | H66: 0 | I66: 0 | J66: 0 | K66: 0
A67: 0 | B67: 0 | C67: 0 | D67: 0 | E67: 0 | F67: 0 | G67: 0 | H67: 0 | I67: 0 | J67: 0 | K67: 0
A68: 0 | B68: 0 | C68: 0 | D68: 0 | E68: 0 | F68: 0 | G68: 0 | H68: 0 | I68: 0 | J68: 0 | K68: 0
A69: 0 | B69: 0 | C69: 0 | D69: 0 | E69: 0 | F69: 0 | G69: 0 | H69: 0 | I69: 0 | J69: 0 | K69: 0
A70: 0 | B70: 0 | C70: 0 | D70: 0 | E70: 0 | F70: 0 | G70: 0 | H70: 0 | I70: 0 | J70: 0 | K70: 0
A71: 0 | B71: 0 | C71: 0 | D71: 0 | E71: 0 | F71: 0 | G71: 0 | H71: 0 | I71: 0 | J71: 0 | K71: 0
A72: 0 | B72: 0 | C72: 0 | D72: 0 | E72: 0 | F72: 0 | G72: 0 | H72: 0 | I72: 0 | J72: 0 | K72: 0
A73: 0 | B73: 0 | C73: 0 | D73: 0 | E73: 0 | F73: 0 | G73: 0 | H73: 0 | I73: 0 | J73: 0 | K73: 0
A74: 0 | B74: 0 | C74: 0 | D74: 0 | E74: 0 | F74: 0 | G74: 0 | H74: 0 | I74: 0 | J74: 0 | K74: 0
A75: 0 | B75: 0 | C75: 0 | D75: 0 | E75: 0 | F75: 0 | G75: 0 | H75: 0 | I75: 0 | J75: 0 | K75: 0
A76: 0 | B76: 0 | C76: 0 | D76: 0 | E76: 0 | F76: 0 | G76: 0 | H76: 0 | I76: 0 | J76: 0 | K76: 0
A77: 0 | B77: 0 | C77: 0 | D77: 0 | E77: 0 | F77: 0 | G77: 0 | H77: 0 | I77: 0 | J77: 0 | K77: 0
A78: 0 | B78: 0 | C78: 0 | D78: 0 | E78: 0 | F78: 0 | G78: 0 | H78: 0 | I78: 0 | J78: 0 | K78: 0
A79: 0 | B79: 0 | C79: 0 | D79: 0 | E79: 0 | F79: 0 | G79: 0 | H79: 0 | I79: 0 | J79: 0 | K79: 0
A80: 0 | B80: 0 | C80: 0 | D80: 0 | E80: 0 | F80: 0 | G80: 0 | H80: 0 | I80: 0 | J80: 0 | K80: 0
A81: 0 | B81: 0 | C81: 0 | D81: 0 | E81: 0 | F81: 0 | G81: 0 | H81: 0 | I81: 0 | J81: 0 | K81: 0
A82: 0 | B82: 0 | C82: 0 | D82: 0 | E82: 0 | F82: 0 | G82: 0 | H82: 0 | I82: 0 | J82: 0 | K82: 0
A83: 0 | B83: 0 | C83: 0 | D83: 0 | E83: 0 | F83: 0 | G83: 0 | H83: 0 | I83: 0 | J83: 0 | K83: 0
A84: 0 | B84: 0 | C84: 0 | D84: 0 | E84: 0 | F84: 0 | G84: 0 | H84: 0 | I84: 0 | J84: 0 | K84: 0
A85: 0 | B85: 0 | C85: 0 | D85: 0 | E85: 0 | F85: 0 | G85: 0 | H85: 0 | I85: 0 | J85: 0 | K85: 0
A86: 0 | B86: 0 | C86: 0 | D86: 0 | E86: 0 | F86: 0 | G86: 0 | H86: 0 | I86: 0 | J86: 0 | K86: 0
A87: 0 | B87: 0 | C87: 0 | D87: 0 | E87: 0 | F87: 0 | G87: 0 | H87: 0 | I87: 0 | J87: 0 | K87: 0
A88: 0 | B88: 0 | C88: 0 | D88: 0 | E88: 0 | F88: 0 | G88: 0 | H88: 0 | I88: 0 | J88: 0 | K88: 0
A89: 0 | B89: 0 | C89: 0 | D89: 0 | E89: 0 | F89: 0 | G89: 0 | H89: 0 | I89: 0 | J89: 0 | K89: 0
A90: 0 | B90: 0 | C90: 0 | D90: 0 | E90: 0 | F90: 0 | G90: 0 | H90: 0 | I90: 0 | J90: 0 | K90: 0
A91: 0 | B91: 0 | C91: 0 | D91: 0 | E91: 0 | F91: 0 | G91: 0 | H91: 0 | I91: 0 | J91: 0 | K91: 0
A92: 0 | B92: 0 | C92: 0 | D92: 0 | E92: 0 | F92: 0 | G92: 0 | H92: 0 | I92: 0 | J92: 0 | K92: 0
A93: 0 | B93: 0 | C93: 0 | D93: 0 | E93: 0 | F93: 0 | G93: 0 | H93: 0 | I93: 0 | J93: 0 | K93: 0
A94: 0 | B94: 0 | C94: 0 | D94: 0 | E94: 0 | F94: 0 | G94: 0 | H94: 0 | I94: 0 | J94: 0 | K94: 0
A95: 0 | B95: 0 | C95: 0 | D95: 0 | E95: 0 | F95: 0 | G95: 0 | H95: 0 | I95: 0 | J95: 0 | K95: 0
A96: 0 | B96: 0 | C96: 0 | D96: 0 | E96: 0 | F96: 0 | G96: 0 | H96: 0 | I96: 0 | J96: 0 | K96: 0
A97: 0 | B97: 0 | C97: 0 | D97: 0 | E97: 0 | F97: 0 | G97: 0 | H97: 0 | I97: 0 | J97: 0 | K97: 0
A98: 0 | B98: 0 | C98: 0 | D98: 0 | E98: 0 | F98: 0 | G98: 0 | H98: 0 | I98: 0 | J98: 0 | K98: 0
A99: 0 | B99: 0 | C99: 0 | D99: 0 | E99: 0 | F99: 0 | G99: 0 | H99: 0 | I99: 0 | J99: 0 | K99: 0
A100: 0 | B100: 0 | C100: 0 | D100: 0 | E100: 0 | F100: 0 | G100: 0 | H100: 0 | I100: 0 | J100: 0 | K100: 0

Sheet Prozess_Kühlen
B13: Prozessname | D13: Energieversorgung | F13: Betriebstage
G14: d/a
B17: Auswählen: | D17: Start- Temperatur | F17: End- Temperatur | H17: spez. Wärmekapazität | J17: Massenstrom | L17: Masse | N17: Volllaststunden pro Jahr | P17: Dauer eines Vorganges | R17: Anzahl der Vorgänge pro Jahr | S17: Energieverbrauch
E18: °C | G18: °C | I18: kJ/(kg.K) | K18: kg/s | M18: kg/Vorgang | O18: h/a | Q18: h | S18: =IF(B18="Kontinuierlich",J18*H18*(D18-F18)*N18,G31*H18*(D18-F18)*P18*R18) ->  | T18: kWh/a
E19: °C | G19: °C | I19: kJ/(kg.K) | K19: kg/s | M19: kg/Vorgang | O19: h/a | Q19: h | S19: =IF(B19="Kontinuierlich",J19*H19*(D19-F19)*N19,G32*H19*(D19-F19)*P19*R19) ->  | T19: kWh/a
S20: =SUM(IFERROR(S18:S19,0)) -> 0 | T20: kWh/a
B23: Auswählen: | D23: Wärmerück- gewinnung | F23: Abwärme- Temperatur | H23: spez. Wärmekapazität | J23: spez. Wärmekapazität Feuchter Luft berechnen | L23: relativer Feuchtegehalt | N23: Abkühl- Temperatur | P23: Massenstrom | R23: Vollaststunden pro Jahr
G24: °C | I24: kJ/(kg.K) | M24: % | O24: °C | Q24: kg/s | S24: h/a
G25: °C | I25: kJ/(kg.K) | M25: % | O25: °C | Q25: kg/s | S25: h/a
G26: °C | I26: kJ/(kg.K) | M26: % | O26: °C | Q26: kg/s | S26: h/a
B29: Für Pinch Liste (versteckt)
B30: (das ist die erste Zelle / erste Spalte) | D30: Use in Pinch List | E30: start T | F30: end T | G30: m | H30: cp | I30: h | J30: P/U | K30: d/y
B31: 1 | C31: =(B14&" "&B18) ->  | D31: =IF(B18="",0,1) -> 0 | E31: =D18 -> 0 | F31: =F18 -> 0 | G31: =IF(B18="Kontinuierlich",J18,L18/P18/3600) ->  | H31: =H18 -> 0 | I31: =IF(B18="Kontinuierlich",N18,P18*R18) -> 0 | J31: Prozess | K31: =$F$14 -> 0
B32: 2 | C32: =(B14&" "&B19) ->  | D32: =IF(B19="",0,1) -> 0 | E32: =D19 -> 0 | F32: =F19 -> 0 | G32: =IF(B19="Kontinuierlich",J19,L19/P19/3600) ->  | H32: =H19 -> 0 | I32: =IF(B19="Kontinuierlich",N19,P19*R19) -> 0 | J32: Prozess | K32: =$F$14 -> 0
B33: 3 | C33: =(B14&" "&B24) ->  | D33: =IF(B24="",0,1) -> 0 | E33: =F24 -> 0 | F33: =N24 -> 0 | G33: =P24 -> 0 | H33: =H24 -> 0 | I33: =R24 -> 0 | J33: Prozess | K33: =$F$14 -> 0
B34: 4 | C34: =(B14&" "&B25) ->  | D34: =IF(B25="",0,1) -> 0 | E34: =F25 -> 0 | F34: =N25 -> 0 | G34: =P25 -> 0 | H34: =H25 -> 0 | I34: =R25 -> 0 | J34: Prozess | K34: =$F$14 -> 0
B35: 5 | C35: =(B15&" "&B26) ->  | D35: =IF(B26="",0,1) -> 0 | E35: 0 | F35: 0 | G35: 0 | H35: 0 | I35: 0 | J35: Prozess | K35: 0
B47: Prozessname | D47: Energieversorgung | F47: Betriebstage
G48: d/a
B51: Auswählen: | D51: Start- Temperatur | F51: End- Temperatur | H51: spez. Wärmekapazität | J51: Massenstrom | L51: Masse | N51: Volllaststunden pro Jahr | P51: Dauer eines Vorganges | R51: Anzahl der Vorgänge pro Jahr | S51: Energieverbrauch
E52: °C | G52: °C | I52: kJ/(kg.K) | K52: kg/s | M52: kg/Vorgang | O52: h/a | Q52: h | S52: =IF(B52="Kontinuierlich",J52*H52*(D52-F52)*N52,G65*H52*(D52-F52)*P52*R52) ->  | T52: kWh/a
E53: °C | G53: °C | I53: kJ/(kg.K) | K53: kg/s | M53: kg/Vorgang | O53: h/a | Q53: h | S53: =IF(B53="Kontinuierlich",J53*H53*(D53-F53)*N53,G66*H53*(D53-F53)*P53*R53) ->  | T53: kWh/a
S54: =SUM(IFERROR(S52:S53,0)) -> 0 | T54: kWh/a
B57: Auswählen: | D57: Wärmerück- gewinnung | F57: Abwärme- Temperatur | H57: spez. Wärmekapazität | J57: spez. Wärmekapazität Feuchter Luft berechnen | L57: relativer Feuchtegehalt | N57: Abkühl- Temperatur | P57: Massenstrom | R57: Vollaststunden pro Jahr
G58: °C | I58: kJ/(kg.K) | M58: % | O58: °C | Q58: kg/s | S58: h/a
G59: °C | I59: kJ/(kg.K) | M59: % | O59: °C | Q59: kg/s | S59: h/a
G60: °C | I60: kJ/(kg.K) | M60: % | O60: °C | Q60: kg/s | S60: h/a
B63: Für Pinch Liste (versteckt)
B64: (das ist die erste Zelle / erste Spalte) | D64: Use in Pinch List | E64: start T | F64: end T | G64: m | H64: cp | I64: h | J64: P/U | K64: d/y
B65: 1 | C65: =(B48&" "&B52) ->  | D65: =IF(B52="",0,1) -> 0 | E65: =D52 -> 0 | F65: =F52 -> 0 | G65: =IF(B52="Kontinuierlich",J52,L52/P52/3600) ->  | H65: =H52 -> 0 | I65: =IF(B52="Kontinuierlich",N52,P52*R52) -> 0 | J65: Prozess | K65: =$F$48 -> 0
B66: 2 | C66: =(B48&" "&B53) ->  | D66: =IF(B53="",0,1) -> 0 | E66: =D53 -> 0 | F66: =F53 -> 0 | G66: =IF(B53="Kontinuierlich",J53,L53/P53/3600) ->  | H66: =H53 -> 0 | I66: =IF(B53="Kontinuierlich",N53,P53*R53) -> 0 | J66: Prozess | K66: =$F$48 -> 0
B67: 3 | C67: =(B48&" "&B58) ->  | D67: =IF(B58="",0,1) -> 0 | E67: =F58 -> 0 | F67: =N58 -> 0 | G67: =P58 -> 0 | H67: =H58 -> 0 | I67: =R58 -> 0 | J67: Prozess | K67: 0
B68: 4 | C68: =(B48&" "&B59) ->  | D68: =IF(B59="",0,1) -> 0 | E68: =F59 -> 0 | F68: =N59 -> 0 | G68: =P59 -> 0 | H68: =H59 -> 0 | I68: =R59 -> 0 | J68: Prozess | K68: 0
B69: 5 | C69: =(B49&" "&B60) ->  | D69: =IF(B60="",0,1) -> 0 | E69: 0 | F69: 0 | G69: 0 | H69: 0 | I69: 0 | J69: Prozess | K69: 0
B81: Prozessname | D81: Energieversorgung | F81: Betriebstage
G82: d/a
B85: Auswählen: | D85: Start- Temperatur | F85: End- Temperatur | H85: spez. Wärmekapazität | J85: Massenstrom | L85: Masse | N85: Volllaststunden pro Jahr | P85: Dauer eines Vorganges | R85: Anzahl der Vorgänge pro Jahr | S85: Energieverbrauch
E86: °C | G86: °C | I86: kJ/(kg.K) | K86: kg/s | M86: kg/Vorgang | O86: h/a | Q86: h | S86: =IF(B86="Kontinuierlich",J86*H86*(D86-F86)*N86,G99*H86*(D86-F86)*P86*R86) ->  | T86: kWh/a
E87: °C | G87: °C | I87: kJ/(kg.K) | K87: kg/s | M87: kg/Vorgang | O87: h/a | Q87: h | S87: =IF(B87="Kontinuierlich",J87*H87*(D87-F87)*N87,G100*H87*(D87-F87)*P87*R87) ->  | T87: kWh/a
S88: =SUM(IFERROR(S86:S87,0)) -> 0 | T88: kWh/a
B91: Auswählen: | D91: Wärmerück- gewinnung | F91: Abwärme- Temperatur | H91: spez. Wärmekapazität | J91: spez. Wärmekapazität Feuchter Luft berechnen | L91: relativer Feuchtegehalt | N91: Abkühl- Temperatur | P91: Massenstrom | R91: Vollaststunden pro Jahr
G92: °C | I92: kJ/(kg.K) | M92: % | O92: °C | Q92: kg/s | S92: h/a
G93: °C | I93: kJ/(kg.K) | M93: % | O93: °C | Q93: kg/s | S93: h/a
G94: °C | I94: kJ/(kg.K) | M94: % | O94: °C | Q94: kg/s | S94: h/a
B97: Für Pinch Liste (versteckt)
B98: (das ist die erste Zelle / erste Spalte) | D98: Use in Pinch List | E98: start T | F98: end T | G98: m | H98: cp | I98: h | J98: P/U | K98: d/y
B99: 1 | C99: =(B82&" "&B86) ->  | D99: =IF(B86="",0,1) -> 0 | E99: =D86 -> 0 | F99: =F86 -> 0 | G99: =IF(B86="Kontinuierlich",J86,L86/P86/3600) ->  | H99: =H86 -> 0 | I99: =IF(B86="Kontinuierlich",N86,P86*R86) -> 0 | J99: Prozess | K99: =$F$82 -> 0
B100: 2 | C100: =(B82&" "&B87) ->  | D100: =IF(B87="",0,1) -> 0 | E100: =D87 -> 0 | F100: =F87 -> 0 | G100: =IF(B87="Kontinuierlich",J87,L87/P87/3600) ->  | H100: =H87 -> 0 | I100: =IF(B87="Kontinuierlich",N87,P87*R87) -> 0 | J100: Prozess | K100: =$F$82 -> 0
B101: 3 | C101: =(B82&" "&B92) ->  | D101: =IF(B92="",0,1) -> 0 | E101: =F92 -> 0 | F101: =N92 -> 0 | G101: =P92 -> 0 | H101: =H92 -> 0 | I101: =R92 -> 0 | J101: Prozess | K101: 0
B102: 4 | C102: =(B82&" "&B93) ->  | D102: =IF(B93="",0,1) -> 0 | E102: =F93 -> 0 | F102: =N93 -> 0 | G102: =P93 -> 0 | H102: =H93 -> 0 | I102: =R93 -> 0 | J102: Prozess | K102: 0
B103: 5 | C103: =(B83&" "&B94) ->  | D103: =IF(B94="",0,1) -> 0 | E103: =F94 -> 0 | F103: 0 | G103: 0 | H103: 0 | I103: 0 | J103: Prozess | K103: 0
B115: Prozessname | D115: Energieversorgung | F115: Betriebstage
G116: d/a
B119: Auswählen: | D119: Start- Temperatur | F119: End- Temperatur | H119: spez. Wärmekapazität | J119: Massenstrom | L119: Masse | N119: Volllaststunden pro Jahr | P119: Dauer eines Vorganges | R119: Anzahl der Vorgänge pro Jahr | S119: Energieverbrauch
E120: °C | G120: °C | I120: kJ/(kg.K) | K120: kg/s | M120: kg/Vorgang | O120: h/a | Q120: h | S120: =IF(B120="Kontinuierlich",J120*H120*(D120-F120)*N120,G133*H120*(D120-F120)*P120*R120) ->  | T120: kWh/a
E121: °C | G121: °C | I121: kJ/(kg.K) | K121: kg/s | M121: kg/Vorgang | O121: h/a | Q121: h | S121: =IF(B121="Kontinuierlich",J121*H121*(D121-F121)*N121,G134*H121*(D121-F121)*P121*R121) ->  | T121: kWh/a
S122: =SUM(IFERROR(S120:S121,0)) -> 0 | T122: kWh/a
B125: Auswählen: | D125: Wärmerück- gewinnung | F125: Abwärme- Temperatur | H125: spez. Wärmekapazität | J125: spez. Wärmekapazität Feuchter Luft berechnen | L125: relativer Feuchtegehalt | N125: Abkühl- Temperatur | P125: Massenstrom | R125: Vollaststunden pro Jahr
G126: °C | I126: kJ/(kg.K) | M126: % | O126: °C | Q126: kg/s | S126: h/a
G127: °C | I127: kJ/(kg.K) | M127: % | O127: °C | Q127: kg/s | S127: h/a
G128: °C | I128: kJ/(kg.K) | M128: % | O128: °C | Q128: kg/s | S128: h/a
B131: Für Pinch Liste (versteckt)
B132: (das ist die erste Zelle / erste Spalte) | D132: Use in Pinch List | E132: start T | F132: end T | G132: m | H132: cp | I132: h | J132: P/U | K132: d/y
B133: 1 | C133: =(B116&" "&B120) ->  | D133: =IF(B120="",0,1) -> 0 | E133: =D120 -> 0 | F133: =F120 -> 0 | G133: =IF(B120="Kontinuierlich",J120,L120/P120/3600) ->  | H133: =H120 -> 0 | I133: =IF(B120="Kontinuierlich",N120,P120*R120) -> 0 | J133: Prozess | K133: =$F$116 -> 0
B134: 2 | C134: =(B116&" "&B121) ->  | D134: =IF(B121="",0,1) -> 0 | E134: =D121 -> 0 | F134: =F121 -> 0 | G134: =IF(B121="Kontinuierlich",J121,L121/P121/3600) ->  | H134: =H121 -> 0 | I134: =IF(B121="Kontinuierlich",N121,P121*R121) -> 0 | J134: Prozess | K134: =$F$116 -> 0
B135: 3 | C135: =(B116&" "&B126) ->  | D135: =IF(B126="",0,1) -> 0 | E135: =F126 -> 0 | F135: =N126 -> 0 | G135: =P126 -> 0 | H135: =H126 -> 0 | I135: =R126 -> 0 | J135: Prozess | K135: 0
B136: 4 | C136: =(B116&" "&B127) ->  | D136: =IF(B127="",0,1) -> 0 | E136: =F127 -> 0 | F136: =N127 -> 0 | G136: =P127 -> 0 | H136: =H127 -> 0 | I136: =R127 -> 0 | J136: Prozess | K136: 0
B137: 5 | C137: =(B117&" "&B128) ->  | D137: =IF(B128="",0,1) -> 0 | E137: 0 | F137: 0 | G137: 0 | H137: 0 | I137: 0 | J137: Prozess | K137: 0
B147: Prozessname | D147: Energieversorgung | F147: Betriebstage
G148: d/a
B151: Auswählen: | D151: Start- Temperatur | F151: End- Temperatur | H151: spez. Wärmekapazität | J151: Massenstrom | L151: Masse | N151: Volllaststunden pro Jahr | P151: Dauer eines Vorganges | R151: Anzahl der Vorgänge pro Jahr | S151: Energieverbrauch
E152: °C | G152: °C | I152: kJ/(kg.K) | K152: kg/s | M152: kg/Vorgang | O152: h/a | Q152: h | S152: =IF(B152="Kontinuierlich",J152*H152*(D152-F152)*N152,G167*H152*(D152-F152)*P152*R152) ->  | T152: kWh/a
E153: °C | G153: °C | I153: kJ/(kg.K) | K153: kg/s | M153: kg/Vorgang | O153: h/a | Q153: h | S153: =IF(B153="Kontinuierlich",J153*H153*(D153-F153)*N153,G168*H153*(D153-F153)*P153*R153) ->  | T153: kWh/a
S154: =SUM(IFERROR(S152:S153,0)) -> 0 | T154: kWh/a
B157: Auswählen: | D157: Wärmerück- gewinnung | F157: Abwärme- Temperatur | H157: spez. Wärmekapazität | J157: spez. Wärmekapazität Feuchter Luft berechnen | L157: relativer Feuchtegehalt | N157: Abkühl- Temperatur | P157: Massenstrom | R157: Vollaststunden pro Jahr
G158: °C | I158: kJ/(kg.K) | M158: % | O158: °C | Q158: kg/s | S158: h/a
G159: °C | I159: kJ/(kg.K) | M159: % | O159: °C | Q159: kg/s | S159: h/a
G160: °C | I160: kJ/(kg.K) | M160: % | O160: °C | Q160: kg/s | S160: h/a
B165: Für Pinch Liste (versteckt)
B166: (das ist die erste Zelle / erste Spalte) | D166: Use in Pinch List | E166: start T | F166: end T | G166: m | H166: cp | I166: h | J166: P/U | K166: d/y
B167: 1 | C167: =(B148&" "&B152) ->  | D167: =IF(B152="",0,1) -> 0 | E167: =D152 -> 0 | F167: =F152 -> 0 | G167: =IF(B152="Kontinuierlich",J152,L152/P152/3600) ->  | H167: =H152 -> 0 | I167: =IF(B152="Kontinuierlich",N152,P152*R152) -> 0 | J167: Prozess | K167: =$F$148 -> 0
B168: 2 | C168: =(B148&" "&B153) ->  | D168: =IF(B153="",0,1) -> 0 | E168: =D153 -> 0 | F168: =F153 -> 0 | G168: =IF(B153="Kontinuierlich",J153,L153/P153/3600) ->  | H168: =H153 -> 0 | I168: =IF(B153="Kontinuierlich",N153,P153*R153) -> 0 | J168: Prozess | K168: =$F$148 -> 0
B169: 3 | C169: =(B148&" "&B158) ->  | D169: =IF(B158="",0,1) -> 0 | E169: =F158 -> 0 | F169: =N158 -> 0 | G169: =P158 -> 0 | H169: =H158 -> 0 | I169: =R158 -> 0 | J169: Prozess | K169: 0
B170: 4 | C170: =(B148&" "&B159) ->  | D170: =IF(B159="",0,1) -> 0 | E170: =F159 -> 0 | F170: =N159 -> 0 | G170: =P159 -> 0 | H170: =H159 -> 0 | I170: =R159 -> 0 | J170: Prozess | K170: 0
B171: 5 | C171: =(B149&" "&B160) ->  | D171: =IF(B160="",0,1) -> 0 | E171: =F160 -> 0 | F171: =N160 -> 0 | G171: =P160 -> 0 | H171: =H160 -> 0 | I171: =R160 -> 0 | J171: Prozess | K171: 0

Sheet Galvanikbad_Heizen
B13: Prozessname | D13: Energieversorgung | F13: Betriebstage
G14: d/a
B17: Auswählen: | D17: Bad- Oberfläche | F17: Bad- Volumen | H17: Bad- Temperatur | J17: Vollaststunden pro Jahr | L17: Oberflächen- verluste | N17: Energieverluste pro Jahr
C18: =IF(B18="Bad ohne Sprudel, ohne Absaugung",2,(IF(B18="Bad ohne Sprudel, mit Absaugung",3,(IF(B18="Bad mit Sprudel, mit Absaugung",4,""))))) ->  | E18: m² | G18: m³ | I18: °C | K18: h/a | L18: =VLOOKUP(H18,Listen!$A$28:$D$43,C18,FALSE) ->  | M18: W/m² | N18: =L18*D18*J18/1000 ->  | O18: kWh/a
B21: Auswählen: | D21: Start- Temperatur | F21: End- Temperatur | H21: Anzahl der Vorgänge pro Jahr | J21: Dauer eines Vorganges | N21: Energieverbrauch pro Jahr
E22: °C | G22: °C | I22: # | K22: h | N22: =(F18*1000/3600)*4.19*(F22-D22)*J22*H22 -> 0 | O22: kWh/a
N23: =SUM(IFERROR(N18+N22,0)) -> 0 | O23: kWh/a
B25: Auswählen: | D25: Wärmerück- gewinnung | F25: Abwärme- Temperatur | H25: spez. Wärmekapazität | J25: spez. Wärmekapazität Feuchter Luft berechnen | L25: relativer Feuchtegehalt | N25: Abkühl- Temperatur | P25: Massenstrom | R25: Vollaststunden pro Jahr
G26: °C | I26: kJ/(kg.K) | M26: % | O26: °C | Q26: kg/s | S26: h/a
G27: °C | I27: kJ/(kg.K) | M27: % | O27: °C | Q27: kg/s | S27: h/a
G28: °C | I28: kJ/(kg.K) | M28: % | O28: °C | Q28: kg/s | S28: h/a
B29: Für Pinch Liste (versteckt)
B30: (das ist die erste Zelle / erste Spalte) | D30: Use in Pinch List | E30: start T | F30: end T | G30: m | H30: cp | I30: h | J30: P/U | K30: d/y
B31: 1 | C31: =(B14&" "&"Temperatur halten") -> Temperatur halten | D31: =IF(H18="",0,1) -> 0 | E31: =H18-1.5 -> -1.5 | F31: =H18+1.5 -> 1.5 | G31: =F18*1000/3600 -> 0 | H31: 4.19 | I31: =J18 -> 0 | J31: Prozess | K31: =$F$14 -> 0
B32: 2 | C32: =(B14&" "&"aufheizen") -> aufheizen | D32: =IF(B22="Aufheizvorgang vernachlässigen",0,(IF(B22="Aufheizvorgang definieren",1,0))) -> 0 | E32: =D22 -> 0 | F32: =F22 -> 0 | G32: =F18*1000/3600 -> 0 | H32: 4.19 | I32: =H22*J22 -> 0 | J32: Prozess | K32: =$F$14 -> 0
B33: 3 | C33: =(B14&" "&B26) ->  | D33: =IF(B26="",0,1) -> 0 | E33: =F26 -> 0 | F33: =N26 -> 0 | G33: =P26 -> 0 | H33: =H26 -> 0 | I33: =R26 -> 0 | J33: Prozess | K33: =$F$14 -> 0
B34: 4 | C34: =(B14&" "&B27) ->  | D34: =IF(B27="",0,1) -> 0 | E34: =F27 -> 0 | F34: =N27 -> 0 | G34: =P27 -> 0 | H34: =H27 -> 0 | I34: =R27 -> 0 | J34: Prozess | K34: =$F$14 -> 0
B35: 5 | C35: =(B15&" "&B28) ->  | D35: =IF(B28="",0,1) -> 0 | E35: =F28 -> 0 | F35: =N28 -> 0 | G35: 0 | H35: 0 | I35: 0 | J35: Prozess | K35: =$F$14 -> 0
B46: Prozessname | D46: Energieversorgung | F46: Betriebstage
G47: d/a
B50: Auswählen: | D50: Bad- Oberfläche | F50: Bad- Volumen | H50: Bad- Temperatur | J50: Vollaststunden pro Jahr | L50: Oberflächen- verluste | N50: Energieverluste pro Jahr
C51: =IF(B51="Bad ohne Sprudel, ohne Absaugung",2,(IF(B51="Bad ohne Sprudel, mit Absaugung",3,(IF(B51="Bad mit Sprudel, mit Absaugung",4,""))))) ->  | E51: m² | G51: m³ | I51: °C | K51: h/a | L51: =VLOOKUP(H51,Listen!$A$28:$D$43,C51,FALSE) ->  | M51: W/m² | N51: =L51*D51*J51/1000 ->  | O51: kWh/a
B54: Auswählen: | D54: Start- Temperatur | F54: End- Temperatur | H54: Anzahl der Vorgänge pro Jahr | J54: Dauer eines Vorganges | N54: Energieverbrauch pro Jahr
E55: °C | G55: °C | I55: # | K55: h | N55: =(F51*1000/3600)*4.19*(F55-D55)*J55*H55 -> 0 | O55: kWh/a
N56: =SUM(IFERROR(N51+N55,0)) -> 0 | O56: kWh/a
B58: Auswählen: | D58: Wärmerück- gewinnung | F58: Abwärme- Temperatur | H58: spez. Wärmekapazität | J58: spez. Wärmekapazität Feuchter Luft berechnen | L58: relativer Feuchtegehalt | N58: Abkühl- Temperatur | P58: Massenstrom | R58: Vollaststunden pro Jahr
G59: °C | I59: kJ/(kg.K) | M59: % | O59: °C | Q59: kg/s | S59: h/a
G60: °C | I60: kJ/(kg.K) | M60: % | O60: °C | Q60: kg/s | S60: h/a
G61: °C | I61: kJ/(kg.K) | M61: % | O61: °C | Q61: kg/s | S61: h/a
B63: Für Pinch Liste (versteckt)
B64: (das ist die erste Zelle / erste Spalte) | D64: Use in Pinch List | E64: start T | F64: end T | G64: m | H64: cp | I64: h | J64: P/U | K64: d/y
B65: 1 | C65: =(B47&" "&"Temperatur halten") -> Temperatur halten | D65: =IF(H51="",0,1) -> 0 | E65: =H51-1.5 -> -1.5 | F65: =H51+1.5 -> 1.5 | G65: =F51*1000/3600 -> 0 | H65: 4.19 | I65: =J51 -> 0 | J65: Prozess | K65: =$F$47 -> 0
B66: 2 | C66: =(B47&" "&"aufheizen") -> aufheizen | D66: =IF(B55="Aufheizvorgang vernachlässigen",0,(IF(B55="Aufheizvorgang definieren",1,0))) -> 0 | E66: =D55 -> 0 | F66: =F55 -> 0 | G66: =F51*1000/3600 -> 0 | H66: 4.19 | I66: =H55*J55 -> 0 | J66: Prozess | K66: =$F$47 -> 0
B67: 3 | C67: =(B47&" "&B59) ->  | D67: =IF(B59="",0,1) -> 0 | E67: =F59 -> 0 | F67: =N59 -> 0 | G67: =P59 -> 0 | H67: =H59 -> 0 | I67: =R59 -> 0 | J67: Prozess | K67: 0
B68: 4 | C68: =(B47&" "&B60) ->  | D68: =IF(B60="",0,1) -> 0 | E68: =F60 -> 0 | F68: =N60 -> 0 | G68: =P60 -> 0 | H68: =H60 -> 0 | I68: =R60 -> 0 | J68: Prozess | K68: 0
B69: 5 | C69: =(B48&" "&B61) ->  | D69: =IF(B60="",0,1) -> 0 | E69: =H60 -> 0 | F69: =N61 -> 0 | G69: =P61 -> 0 | H69: =H61 -> 0 | I69: =R61 -> 0 | J69: Prozess | K69: 0
B81: Prozessname | D81: Energieversorgung | F81: Betriebstage
G82: d/a
B85: Auswählen: | D85: Bad- Oberfläche | F85: Bad- Volumen | H85: Bad- Temperatur | J85: Vollaststunden pro Jahr | L85: Oberflächen- verluste | N85: Energieverluste pro Jahr
C86: =IF(B86="Bad ohne Sprudel, ohne Absaugung",2,(IF(B86="Bad ohne Sprudel, mit Absaugung",3,(IF(B86="Bad mit Sprudel, mit Absaugung",4,""))))) ->  | E86: m² | G86: m³ | I86: °C | K86: h/a | L86: =VLOOKUP(H86,Listen!$A$28:$D$43,C86,FALSE) ->  | M86: W/m² | N86: =L86*D86*J86/1000 ->  | O86: kWh/a
B89: Auswählen: | D89: Start- Temperatur | F89: End- Temperatur | H89: Anzahl der Vorgänge pro Jahr | J89: Dauer eines Vorganges | N89: Energieverbrauch pro Jahr
E90: °C | G90: °C | I90: # | K90: h | N90: =(F86*1000/3600)*4.19*(F90-D90)*J90*H90 -> 0 | O90: kWh/a
N91: =SUM(IFERROR(N86+N90,0)) -> 0 | O91: kWh/a
B93: Auswählen: | D93: Wärmerück- gewinnung | F93: Abwärme- Temperatur | H93: spez. Wärmekapazität | J93: spez. Wärmekapazität Feuchter Luft berechnen | L93: relativer Feuchtegehalt | N93: Abkühl- Temperatur | P93: Massenstrom | R93: Vollaststunden pro Jahr
G94: °C | I94: kJ/(kg.K) | M94: % | O94: °C | Q94: kg/s | S94: h/a
G95: °C | I95: kJ/(kg.K) | M95: % | O95: °C | Q95: kg/s | S95: h/a
G96: °C | I96: kJ/(kg.K) | M96: % | O96: °C | Q96: kg/s | S96: h/a
B97: Für Pinch Liste (versteckt)
B98: (das ist die erste Zelle / erste Spalte) | D98: Use in Pinch List | E98: start T | F98: end T | G98: m | H98: cp | I98: h | J98: P/U | K98: d/y
B99: 1 | C99: =(B82&" "&"Temperatur halten") -> Temperatur halten | D99: =IF(H86="",0,1) -> 0 | E99: =H86-1.5 -> -1.5 | F99: =H86+1.5 -> 1.5 | G99: =F86*1000/3600 -> 0 | H99: 4.19 | I99: =J86 -> 0 | J99: Prozess | K99: =$F$82 -> 0
B100: 2 | C100: =(B82&" "&"aufheizen") -> aufheizen | D100: =IF(B90="Aufheizvorgang vernachlässigen",0,(IF(B90="Aufheizvorgang definieren",1,0))) -> 0 | E100: =D90 -> 0 | F100: =F90 -> 0 | G100: =F86*1000/3600 -> 0 | H100: 4.19 | I100: =H90*J90 -> 0 | J100: Prozess | K100: =$F$82 -> 0
B101: 3 | C101: =(B82&" "&B94) ->  | D101: =IF(B94="",0,1) -> 0 | E101: =F94 -> 0 | F101: =N94 -> 0 | G101: =P94 -> 0 | H101: =H94 -> 0 | I101: =R94 -> 0 | J101: Prozess | K101: 0
B102: 4 | C102: =(B82&" "&B95) ->  | D102: =IF(B95="",0,1) -> 0 | E102: =F95 -> 0 | F102: =N95 -> 0 | G102: =P95 -> 0 | H102: =H95 -> 0 | I102: =R95 -> 0 | J102: Prozess | K102: 0
B103: 5 | C103: =(B83&" "&B96) ->  | D103: =IF(B96="",0,1) -> 0 | E103: =F96 -> 0 | F103: 0 | G103: 0 | H103: 0 | I103: 0 | J103: Prozess | K103: 0
B115: Prozessname | D115: Energieversorgung | F115: Betriebstage
G116: d/a
B119: Auswählen: | D119: Bad- Oberfläche | F119: Bad- Volumen | H119: Bad- Temperatur | J119: Vollaststunden pro Jahr | L119: Oberflächen- verluste | N119: Energieverluste pro Jahr
C120: =IF(B120="Bad ohne Sprudel, ohne Absaugung",2,(IF(B120="Bad ohne Sprudel, mit Absaugung",3,(IF(B120="Bad mit Sprudel, mit Absaugung",4,""))))) ->  | E120: m² | G120: m³ | I120: °C | K120: h/a | L120: =VLOOKUP(H120,Listen!$A$28:$D$43,C120,FALSE) ->  | M120: W/m² | N120: =L120*D120*J120/1000 ->  | O120: kWh/a
B123: Auswählen: | D123: Start- Temperatur | F123: End- Temperatur | H123: Anzahl der Vorgänge pro Jahr | J123: Dauer eines Vorganges | N123: Energieverbrauch pro Jahr
E124: °C | G124: °C | I124: # | K124: h | N124: =(F120*1000/3600)*4.19*(F124-D124)*J124*H124 -> 0 | O124: kWh/a
N125: =SUM(IFERROR(N120+N124,0)) -> 0 | O125: kWh/a
B127: Auswählen: | D127: Wärmerück- gewinnung | F127: Abwärme- Temperatur | H127: spez. Wärmekapazität | J127: spez. Wärmekapazität Feuchter Luft berechnen | L127: relativer Feuchtegehalt | N127: Abkühl- Temperatur | P127: Massenstrom | R127: Vollaststunden pro Jahr
G128: °C | I128: kJ/(kg.K) | M128: % | O128: °C | Q128: kg/s | S128: h/a
G129: °C | I129: kJ/(kg.K) | M129: % | O129: °C | Q129: kg/s | S129: h/a
G130: °C | I130: kJ/(kg.K) | M130: % | O130: °C | Q130: kg/s | S130: h/a
B131: Für Pinch Liste (versteckt)
B132: (das ist die erste Zelle / erste Spalte) | D132: Use in Pinch List | E132: start T | F132: end T | G132: m | H132: cp | I132: h | J132: P/U | K132: d/y
B133: 1 | C133: =(B116&" "&"Temperatur halten") -> Temperatur halten | D133: =IF(H120="",0,1) -> 0 | E133: =H120-1.5 -> -1.5 | F133: =H120+1.5 -> 1.5 | G133: =F120*1000/3600 -> 0 | H133: 4.19 | I133: =J120 -> 0 | J133: Prozess | K133: =$F$116 -> 0
B134: 2 | C134: =(B116&" "&"aufheizen") -> aufheizen | D134: =IF(B124="Aufheizvorgang vernachlässigen",0,(IF(B124="Aufheizvorgang definieren",1,0))) -> 0 | E134: =D124 -> 0 | F134: =F124 -> 0 | G134: =F120*1000/3600 -> 0 | H134: 4.19 | I134: =H124*J124 -> 0 | J134: Prozess | K134: =$F$116 -> 0
B135: 3 | C135: =(B116&" "&B128) ->  | D135: =IF(B128="",0,1) -> 0 | E135: =F128 -> 0 | F135: =N128 -> 0 | G135: =P128 -> 0 | H135: =H128 -> 0 | I135: =R128 -> 0 | J135: Prozess | K135: 0
B136: 4 | C136: =(B116&" "&B129) ->  | D136: =IF(B129="",0,1) -> 0 | E136: =F129 -> 0 | F136: =N129 -> 0 | G136: =P129 -> 0 | H136: =H129 -> 0 | I136: =R129 -> 0 | J136: Prozess | K136: 0
B137: 5 | C137: =(B117&" "&B130) ->  | D137: =IF(B130="",0,1) -> 0 | E137: 0 | F137: 0 | G137: 0 | H137: 0 | I137: 0 | J137: Prozess | K137: 0
B149: Prozessname | D149: Energieversorgung | F149: Betriebstage
G150: d/a
B153: Auswählen: | D153: Bad- Oberfläche | F153: Bad- Volumen | H153: Bad- Temperatur | J153: Vollaststunden pro Jahr | L153: Oberflächen- verluste | N153: Energieverluste pro Jahr
C154: =IF(B154="Bad ohne Sprudel, ohne Absaugung",2,(IF(B154="Bad ohne Sprudel, mit Absaugung",3,(IF(B154="Bad mit Sprudel, mit Absaugung",4,""))))) ->  | E154: m² | G154: m³ | I154: °C | K154: h/a | L154: =VLOOKUP(H154,Listen!$A$28:$D$43,C154,FALSE) ->  | M154: W/m² | N154: =L154*D154*J154/1000 ->  | O154: kWh/a
B157: Auswählen: | D157: Start- Temperatur | F157: End- Temperatur | H157: Anzahl der Vorgänge pro Jahr | J157: Dauer eines Vorganges | N157: Energieverbrauch pro Jahr
E158: °C | G158: °C | I158: # | K158: h | N158: =(F154*1000/3600)*4.19*(F158-D158)*J158*H158 -> 0 | O158: kWh/a
N159: =SUM(IFERROR(N154+N158,0)) -> 0 | O159: kWh/a
B161: Auswählen: | D161: Wärmerück- gewinnung | F161: Abwärme- Temperatur | H161: spez. Wärmekapazität | J161: spez. Wärmekapazität Feuchter Luft berechnen | L161: relativer Feuchtegehalt | N161: Abkühl- Temperatur | P161: Massenstrom | R161: Vollaststunden pro Jahr
G162: °C | I162: kJ/(kg.K) | M162: % | O162: °C | Q162: kg/s | S162: h/a
G163: °C | I163: kJ/(kg.K) | M163: % | O163: °C | Q163: kg/s | S163: h/a
G164: °C | I164: kJ/(kg.K) | M164: % | O164: °C | Q164: kg/s | S164: h/a
B165: Für Pinch Liste (versteckt)
B166: (das ist die erste Zelle / erste Spalte) | D166: Use in Pinch List | E166: start T | F166: end T | G166: m | H166: cp | I166: h | J166: P/U | K166: d/y
B167: 1 | C167: =(B150&" "&"Temperatur halten") -> Temperatur halten | D167: =IF(H154="",0,1) -> 0 | E167: =H154-1.5 -> -1.5 | F167: =H154+1.5 -> 1.5 | G167: =F154*1000/3600 -> 0 | H167: 4.19 | I167: =J154 -> 0 | J167: Prozess | K167: =$F$150 -> 0
B168: 2 | C168: =(B150&" "&"aufheizen") -> aufheizen | D168: =IF(B158="Aufheizvorgang vernachlässigen",0,(IF(B158="Aufheizvorgang definieren",1,0))) -> 0 | E168: =D158 -> 0 | F168: =F158 -> 0 | G168: =F154*1000/3600 -> 0 | H168: 4.19 | I168: =H158*J158 -> 0 | J168: Prozess | K168: =$F$150 -> 0
B169: 3 | C169: =(B150&" "&B162) ->  | D169: =IF(B162="",0,1) -> 0 | E169: =F162 -> 0 | F169: =N162 -> 0 | G169: =P162 -> 0 | H169: =H162 -> 0 | I169: =R162 -> 0 | J169: Prozess | K169: 0
B170: 4 | C170: =(B150&" "&B163) ->  | D170: =IF(B163="",0,1) -> 0 | E170: =F163 -> 0 | F170: =N163 -> 0 | G170: =P163 -> 0 | H170: =H163 -> 0 | I170: =R163 -> 0 | J170: Prozess | K170: 0
B171: 5 | C171: =(B151&" "&B164) ->  | D171: =IF(B164="",0,1) -> 0 | E171: 0 | F171: 0 | G171: 0 | H171: 0 | I171: 0 | J171: Prozess | K171: 0

Sheet Galvanikbad_Kühlen
B13: Prozessname | D13: Energieversorgung | F13: Betriebstage
G14: d/a
B17: Auswählen: | D17: Start- Temperatur | F17: End- Temperatur | H17: Bad- Volumen | J17: Vollaststunden pro Jahr | L17: Anzahl der Vorgänge pro Jahr | N17: Dauer eines Vorganges | P17: Energieverbrauch pro Jahr
E18: °C | G18: °C | I18: m³ | K18: h/a | M18: # | O18: h | P18: =IF(B18="Diskontinuierlich",((H18*1000/3600)*4.19*(D18-F18)*N18*L18),(IF(B18="Kontinuierlich",((H18*1000/3600)*4.19*(D18-F18)*J18),""))) ->  | Q18: kWh/a
E19: °C | G19: °C | I19: m³ | K19: h/a | M19: # | O19: h | P19: =IF(B19="Diskontinuierlich",((H19*1000/3600)*4.19*(D19-F19)*N19*L19),(IF(B19="Kontinuierlich",((H19*1000/3600)*4.19*(D19-F19)*J19),""))) ->  | Q19: kWh/a
P20: =SUM(IFERROR(P18:P19,0)) -> 0 | Q20: kWh/a
B22: Auswählen: | D22: Wärmerück- gewinnung | F22: Abwärme- Temperatur | H22: spez. Wärmekapazität | J22: spez. Wärmekapazität Feuchter Luft berechnen | L22: relativer Feuchtegehalt | N22: Abkühl- Temperatur | P22: Massenstrom | R22: Vollaststunden pro Jahr
G23: °C | I23: kJ/(kg.K) | M23: % | O23: °C | Q23: kg/s | S23: h/a
G24: °C | I24: kJ/(kg.K) | M24: % | O24: °C | Q24: kg/s | S24: h/a
G25: °C | I25: kJ/(kg.K) | M25: % | O25: °C | Q25: kg/s | S25: h/a
B27: Für Pinch Liste (versteckt)
B28: (das ist die erste Zelle / erste Spalte) | D28: Use in Pinch List | E28: start T | F28: end T | G28: m | H28: cp | I28: h | J28: P/U | K28: d/y
B29: 1 | C29: =(B14&" "&B18) ->  | D29: =IF(B18="",0,1) -> 0 | E29: =D18 -> 0 | F29: =F18 -> 0 | G29: =H18*1000/3600 -> 0 | H29: 4.19 | I29: =IF(B18="Kontinuierlich",J18,(IF(B18="Diskontinuierlich",L18*N18,0))) -> 0 | J29: Prozess | K29: =$F$14 -> 0
B30: 2 | C30: =(B14&" "&B19) ->  | D30: =IF(B19="",0,1) -> 0 | E30: =D19 -> 0 | F30: =F19 -> 0 | G30: =H19*1000/3600 -> 0 | H30: 4.19 | I30: =IF(B19="Kontinuierlich",J19,(IF(B19="Diskontinuierlich",L19*N19,0))) -> 0 | J30: Prozess | K30: =$F$14 -> 0
B31: 3 | C31: =(B14&" "&B23) ->  | D31: =IF(B23="",0,1) -> 0 | E31: =F23 -> 0 | F31: =N23 -> 0 | G31: =P23 -> 0 | H31: =H23 -> 0 | I31: =R23 -> 0 | J31: Prozess | K31: =$F$14 -> 0
B32: 4 | C32: =(B14&" "&B24) ->  | D32: =IF(B24="",0,1) -> 0 | E32: =F24 -> 0 | F32: =N24 -> 0 | G32: =P24 -> 0 | H32: =H24 -> 0 | I32: =R24 -> 0 | J32: Prozess | K32: =$F$14 -> 0
B33: 5 | C33: =(B15&" "&B25) ->  | D33: =IF(B25="",0,1) -> 0 | E33: 0 | F33: 0 | G33: 0 | H33: 0 | I33: 0 | J33: Prozess | K33: 0
B47: Prozessname | D47: Energieversorgung | F47: Betriebstage
G48: d/a
B51: Auswählen: | D51: Start- Temperatur | F51: End- Temperatur | H51: Bad- Volumen | J51: Vollaststunden pro Jahr | L51: Anzahl der Vorgänge pro Tag | N51: Dauer eines Vorganges | P51: Energieverbrauch pro Jahr
E52: °C | G52: °C | I52: m³ | K52: h/a | M52: # | O52: h | P52: =IF(B52="Diskontinuierlich",((H52*1000/3600)*4.19*(D52-F52)*N52*L52),(IF(B52="Kontinuierlich",((H52*1000/3600)*4.19*(D52-F52)*J52),""))) ->  | Q52: kWh/a
E53: °C | G53: °C | I53: m³ | K53: h/a | M53: # | O53: h | P53: =IF(B53="Diskontinuierlich",((H53*1000/3600)*4.19*(D53-F53)*N53*L53),(IF(B53="Kontinuierlich",((H53*1000/3600)*4.19*(D53-F53)*J53),""))) ->  | Q53: kWh/a
P54: =SUM(IFERROR(P52:P53,0)) -> 0 | Q54: kWh/a
B56: Auswählen: | D56: Wärmerück- gewinnung | F56: Abwärme- Temperatur | H56: spez. Wärmekapazität | J56: spez. Wärmekapazität Feuchter Luft berechnen | L56: relativer Feuchtegehalt | N56: Abkühl- Temperatur | P56: Massenstrom | R56: Vollaststunden pro Jahr
G57: °C | I57: kJ/(kg.K) | M57: % | O57: °C | Q57: kg/s | S57: h/a
G58: °C | I58: kJ/(kg.K) | M58: % | O58: °C | Q58: kg/s | S58: h/a
G59: °C | I59: kJ/(kg.K) | M59: % | O59: °C | Q59: kg/s | S59: h/a
B61: Für Pinch Liste (versteckt)
B62: (das ist die erste Zelle / erste Spalte) | D62: Use in Pinch List | E62: start T | F62: end T | G62: m | H62: cp | I62: h | J62: P/U | K62: d/y
B63: 1 | C63: =(B48&" "&B52) ->  | D63: =IF(B52="",0,1) -> 0 | E63: =D52 -> 0 | F63: =F52 -> 0 | G63: =H52*1000/3600 -> 0 | H63: 4.19 | I63: =IF(B52="Kontinuierlich",J52*$F$48,(IF(B52="Diskontinuierlich",L52*N52*$F$48,0))) -> 0 | J63: Prozess | K63: =$F$48 -> 0
B64: 2 | C64: =(B48&" "&B53) ->  | D64: =IF(B53="",0,1) -> 0 | E64: =D53 -> 0 | F64: =F53 -> 0 | G64: =H53*1000/3600 -> 0 | H64: 4.19 | I64: =IF(B53="Kontinuierlich",J53*$F$48,(IF(B53="Diskontinuierlich",L53*N53*$F$48,0))) -> 0 | J64: Prozess | K64: =$F$48 -> 0
B65: 3 | C65: =(B48&" "&B57) ->  | D65: =IF(B57="",0,1) -> 0 | E65: =F57 -> 0 | F65: =N57 -> 0 | G65: =P57 -> 0 | H65: =H57 -> 0 | I65: =R57 -> 0 | J65: Prozess | K65: =$F$48 -> 0
B66: 4 | C66: =(B48&" "&B58) ->  | D66: =IF(B58="",0,1) -> 0 | E66: =F58 -> 0 | F66: =N58 -> 0 | G66: =P58 -> 0 | H66: =H58 -> 0 | I66: =R58 -> 0 | J66: Prozess | K66: =$F$48 -> 0
B67: 5 | C67: =(B49&" "&B59) ->  | D67: =IF(B59="",0,1) -> 0 | E67: =F59 -> 0 | F67: 0 | G67: 0 | H67: 0 | I67: 0 | J67: Prozess | K67: 0
B81: Prozessname | D81: Energieversorgung | F81: Betriebstage
G82: d/a
B85: Auswählen: | D85: Start- Temperatur | F85: End- Temperatur | H85: Bad- Volumen | J85: Vollaststunden pro Jahr | L85: Anzahl der Vorgänge pro Tag | N85: Dauer eines Vorganges | P85: Energieverbrauch pro Jahr
E86: °C | G86: °C | I86: m³ | K86: h/a | M86: # | O86: h | P86: =IF(B86="Diskontinuierlich",((H86*1000/3600)*4.19*(D86-F86)*N86*L86),(IF(B86="Kontinuierlich",((H86*1000/3600)*4.19*(D86-F86)*J86),""))) ->  | Q86: kWh/a
E87: °C | G87: °C | I87: m³ | K87: h/a | M87: # | O87: h | P87: =IF(B87="Diskontinuierlich",((H87*1000/3600)*4.19*(D87-F87)*N87*L87),(IF(B87="Kontinuierlich",((H87*1000/3600)*4.19*(D87-F87)*J87),""))) ->  | Q87: kWh/a
P88: =SUM(IFERROR(P86:P87,0)) -> 0 | Q88: kWh/a
B90: Auswählen: | D90: Wärmerück- gewinnung | F90: Abwärme- Temperatur | H90: spez. Wärmekapazität | J90: spez. Wärmekapazität Feuchter Luft berechnen | L90: relativer Feuchtegehalt | N90: Abkühl- Temperatur | P90: Massenstrom | R90: Vollaststunden pro Jahr
G91: °C | I91: kJ/(kg.K) | M91: % | O91: °C | Q91: kg/s | S91: h/a
G92: °C | I92: kJ/(kg.K) | M92: % | O92: °C | Q92: kg/s | S92: h/a
G93: °C | I93: kJ/(kg.K) | M93: % | O93: °C | Q93: kg/s | S93: h/a
B95: Für Pinch Liste (versteckt)
B96: (das ist die erste Zelle / erste Spalte) | D96: Use in Pinch List | E96: start T | F96: end T | G96: m | H96: cp | I96: h | J96: P/U | K96: d/y
B97: 1 | C97: =(B82&" "&B86) ->  | D97: =IF(B86="",0,1) -> 0 | E97: =D86 -> 0 | F97: =F86 -> 0 | G97: =H86*1000/3600 -> 0 | H97: 4.19 | I97: =IF(B86="Kontinuierlich",J86*$F$82,(IF(B86="Diskontinuierlich",L86*N86*$F$82,0))) -> 0 | J97: Prozess | K97: =$F$82 -> 0
B98: 2 | C98: =(B82&" "&B87) ->  | D98: =IF(B87="",0,1) -> 0 | E98: =D87 -> 0 | F98: =F87 -> 0 | G98: =H87*1000/3600 -> 0 | H98: 4.19 | I98: =IF(B87="Kontinuierlich",J87*$F$82,(IF(B87="Diskontinuierlich",L87*N87*$F$82,0))) -> 0 | J98: Prozess | K98: =$F$82 -> 0
B99: 3 | C99: =(B82&" "&B91) ->  | D99: =IF(B91="",0,1) -> 0 | E99: =F91 -> 0 | F99: =N91 -> 0 | G99: =P91 -> 0 | H99: =H91 -> 0 | I99: =R91 -> 0 | J99: Prozess | K99: =$F$82 -> 0
B100: 4 | C100: =(B82&" "&B92) ->  | D100: =IF(B92="",0,1) -> 0 | E100: =F92 -> 0 | F100: =N92 -> 0 | G100: =P92 -> 0 | H100: =H92 -> 0 | I100: =R92 -> 0 | J100: Prozess | K100: =$F$82 -> 0
B101: 5 | C101: =(B83&" "&B93) ->  | D101: =IF(B93="",0,1) -> 0 | E101: 0 | F101: 0 | G101: 0 | H101: 0 | I101: 0 | J101: Prozess | K101: 0
B115: Prozessname | D115: Energieversorgung | F115: Betriebstage
G116: d/a
B119: Auswählen: | D119: Start- Temperatur | F119: End- Temperatur | H119: Bad- Volumen | J119: Vollaststunden pro Jahr | L119: Anzahl der Vorgänge pro Tag | N119: Dauer eines Vorganges | P119: Energieverbrauch pro Jahr
E120: °C | G120: °C | I120: m³ | K120: h/a | M120: # | O120: h | P120: =IF(B120="Diskontinuierlich",((H120*1000/3600)*4.19*(D120-F120)*N120*L120),(IF(B120="Kontinuierlich",((H120*1000/3600)*4.19*(D120-F120)*J120),""))) ->  | Q120: kWh/a
E121: °C | G121: °C | I121: m³ | K121: h/a | M121: # | O121: h | P121: =IF(B121="Diskontinuierlich",((H121*1000/3600)*4.19*(D121-F121)*N121*L121),(IF(B121="Kontinuierlich",((H121*1000/3600)*4.19*(D121-F121)*J121),""))) ->  | Q121: kWh/a
P122: =SUM(IFERROR(P120:P121,0)) -> 0 | Q122: kWh/a
B124: Auswählen: | D124: Wärmerück- gewinnung | F124: Abwärme- Temperatur | H124: spez. Wärmekapazität | J124: spez. Wärmekapazität Feuchter Luft berechnen | L124: relativer Feuchtegehalt | N124: Abkühl- Temperatur | P124: Massenstrom | R124: Vollaststunden pro Jahr
G125: °C | I125: kJ/(kg.K) | M125: % | O125: °C | Q125: kg/s | S125: h/a
G126: °C | I126: kJ/(kg.K) | M126: % | O126: °C | Q126: kg/s | S126: h/a
G127: °C | I127: kJ/(kg.K) | M127: % | O127: °C | Q127: kg/s | S127: h/a
B129: Für Pinch Liste (versteckt)
B130: (das ist die erste Zelle / erste Spalte) | D130: Use in Pinch List | E130: start T | F130: end T | G130: m | H130: cp | I130: h | J130: P/U | K130: d/y
B131: 1 | C131: =(B116&" "&B120) ->  | D131: =IF(B120="",0,1) -> 0 | E131: =D120 -> 0 | F131: =F120 -> 0 | G131: =H120*1000/3600 -> 0 | H131: 4.19 | I131: =IF(B120="Kontinuierlich",J120*$F$116,(IF(B120="Diskontinuierlich",L120*N120*$F$116,0))) -> 0 | J131: Prozess | K131: =$F$116 -> 0
B132: 2 | C132: =(B116&" "&B121) ->  | D132: =IF(B121="",0,1) -> 0 | E132: =D121 -> 0 | F132: =F121 -> 0 | G132: =H121*1000/3600 -> 0 | H132: 4.19 | I132: =IF(B121="Kontinuierlich",J121*$F$116,(IF(B121="Diskontinuierlich",L121*N121*$F$116,0))) -> 0 | J132: Prozess | K132: =$F$116 -> 0
B133: 3 | C133: =(B116&" "&B125) ->  | D133: =IF(B125="",0,1) -> 0 | E133: =F125 -> 0 | F133: =N125 -> 0 | G133: =P125 -> 0 | H133: =H125 -> 0 | I133: =R125 -> 0 | J133: Prozess | K133: =$F$116 -> 0
B134: 4 | C134: =(B116&" "&B126) ->  | D134: =IF(B126="",0,1) -> 0 | E134: =F126 -> 0 | F134: =N126 -> 0 | G134: =P126 -> 0 | H134: =H126 -> 0 | I134: =R126 -> 0 | J134: Prozess | K134: =$F$116 -> 0
B135: 5 | C135: =(B117&" "&B127) ->  | D135: =IF(B127="",0,1) -> 0 | E135: 0 | F135: 0 | G135: 0 | H135: 0 | I135: 0 | J135: Prozess | K135: =$F$116 -> 0
B149: Prozessname | D149: Energieversorgung | F149: Betriebstage
G150: d/a
B153: Auswählen: | D153: Start- Temperatur | F153: End- Temperatur | H153: Bad- Volumen | J153: Vollaststunden pro Jahr | L153: Anzahl der Vorgänge pro Tag | N153: Dauer eines Vorganges | P153: Energieverbrauch pro Jahr
E154: °C | G154: °C | I154: m³ | K154: h/a | M154: # | O154: h | P154: =IF(B154="Diskontinuierlich",((H154*1000/3600)*4.19*(D154-F154)*N154*L154),(IF(B154="Kontinuierlich",((H154*1000/3600)*4.19*(D154-F154)*J154),""))) ->  | Q154: kWh/a
E155: °C | G155: °C | I155: m³ | K155: h/a | M155: # | O155: h | P155: =IF(B155="Diskontinuierlich",((H155*1000/3600)*4.19*(D155-F155)*N155*L155),(IF(B155="Kontinuierlich",((H155*1000/3600)*4.19*(D155-F155)*J155),""))) ->  | Q155: kWh/a
P156: =SUM(IFERROR(P154:P155,0)) -> 0 | Q156: kWh/a
B158: Auswählen: | D158: Wärmerück- gewinnung | F158: Abwärme- Temperatur | H158: spez. Wärmekapazität | J158: spez. Wärmekapazität Feuchter Luft berechnen | L158: relativer Feuchtegehalt | N158: Abkühl- Temperatur | P158: Massenstrom | R158: Vollaststunden pro Jahr
G159: °C | I159: kJ/(kg.K) | M159: % | O159: °C | Q159: kg/s | S159: h/a
G160: °C | I160: kJ/(kg.K) | M160: % | O160: °C | Q160: kg/s | S160: h/a
G161: °C | I161: kJ/(kg.K) | M161: % | O161: °C | Q161: kg/s | S161: h/a
B163: Für Pinch Liste (versteckt)
B164: (das ist die erste Zelle / erste Spalte) | D164: Use in Pinch List | E164: start T | F164: end T | G164: m | H164: cp | I164: h | J164: P/U | K164: d/y
B165: 1 | C165: =(B150&" "&B154) ->  | D165: =IF(B154="",0,1) -> 0 | E165: =D154 -> 0 | F165: =F154 -> 0 | G165: =H154*1000/3600 -> 0 | H165: 4.19 | I165: =IF(B154="Kontinuierlich",J154*$F$150,(IF(B154="Diskontinuierlich",L154*N154*$F$150,0))) -> 0 | J165: Prozess | K165: =$F$150 -> 0
B166: 2 | C166: =(B150&" "&B155) ->  | D166: =IF(B155="",0,1) -> 0 | E166: =D155 -> 0 | F166: =F155 -> 0 | G166: =H155*1000/3600 -> 0 | H166: 4.19 | I166: =IF(B155="Kontinuierlich",J155*$F$150,(IF(B155="Diskontinuierlich",L155*N155*$F$150,0))) -> 0 | J166: Prozess | K166: =$F$150 -> 0
B167: 3 | C167: =(B150&" "&B159) ->  | D167: =IF(B159="",0,1) -> 0 | E167: =F159 -> 0 | F167: =N159 -> 0 | G167: =P159 -> 0 | H167: =H159 -> 0 | I167: =R159 -> 0 | J167: Prozess | K167: =$F$150 -> 0
B168: 4 | C168: =(B150&" "&B160) ->  | D168: =IF(B160="",0,1) -> 0 | E168: =F160 -> 0 | F168: =N160 -> 0 | G168: =P160 -> 0 | H168: =H160 -> 0 | I168: =R160 -> 0 | J168: Prozess | K168: =$F$150 -> 0
B169: 5 | C169: =(B151&" "&B161) ->  | D169: =IF(B161="",0,1) -> 0 | E169: 0 | F169: 0 | G169: 0 | H169: 0 | I169: 0 | J169: Prozess | K169: =$F$150 -> 0

Sheet Prozessoptimierung_FreieBranche
C12: Klicken Sie auf den "Optimieren" Button um in das EnPro WikiWeb zu gelangen in welchem Sie Möglichkeiten zur Optimierung von industriellen Prozessen erhalten.

Sheet Prozessoptimierung_Metall (hidden)
C11: Vorbehandlung | D11: Entsiegelung
D12: Spülen
D13: Entfettung
D14: Heißentfettung
D15: Elektrolytische Entfettung
D16: Dekapieren
C18: Hauptbehandlung | D18: Verzinken
D19: Verkupfern
D20: Verchromen
C22: Nachbehandlung | D22: Aufhellung
D23: Dickschichtpassivierung
D24: Versiegelung
D25: Trocknung
C27: Allgemein | D27: Raumwärme
D28: Raumkühlung

Sheet Prozessoptimierung_Lebensmittel (hidden)
D11: Backen
D12: Pasteurisierung
D13: Verdampfung
D14: Trocknung
D15: Blanchieren
D16: Brauen
D17: Kochen
D18: Reinigung
C20: Allgemein | D20: Raumwärme
D21: Raumkühlung

Sheet Prozessoptimierung_Dämmstoffe (hidden)
D11: Polymerisation (Aufschäumen)
C27: Allgemein | D27: Raumwärme
D28: Raumkühlung

Sheet Prozessoptimierung_Wäscherei (hidden)
D11: Waschen und Reinigen
D12: Trocknung
C27: Allgemein | D27: Raumwärme
D28: Raumkühlung

Sheet Prozessoptimierung_Papier (hidden)
D11: Entwässern
D12: Pressen
D13: Trocknen
D14: Leimpressen
C27: Allgemein | D27: Raumwärme
D28: Raumkühlung

Sheet 01_StromListe
IQ6: dTmin for Hot and Cold Composite Curves
AI7: T CCC MIN | AJ7: =MIN(IF(($V$11:$V$110="Prozess") * ($G$11:$G$110="cold") * ($AA$11:$AA$110=1),$E$11:$E$110)) -> 0 | AK7: °C | AM7: Csum | AO7: =SUM(AO11:AO110) -> 0 | AP7: =SUM(AP11:AP110) -> 0 | AQ7: =SUM(AQ11:AQ110) -> 0 | AR7: =SUM(AR11:AR110) -> 0 | AS7: 0 | AT7: 0 | AU7: 0 | AV7: 0 | AW7: 0 | AX7: 0 | AY7: 0 | AZ7: 0 | BA7: 0 | BB7: 0 | BC7: 0 | BD7: 0 | BE7: 0 | BF7: =SUM(BF11:BF110) -> 0 | BG7: 0 | BH7: 0 | BI7: 0 | BJ7: 0 | BK7: 0 | BL7: 0 | BM7: 0 | BN7: 0 | BO7: 0 | BP7: 0 | BQ7: 0 | BR7: 0 | BS7: 0 | BT7: 0 | BU7: 0 | BV7: 0 | BW7: 0 | BX7: 0 | BY7: 0 | BZ7: 0 | CA7: 0 | CB7: 0 | CC7: 0 | CD7: 0 | CE7: 0 | CF7: 0 | CG7: 0 | CH7: 0 | CI7: 0 | CJ7: 0 | CK7: 0 | CL7: 0 | CM7: 0 | CN7: 0 | CO7: 0 | CP7: 0 | CQ7: 0 | CR7: 0 | CS7: 0 | CT7: 0 | CU7: 0 | CV7: 0 | CW7: 0 | CX7: 0 | CY7: 0 | CZ7: 0 | DA7: 0 | DB7: 0 | DC7: 0 | DD7: =SUM(DD11:DD110) -> 0 | DE7: 0 | DF7: 0 | DG7: 0 | DH7: 0 | DI7: 0 | DJ7: 0 | DK7: 0 | DL7: 0 | DM7: 0 | DN7: 0 | DO7: 0 | DP7: 0 | DQ7: 0 | DR7: 0 | DS7: 0 | DT7: 0 | DU7: 0 | DV7: 0 | DW7: 0 | DX7: 0 | DY7: 0 | DZ7: 0 | EA7: 0 | EB7: 0 | EC7: 0 | ED7: 0 | EE7: 0 | EF7: 0 | EG7: 0 | EH7: 0 | EI7: 0 | EJ7: 0 | EK7: =SUM(EK11:EK110) -> 0 | EO7: Hsum | EQ7: =SUM(EQ11:EQ110) -> 0 | ER7: =SUM(ER11:ER110) -> 0 | ES7: 0 | ET7: 0 | EU7: 0 | EV7: 0 | EW7: 0 | EX7: 0 | EY7: 0 | EZ7: 0 | FA7: 0 | FB7: 0 | FC7: 0 | FD7: 0 | FE7: 0 | FF7: 0 | FG7: 0 | FH7: 0 | FI7: 0 | FJ7: 0 | FK7: 0 | FL7: 0 | FM7: 0 | FN7: 0 | FO7: 0 | FP7: 0 | FQ7: 0 | FR7: 0 | FS7: 0 | FT7: 0 | FU7: 0 | FV7: 0 | FW7: 0 | FX7: 0 | FY7: 0 | FZ7: 0 | GA7: 0 | GB7: 0 | GC7: 0 | GD7: 0 | GE7: 0 | GF7: 0 | GG7: 0 | GH7: 0 | GI7: 0 | GJ7: 0 | GK7: 0 | GL7: 0 | GM7: 0 | GN7: 0 | GO7: 0 | GP7: 0 | GQ7: 0 | GR7: 0 | GS7: 0 | GT7: 0 | GU7: 0 | GV7: 0 | GW7: 0 | GX7: 0 | GY7: 0 | GZ7: 0 | HA7: 0 | HB7: 0 | HC7: 0 | HD7: =SUM(HD11:HD110) -> 0 | HE7: 0 | HF7: 0 | HG7: 0 | HH7: 0 | HI7: 0 | HJ7: 0 | HK7: 0 | HL7: 0 | HM7: 0 | HN7: 0 | HO7: 0 | HP7: 0 | HQ7: 0 | HR7: 0 | HS7: 0 | HT7: 0 | HU7: 0 | HV7: 0 | HW7: 0 | HX7: 0 | HY7: 0 | HZ7: 0 | IA7: 0 | IB7: 0 | IC7: 0 | ID7: 0 | IE7: 0 | IF7: 0 | IG7: 0 | IH7: 0 | II7: 0 | IJ7: 0 | IK7: 0 | IL7: 0 | IM7: =SUM(IM11:IM110) -> 0
AI8: T CCC MAX | AJ8: =MAX(IF(($V$11:$V$110="Prozess") * ($G$11:$G$110="cold") * ($AA$11:$AA$110=1),$F$11:$F$110)) -> 0 | AK8: °C | AM8: Csumacc | AO8: =AO7+AN8+PinchLoadShift -> 62.4 | AP8: =AP7+AO8 -> 62.4 | AQ8: =AQ7+AP8 -> 62.4 | AR8: 62.4 | AS8: 62.4 | AT8: 62.4 | AU8: 62.4 | AV8: 62.4 | AW8: 62.4 | AX8: 62.4 | AY8: 62.4 | AZ8: 62.4 | BA8: 62.4 | BB8: 62.4 | BC8: 62.4 | BD8: 62.4 | BE8: 62.4 | BF8: 62.4 | BG8: 62.4 | BH8: 62.4 | BI8: 62.4 | BJ8: 62.4 | BK8: 62.4 | BL8: 62.4 | BM8: 62.4 | BN8: 62.4 | BO8: 62.4 | BP8: 62.4 | BQ8: 62.4 | BR8: 62.4 | BS8: 62.4 | BT8: 62.4 | BU8: 62.4 | BV8: 62.4 | BW8: 62.4 | BX8: 62.4 | BY8: 62.4 | BZ8: 62.4 | CA8: 62.4 | CB8: 62.4 | CC8: 62.4 | CD8: 62.4 | CE8: 62.4 | CF8: 62.4 | CG8: 62.4 | CH8: 62.4 | CI8: 62.4 | CJ8: 62.4 | CK8: 62.4 | CL8: 62.4 | CM8: 62.4 | CN8: 62.4 | CO8: 62.4 | CP8: 62.4 | CQ8: 62.4 | CR8: 62.4 | CS8: 62.4 | CT8: 62.4 | CU8: 62.4 | CV8: 62.4 | CW8: 62.4 | CX8: 62.4 | CY8: 62.4 | CZ8: 62.4 | DA8: 62.4 | DB8: 62.4 | DC8: =DC7+DB8 -> 62.4 | DD8: 62.4 | DE8: 62.4 | DF8: 62.4 | DG8: 62.4 | DH8: 62.4 | DI8: 62.4 | DJ8: 62.4 | DK8: 62.4 | DL8: 62.4 | DM8: 62.4 | DN8: 62.4 | DO8: 62.4 | DP8: 62.4 | DQ8: 62.4 | DR8: 62.4 | DS8: 62.4 | DT8: 62.4 | DU8: 62.4 | DV8: 62.4 | DW8: 62.4 | DX8: 62.4 | DY8: 62.4 | DZ8: 62.4 | EA8: 62.4 | EB8: 62.4 | EC8: 62.4 | ED8: 62.4 | EE8: 62.4 | EF8: 62.4 | EG8: 62.4 | EH8: 62.4 | EI8: 62.4 | EJ8: =EJ7+EI8 -> 62.4 | EK8: =EK7+EJ8 -> 62.4 | EO8: Hsumacc | EQ8: =EQ7+EP8 -> 0 | ER8: 0 | ES8: 0 | ET8: 0 | EU8: 0 | EV8: 0 | EW8: 0 | EX8: 0 | EY8: 0 | EZ8: 0 | FA8: 0 | FB8: 0 | FC8: 0 | FD8: 0 | FE8: 0 | FF8: 0 | FG8: 0 | FH8: 0 | FI8: 0 | FJ8: 0 | FK8: 0 | FL8: 0 | FM8: 0 | FN8: 0 | FO8: 0 | FP8: 0 | FQ8: 0 | FR8: 0 | FS8: 0 | FT8: 0 | FU8: 0 | FV8: 0 | FW8: 0 | FX8: 0 | FY8: 0 | FZ8: 0 | GA8: 0 | GB8: 0 | GC8: 0 | GD8: 0 | GE8: 0 | GF8: 0 | GG8: 0 | GH8: 0 | GI8: 0 | GJ8: 0 | GK8: 0 | GL8: 0 | GM8: 0 | GN8: 0 | GO8: 0 | GP8: 0 | GQ8: 0 | GR8: 0 | GS8: 0 | GT8: 0 | GU8: 0 | GV8: 0 | GW8: 0 | GX8: 0 | GY8: 0 | GZ8: 0 | HA8: 0 | HB8: 0 | HC8: =HC7+HB8 -> 0 | HD8: 0 | HE8: 0 | HF8: 0 | HG8: 0 | HH8: 0 | HI8: 0 | HJ8: 0 | HK8: 0 | HL8: 0 | HM8: 0 | HN8: 0 | HO8: 0 | HP8: 0 | HQ8: 0 | HR8: 0 | HS8: 0 | HT8: 0 | HU8: 0 | HV8: 0 | HW8: 0 | HX8: 0 | HY8: 0 | HZ8: 0 | IA8: 0 | IB8: 0 | IC8: 0 | ID8: 0 | IE8: 0 | IF8: 0 | IG8: 0 | IH8: 0 | II8: 0 | IJ8: 0 | IK8: 0 | IL8: 0 | IM8: 0 | IQ8: H | IR8: =AJ13 -> 0 | IS8: =IR8+($AJ$14-$AJ$13)/100 -> 0.624 | IT8: =IS8+($AJ$14-$AJ$13)/100 -> 1.248 | IU8: 1.872 | IV8: 2.496 | IW8: 3.12 | IX8: 3.744 | IY8: 4.368 | IZ8: 4.992 | JA8: 5.616 | JB8: 6.24 | JC8: 6.864 | JD8: 7.488 | JE8: 8.112 | JF8: 8.736 | JG8: 9.36 | JH8: 9.984 | JI8: 10.608 | JJ8: 11.232 | JK8: 11.856 | JL8: 12.48 | JM8: 13.104 | JN8: 13.728 | JO8: 14.352 | JP8: 14.976 | JQ8: 15.6 | JR8: 16.224 | JS8: 16.848 | JT8: 17.472 | JU8: 18.096 | JV8: 18.72 | JW8: 19.344 | JX8: 19.968 | JY8: 20.592 | JZ8: 21.216 | KA8: 21.84 | KB8: 22.464 | KC8: 23.088 | KD8: 23.712 | KE8: 24.336 | KF8: 24.96 | KG8: 25.584 | KH8: 26.208 | KI8: 26.832 | KJ8: 27.456 | KK8: 28.08 | KL8: 28.704 | KM8: 29.328 | KN8: 29.952 | KO8: 30.576 | KP8: 31.2 | KQ8: 31.824 | KR8: 32.448 | KS8: 33.072 | KT8: 33.696 | KU8: 34.32 | KV8: 34.944 | KW8: 35.568 | KX8: 36.192 | KY8: 36.816 | KZ8: 37.44 | LA8: 38.064 | LB8: 38.688 | LC8: 39.312 | LD8: 39.936 | LE8: 40.56 | LF8: =LE8+($AJ$14-$AJ$13)/100 -> 41.184 | LG8: 41.808 | LH8: 42.432 | LI8: 43.056 | LJ8: 43.68 | LK8: 44.304 | LL8: 44.928 | LM8: 45.552 | LN8: 46.176 | LO8: 46.8 | LP8: 47.424 | LQ8: 48.048 | LR8: 48.672 | LS8: 49.296 | LT8: 49.92 | LU8: 50.544 | LV8: 51.168 | LW8: 51.792 | LX8: 52.416 | LY8: 53.04 | LZ8: 53.664 | MA8: 54.288 | MB8: 54.912 | MC8: 55.536 | MD8: 56.16 | ME8: 56.784 | MF8: 57.408 | MG8: 58.032 | MH8: 58.656 | MI8: 59.28 | MJ8: 59.904 | MK8: 60.528 | ML8: 61.152 | MM8: 61.776 | MN8: 62.4
A9: Strom ID | B9: Heißer Strom ID | C9: Kalter Strom ID | D9: Strom Name | E9: Start- Temperatur | F9: End- Temperatur | G9: Heiß/Kalt | H9: Massenstrom | I9: spez. Wärme-kapazität | J9: m*cp (Produkt Massenstrom und spez. Wärmekapazität) | K9: Spezifische Enthalpie | L9: Leistung | N9: deleted | O9: deleted | P9: deleted | Q9: deleted | R9: Betriebstage pro Jahr | S9: Betriebsstunden pro Jahr | U9: Jährlich übertragbare Energie | V9: Prozess/ Versorgung | W9: mcp hot | X9: mcp cold | Y9: Rank of hot/cold mcp | Z9: Stream Name for sverweis | AA9: Check | AO9: =AO10+dTminActual/2 -> 0 | AP9: 0 | AQ9: 0 | AR9: 0 | AS9: 0 | AT9: 0 | AU9: 0 | AV9: 0 | AW9: 0 | AX9: 0 | AY9: 0 | AZ9: 0 | BA9: 0 | BB9: 0 | BC9: 0 | BD9: 0 | BE9: 0 | BF9: 0 | BG9: 0 | BH9: 0 | BI9: 0 | BJ9: 0 | BK9: 0 | BL9: 0 | BM9: 0 | BN9: 0 | BO9: 0 | BP9: 0 | BQ9: 0 | BR9: 0 | BS9: 0 | BT9: 0 | BU9: =BU10+dTminActual/2 -> 0 | BV9: 0 | BW9: 0 | BX9: 0 | BY9: 0 | BZ9: 0 | CA9: 0 | CB9: 0 | CC9: 0 | CD9: 0 | CE9: 0 | CF9: 0 | CG9: 0 | CH9: 0 | CI9: 0 | CJ9: 0 | CK9: 0 | CL9: 0 | CM9: 0 | CN9: 0 | CO9: 0 | CP9: 0 | CQ9: 0 | CR9: 0 | CS9: 0 | CT9: 0 | CU9: 0 | CV9: 0 | CW9: 0 | CX9: 0 | CY9: 0 | CZ9: 0 | DA9: =DA10+dTminActual/2 -> 0 | DB9: 0 | DC9: 0 | DD9: 0 | DE9: 0 | DF9: 0 | DG9: 0 | DH9: 0 | DI9: 0 | DJ9: 0 | DK9: 0 | DL9: 0 | DM9: 0 | DN9: 0 | DO9: 0 | DP9: 0 | DQ9: 0 | DR9: 0 | DS9: 0 | DT9: 0 | DU9: 0 | DV9: 0 | DW9: 0 | DX9: 0 | DY9: 0 | DZ9: 0 | EA9: 0 | EB9: 0 | EC9: 0 | ED9: 0 | EE9: 0 | EF9: 0 | EG9: =EG10+dTminActual/2 -> 0 | EH9: =EH10+dTminActual/2 -> 0 | EI9: =EI10+dTminActual/2 -> 0 | EJ9: =EJ10+dTminActual/2 -> 0 | EK9: =EK10+dTminActual/2 -> 0 | EQ9: =EQ10-dTminActual/2 -> 0 | ER9: 0 | ES9: 0 | ET9: 0 | EU9: 0 | EV9: 0 | EW9: 0 | EX9: 0 | EY9: 0 | EZ9: 0 | FA9: 0 | FB9: 0 | FC9: 0 | FD9: 0 | FE9: 0 | FF9: 0 | FG9: 0 | FH9: 0 | FI9: 0 | FJ9: 0 | FK9: 0 | FL9: 0 | FM9: 0 | FN9: 0 | FO9: 0 | FP9: 0 | FQ9: 0 | FR9: 0 | FS9: 0 | FT9: 0 | FU9: 0 | FV9: 0 | FW9: =FW10-dTminActual/2 -> 0 | FX9: 0 | FY9: 0 | FZ9: 0 | GA9: 0 | GB9: 0 | GC9: 0 | GD9: 0 | GE9: 0 | GF9: 0 | GG9: 0 | GH9: 0 | GI9: 0 | GJ9: 0 | GK9: 0 | GL9: 0 | GM9: 0 | GN9: 0 | GO9: 0 | GP9: 0 | GQ9: 0 | GR9: 0 | GS9: 0 | GT9: 0 | GU9: 0 | GV9: 0 | GW9: 0 | GX9: 0 | GY9: 0 | GZ9: 0 | HA9: 0 | HB9: 0 | HC9: =HC10-dTminActual/2 -> 0 | HD9: 0 | HE9: 0 | HF9: 0 | HG9: 0 | HH9: 0 | HI9: 0 | HJ9: 0 | HK9: 0 | HL9: 0 | HM9: 0 | HN9: 0 | HO9: 0 | HP9: 0 | HQ9: 0 | HR9: 0 | HS9: 0 | HT9: 0 | HU9: 0 | HV9: 0 | HW9: 0 | HX9: 0 | HY9: 0 | HZ9: 0 | IA9: 0 | IB9: 0 | IC9: 0 | ID9: 0 | IE9: 0 | IF9: 0 | IG9: 0 | IH9: 0 | II9: =II10-dTminActual/2 -> 0 | IJ9: =IJ10-dTminActual/2 -> 0 | IK9: =IK10-dTminActual/2 -> 0 | IL9: =IL10-dTminActual/2 -> 0 | IM9: =IM10-dTminActual/2 -> 0 | IQ9: T CCC | IR9: =IF(OR(IR8<$AJ$22,IR8>$AJ$21),"",HLOOKUP(IR8,$AN$8:$EK$10,3,TRUE)) ->  | IS9: =IF(OR(IS8<$AJ$22,IR8>$AJ$21),"",HLOOKUP(IS8,$AN$8:$EK$10,3,TRUE)) ->  | LE9: =IF(OR(LE8<$AJ$22,LD8>$AJ$21),"",HLOOKUP(LE8,$AN$8:$EK$10,3,TRUE)) ->  | MN9: 0
E10: °C | F10: °C | H10: kg/s | I10: kJ/kg.K | J10: kJ/(K.s) | K10: kJ/kg | L10: kW | N10: [] | O10: [] | P10: [] | Q10: [] | R10: d/a | S10: h/a | U10: MWh/a | AI10: T HCC MIN | AJ10: =MIN(IF(($V$11:$V$110="Prozess") * ($G$11:$G$110="hot")* ($AA$11:$AA$110=1),$F$11:$F$110)) -> 0 | AK10: °C | AM10: T | AO10: =AJ7 -> 0 | AP10: =AO10+($AJ$8-$AJ$7)/100 -> 0 | AQ10: =AP10+($AJ$8-$AJ$7)/100 -> 0 | AR10: 0 | AS10: 0 | AT10: 0 | AU10: 0 | AV10: 0 | AW10: 0 | AX10: 0 | AY10: 0 | AZ10: 0 | BA10: 0 | BB10: 0 | BC10: 0 | BD10: 0 | BE10: 0 | BF10: 0 | BG10: 0 | BH10: 0 | BI10: 0 | BJ10: 0 | BK10: 0 | BL10: 0 | BM10: 0 | BN10: 0 | BO10: 0 | BP10: 0 | BQ10: 0 | BR10: 0 | BS10: 0 | BT10: 0 | BU10: 0 | BV10: 0 | BW10: 0 | BX10: 0 | BY10: 0 | BZ10: 0 | CA10: 0 | CB10: 0 | CC10: 0 | CD10: 0 | CE10: 0 | CF10: 0 | CG10: 0 | CH10: 0 | CI10: 0 | CJ10: 0 | CK10: 0 | CL10: 0 | CM10: 0 | CN10: 0 | CO10: 0 | CP10: 0 | CQ10: 0 | CR10: 0 | CS10: 0 | CT10: 0 | CU10: 0 | CV10: 0 | CW10: 0 | CX10: 0 | CY10: 0 | CZ10: 0 | DA10: 0 | DB10: 0 | DC10: =DB10+($AJ$8-$AJ$7)/100 -> 0 | DD10: 0 | DE10: 0 | DF10: 0 | DG10: 0 | DH10: 0 | DI10: 0 | DJ10: 0 | DK10: 0 | DL10: 0 | DM10: 0 | DN10: 0 | DO10: 0 | DP10: 0 | DQ10: 0 | DR10: 0 | DS10: 0 | DT10: 0 | DU10: 0 | DV10: 0 | DW10: 0 | DX10: 0 | DY10: 0 | DZ10: 0 | EA10: 0 | EB10: 0 | EC10: 0 | ED10: 0 | EE10: 0 | EF10: 0 | EG10: 0 | EH10: 0 | EI10: 0 | EJ10: 0 | EK10: 0 | EO10: T | EQ10: =AJ10 -> 0 | ER10: =EQ10+($AJ$11-$AJ$10)/100 -> 0 | ES10: =ER10+($AJ$11-$AJ$10)/100 -> 0 | ET10: 0 | EU10: 0 | EV10: 0 | EW10: 0 | EX10: 0 | EY10: 0 | EZ10: 0 | FA10: 0 | FB10: 0 | FC10: 0 | FD10: 0 | FE10: 0 | FF10: 0 | FG10: 0 | FH10: 0 | FI10: 0 | FJ10: 0 | FK10: 0 | FL10: 0 | FM10: 0 | FN10: 0 | FO10: 0 | FP10: 0 | FQ10: 0 | FR10: 0 | FS10: 0 | FT10: 0 | FU10: 0 | FV10: 0 | FW10: 0 | FX10: 0 | FY10: 0 | FZ10: 0 | GA10: 0 | GB10: 0 | GC10: 0 | GD10: 0 | GE10: 0 | GF10: 0 | GG10: 0 | GH10: 0 | GI10: 0 | GJ10: 0 | GK10: 0 | GL10: 0 | GM10: 0 | GN10: 0 | GO10: 0 | GP10: 0 | GQ10: 0 | GR10: 0 | GS10: 0 | GT10: 0 | GU10: 0 | GV10: 0 | GW10: 0 | GX10: 0 | GY10: 0 | GZ10: 0 | HA10: 0 | HB10: 0 | HC10: 0 | HD10: 0 | HE10: =HD10+($AJ$11-$AJ$10)/100 -> 0 | HF10: 0 | HG10: 0 | HH10: 0 | HI10: 0 | HJ10: 0 | HK10: 0 | HL10: 0 | HM10: 0 | HN10: 0 | HO10: 0 | HP10: 0 | HQ10: 0 | HR10: 0 | HS10: 0 | HT10: 0 | HU10: 0 | HV10: 0 | HW10: 0 | HX10: 0 | HY10: 0 | HZ10: 0 | IA10: 0 | IB10: 0 | IC10: 0 | ID10: 0 | IE10: 0 | IF10: 0 | IG10: 0 | IH10: 0 | II10: 0 | IJ10: 0 | IK10: 0 | IL10: 0 | IM10: 0 | IQ10: T HCC | IR10: =IF(OR(IR8<$AJ$24,IR8>$AJ$23),"",HLOOKUP(IR8,$EP$8:$IM$10,3,TRUE)) -> 0 | LD10: =IF(OR(LD8<$AJ$24,LD8>$AJ$23),"",HLOOKUP(LD8,$EP$8:$IM$10,3,TRUE)) -> 
A11: 1 | B11: =IF(G11="hot",COUNTIF($G$11:G11,"hot"),"") -> 1 | C11: =IF(G11="cold",COUNTIF($G$11:G11,"cold"),"") ->  | G11: =IF(A11="","",IF(E11<F11,"cold","hot")) -> hot | J11: =IF(A11="","",IF(T11="",H11*I11,ABS(U11/S11*1000/(E11-F11)))) -> 0 | K11: =IF(A11="","",ABS(I11*(F11-E11))) -> 0 | L11: =IF(A11="","",IF(T11="",K11*H11,U11/S11*1000)) -> 0 | U11: =IF(A11="","",IF(T11="",S11*L11/1000,T11)) -> 0 | W11: =IF(G11="hot",J11,"") -> 0 | X11: =IF(G11="cold",J11,"") ->  | Y11: =IF(G11="","",IF(G11="hot",_xlfn.RANK.EQ(W11,$W$11:$W$110),_xlfn.RANK.EQ(X11,$X$11:$X$110))) -> 1 | Z11: =IF(D11="","",D11) ->  | AA11: =IF(D11="","",IF(AND(ISNUMBER(E11),ISNUMBER(F11),ISNUMBER(I11),ISNUMBER(S11),ISTEXT(D11),ISTEXT(V11),OR(ISNUMBER(H11),ISNUMBER(T11)),E11<>F11,E11>0,F11>0,I11>0,S11>0,OR(H11>0,T11>0))=TRUE,1,0)) ->  | AI11: T HCC MAX | AJ11: =MAX(IF(($V$11:$V$110="Prozess") * ($G$11:$G$110="hot") * ($AA$11:$AA$110=1),$E$11:$E$110)) -> 0 | AK11: °C | AM11: =D11 -> 0 | AO11: =IF(OR($V11="Utility",$AA11=0),"x",IF($G11="hot","x",IF(AND(AO$10>$E11,AN$10<$F11),IF(AN$10>$E11,IF(AO$10>$F11,$U11/($F11-$E11)*($F11-AN$10),$U11/($F11-$E11)*(AO$10-AN$10)),$U11/($F11-$E11)*(AO$10-$E11)),"x"))) -> x | AP11: x | AQ11: x | AR11: x | AS11: x | AT11: x | AU11: x | AV11: x | AW11: x | AX11: x | AY11: x | AZ11: x | BA11: x | BB11: x | BC11: x | BD11: x | BE11: x | BF11: x | BG11: x | BH11: x | BI11: x | BJ11: x | BK11: x | BL11: x | BM11: x | BN11: x | BO11: x | BP11: x | BQ11: x | BR11: x | BS11: x | BT11: x | BU11: =IF(OR($V11="Utility",$AA11=0),"x",IF($G11="hot","x",IF(AND(BU$10>$E11,BT$10<$F11),IF(BT$10>$E11,IF(BU$10>$F11,$U11/($F11-$E11)*($F11-BT$10),$U11/($F11-$E11)*(BU$10-BT$10)),$U11/($F11-$E11)*(BU$10-$E11)),"x"))) -> x | BV11: x | BW11: x | BX11: x | BY11: x | BZ11: x | CA11: x | CB11: x | CC11: x | CD11: x | CE11: x | CF11: x | CG11: x | CH11: x | CI11: x | CJ11: x | CK11: x | CL11: x | CM11: x | CN11: x | CO11: x | CP11: x | CQ11: x | CR11: x | CS11: x | CT11: x | CU11: x | CV11: x | CW11: x | CX11: x | CY11: x | CZ11: x | DA11: =IF(OR($V11="Utility",$AA11=0),"x",IF($G11="hot","x",IF(AND(DA$10>$E11,CZ$10<$F11),IF(CZ$10>$E11,IF(DA$10>$F11,$U11/($F11-$E11)*($F11-CZ$10),$U11/($F11-$E11)*(DA$10-CZ$10)),$U11/($F11-$E11)*(DA$10-$E11)),"x"))) -> x | DB11: x | DC11: x | DD11: x | DE11: x | DF11: x | DG11: x | DH11: x | DI11: x | DJ11: x | DK11: x | DL11: x | DM11: x | DN11: x | DO11: x | DP11: x | DQ11: x | DR11: x | DS11: x | DT11: x | DU11: x | DV11: x | DW11: x | DX11: x | DY11: x | DZ11: x | EA11: x | EB11: x | EC11: x | ED11: x | EE11: x | EF11: x | EG11: x | EH11: x | EI11: x | EJ11: x | EK11: x | EO11: =D11 -> 0 | EQ11: =IF(OR($V11="Utility",$AA11=0),"x",IF($G11="cold","x",IF(AND(EQ$10>$F11,EP$10<$E11),IF(EP$10>$F11,IF(EQ$10>$E11,$U11/($E11-$F11)*($E11-EP$10),$U11/($E11-$F11)*(EQ$10-EP$10)),$U11/($E11-$F11)*(EQ$10-$F11)),"x"))) -> x | ER11: x | ES11: x | ET11: x | EU11: x | EV11: x | EW11: x | EX11: x | EY11: x | EZ11: x | FA11: x | FB11: x | FC11: x | FD11: x | FE11: x | FF11: x | FG11: x | FH11: x | FI11: x | FJ11: x | FK11: x | FL11: x | FM11: x | FN11: x | FO11: x | FP11: x | FQ11: x | FR11: x | FS11: x | FT11: x | FU11: x | FV11: x | FW11: =IF(OR($V11="Utility",$AA11=0),"x",IF($G11="cold","x",IF(AND(FW$10>$F11,FV$10<$E11),IF(FV$10>$F11,IF(FW$10>$E11,$U11/($E11-$F11)*($E11-FV$10),$U11/($E11-$F11)*(FW$10-FV$10)),$U11/($E11-$F11)*(FW$10-$F11)),"x"))) -> x | FX11: x | FY11: x | FZ11: x | GA11: x | GB11: x | GC11: x | GD11: x | GE11: x | GF11: x | GG11: x | GH11: x | GI11: x | GJ11: x | GK11: x | GL11: x | GM11: x | GN11: x | GO11: x | GP11: x | GQ11: x | GR11: x | GS11: x | GT11: x | GU11: x | GV11: x | GW11: x | GX11: x | GY11: x | GZ11: x | HA11: x | HB11: x | HC11: =IF(OR($V11="Utility",$AA11=0),"x",IF($G11="cold","x",IF(AND(HC$10>$F11,HB$10<$E11),IF(HB$10>$F11,IF(HC$10>$E11,$U11/($E11-$F11)*($E11-HB$10),$U11/($E11-$F11)*(HC$10-HB$10)),$U11/($E11-$F11)*(HC$10-$F11)),"x"))) -> x | HD11: x | HE11: x | HF11: x | HG11: x | HH11: x | HI11: x | HJ11: x | HK11: x | HL11: x | HM11: x | HN11: x | HO11: x | HP11: x | HQ11: x | HR11: x | HS11: x | HT11: x | HU11: x | HV11: x | HW11: x | HX11: x | HY11: x | HZ11: x | IA11: x | IB11: x | IC11: x | ID11: x | IE11: x | IF11: x | IG11: x | IH11: x | II11: x | IJ11: x | IK11: x | IL11: x | IM11: x | IQ11: Diff | IR11: =IF(OR(IR9="",IR10=""),"",IR10-IR9) ->  | IS11: =IF(OR(IS9="",IS10=""),"",IS10-IS9) ->  | KB11: =IF(OR(KB9="",KB10=""),"",KB10-KB9) ->  | KC11: =IF(OR(KC9="",KC10=""),"",KC10-KC9) -> 
A12: =IF(D12="","",A11+1) ->  | B12: =IF(G12="hot",COUNTIF($G$11:G12,"hot"),"") ->  | C12: =IF(G12="cold",COUNTIF($G$11:G12,"cold"),"") ->  | G12: =IF(A12="","",IF(E12<F12,"cold","hot")) ->  | J12: =IF(A12="","",IF(T12="",H12*I12,ABS(U12/S12*1000/(E12-F12)))) ->  | K12: =IF(A12="","",ABS(I12*(F12-E12))) ->  | L12: =IF(A12="","",IF(T12="",K12*H12,U12/S12*1000)) ->  | U12: =IF(A12="","",IF(T12="",S12*L12/1000,T12)) ->  | X12: =IF(G12="cold",J12,"") ->  | AA12: =IF(D12="","",IF(AND(ISNUMBER(E12),ISNUMBER(F12),ISNUMBER(I12),ISNUMBER(S12),ISTEXT(D12),ISTEXT(V12),OR(ISNUMBER(H12),ISNUMBER(T12)),E12<>F12,E12>0,F12>0,I12>0,S12>0,OR(H12>0,T12>0))=TRUE,1,0)) ->  | AM12: 0 | AO12: =IF(OR($V12="Utility",$AA12=0),"x",IF($G12="hot","x",IF(AND(AO$10>$E12,AN$10<$F12),IF(AN$10>$E12,IF(AO$10>$F12,$U12/($F12-$E12)*($F12-AN$10),$U12/($F12-$E12)*(AO$10-AN$10)),$U12/($F12-$E12)*(AO$10-$E12)),"x"))) -> x | AP12: x | AQ12: x | AR12: x | AS12: x | AT12: x | AU12: x | AV12: x | AW12: x | AX12: x | AY12: x | AZ12: x | BA12: x | BB12: x | BC12: x | BD12: x | BE12: x | BF12: x | BG12: x | BH12: x | BI12: x | BJ12: x | BK12: x | BL12: x | BM12: x | BN12: x | BO12: x | BP12: x | BQ12: x | BR12: x | BS12: x | BT12: x | BU12: =IF(OR($V12="Utility",$AA12=0),"x",IF($G12="hot","x",IF(AND(BU$10>$E12,BT$10<$F12),IF(BT$10>$E12,IF(BU$10>$F12,$U12/($F12-$E12)*($F12-BT$10),$U12/($F12-$E12)*(BU$10-BT$10)),$U12/($F12-$E12)*(BU$10-$E12)),"x"))) -> x | BV12: x | BW12: x | BX12: x | BY12: x | BZ12: x | CA12: x | CB12: x | CC12: x | CD12: x | CE12: x | CF12: x | CG12: x | CH12: x | CI12: x | CJ12: x | CK12: x | CL12: x | CM12: x | CN12: x | CO12: x | CP12: x | CQ12: x | CR12: x | CS12: x | CT12: x | CU12: x | CV12: x | CW12: x | CX12: x | CY12: x | CZ12: x | DA12: =IF(OR($V12="Utility",$AA12=0),"x",IF($G12="hot","x",IF(AND(DA$10>$E12,CZ$10<$F12),IF(CZ$10>$E12,IF(DA$10>$F12,$U12/($F12-$E12)*($F12-CZ$10),$U12/($F12-$E12)*(DA$10-CZ$10)),$U12/($F12-$E12)*(DA$10-$E12)),"x"))) -> x | DB12: x | DC12: x | DD12: x | DE12: x | DF12: x | DG12: x | DH12: x | DI12: x | DJ12: x | DK12: x | DL12: x | DM12: x | DN12: x | DO12: x | DP12: x | DQ12: x | DR12: x | DS12: x | DT12: x | DU12: x | DV12: x | DW12: x | DX12: x | DY12: x | DZ12: x | EA12: x | EB12: x | EC12: x | ED12: x | EE12: x | EF12: x | EG12: x | EH12: x | EI12: x | EJ12: x | EK12: x | EO12: 0 | EQ12: =IF(OR($V12="Utility",$AA12=0),"x",IF($G12="cold","x",IF(AND(EQ$10>$F12,EP$10<$E12),IF(EP$10>$F12,IF(EQ$10>$E12,$U12/($E12-$F12)*($E12-EP$10),$U12/($E12-$F12)*(EQ$10-EP$10)),$U12/($E12-$F12)*(EQ$10-$F12)),"x"))) -> x | ER12: x | ES12: x | ET12: x | EU12: x | EV12: x | EW12: x | EX12: x | EY12: x | EZ12: x | FA12: x | FB12: x | FC12: x | FD12: x | FE12: x | FF12: x | FG12: x | FH12: x | FI12: x | FJ12: x | FK12: x | FL12: x | FM12: x | FN12: x | FO12: x | FP12: x | FQ12: x | FR12: x | FS12: x | FT12: x | FU12: x | FV12: x | FW12: =IF(OR($V12="Utility",$AA12=0),"x",IF($G12="cold","x",IF(AND(FW$10>$F12,FV$10<$E12),IF(FV$10>$F12,IF(FW$10>$E12,$U12/($E12-$F12)*($E12-FV$10),$U12/($E12-$F12)*(FW$10-FV$10)),$U12/($E12-$F12)*(FW$10-$F12)),"x"))) -> x | FX12: x | FY12: x | FZ12: x | GA12: x | GB12: x | GC12: x | GD12: x | GE12: x | GF12: x | GG12: x | GH12: x | GI12: x | GJ12: x | GK12: x | GL12: x | GM12: x | GN12: x | GO12: x | GP12: x | GQ12: x | GR12: x | GS12: x | GT12: x | GU12: x | GV12: x | GW12: x | GX12: x | GY12: x | GZ12: x | HA12: x | HB12: x | HC12: =IF(OR($V12="Utility",$AA12=0),"x",IF($G12="cold","x",IF(AND(HC$10>$F12,HB$10<$E12),IF(HB$10>$F12,IF(HC$10>$E12,$U12/($E12-$F12)*($E12-HB$10),$U12/($E12-$F12)*(HC$10-HB$10)),$U12/($E12-$F12)*(HC$10-$F12)),"x"))) -> x | HD12: x | HE12: x | HF12: x | HG12: x | HH12: x | HI12: x | HJ12: x | HK12: x | HL12: x | HM12: x | HN12: x | HO12: x | HP12: x | HQ12: x | HR12: x | HS12: x | HT12: x | HU12: x | HV12: x | HW12: x | HX12: x | HY12: x | HZ12: x | IA12: x | IB12: x | IC12: x | ID12: x | IE12: x | IF12: x | IG12: x | IH12: x | II12: x | IJ12: x | IK12: x | IL12: x | IM12: x
B13: =IF(G13="hot",COUNTIF($G$11:G13,"hot"),"") ->  | C13: =IF(G13="cold",COUNTIF($G$11:G13,"cold"),"") ->  | AI13: H MIN | AJ13: 0 | AK13: MWh | AM13: 0 | AO13: =IF(OR($V13="Utility",$AA13=0),"x",IF($G13="hot","x",IF(AND(AO$10>$E13,AN$10<$F13),IF(AN$10>$E13,IF(AO$10>$F13,$U13/($F13-$E13)*($F13-AN$10),$U13/($F13-$E13)*(AO$10-AN$10)),$U13/($F13-$E13)*(AO$10-$E13)),"x"))) -> x | AP13: x | AQ13: x | AR13: x | AS13: x | AT13: x | AU13: x | AV13: x | AW13: x | AX13: x | AY13: x | AZ13: x | BA13: x | BB13: x | BC13: x | BD13: x | BE13: x | BF13: x | BG13: x | BH13: x | BI13: x | BJ13: x | BK13: x | BL13: x | BM13: x | BN13: x | BO13: x | BP13: x | BQ13: x | BR13: x | BS13: x | BT13: x | BU13: =IF(OR($V13="Utility",$AA13=0),"x",IF($G13="hot","x",IF(AND(BU$10>$E13,BT$10<$F13),IF(BT$10>$E13,IF(BU$10>$F13,$U13/($F13-$E13)*($F13-BT$10),$U13/($F13-$E13)*(BU$10-BT$10)),$U13/($F13-$E13)*(BU$10-$E13)),"x"))) -> x | BV13: x | BW13: x | BX13: x | BY13: x | BZ13: x | CA13: x | CB13: x | CC13: x | CD13: x | CE13: x | CF13: x | CG13: x | CH13: x | CI13: x | CJ13: x | CK13: x | CL13: x | CM13: x | CN13: x | CO13: x | CP13: x | CQ13: x | CR13: x | CS13: x | CT13: x | CU13: x | CV13: x | CW13: x | CX13: x | CY13: x | CZ13: x | DA13: =IF(OR($V13="Utility",$AA13=0),"x",IF($G13="hot","x",IF(AND(DA$10>$E13,CZ$10<$F13),IF(CZ$10>$E13,IF(DA$10>$F13,$U13/($F13-$E13)*($F13-CZ$10),$U13/($F13-$E13)*(DA$10-CZ$10)),$U13/($F13-$E13)*(DA$10-$E13)),"x"))) -> x | DB13: x | DC13: x | DD13: x | DE13: x | DF13: x | DG13: x | DH13: x | DI13: x | DJ13: x | DK13: x | DL13: x | DM13: x | DN13: x | DO13: x | DP13: x | DQ13: x | DR13: x | DS13: x | DT13: x | DU13: x | DV13: x | DW13: x | DX13: x | DY13: x | DZ13: x | EA13: x | EB13: x | EC13: x | ED13: x | EE13: x | EF13: x | EG13: x | EH13: x | EI13: x | EJ13: x | EK13: x | EO13: 0 | EQ13: =IF(OR($V13="Utility",$AA13=0),"x",IF($G13="cold","x",IF(AND(EQ$10>$F13,EP$10<$E13),IF(EP$10>$F13,IF(EQ$10>$E13,$U13/($E13-$F13)*($E13-EP$10),$U13/($E13-$F13)*(EQ$10-EP$10)),$U13/($E13-$F13)*(EQ$10-$F13)),"x"))) -> x | ER13: x | ES13: x | ET13: x | EU13: x | EV13: x | EW13: x | EX13: x | EY13: x | EZ13: x | FA13: x | FB13: x | FC13: x | FD13: x | FE13: x | FF13: x | FG13: x | FH13: x | FI13: x | FJ13: x | FK13: x | FL13: x | FM13: x | FN13: x | FO13: x | FP13: x | FQ13: x | FR13: x | FS13: x | FT13: x | FU13: x | FV13: x | FW13: =IF(OR($V13="Utility",$AA13=0),"x",IF($G13="cold","x",IF(AND(FW$10>$F13,FV$10<$E13),IF(FV$10>$F13,IF(FW$10>$E13,$U13/($E13-$F13)*($E13-FV$10),$U13/($E13-$F13)*(FW$10-FV$10)),$U13/($E13-$F13)*(FW$10-$F13)),"x"))) -> x | FX13: x | FY13: x | FZ13: x | GA13: x | GB13: x | GC13: x | GD13: x | GE13: x | GF13: x | GG13: x | GH13: x | GI13: x | GJ13: x | GK13: x | GL13: x | GM13: x | GN13: x | GO13: x | GP13: x | GQ13: x | GR13: x | GS13: x | GT13: x | GU13: x | GV13: x | GW13: x | GX13: x | GY13: x | GZ13: x | HA13: x | HB13: x | HC13: =IF(OR($V13="Utility",$AA13=0),"x",IF($G13="cold","x",IF(AND(HC$10>$F13,HB$10<$E13),IF(HB$10>$F13,IF(HC$10>$E13,$U13/($E13-$F13)*($E13-HB$10),$U13/($E13-$F13)*(HC$10-HB$10)),$U13/($E13-$F13)*(HC$10-$F13)),"x"))) -> x | HD13: x | HE13: x | HF13: x | HG13: x | HH13: x | HI13: x | HJ13: x | HK13: x | HL13: x | HM13: x | HN13: x | HO13: x | HP13: x | HQ13: x | HR13: x | HS13: x | HT13: x | HU13: x | HV13: x | HW13: x | HX13: x | HY13: x | HZ13: x | IA13: x | IB13: x | IC13: x | ID13: x | IE13: x | IF13: x | IG13: x | IH13: x | II13: x | IJ13: x | IK13: x | IL13: x | IM13: x
B14: =IF(G14="hot",COUNTIF($G$11:G14,"hot"),"") ->  | C14: =IF(G14="cold",COUNTIF($G$11:G14,"cold"),"") ->  | AI14: H MAX | AJ14: =ROUNDUP(MAX(IM8,EK8),2) -> 62.4 | AK14: MWh | AM14: 0 | AO14: =IF(OR($V14="Utility",$AA14=0),"x",IF($G14="hot","x",IF(AND(AO$10>$E14,AN$10<$F14),IF(AN$10>$E14,IF(AO$10>$F14,$U14/($F14-$E14)*($F14-AN$10),$U14/($F14-$E14)*(AO$10-AN$10)),$U14/($F14-$E14)*(AO$10-$E14)),"x"))) -> x | AP14: x | AQ14: x | AR14: x | AS14: x | AT14: x | AU14: x | AV14: x | AW14: x | AX14: x | AY14: x | AZ14: x | BA14: x | BB14: x | BC14: x | BD14: x | BE14: x | BF14: x | BG14: x | BH14: x | BI14: x | BJ14: x | BK14: x | BL14: x | BM14: x | BN14: x | BO14: x | BP14: x | BQ14: x | BR14: x | BS14: x | BT14: x | BU14: =IF(OR($V14="Utility",$AA14=0),"x",IF($G14="hot","x",IF(AND(BU$10>$E14,BT$10<$F14),IF(BT$10>$E14,IF(BU$10>$F14,$U14/($F14-$E14)*($F14-BT$10),$U14/($F14-$E14)*(BU$10-BT$10)),$U14/($F14-$E14)*(BU$10-$E14)),"x"))) -> x | BV14: x | BW14: x | BX14: x | BY14: x | BZ14: x | CA14: x | CB14: x | CC14: x | CD14: x | CE14: x | CF14: x | CG14: x | CH14: x | CI14: x | CJ14: x | CK14: x | CL14: x | CM14: x | CN14: x | CO14: x | CP14: x | CQ14: x | CR14: x | CS14: x | CT14: x | CU14: x | CV14: x | CW14: x | CX14: x | CY14: x | CZ14: x | DA14: =IF(OR($V14="Utility",$AA14=0),"x",IF($G14="hot","x",IF(AND(DA$10>$E14,CZ$10<$F14),IF(CZ$10>$E14,IF(DA$10>$F14,$U14/($F14-$E14)*($F14-CZ$10),$U14/($F14-$E14)*(DA$10-CZ$10)),$U14/($F14-$E14)*(DA$10-$E14)),"x"))) -> x | DB14: x | DC14: x | DD14: x | DE14: x | DF14: x | DG14: x | DH14: x | DI14: x | DJ14: x | DK14: x | DL14: x | DM14: x | DN14: x | DO14: x | DP14: x | DQ14: x | DR14: x | DS14: x | DT14: x | DU14: x | DV14: x | DW14: x | DX14: x | DY14: x | DZ14: x | EA14: x | EB14: x | EC14: x | ED14: x | EE14: x | EF14: x | EG14: x | EH14: x | EI14: x | EJ14: x | EK14: x | EO14: 0 | EQ14: =IF(OR($V14="Utility",$AA14=0),"x",IF($G14="cold","x",IF(AND(EQ$10>$F14,EP$10<$E14),IF(EP$10>$F14,IF(EQ$10>$E14,$U14/($E14-$F14)*($E14-EP$10),$U14/($E14-$F14)*(EQ$10-EP$10)),$U14/($E14-$F14)*(EQ$10-$F14)),"x"))) -> x | ER14: x | ES14: x | ET14: x | EU14: x | EV14: x | EW14: x | EX14: x | EY14: x | EZ14: x | FA14: x | FB14: x | FC14: x | FD14: x | FE14: x | FF14: x | FG14: x | FH14: x | FI14: x | FJ14: x | FK14: x | FL14: x | FM14: x | FN14: x | FO14: x | FP14: x | FQ14: x | FR14: x | FS14: x | FT14: x | FU14: x | FV14: x | FW14: =IF(OR($V14="Utility",$AA14=0),"x",IF($G14="cold","x",IF(AND(FW$10>$F14,FV$10<$E14),IF(FV$10>$F14,IF(FW$10>$E14,$U14/($E14-$F14)*($E14-FV$10),$U14/($E14-$F14)*(FW$10-FV$10)),$U14/($E14-$F14)*(FW$10-$F14)),"x"))) -> x | FX14: x | FY14: x | FZ14: x | GA14: x | GB14: x | GC14: x | GD14: x | GE14: x | GF14: x | GG14: x | GH14: x | GI14: x | GJ14: x | GK14: x | GL14: x | GM14: x | GN14: x | GO14: x | GP14: x | GQ14: x | GR14: x | GS14: x | GT14: x | GU14: x | GV14: x | GW14: x | GX14: x | GY14: x | GZ14: x | HA14: x | HB14: x | HC14: =IF(OR($V14="Utility",$AA14=0),"x",IF($G14="cold","x",IF(AND(HC$10>$F14,HB$10<$E14),IF(HB$10>$F14,IF(HC$10>$E14,$U14/($E14-$F14)*($E14-HB$10),$U14/($E14-$F14)*(HC$10-HB$10)),$U14/($E14-$F14)*(HC$10-$F14)),"x"))) -> x | HD14: x | HE14: x | HF14: x | HG14: x | HH14: x | HI14: x | HJ14: x | HK14: x | HL14: x | HM14: x | HN14: x | HO14: x | HP14: x | HQ14: x | HR14: x | HS14: x | HT14: x | HU14: x | HV14: x | HW14: x | HX14: x | HY14: x | HZ14: x | IA14: x | IB14: x | IC14: x | ID14: x | IE14: x | IF14: x | IG14: x | IH14: x | II14: x | IJ14: x | IK14: x | IL14: x | IM14: x | IQ14: Grand Composite Curve
B15: =IF(G15="hot",COUNTIF($G$11:G15,"hot"),"") ->  | C15: =IF(G15="cold",COUNTIF($G$11:G15,"cold"),"") ->  | AM15: 0 | AO15: =IF(OR($V15="Utility",$AA15=0),"x",IF($G15="hot","x",IF(AND(AO$10>$E15,AN$10<$F15),IF(AN$10>$E15,IF(AO$10>$F15,$U15/($F15-$E15)*($F15-AN$10),$U15/($F15-$E15)*(AO$10-AN$10)),$U15/($F15-$E15)*(AO$10-$E15)),"x"))) -> x | AP15: x | AQ15: x | AR15: x | AS15: x | AT15: x | AU15: x | AV15: x | AW15: x | AX15: x | AY15: x | AZ15: x | BA15: x | BB15: x | BC15: x | BD15: x | BE15: x | BF15: x | BG15: x | BH15: x | BI15: x | BJ15: x | BK15: x | BL15: x | BM15: x | BN15: x | BO15: x | BP15: x | BQ15: x | BR15: x | BS15: x | BT15: x | BU15: =IF(OR($V15="Utility",$AA15=0),"x",IF($G15="hot","x",IF(AND(BU$10>$E15,BT$10<$F15),IF(BT$10>$E15,IF(BU$10>$F15,$U15/($F15-$E15)*($F15-BT$10),$U15/($F15-$E15)*(BU$10-BT$10)),$U15/($F15-$E15)*(BU$10-$E15)),"x"))) -> x | BV15: x | BW15: x | BX15: x | BY15: x | BZ15: x | CA15: x | CB15: x | CC15: x | CD15: x | CE15: x | CF15: x | CG15: x | CH15: x | CI15: x | CJ15: x | CK15: x | CL15: x | CM15: x | CN15: x | CO15: x | CP15: x | CQ15: x | CR15: x | CS15: x | CT15: x | CU15: x | CV15: x | CW15: x | CX15: x | CY15: x | CZ15: x | DA15: =IF(OR($V15="Utility",$AA15=0),"x",IF($G15="hot","x",IF(AND(DA$10>$E15,CZ$10<$F15),IF(CZ$10>$E15,IF(DA$10>$F15,$U15/($F15-$E15)*($F15-CZ$10),$U15/($F15-$E15)*(DA$10-CZ$10)),$U15/($F15-$E15)*(DA$10-$E15)),"x"))) -> x | DB15: x | DC15: x | DD15: x | DE15: x | DF15: x | DG15: x | DH15: x | DI15: x | DJ15: x | DK15: x | DL15: x | DM15: x | DN15: x | DO15: x | DP15: x | DQ15: x | DR15: x | DS15: x | DT15: x | DU15: x | DV15: x | DW15: x | DX15: x | DY15: x | DZ15: x | EA15: x | EB15: x | EC15: x | ED15: x | EE15: x | EF15: x | EG15: x | EH15: x | EI15: x | EJ15: x | EK15: x | EO15: 0 | EQ15: =IF(OR($V15="Utility",$AA15=0),"x",IF($G15="cold","x",IF(AND(EQ$10>$F15,EP$10<$E15),IF(EP$10>$F15,IF(EQ$10>$E15,$U15/($E15-$F15)*($E15-EP$10),$U15/($E15-$F15)*(EQ$10-EP$10)),$U15/($E15-$F15)*(EQ$10-$F15)),"x"))) -> x | ER15: x | ES15: x | ET15: x | EU15: x | EV15: x | EW15: x | EX15: x | EY15: x | EZ15: x | FA15: x | FB15: x | FC15: x | FD15: x | FE15: x | FF15: x | FG15: x | FH15: x | FI15: x | FJ15: x | FK15: x | FL15: x | FM15: x | FN15: x | FO15: x | FP15: x | FQ15: x | FR15: x | FS15: x | FT15: x | FU15: x | FV15: x | FW15: =IF(OR($V15="Utility",$AA15=0),"x",IF($G15="cold","x",IF(AND(FW$10>$F15,FV$10<$E15),IF(FV$10>$F15,IF(FW$10>$E15,$U15/($E15-$F15)*($E15-FV$10),$U15/($E15-$F15)*(FW$10-FV$10)),$U15/($E15-$F15)*(FW$10-$F15)),"x"))) -> x | FX15: x | FY15: x | FZ15: x | GA15: x | GB15: x | GC15: x | GD15: x | GE15: x | GF15: x | GG15: x | GH15: x | GI15: x | GJ15: x | GK15: x | GL15: x | GM15: x | GN15: x | GO15: x | GP15: x | GQ15: x | GR15: x | GS15: x | GT15: x | GU15: x | GV15: x | GW15: x | GX15: x | GY15: x | GZ15: x | HA15: x | HB15: x | HC15: =IF(OR($V15="Utility",$AA15=0),"x",IF($G15="cold","x",IF(AND(HC$10>$F15,HB$10<$E15),IF(HB$10>$F15,IF(HC$10>$E15,$U15/($E15-$F15)*($E15-HB$10),$U15/($E15-$F15)*(HC$10-HB$10)),$U15/($E15-$F15)*(HC$10-$F15)),"x"))) -> x | HD15: x | HE15: x | HF15: x | HG15: x | HH15: x | HI15: x | HJ15: x | HK15: x | HL15: x | HM15: x | HN15: x | HO15: x | HP15: x | HQ15: x | HR15: x | HS15: x | HT15: x | HU15: x | HV15: x | HW15: x | HX15: x | HY15: x | HZ15: x | IA15: x | IB15: x | IC15: x | ID15: x | IE15: x | IF15: x | IG15: x | IH15: x | II15: x | IJ15: x | IK15: x | IL15: x | IM15: x
B16: =IF(G16="hot",COUNTIF($G$11:G16,"hot"),"") ->  | C16: =IF(G16="cold",COUNTIF($G$11:G16,"cold"),"") ->  | AI16: dTmin required | AJ16: ='02_PinchKurven'!D6 -> 11 | AK16: Kelvin | AM16: 0 | AO16: =IF(OR($V16="Utility",$AA16=0),"x",IF($G16="hot","x",IF(AND(AO$10>$E16,AN$10<$F16),IF(AN$10>$E16,IF(AO$10>$F16,$U16/($F16-$E16)*($F16-AN$10),$U16/($F16-$E16)*(AO$10-AN$10)),$U16/($F16-$E16)*(AO$10-$E16)),"x"))) -> x | AP16: x | AQ16: x | AR16: x | AS16: x | AT16: x | AU16: x | AV16: x | AW16: x | AX16: x | AY16: x | AZ16: x | BA16: x | BB16: x | BC16: x | BD16: x | BE16: x | BF16: x | BG16: x | BH16: x | BI16: x | BJ16: x | BK16: x | BL16: x | BM16: x | BN16: x | BO16: x | BP16: x | BQ16: x | BR16: x | BS16: x | BT16: x | BU16: =IF(OR($V16="Utility",$AA16=0),"x",IF($G16="hot","x",IF(AND(BU$10>$E16,BT$10<$F16),IF(BT$10>$E16,IF(BU$10>$F16,$U16/($F16-$E16)*($F16-BT$10),$U16/($F16-$E16)*(BU$10-BT$10)),$U16/($F16-$E16)*(BU$10-$E16)),"x"))) -> x | BV16: x | BW16: x | BX16: x | BY16: x | BZ16: x | CA16: x | CB16: x | CC16: x | CD16: x | CE16: x | CF16: x | CG16: x | CH16: x | CI16: x | CJ16: x | CK16: x | CL16: x | CM16: x | CN16: x | CO16: x | CP16: x | CQ16: x | CR16: x | CS16: x | CT16: x | CU16: x | CV16: x | CW16: x | CX16: x | CY16: x | CZ16: x | DA16: =IF(OR($V16="Utility",$AA16=0),"x",IF($G16="hot","x",IF(AND(DA$10>$E16,CZ$10<$F16),IF(CZ$10>$E16,IF(DA$10>$F16,$U16/($F16-$E16)*($F16-CZ$10),$U16/($F16-$E16)*(DA$10-CZ$10)),$U16/($F16-$E16)*(DA$10-$E16)),"x"))) -> x | DB16: x | DC16: x | DD16: x | DE16: x | DF16: x | DG16: x | DH16: x | DI16: x | DJ16: x | DK16: x | DL16: x | DM16: x | DN16: x | DO16: x | DP16: x | DQ16: x | DR16: x | DS16: x | DT16: x | DU16: x | DV16: x | DW16: x | DX16: x | DY16: x | DZ16: x | EA16: x | EB16: x | EC16: x | ED16: x | EE16: x | EF16: x | EG16: x | EH16: x | EI16: x | EJ16: x | EK16: x | EO16: 0 | EQ16: =IF(OR($V16="Utility",$AA16=0),"x",IF($G16="cold","x",IF(AND(EQ$10>$F16,EP$10<$E16),IF(EP$10>$F16,IF(EQ$10>$E16,$U16/($E16-$F16)*($E16-EP$10),$U16/($E16-$F16)*(EQ$10-EP$10)),$U16/($E16-$F16)*(EQ$10-$F16)),"x"))) -> x | ER16: x | ES16: x | ET16: x | EU16: x | EV16: x | EW16: x | EX16: x | EY16: x | EZ16: x | FA16: x | FB16: x | FC16: x | FD16: x | FE16: x | FF16: x | FG16: x | FH16: x | FI16: x | FJ16: x | FK16: x | FL16: x | FM16: x | FN16: x | FO16: x | FP16: x | FQ16: x | FR16: x | FS16: x | FT16: x | FU16: x | FV16: x | FW16: =IF(OR($V16="Utility",$AA16=0),"x",IF($G16="cold","x",IF(AND(FW$10>$F16,FV$10<$E16),IF(FV$10>$F16,IF(FW$10>$E16,$U16/($E16-$F16)*($E16-FV$10),$U16/($E16-$F16)*(FW$10-FV$10)),$U16/($E16-$F16)*(FW$10-$F16)),"x"))) -> x | FX16: x | FY16: x | FZ16: x | GA16: x | GB16: x | GC16: x | GD16: x | GE16: x | GF16: x | GG16: x | GH16: x | GI16: x | GJ16: x | GK16: x | GL16: x | GM16: x | GN16: x | GO16: x | GP16: x | GQ16: x | GR16: x | GS16: x | GT16: x | GU16: x | GV16: x | GW16: x | GX16: x | GY16: x | GZ16: x | HA16: x | HB16: x | HC16: =IF(OR($V16="Utility",$AA16=0),"x",IF($G16="cold","x",IF(AND(HC$10>$F16,HB$10<$E16),IF(HB$10>$F16,IF(HC$10>$E16,$U16/($E16-$F16)*($E16-HB$10),$U16/($E16-$F16)*(HC$10-HB$10)),$U16/($E16-$F16)*(HC$10-$F16)),"x"))) -> x | HD16: x | HE16: x | HF16: x | HG16: x | HH16: x | HI16: x | HJ16: x | HK16: x | HL16: x | HM16: x | HN16: x | HO16: x | HP16: x | HQ16: x | HR16: x | HS16: x | HT16: x | HU16: x | HV16: x | HW16: x | HX16: x | HY16: x | HZ16: x | IA16: x | IB16: x | IC16: x | ID16: x | IE16: x | IF16: x | IG16: x | IH16: x | II16: x | IJ16: x | IK16: x | IL16: x | IM16: x | IQ16: T | IR16: =MIN(AO9:IM9) -> 0 | IS16: =IR16+(MAX($AO$9:$IM$9)-MIN($AO$9:$IM$9))/100 -> 0 | IT16: =IS16+(MAX($AO$9:$IM$9)-MIN($AO$9:$IM$9))/100 -> 0 | IU16: 0 | IV16: 0 | IW16: 0 | IX16: 0 | IY16: 0 | IZ16: 0 | JA16: 0 | JB16: 0 | JC16: 0 | JD16: 0 | JE16: 0 | JF16: 0 | JG16: 0 | JH16: 0 | JI16: 0 | JJ16: 0 | JK16: 0 | JL16: 0 | JM16: 0 | JN16: 0 | JO16: 0 | JP16: 0 | JQ16: 0 | JR16: 0 | JS16: 0 | JT16: 0 | JU16: 0 | JV16: 0 | JW16: 0 | JX16: 0 | JY16: 0 | JZ16: 0 | KA16: 0 | KB16: 0 | KC16: 0 | KD16: 0 | KE16: 0 | KF16: 0 | KG16: 0 | KH16: 0 | KI16: 0 | KJ16: 0 | KK16: 0 | KL16: 0 | KM16: 0 | KN16: 0 | KO16: 0 | KP16: 0 | KQ16: 0 | KR16: 0 | KS16: 0 | KT16: 0 | KU16: 0 | KV16: 0 | KW16: 0 | KX16: 0 | KY16: 0 | KZ16: 0 | LA16: 0 | LB16: 0 | LC16: 0 | LD16: 0 | LE16: 0 | LF16: =LE16+(MAX($AO$9:$IM$9)-MIN($AO$9:$IM$9))/100 -> 0 | LG16: 0 | LH16: 0 | LI16: 0 | LJ16: 0 | LK16: 0 | LL16: 0 | LM16: 0 | LN16: 0 | LO16: 0 | LP16: 0 | LQ16: 0 | LR16: 0 | LS16: 0 | LT16: 0 | LU16: 0 | LV16: 0 | LW16: 0 | LX16: 0 | LY16: 0 | LZ16: 0 | MA16: 0 | MB16: 0 | MC16: 0 | MD16: 0 | ME16: 0 | MF16: 0 | MG16: 0 | MH16: 0 | MI16: 0 | MJ16: 0 | MK16: 0 | ML16: 0 | MM16: 0 | MN16: 0
B17: =IF(G17="hot",COUNTIF($G$11:G17,"hot"),"") ->  | C17: =IF(G17="cold",COUNTIF($G$11:G17,"cold"),"") ->  | AI17: Shift | AJ17: 62.4 | AK17: kW | AM17: 0 | AO17: =IF(OR($V17="Utility",$AA17=0),"x",IF($G17="hot","x",IF(AND(AO$10>$E17,AN$10<$F17),IF(AN$10>$E17,IF(AO$10>$F17,$U17/($F17-$E17)*($F17-AN$10),$U17/($F17-$E17)*(AO$10-AN$10)),$U17/($F17-$E17)*(AO$10-$E17)),"x"))) -> x | AP17: x | AQ17: x | AR17: x | AS17: x | AT17: x | AU17: x | AV17: x | AW17: x | AX17: x | AY17: x | AZ17: x | BA17: x | BB17: x | BC17: x | BD17: x | BE17: x | BF17: x | BG17: x | BH17: x | BI17: x | BJ17: x | BK17: x | BL17: x | BM17: x | BN17: x | BO17: x | BP17: x | BQ17: x | BR17: x | BS17: x | BT17: x | BU17: =IF(OR($V17="Utility",$AA17=0),"x",IF($G17="hot","x",IF(AND(BU$10>$E17,BT$10<$F17),IF(BT$10>$E17,IF(BU$10>$F17,$U17/($F17-$E17)*($F17-BT$10),$U17/($F17-$E17)*(BU$10-BT$10)),$U17/($F17-$E17)*(BU$10-$E17)),"x"))) -> x | BV17: x | BW17: x | BX17: x | BY17: x | BZ17: x | CA17: x | CB17: x | CC17: x | CD17: x | CE17: x | CF17: x | CG17: x | CH17: x | CI17: x | CJ17: x | CK17: x | CL17: x | CM17: x | CN17: x | CO17: x | CP17: x | CQ17: x | CR17: x | CS17: x | CT17: x | CU17: x | CV17: x | CW17: x | CX17: x | CY17: x | CZ17: x | DA17: =IF(OR($V17="Utility",$AA17=0),"x",IF($G17="hot","x",IF(AND(DA$10>$E17,CZ$10<$F17),IF(CZ$10>$E17,IF(DA$10>$F17,$U17/($F17-$E17)*($F17-CZ$10),$U17/($F17-$E17)*(DA$10-CZ$10)),$U17/($F17-$E17)*(DA$10-$E17)),"x"))) -> x | DB17: x | DC17: x | DD17: x | DE17: x | DF17: x | DG17: x | DH17: x | DI17: x | DJ17: x | DK17: x | DL17: x | DM17: x | DN17: x | DO17: x | DP17: x | DQ17: x | DR17: x | DS17: x | DT17: x | DU17: x | DV17: x | DW17: x | DX17: x | DY17: x | DZ17: x | EA17: x | EB17: x | EC17: x | ED17: x | EE17: x | EF17: x | EG17: x | EH17: x | EI17: x | EJ17: x | EK17: x | EO17: 0 | EQ17: =IF(OR($V17="Utility",$AA17=0),"x",IF($G17="cold","x",IF(AND(EQ$10>$F17,EP$10<$E17),IF(EP$10>$F17,IF(EQ$10>$E17,$U17/($E17-$F17)*($E17-EP$10),$U17/($E17-$F17)*(EQ$10-EP$10)),$U17/($E17-$F17)*(EQ$10-$F17)),"x"))) -> x | ER17: x | ES17: x | ET17: x | EU17: x | EV17: x | EW17: x | EX17: x | EY17: x | EZ17: x | FA17: x | FB17: x | FC17: x | FD17: x | FE17: x | FF17: x | FG17: x | FH17: x | FI17: x | FJ17: x | FK17: x | FL17: x | FM17: x | FN17: x | FO17: x | FP17: x | FQ17: x | FR17: x | FS17: x | FT17: x | FU17: x | FV17: x | FW17: =IF(OR($V17="Utility",$AA17=0),"x",IF($G17="cold","x",IF(AND(FW$10>$F17,FV$10<$E17),IF(FV$10>$F17,IF(FW$10>$E17,$U17/($E17-$F17)*($E17-FV$10),$U17/($E17-$F17)*(FW$10-FV$10)),$U17/($E17-$F17)*(FW$10-$F17)),"x"))) -> x | FX17: x | FY17: x | FZ17: x | GA17: x | GB17: x | GC17: x | GD17: x | GE17: x | GF17: x | GG17: x | GH17: x | GI17: x | GJ17: x | GK17: x | GL17: x | GM17: x | GN17: x | GO17: x | GP17: x | GQ17: x | GR17: x | GS17: x | GT17: x | GU17: x | GV17: x | GW17: x | GX17: x | GY17: x | GZ17: x | HA17: x | HB17: x | HC17: =IF(OR($V17="Utility",$AA17=0),"x",IF($G17="cold","x",IF(AND(HC$10>$F17,HB$10<$E17),IF(HB$10>$F17,IF(HC$10>$E17,$U17/($E17-$F17)*($E17-HB$10),$U17/($E17-$F17)*(HC$10-HB$10)),$U17/($E17-$F17)*(HC$10-$F17)),"x"))) -> x | HD17: x | HE17: x | HF17: x | HG17: x | HH17: x | HI17: x | HJ17: x | HK17: x | HL17: x | HM17: x | HN17: x | HO17: x | HP17: x | HQ17: x | HR17: x | HS17: x | HT17: x | HU17: x | HV17: x | HW17: x | HX17: x | HY17: x | HZ17: x | IA17: x | IB17: x | IC17: x | ID17: x | IE17: x | IF17: x | IG17: x | IH17: x | II17: x | IJ17: x | IK17: x | IL17: x | IM17: x
B18: =IF(G18="hot",COUNTIF($G$11:G18,"hot"),"") ->  | C18: =IF(G18="cold",COUNTIF($G$11:G18,"cold"),"") ->  | AI18: dTmin actual | AJ18: =ROUND(MIN(IR11:MN11),0) -> 0 | AK18: Kelvin | AM18: 0 | AO18: =IF(OR($V18="Utility",$AA18=0),"x",IF($G18="hot","x",IF(AND(AO$10>$E18,AN$10<$F18),IF(AN$10>$E18,IF(AO$10>$F18,$U18/($F18-$E18)*($F18-AN$10),$U18/($F18-$E18)*(AO$10-AN$10)),$U18/($F18-$E18)*(AO$10-$E18)),"x"))) -> x | AP18: x | AQ18: x | AR18: x | AS18: x | AT18: x | AU18: x | AV18: x | AW18: x | AX18: x | AY18: x | AZ18: x | BA18: x | BB18: x | BC18: x | BD18: x | BE18: x | BF18: x | BG18: x | BH18: x | BI18: x | BJ18: x | BK18: x | BL18: x | BM18: x | BN18: x | BO18: x | BP18: x | BQ18: x | BR18: x | BS18: x | BT18: x | BU18: =IF(OR($V18="Utility",$AA18=0),"x",IF($G18="hot","x",IF(AND(BU$10>$E18,BT$10<$F18),IF(BT$10>$E18,IF(BU$10>$F18,$U18/($F18-$E18)*($F18-BT$10),$U18/($F18-$E18)*(BU$10-BT$10)),$U18/($F18-$E18)*(BU$10-$E18)),"x"))) -> x | BV18: x | BW18: x | BX18: x | BY18: x | BZ18: x | CA18: x | CB18: x | CC18: x | CD18: x | CE18: x | CF18: x | CG18: x | CH18: x | CI18: x | CJ18: x | CK18: x | CL18: x | CM18: x | CN18: x | CO18: x | CP18: x | CQ18: x | CR18: x | CS18: x | CT18: x | CU18: x | CV18: x | CW18: x | CX18: x | CY18: x | CZ18: x | DA18: =IF(OR($V18="Utility",$AA18=0),"x",IF($G18="hot","x",IF(AND(DA$10>$E18,CZ$10<$F18),IF(CZ$10>$E18,IF(DA$10>$F18,$U18/($F18-$E18)*($F18-CZ$10),$U18/($F18-$E18)*(DA$10-CZ$10)),$U18/($F18-$E18)*(DA$10-$E18)),"x"))) -> x | DB18: x | DC18: x | DD18: x | DE18: x | DF18: x | DG18: x | DH18: x | DI18: x | DJ18: x | DK18: x | DL18: x | DM18: x | DN18: x | DO18: x | DP18: x | DQ18: x | DR18: x | DS18: x | DT18: x | DU18: x | DV18: x | DW18: x | DX18: x | DY18: x | DZ18: x | EA18: x | EB18: x | EC18: x | ED18: x | EE18: x | EF18: x | EG18: x | EH18: x | EI18: x | EJ18: x | EK18: x | EO18: 0 | EQ18: =IF(OR($V18="Utility",$AA18=0),"x",IF($G18="cold","x",IF(AND(EQ$10>$F18,EP$10<$E18),IF(EP$10>$F18,IF(EQ$10>$E18,$U18/($E18-$F18)*($E18-EP$10),$U18/($E18-$F18)*(EQ$10-EP$10)),$U18/($E18-$F18)*(EQ$10-$F18)),"x"))) -> x | ER18: x | ES18: x | ET18: x | EU18: x | EV18: x | EW18: x | EX18: x | EY18: x | EZ18: x | FA18: x | FB18: x | FC18: x | FD18: x | FE18: x | FF18: x | FG18: x | FH18: x | FI18: x | FJ18: x | FK18: x | FL18: x | FM18: x | FN18: x | FO18: x | FP18: x | FQ18: x | FR18: x | FS18: x | FT18: x | FU18: x | FV18: x | FW18: =IF(OR($V18="Utility",$AA18=0),"x",IF($G18="cold","x",IF(AND(FW$10>$F18,FV$10<$E18),IF(FV$10>$F18,IF(FW$10>$E18,$U18/($E18-$F18)*($E18-FV$10),$U18/($E18-$F18)*(FW$10-FV$10)),$U18/($E18-$F18)*(FW$10-$F18)),"x"))) -> x | FX18: x | FY18: x | FZ18: x | GA18: x | GB18: x | GC18: x | GD18: x | GE18: x | GF18: x | GG18: x | GH18: x | GI18: x | GJ18: x | GK18: x | GL18: x | GM18: x | GN18: x | GO18: x | GP18: x | GQ18: x | GR18: x | GS18: x | GT18: x | GU18: x | GV18: x | GW18: x | GX18: x | GY18: x | GZ18: x | HA18: x | HB18: x | HC18: =IF(OR($V18="Utility",$AA18=0),"x",IF($G18="cold","x",IF(AND(HC$10>$F18,HB$10<$E18),IF(HB$10>$F18,IF(HC$10>$E18,$U18/($E18-$F18)*($E18-HB$10),$U18/($E18-$F18)*(HC$10-HB$10)),$U18/($E18-$F18)*(HC$10-$F18)),"x"))) -> x | HD18: x | HE18: x | HF18: x | HG18: x | HH18: x | HI18: x | HJ18: x | HK18: x | HL18: x | HM18: x | HN18: x | HO18: x | HP18: x | HQ18: x | HR18: x | HS18: x | HT18: x | HU18: x | HV18: x | HW18: x | HX18: x | HY18: x | HZ18: x | IA18: x | IB18: x | IC18: x | ID18: x | IE18: x | IF18: x | IG18: x | IH18: x | II18: x | IJ18: x | IK18: x | IL18: x | IM18: x
B19: =IF(G19="hot",COUNTIF($G$11:G19,"hot"),"") ->  | C19: =IF(G19="cold",COUNTIF($G$11:G19,"cold"),"") ->  | AM19: 0 | AO19: =IF(OR($V19="Utility",$AA19=0),"x",IF($G19="hot","x",IF(AND(AO$10>$E19,AN$10<$F19),IF(AN$10>$E19,IF(AO$10>$F19,$U19/($F19-$E19)*($F19-AN$10),$U19/($F19-$E19)*(AO$10-AN$10)),$U19/($F19-$E19)*(AO$10-$E19)),"x"))) -> x | AP19: x | AQ19: x | AR19: x | AS19: x | AT19: x | AU19: x | AV19: x | AW19: x | AX19: x | AY19: x | AZ19: x | BA19: x | BB19: x | BC19: x | BD19: x | BE19: x | BF19: x | BG19: x | BH19: x | BI19: x | BJ19: x | BK19: x | BL19: x | BM19: x | BN19: x | BO19: x | BP19: x | BQ19: x | BR19: x | BS19: x | BT19: x | BU19: =IF(OR($V19="Utility",$AA19=0),"x",IF($G19="hot","x",IF(AND(BU$10>$E19,BT$10<$F19),IF(BT$10>$E19,IF(BU$10>$F19,$U19/($F19-$E19)*($F19-BT$10),$U19/($F19-$E19)*(BU$10-BT$10)),$U19/($F19-$E19)*(BU$10-$E19)),"x"))) -> x | BV19: x | BW19: x | BX19: x | BY19: x | BZ19: x | CA19: x | CB19: x | CC19: x | CD19: x | CE19: x | CF19: x | CG19: x | CH19: x | CI19: x | CJ19: x | CK19: x | CL19: x | CM19: x | CN19: x | CO19: x | CP19: x | CQ19: x | CR19: x | CS19: x | CT19: x | CU19: x | CV19: x | CW19: x | CX19: x | CY19: x | CZ19: x | DA19: =IF(OR($V19="Utility",$AA19=0),"x",IF($G19="hot","x",IF(AND(DA$10>$E19,CZ$10<$F19),IF(CZ$10>$E19,IF(DA$10>$F19,$U19/($F19-$E19)*($F19-CZ$10),$U19/($F19-$E19)*(DA$10-CZ$10)),$U19/($F19-$E19)*(DA$10-$E19)),"x"))) -> x | DB19: x | DC19: x | DD19: x | DE19: x | DF19: x | DG19: x | DH19: x | DI19: x | DJ19: x | DK19: x | DL19: x | DM19: x | DN19: x | DO19: x | DP19: x | DQ19: x | DR19: x | DS19: x | DT19: x | DU19: x | DV19: x | DW19: x | DX19: x | DY19: x | DZ19: x | EA19: x | EB19: x | EC19: x | ED19: x | EE19: x | EF19: x | EG19: x | EH19: x | EI19: x | EJ19: x | EK19: x | EO19: 0 | EQ19: =IF(OR($V19="Utility",$AA19=0),"x",IF($G19="cold","x",IF(AND(EQ$10>$F19,EP$10<$E19),IF(EP$10>$F19,IF(EQ$10>$E19,$U19/($E19-$F19)*($E19-EP$10),$U19/($E19-$F19)*(EQ$10-EP$10)),$U19/($E19-$F19)*(EQ$10-$F19)),"x"))) -> x | ER19: x | ES19: x | ET19: x | EU19: x | EV19: x | EW19: x | EX19: x | EY19: x | EZ19: x | FA19: x | FB19: x | FC19: x | FD19: x | FE19: x | FF19: x | FG19: x | FH19: x | FI19: x | FJ19: x | FK19: x | FL19: x | FM19: x | FN19: x | FO19: x | FP19: x | FQ19: x | FR19: x | FS19: x | FT19: x | FU19: x | FV19: x | FW19: =IF(OR($V19="Utility",$AA19=0),"x",IF($G19="cold","x",IF(AND(FW$10>$F19,FV$10<$E19),IF(FV$10>$F19,IF(FW$10>$E19,$U19/($E19-$F19)*($E19-FV$10),$U19/($E19-$F19)*(FW$10-FV$10)),$U19/($E19-$F19)*(FW$10-$F19)),"x"))) -> x | FX19: x | FY19: x | FZ19: x | GA19: x | GB19: x | GC19: x | GD19: x | GE19: x | GF19: x | GG19: x | GH19: x | GI19: x | GJ19: x | GK19: x | GL19: x | GM19: x | GN19: x | GO19: x | GP19: x | GQ19: x | GR19: x | GS19: x | GT19: x | GU19: x | GV19: x | GW19: x | GX19: x | GY19: x | GZ19: x | HA19: x | HB19: x | HC19: =IF(OR($V19="Utility",$AA19=0),"x",IF($G19="cold","x",IF(AND(HC$10>$F19,HB$10<$E19),IF(HB$10>$F19,IF(HC$10>$E19,$U19/($E19-$F19)*($E19-HB$10),$U19/($E19-$F19)*(HC$10-HB$10)),$U19/($E19-$F19)*(HC$10-$F19)),"x"))) -> x | HD19: x | HE19: x | HF19: x | HG19: x | HH19: x | HI19: x | HJ19: x | HK19: x | HL19: x | HM19: x | HN19: x | HO19: x | HP19: x | HQ19: x | HR19: x | HS19: x | HT19: x | HU19: x | HV19: x | HW19: x | HX19: x | HY19: x | HZ19: x | IA19: x | IB19: x | IC19: x | ID19: x | IE19: x | IF19: x | IG19: x | IH19: x | II19: x | IJ19: x | IK19: x | IL19: x | IM19: x | IQ19: Slope CCC | IR19: =IF(OR(IR16<$AJ$7+dTminActual/2,IR16>=$AJ$8+dTminActual/2),0,INDEX($AO$7:$EK$10,1,IR27+1)/(INDEX($AO$7:$EK$10,3,IR27+1)-INDEX($AO$7:$EK$10,3,IR27))) -> 0 | IS19: 0 | IT19: 0 | IU19: 0 | IV19: 0 | IW19: 0 | IX19: 0 | IY19: 0 | IZ19: 0 | JA19: 0 | JB19: 0 | JC19: 0 | JD19: 0 | JE19: 0 | JF19: 0 | JG19: 0 | JH19: 0 | JI19: 0 | JJ19: 0 | JK19: 0 | JL19: 0 | JM19: 0 | JN19: 0 | JO19: 0 | JP19: 0 | JQ19: 0 | JR19: 0 | JS19: 0 | JT19: 0 | JU19: 0 | JV19: 0 | JW19: 0 | JX19: =IF(OR(JX16<$AJ$7+dTminActual/2,JX16>=$AJ$8+dTminActual/2),0,INDEX($AO$7:$EK$10,1,JX27+1)/(INDEX($AO$7:$EK$10,3,JX27+1)-INDEX($AO$7:$EK$10,3,JX27))) -> 0 | JY19: 0 | JZ19: 0 | KA19: 0 | KB19: 0 | KC19: 0 | KD19: 0 | KE19: 0 | KF19: 0 | KG19: 0 | KH19: 0 | KI19: 0 | KJ19: 0 | KK19: 0 | KL19: 0 | KM19: 0 | KN19: 0 | KO19: 0 | KP19: 0 | KQ19: 0 | KR19: 0 | KS19: 0 | KT19: 0 | KU19: 0 | KV19: 0 | KW19: 0 | KX19: 0 | KY19: 0 | KZ19: 0 | LA19: 0 | LB19: 0 | LC19: 0 | LD19: =IF(OR(LD16<$AJ$7+dTminActual/2,LD16>=$AJ$8+dTminActual/2),0,INDEX($AO$7:$EK$10,1,LD27+1)/(INDEX($AO$7:$EK$10,3,LD27+1)-INDEX($AO$7:$EK$10,3,LD27))) -> 0 | LE19: 0 | LF19: 0 | LG19: 0 | LH19: 0 | LI19: 0 | LJ19: 0 | LK19: 0 | LL19: 0 | LM19: 0 | LN19: 0 | LO19: 0 | LP19: 0 | LQ19: 0 | LR19: 0 | LS19: 0 | LT19: 0 | LU19: 0 | LV19: 0 | LW19: 0 | LX19: 0 | LY19: 0 | LZ19: 0 | MA19: 0 | MB19: 0 | MC19: 0 | MD19: 0 | ME19: 0 | MF19: 0 | MG19: 0 | MH19: 0 | MI19: 0 | MJ19: 0 | MK19: 0 | ML19: 0 | MM19: 0 | MN19: 0
B20: =IF(G20="hot",COUNTIF($G$11:G20,"hot"),"") ->  | C20: =IF(G20="cold",COUNTIF($G$11:G20,"cold"),"") ->  | AM20: 0 | AO20: =IF(OR($V20="Utility",$AA20=0),"x",IF($G20="hot","x",IF(AND(AO$10>$E20,AN$10<$F20),IF(AN$10>$E20,IF(AO$10>$F20,$U20/($F20-$E20)*($F20-AN$10),$U20/($F20-$E20)*(AO$10-AN$10)),$U20/($F20-$E20)*(AO$10-$E20)),"x"))) -> x | AP20: x | AQ20: x | AR20: x | AS20: x | AT20: x | AU20: x | AV20: x | AW20: x | AX20: x | AY20: x | AZ20: x | BA20: x | BB20: x | BC20: x | BD20: x | BE20: x | BF20: x | BG20: x | BH20: x | BI20: x | BJ20: x | BK20: x | BL20: x | BM20: x | BN20: x | BO20: x | BP20: x | BQ20: x | BR20: x | BS20: x | BT20: x | BU20: =IF(OR($V20="Utility",$AA20=0),"x",IF($G20="hot","x",IF(AND(BU$10>$E20,BT$10<$F20),IF(BT$10>$E20,IF(BU$10>$F20,$U20/($F20-$E20)*($F20-BT$10),$U20/($F20-$E20)*(BU$10-BT$10)),$U20/($F20-$E20)*(BU$10-$E20)),"x"))) -> x | BV20: x | BW20: x | BX20: x | BY20: x | BZ20: x | CA20: x | CB20: x | CC20: x | CD20: x | CE20: x | CF20: x | CG20: x | CH20: x | CI20: x | CJ20: x | CK20: x | CL20: x | CM20: x | CN20: x | CO20: x | CP20: x | CQ20: x | CR20: x | CS20: x | CT20: x | CU20: x | CV20: x | CW20: x | CX20: x | CY20: x | CZ20: x | DA20: =IF(OR($V20="Utility",$AA20=0),"x",IF($G20="hot","x",IF(AND(DA$10>$E20,CZ$10<$F20),IF(CZ$10>$E20,IF(DA$10>$F20,$U20/($F20-$E20)*($F20-CZ$10),$U20/($F20-$E20)*(DA$10-CZ$10)),$U20/($F20-$E20)*(DA$10-$E20)),"x"))) -> x | DB20: x | DC20: x | DD20: x | DE20: x | DF20: x | DG20: x | DH20: x | DI20: x | DJ20: x | DK20: x | DL20: x | DM20: x | DN20: x | DO20: x | DP20: x | DQ20: x | DR20: x | DS20: x | DT20: x | DU20: x | DV20: x | DW20: x | DX20: x | DY20: x | DZ20: x | EA20: x | EB20: x | EC20: x | ED20: x | EE20: x | EF20: x | EG20: x | EH20: x | EI20: x | EJ20: x | EK20: x | EO20: 0 | EQ20: =IF(OR($V20="Utility",$AA20=0),"x",IF($G20="cold","x",IF(AND(EQ$10>$F20,EP$10<$E20),IF(EP$10>$F20,IF(EQ$10>$E20,$U20/($E20-$F20)*($E20-EP$10),$U20/($E20-$F20)*(EQ$10-EP$10)),$U20/($E20-$F20)*(EQ$10-$F20)),"x"))) -> x | ER20: x | ES20: x | ET20: x | EU20: x | EV20: x | EW20: x | EX20: x | EY20: x | EZ20: x | FA20: x | FB20: x | FC20: x | FD20: x | FE20: x | FF20: x | FG20: x | FH20: x | FI20: x | FJ20: x | FK20: x | FL20: x | FM20: x | FN20: x | FO20: x | FP20: x | FQ20: x | FR20: x | FS20: x | FT20: x | FU20: x | FV20: x | FW20: =IF(OR($V20="Utility",$AA20=0),"x",IF($G20="cold","x",IF(AND(FW$10>$F20,FV$10<$E20),IF(FV$10>$F20,IF(FW$10>$E20,$U20/($E20-$F20)*($E20-FV$10),$U20/($E20-$F20)*(FW$10-FV$10)),$U20/($E20-$F20)*(FW$10-$F20)),"x"))) -> x | FX20: x | FY20: x | FZ20: x | GA20: x | GB20: x | GC20: x | GD20: x | GE20: x | GF20: x | GG20: x | GH20: x | GI20: x | GJ20: x | GK20: x | GL20: x | GM20: x | GN20: x | GO20: x | GP20: x | GQ20: x | GR20: x | GS20: x | GT20: x | GU20: x | GV20: x | GW20: x | GX20: x | GY20: x | GZ20: x | HA20: x | HB20: x | HC20: =IF(OR($V20="Utility",$AA20=0),"x",IF($G20="cold","x",IF(AND(HC$10>$F20,HB$10<$E20),IF(HB$10>$F20,IF(HC$10>$E20,$U20/($E20-$F20)*($E20-HB$10),$U20/($E20-$F20)*(HC$10-HB$10)),$U20/($E20-$F20)*(HC$10-$F20)),"x"))) -> x | HD20: x | HE20: x | HF20: x | HG20: x | HH20: x | HI20: x | HJ20: x | HK20: x | HL20: x | HM20: x | HN20: x | HO20: x | HP20: x | HQ20: x | HR20: x | HS20: x | HT20: x | HU20: x | HV20: x | HW20: x | HX20: x | HY20: x | HZ20: x | IA20: x | IB20: x | IC20: x | ID20: x | IE20: x | IF20: x | IG20: x | IH20: x | II20: x | IJ20: x | IK20: x | IL20: x | IM20: x | IQ20: Slope HCC | IR20: =IF(OR(IR16<$AJ$10-dTminActual/2,IR16>=$AJ$11-dTminActual/2),0,INDEX($EQ$7:$IM$10,1,IR28+1)/(INDEX($EQ$7:$IM$10,3,IR28+1)-INDEX($EQ$7:$IM$10,3,IR28))) -> 0 | IS20: 0 | IT20: 0 | IU20: 0 | IV20: 0 | IW20: 0 | IX20: 0 | IY20: 0 | IZ20: 0 | JA20: 0 | JB20: 0 | JC20: 0 | JD20: 0 | JE20: 0 | JF20: 0 | JG20: 0 | JH20: 0 | JI20: 0 | JJ20: 0 | JK20: 0 | JL20: 0 | JM20: 0 | JN20: 0 | JO20: 0 | JP20: 0 | JQ20: 0 | JR20: 0 | JS20: 0 | JT20: 0 | JU20: 0 | JV20: 0 | JW20: 0 | JX20: =IF(OR(JX16<$AJ$10-dTminActual/2,JX16>=$AJ$11-dTminActual/2),0,INDEX($EQ$7:$IM$10,1,JX28+1)/(INDEX($EQ$7:$IM$10,3,JX28+1)-INDEX($EQ$7:$IM$10,3,JX28))) -> 0 | JY20: 0 | JZ20: 0 | KA20: 0 | KB20: 0 | KC20: 0 | KD20: 0 | KE20: 0 | KF20: 0 | KG20: 0 | KH20: 0 | KI20: 0 | KJ20: 0 | KK20: 0 | KL20: 0 | KM20: 0 | KN20: 0 | KO20: 0 | KP20: 0 | KQ20: 0 | KR20: 0 | KS20: 0 | KT20: 0 | KU20: 0 | KV20: 10 | KW20: =IF(OR(KW16<$AJ$10-dTminActual/2,KW16>=$AJ$11-dTminActual/2),0,INDEX($EQ$7:$IM$10,1,KW28+1)/(INDEX($EQ$7:$IM$10,3,KW28+1)-INDEX($EQ$7:$IM$10,3,KW28))) -> 0 | KX20: 0 | KY20: 0 | KZ20: 0 | LA20: 0 | LB20: 0 | LC20: 0 | LD20: 0 | LE20: 0 | LF20: 0 | LG20: 0 | LH20: 0 | LI20: 0 | LJ20: 0 | LK20: 0 | LL20: 0 | LM20: 0 | LN20: 0 | LO20: 0 | LP20: 0 | LQ20: 0 | LR20: 0 | LS20: 0 | LT20: 0 | LU20: 0 | LV20: 0 | LW20: 0 | LX20: 0 | LY20: 0 | LZ20: 0 | MA20: 0 | MB20: 0 | MC20: 0 | MD20: 0 | ME20: 0 | MF20: 0 | MG20: 0 | MH20: 0 | MI20: 0 | MJ20: 0 | MK20: 0 | ML20: 0 | MM20: 0 | MN20: 0
B21: =IF(G21="hot",COUNTIF($G$11:G21,"hot"),"") ->  | C21: =IF(G21="cold",COUNTIF($G$11:G21,"cold"),"") ->  | W21: =IF(G21="hot",J21,"") ->  | AI21: CCC high | AJ21: =EK8 -> 62.4 | AK21: MWh | AM21: 0 | AO21: =IF(OR($V21="Utility",$AA21=0),"x",IF($G21="hot","x",IF(AND(AO$10>$E21,AN$10<$F21),IF(AN$10>$E21,IF(AO$10>$F21,$U21/($F21-$E21)*($F21-AN$10),$U21/($F21-$E21)*(AO$10-AN$10)),$U21/($F21-$E21)*(AO$10-$E21)),"x"))) -> x | AP21: x | AQ21: x | AR21: x | AS21: x | AT21: x | AU21: x | AV21: x | AW21: x | AX21: x | AY21: x | AZ21: x | BA21: x | BB21: x | BC21: x | BD21: x | BE21: x | BF21: x | BG21: x | BH21: x | BI21: x | BJ21: x | BK21: x | BL21: x | BM21: x | BN21: x | BO21: x | BP21: x | BQ21: x | BR21: x | BS21: x | BT21: x | BU21: =IF(OR($V21="Utility",$AA21=0),"x",IF($G21="hot","x",IF(AND(BU$10>$E21,BT$10<$F21),IF(BT$10>$E21,IF(BU$10>$F21,$U21/($F21-$E21)*($F21-BT$10),$U21/($F21-$E21)*(BU$10-BT$10)),$U21/($F21-$E21)*(BU$10-$E21)),"x"))) -> x | BV21: x | BW21: x | BX21: x | BY21: x | BZ21: x | CA21: x | CB21: x | CC21: x | CD21: x | CE21: x | CF21: x | CG21: x | CH21: x | CI21: x | CJ21: x | CK21: x | CL21: x | CM21: x | CN21: x | CO21: x | CP21: x | CQ21: x | CR21: x | CS21: x | CT21: x | CU21: x | CV21: x | CW21: x | CX21: x | CY21: x | CZ21: x | DA21: =IF(OR($V21="Utility",$AA21=0),"x",IF($G21="hot","x",IF(AND(DA$10>$E21,CZ$10<$F21),IF(CZ$10>$E21,IF(DA$10>$F21,$U21/($F21-$E21)*($F21-CZ$10),$U21/($F21-$E21)*(DA$10-CZ$10)),$U21/($F21-$E21)*(DA$10-$E21)),"x"))) -> x | DB21: x | DC21: x | DD21: x | DE21: x | DF21: x | DG21: x | DH21: x | DI21: x | DJ21: x | DK21: x | DL21: x | DM21: x | DN21: x | DO21: x | DP21: x | DQ21: x | DR21: x | DS21: x | DT21: x | DU21: x | DV21: x | DW21: x | DX21: x | DY21: x | DZ21: x | EA21: x | EB21: x | EC21: x | ED21: x | EE21: x | EF21: x | EG21: x | EH21: x | EI21: x | EJ21: x | EK21: x | EO21: 0 | EQ21: =IF(OR($V21="Utility",$AA21=0),"x",IF($G21="cold","x",IF(AND(EQ$10>$F21,EP$10<$E21),IF(EP$10>$F21,IF(EQ$10>$E21,$U21/($E21-$F21)*($E21-EP$10),$U21/($E21-$F21)*(EQ$10-EP$10)),$U21/($E21-$F21)*(EQ$10-$F21)),"x"))) -> x | ER21: x | ES21: x | ET21: x | EU21: x | EV21: x | EW21: x | EX21: x | EY21: x | EZ21: x | FA21: x | FB21: x | FC21: x | FD21: x | FE21: x | FF21: x | FG21: x | FH21: x | FI21: x | FJ21: x | FK21: x | FL21: x | FM21: x | FN21: x | FO21: x | FP21: x | FQ21: x | FR21: x | FS21: x | FT21: x | FU21: x | FV21: x | FW21: =IF(OR($V21="Utility",$AA21=0),"x",IF($G21="cold","x",IF(AND(FW$10>$F21,FV$10<$E21),IF(FV$10>$F21,IF(FW$10>$E21,$U21/($E21-$F21)*($E21-FV$10),$U21/($E21-$F21)*(FW$10-FV$10)),$U21/($E21-$F21)*(FW$10-$F21)),"x"))) -> x | FX21: x | FY21: x | FZ21: x | GA21: x | GB21: x | GC21: x | GD21: x | GE21: x | GF21: x | GG21: x | GH21: x | GI21: x | GJ21: x | GK21: x | GL21: x | GM21: x | GN21: x | GO21: x | GP21: x | GQ21: x | GR21: x | GS21: x | GT21: x | GU21: x | GV21: x | GW21: x | GX21: x | GY21: x | GZ21: x | HA21: x | HB21: x | HC21: =IF(OR($V21="Utility",$AA21=0),"x",IF($G21="cold","x",IF(AND(HC$10>$F21,HB$10<$E21),IF(HB$10>$F21,IF(HC$10>$E21,$U21/($E21-$F21)*($E21-HB$10),$U21/($E21-$F21)*(HC$10-HB$10)),$U21/($E21-$F21)*(HC$10-$F21)),"x"))) -> x | HD21: x | HE21: x | HF21: x | HG21: x | HH21: x | HI21: x | HJ21: x | HK21: x | HL21: x | HM21: x | HN21: x | HO21: x | HP21: x | HQ21: x | HR21: x | HS21: x | HT21: x | HU21: x | HV21: x | HW21: x | HX21: x | HY21: x | HZ21: x | IA21: x | IB21: x | IC21: x | ID21: x | IE21: x | IF21: x | IG21: x | IH21: x | II21: x | IJ21: x | IK21: x | IL21: x | IM21: x | IQ21: H CCC | IR21: =IR19*(IS16-IR16) -> 0 | IS21: =IS19*(IT16-IS16) -> 0 | IT21: 0 | IU21: 0 | IV21: 0 | IW21: 0 | IX21: 0 | IY21: 0 | IZ21: 0 | JA21: 0 | JB21: 0 | JC21: 0 | JD21: 0 | JE21: 0 | JF21: 0 | JG21: 0 | JH21: 0 | JI21: 0 | JJ21: 0 | JK21: 0 | JL21: 0 | JM21: 0 | JN21: 0 | JO21: 0 | JP21: 0 | JQ21: 0 | JR21: 0 | JS21: 0 | JT21: 0 | JU21: 0 | JV21: 0 | JW21: 0 | JX21: 0 | JY21: 0 | JZ21: 0 | KA21: 0 | KB21: 0 | KC21: 0 | KD21: 0 | KE21: 0 | KF21: 0 | KG21: 0 | KH21: 0 | KI21: 0 | KJ21: 0 | KK21: 0 | KL21: 0 | KM21: 0 | KN21: 0 | KO21: 0 | KP21: 0 | KQ21: 0 | KR21: 0 | KS21: 0 | KT21: 0 | KU21: 0 | KV21: 0 | KW21: 0 | KX21: 0 | KY21: 0 | KZ21: 0 | LA21: 0 | LB21: 0 | LC21: 0 | LD21: 0 | LE21: =LE19*(LF16-LE16) -> 0 | LF21: 0 | LG21: 0 | LH21: 0 | LI21: 0 | LJ21: 0 | LK21: 0 | LL21: 0 | LM21: 0 | LN21: 0 | LO21: 0 | LP21: 0 | LQ21: 0 | LR21: 0 | LS21: 0 | LT21: 0 | LU21: 0 | LV21: 0 | LW21: 0 | LX21: 0 | LY21: 0 | LZ21: 0 | MA21: 0 | MB21: 0 | MC21: 0 | MD21: 0 | ME21: 0 | MF21: 0 | MG21: 0 | MH21: 0 | MI21: 0 | MJ21: 0 | MK21: 0 | ML21: 0 | MM21: 0 | MN21: 0
B22: =IF(G22="hot",COUNTIF($G$11:G22,"hot"),"") ->  | C22: =IF(G22="cold",COUNTIF($G$11:G22,"cold"),"") ->  | AI22: CCC low | AJ22: =AO8 -> 62.4 | AK22: MWh | AM22: 0 | AO22: =IF(OR($V22="Utility",$AA22=0),"x",IF($G22="hot","x",IF(AND(AO$10>$E22,AN$10<$F22),IF(AN$10>$E22,IF(AO$10>$F22,$U22/($F22-$E22)*($F22-AN$10),$U22/($F22-$E22)*(AO$10-AN$10)),$U22/($F22-$E22)*(AO$10-$E22)),"x"))) -> x | AP22: x | AQ22: x | AR22: x | AS22: x | AT22: x | AU22: x | AV22: x | AW22: x | AX22: x | AY22: x | AZ22: x | BA22: x | BB22: x | BC22: x | BD22: x | BE22: x | BF22: x | BG22: x | BH22: x | BI22: x | BJ22: x | BK22: x | BL22: x | BM22: x | BN22: x | BO22: x | BP22: x | BQ22: x | BR22: x | BS22: x | BT22: x | BU22: =IF(OR($V22="Utility",$AA22=0),"x",IF($G22="hot","x",IF(AND(BU$10>$E22,BT$10<$F22),IF(BT$10>$E22,IF(BU$10>$F22,$U22/($F22-$E22)*($F22-BT$10),$U22/($F22-$E22)*(BU$10-BT$10)),$U22/($F22-$E22)*(BU$10-$E22)),"x"))) -> x | BV22: x | BW22: x | BX22: x | BY22: x | BZ22: x | CA22: x | CB22: x | CC22: x | CD22: x | CE22: x | CF22: x | CG22: x | CH22: x | CI22: x | CJ22: x | CK22: x | CL22: x | CM22: x | CN22: x | CO22: x | CP22: x | CQ22: x | CR22: x | CS22: x | CT22: x | CU22: x | CV22: x | CW22: x | CX22: x | CY22: x | CZ22: x | DA22: =IF(OR($V22="Utility",$AA22=0),"x",IF($G22="hot","x",IF(AND(DA$10>$E22,CZ$10<$F22),IF(CZ$10>$E22,IF(DA$10>$F22,$U22/($F22-$E22)*($F22-CZ$10),$U22/($F22-$E22)*(DA$10-CZ$10)),$U22/($F22-$E22)*(DA$10-$E22)),"x"))) -> x | DB22: x | DC22: x | DD22: x | DE22: x | DF22: x | DG22: x | DH22: x | DI22: x | DJ22: x | DK22: x | DL22: x | DM22: x | DN22: x | DO22: x | DP22: x | DQ22: x | DR22: x | DS22: x | DT22: x | DU22: x | DV22: x | DW22: x | DX22: x | DY22: x | DZ22: x | EA22: x | EB22: x | EC22: x | ED22: x | EE22: x | EF22: x | EG22: x | EH22: x | EI22: x | EJ22: x | EK22: x | EO22: 0 | EQ22: =IF(OR($V22="Utility",$AA22=0),"x",IF($G22="cold","x",IF(AND(EQ$10>$F22,EP$10<$E22),IF(EP$10>$F22,IF(EQ$10>$E22,$U22/($E22-$F22)*($E22-EP$10),$U22/($E22-$F22)*(EQ$10-EP$10)),$U22/($E22-$F22)*(EQ$10-$F22)),"x"))) -> x | ER22: x | ES22: x | ET22: x | EU22: x | EV22: x | EW22: x | EX22: x | EY22: x | EZ22: x | FA22: x | FB22: x | FC22: x | FD22: x | FE22: x | FF22: x | FG22: x | FH22: x | FI22: x | FJ22: x | FK22: x | FL22: x | FM22: x | FN22: x | FO22: x | FP22: x | FQ22: x | FR22: x | FS22: x | FT22: x | FU22: x | FV22: x | FW22: =IF(OR($V22="Utility",$AA22=0),"x",IF($G22="cold","x",IF(AND(FW$10>$F22,FV$10<$E22),IF(FV$10>$F22,IF(FW$10>$E22,$U22/($E22-$F22)*($E22-FV$10),$U22/($E22-$F22)*(FW$10-FV$10)),$U22/($E22-$F22)*(FW$10-$F22)),"x"))) -> x | FX22: x | FY22: x | FZ22: x | GA22: x | GB22: x | GC22: x | GD22: x | GE22: x | GF22: x | GG22: x | GH22: x | GI22: x | GJ22: x | GK22: x | GL22: x | GM22: x | GN22: x | GO22: x | GP22: x | GQ22: x | GR22: x | GS22: x | GT22: x | GU22: x | GV22: x | GW22: x | GX22: x | GY22: x | GZ22: x | HA22: x | HB22: x | HC22: =IF(OR($V22="Utility",$AA22=0),"x",IF($G22="cold","x",IF(AND(HC$10>$F22,HB$10<$E22),IF(HB$10>$F22,IF(HC$10>$E22,$U22/($E22-$F22)*($E22-HB$10),$U22/($E22-$F22)*(HC$10-HB$10)),$U22/($E22-$F22)*(HC$10-$F22)),"x"))) -> x | HD22: x | HE22: x | HF22: x | HG22: x | HH22: x | HI22: x | HJ22: x | HK22: x | HL22: x | HM22: x | HN22: x | HO22: x | HP22: x | HQ22: x | HR22: x | HS22: x | HT22: x | HU22: x | HV22: x | HW22: x | HX22: x | HY22: x | HZ22: x | IA22: x | IB22: x | IC22: x | ID22: x | IE22: x | IF22: x | IG22: x | IH22: x | II22: x | IJ22: x | IK22: x | IL22: x | IM22: x | IQ22: H HCC | IR22: =IR20*(IS16-IR16) -> 0 | IS22: =IS20*(IT16-IS16) -> 0 | IT22: 0 | IU22: 0 | IV22: 0 | IW22: 0 | IX22: 0 | IY22: 0 | IZ22: 0 | JA22: 0 | JB22: 0 | JC22: 0 | JD22: 0 | JE22: 0 | JF22: 0 | JG22: 0 | JH22: 0 | JI22: 0 | JJ22: 0 | JK22: 0 | JL22: 0 | JM22: 0 | JN22: 0 | JO22: 0 | JP22: 0 | JQ22: 0 | JR22: 0 | JS22: 0 | JT22: 0 | JU22: 0 | JV22: 0 | JW22: 0 | JX22: 0 | JY22: 0 | JZ22: 0 | KA22: 0 | KB22: 0 | KC22: 0 | KD22: 0 | KE22: 0 | KF22: 0 | KG22: 0 | KH22: 0 | KI22: 0 | KJ22: 0 | KK22: 0 | KL22: 0 | KM22: 0 | KN22: 0 | KO22: 0 | KP22: 0 | KQ22: 0 | KR22: 0 | KS22: 0 | KT22: 0 | KU22: 0 | KV22: 0 | KW22: 0 | KX22: 0 | KY22: 0 | KZ22: 0 | LA22: 0 | LB22: 0 | LC22: 0 | LD22: 0 | LE22: =LE20*(LF16-LE16) -> 0 | LF22: 0 | LG22: 0 | LH22: 0 | LI22: 0 | LJ22: 0 | LK22: 0 | LL22: 0 | LM22: 0 | LN22: 0 | LO22: 0 | LP22: 0 | LQ22: 0 | LR22: 0 | LS22: 0 | LT22: 0 | LU22: 0 | LV22: 0 | LW22: 0 | LX22: 0 | LY22: 0 | LZ22: 0 | MA22: 0 | MB22: 0 | MC22: 0 | MD22: 0 | ME22: 0 | MF22: 0 | MG22: 0 | MH22: 0 | MI22: 0 | MJ22: 0 | MK22: 0 | ML22: 0 | MM22: 0 | MN22: 0
B23: =IF(G23="hot",COUNTIF($G$11:G23,"hot"),"") ->  | C23: =IF(G23="cold",COUNTIF($G$11:G23,"cold"),"") ->  | AI23: HCC high | AJ23: =IM8 -> 0 | AK23: MWh | AM23: 0 | AO23: =IF(OR($V23="Utility",$AA23=0),"x",IF($G23="hot","x",IF(AND(AO$10>$E23,AN$10<$F23),IF(AN$10>$E23,IF(AO$10>$F23,$U23/($F23-$E23)*($F23-AN$10),$U23/($F23-$E23)*(AO$10-AN$10)),$U23/($F23-$E23)*(AO$10-$E23)),"x"))) -> x | AP23: x | AQ23: x | AR23: x | AS23: x | AT23: x | AU23: x | AV23: x | AW23: x | AX23: x | AY23: x | AZ23: x | BA23: x | BB23: x | BC23: x | BD23: x | BE23: x | BF23: x | BG23: x | BH23: x | BI23: x | BJ23: x | BK23: x | BL23: x | BM23: x | BN23: x | BO23: x | BP23: x | BQ23: x | BR23: x | BS23: x | BT23: x | BU23: =IF(OR($V23="Utility",$AA23=0),"x",IF($G23="hot","x",IF(AND(BU$10>$E23,BT$10<$F23),IF(BT$10>$E23,IF(BU$10>$F23,$U23/($F23-$E23)*($F23-BT$10),$U23/($F23-$E23)*(BU$10-BT$10)),$U23/($F23-$E23)*(BU$10-$E23)),"x"))) -> x | BV23: x | BW23: x | BX23: x | BY23: x | BZ23: x | CA23: x | CB23: x | CC23: x | CD23: x | CE23: x | CF23: x | CG23: x | CH23: x | CI23: x | CJ23: x | CK23: x | CL23: x | CM23: x | CN23: x | CO23: x | CP23: x | CQ23: x | CR23: x | CS23: x | CT23: x | CU23: x | CV23: x | CW23: x | CX23: x | CY23: x | CZ23: x | DA23: =IF(OR($V23="Utility",$AA23=0),"x",IF($G23="hot","x",IF(AND(DA$10>$E23,CZ$10<$F23),IF(CZ$10>$E23,IF(DA$10>$F23,$U23/($F23-$E23)*($F23-CZ$10),$U23/($F23-$E23)*(DA$10-CZ$10)),$U23/($F23-$E23)*(DA$10-$E23)),"x"))) -> x | DB23: x | DC23: x | DD23: x | DE23: x | DF23: x | DG23: x | DH23: x | DI23: x | DJ23: x | DK23: x | DL23: x | DM23: x | DN23: x | DO23: x | DP23: x | DQ23: x | DR23: x | DS23: x | DT23: x | DU23: x | DV23: x | DW23: x | DX23: x | DY23: x | DZ23: x | EA23: x | EB23: x | EC23: x | ED23: x | EE23: x | EF23: x | EG23: x | EH23: x | EI23: x | EJ23: x | EK23: x | EO23: 0 | EQ23: =IF(OR($V23="Utility",$AA23=0),"x",IF($G23="cold","x",IF(AND(EQ$10>$F23,EP$10<$E23),IF(EP$10>$F23,IF(EQ$10>$E23,$U23/($E23-$F23)*($E23-EP$10),$U23/($E23-$F23)*(EQ$10-EP$10)),$U23/($E23-$F23)*(EQ$10-$F23)),"x"))) -> x | ER23: x | ES23: x | ET23: x | EU23: x | EV23: x | EW23: x | EX23: x | EY23: x | EZ23: x | FA23: x | FB23: x | FC23: x | FD23: x | FE23: x | FF23: x | FG23: x | FH23: x | FI23: x | FJ23: x | FK23: x | FL23: x | FM23: x | FN23: x | FO23: x | FP23: x | FQ23: x | FR23: x | FS23: x | FT23: x | FU23: x | FV23: x | FW23: =IF(OR($V23="Utility",$AA23=0),"x",IF($G23="cold","x",IF(AND(FW$10>$F23,FV$10<$E23),IF(FV$10>$F23,IF(FW$10>$E23,$U23/($E23-$F23)*($E23-FV$10),$U23/($E23-$F23)*(FW$10-FV$10)),$U23/($E23-$F23)*(FW$10-$F23)),"x"))) -> x | FX23: x | FY23: x | FZ23: x | GA23: x | GB23: x | GC23: x | GD23: x | GE23: x | GF23: x | GG23: x | GH23: x | GI23: x | GJ23: x | GK23: x | GL23: x | GM23: x | GN23: x | GO23: x | GP23: x | GQ23: x | GR23: x | GS23: x | GT23: x | GU23: x | GV23: x | GW23: x | GX23: x | GY23: x | GZ23: x | HA23: x | HB23: x | HC23: =IF(OR($V23="Utility",$AA23=0),"x",IF($G23="cold","x",IF(AND(HC$10>$F23,HB$10<$E23),IF(HB$10>$F23,IF(HC$10>$E23,$U23/($E23-$F23)*($E23-HB$10),$U23/($E23-$F23)*(HC$10-HB$10)),$U23/($E23-$F23)*(HC$10-$F23)),"x"))) -> x | HD23: x | HE23: x | HF23: x | HG23: x | HH23: x | HI23: x | HJ23: x | HK23: x | HL23: x | HM23: x | HN23: x | HO23: x | HP23: x | HQ23: x | HR23: x | HS23: x | HT23: x | HU23: x | HV23: x | HW23: x | HX23: x | HY23: x | HZ23: x | IA23: x | IB23: x | IC23: x | ID23: x | IE23: x | IF23: x | IG23: x | IH23: x | II23: x | IJ23: x | IK23: x | IL23: x | IM23: x | IQ23: acc | IR23: =IR21 -> 0 | IS23: =IS21+IR23 -> 0 | IT23: =IT21+IS23 -> 0 | IU23: 0 | IV23: 0 | IW23: 0 | IX23: 0 | IY23: 0 | IZ23: 0 | JA23: 0 | JB23: 0 | JC23: 0 | JD23: 0 | JE23: 0 | JF23: 0 | JG23: 0 | JH23: 0 | JI23: 0 | JJ23: 0 | JK23: 0 | JL23: 0 | JM23: 0 | JN23: 0 | JO23: 0 | JP23: 0 | JQ23: 0 | JR23: 0 | JS23: 0 | JT23: 0 | JU23: 0 | JV23: 0 | JW23: 0 | JX23: 0 | JY23: 0 | JZ23: 0 | KA23: 0 | KB23: 0 | KC23: 0 | KD23: 0 | KE23: 0 | KF23: 0 | KG23: 0 | KH23: 0 | KI23: 0 | KJ23: 0 | KK23: 0 | KL23: 0 | KM23: 0 | KN23: 0 | KO23: 0 | KP23: 0 | KQ23: 0 | KR23: 0 | KS23: 0 | KT23: 0 | KU23: 0 | KV23: 0 | KW23: 0 | KX23: 0 | KY23: 0 | KZ23: 0 | LA23: 0 | LB23: 0 | LC23: 0 | LD23: 0 | LE23: 0 | LF23: =LF21+LE23 -> 0 | LG23: 0 | LH23: 0 | LI23: 0 | LJ23: 0 | LK23: =LK21+LJ23 -> 0 | LL23: =LL21+LK23 -> 0 | LM23: 0 | LN23: 0 | LO23: 0 | LP23: 0 | LQ23: 0 | LR23: 0 | LS23: 0 | LT23: 0 | LU23: 0 | LV23: 0 | LW23: 0 | LX23: 0 | LY23: 0 | LZ23: 0 | MA23: 0 | MB23: 0 | MC23: 0 | MD23: 0 | ME23: 0 | MF23: 0 | MG23: 0 | MH23: 0 | MI23: 0 | MJ23: 0 | MK23: 0 | ML23: 0 | MM23: 0 | MN23: 0
A24: =IF(D24="","",A23+1) ->  | B24: =IF(G24="hot",COUNTIF($G$11:G24,"hot"),"") ->  | C24: =IF(G24="cold",COUNTIF($G$11:G24,"cold"),"") ->  | AI24: HCC low | AJ24: =EQ8 -> 0 | AK24: MWh | AM24: 0 | AO24: =IF(OR($V24="Utility",$AA24=0),"x",IF($G24="hot","x",IF(AND(AO$10>$E24,AN$10<$F24),IF(AN$10>$E24,IF(AO$10>$F24,$U24/($F24-$E24)*($F24-AN$10),$U24/($F24-$E24)*(AO$10-AN$10)),$U24/($F24-$E24)*(AO$10-$E24)),"x"))) -> x | AP24: x | AQ24: x | AR24: x | AS24: x | AT24: x | AU24: x | AV24: x | AW24: x | AX24: x | AY24: x | AZ24: x | BA24: x | BB24: x | BC24: x | BD24: x | BE24: x | BF24: x | BG24: x | BH24: x | BI24: x | BJ24: x | BK24: x | BL24: x | BM24: x | BN24: x | BO24: x | BP24: x | BQ24: x | BR24: x | BS24: x | BT24: x | BU24: =IF(OR($V24="Utility",$AA24=0),"x",IF($G24="hot","x",IF(AND(BU$10>$E24,BT$10<$F24),IF(BT$10>$E24,IF(BU$10>$F24,$U24/($F24-$E24)*($F24-BT$10),$U24/($F24-$E24)*(BU$10-BT$10)),$U24/($F24-$E24)*(BU$10-$E24)),"x"))) -> x | BV24: x | BW24: x | BX24: x | BY24: x | BZ24: x | CA24: x | CB24: x | CC24: x | CD24: x | CE24: x | CF24: x | CG24: x | CH24: x | CI24: x | CJ24: x | CK24: x | CL24: x | CM24: x | CN24: x | CO24: x | CP24: x | CQ24: x | CR24: x | CS24: x | CT24: x | CU24: x | CV24: x | CW24: x | CX24: x | CY24: x | CZ24: x | DA24: =IF(OR($V24="Utility",$AA24=0),"x",IF($G24="hot","x",IF(AND(DA$10>$E24,CZ$10<$F24),IF(CZ$10>$E24,IF(DA$10>$F24,$U24/($F24-$E24)*($F24-CZ$10),$U24/($F24-$E24)*(DA$10-CZ$10)),$U24/($F24-$E24)*(DA$10-$E24)),"x"))) -> x | DB24: x | DC24: x | DD24: x | DE24: x | DF24: x | DG24: x | DH24: x | DI24: x | DJ24: x | DK24: x | DL24: x | DM24: x | DN24: x | DO24: x | DP24: x | DQ24: x | DR24: x | DS24: x | DT24: x | DU24: x | DV24: x | DW24: x | DX24: x | DY24: x | DZ24: x | EA24: x | EB24: x | EC24: x | ED24: x | EE24: x | EF24: x | EG24: x | EH24: x | EI24: x | EJ24: x | EK24: x | EO24: 0 | EQ24: =IF(OR($V24="Utility",$AA24=0),"x",IF($G24="cold","x",IF(AND(EQ$10>$F24,EP$10<$E24),IF(EP$10>$F24,IF(EQ$10>$E24,$U24/($E24-$F24)*($E24-EP$10),$U24/($E24-$F24)*(EQ$10-EP$10)),$U24/($E24-$F24)*(EQ$10-$F24)),"x"))) -> x | ER24: x | ES24: x | ET24: x | EU24: x | EV24: x | EW24: x | EX24: x | EY24: x | EZ24: x | FA24: x | FB24: x | FC24: x | FD24: x | FE24: x | FF24: x | FG24: x | FH24: x | FI24: x | FJ24: x | FK24: x | FL24: x | FM24: x | FN24: x | FO24: x | FP24: x | FQ24: x | FR24: x | FS24: x | FT24: x | FU24: x | FV24: x | FW24: =IF(OR($V24="Utility",$AA24=0),"x",IF($G24="cold","x",IF(AND(FW$10>$F24,FV$10<$E24),IF(FV$10>$F24,IF(FW$10>$E24,$U24/($E24-$F24)*($E24-FV$10),$U24/($E24-$F24)*(FW$10-FV$10)),$U24/($E24-$F24)*(FW$10-$F24)),"x"))) -> x | FX24: x | FY24: x | FZ24: x | GA24: x | GB24: x | GC24: x | GD24: x | GE24: x | GF24: x | GG24: x | GH24: x | GI24: x | GJ24: x | GK24: x | GL24: x | GM24: x | GN24: x | GO24: x | GP24: x | GQ24: x | GR24: x | GS24: x | GT24: x | GU24: x | GV24: x | GW24: x | GX24: x | GY24: x | GZ24: x | HA24: x | HB24: x | HC24: =IF(OR($V24="Utility",$AA24=0),"x",IF($G24="cold","x",IF(AND(HC$10>$F24,HB$10<$E24),IF(HB$10>$F24,IF(HC$10>$E24,$U24/($E24-$F24)*($E24-HB$10),$U24/($E24-$F24)*(HC$10-HB$10)),$U24/($E24-$F24)*(HC$10-$F24)),"x"))) -> x | HD24: x | HE24: x | HF24: x | HG24: x | HH24: x | HI24: x | HJ24: x | HK24: x | HL24: x | HM24: x | HN24: x | HO24: x | HP24: x | HQ24: x | HR24: x | HS24: x | HT24: x | HU24: x | HV24: x | HW24: x | HX24: x | HY24: x | HZ24: x | IA24: x | IB24: x | IC24: x | ID24: x | IE24: x | IF24: x | IG24: x | IH24: x | II24: x | IJ24: x | IK24: x | IL24: x | IM24: x | IQ24: acc | IR24: =IR22 -> 0 | IS24: =IS22+IR24 -> 0 | IT24: 0 | IU24: 0 | IV24: 0 | IW24: 0 | IX24: 0 | IY24: 0 | IZ24: 0 | JA24: 0 | JB24: 0 | JC24: 0 | JD24: 0 | JE24: 0 | JF24: 0 | JG24: 0 | JH24: 0 | JI24: 0 | JJ24: 0 | JK24: 0 | JL24: 0 | JM24: 0 | JN24: 0 | JO24: 0 | JP24: 0 | JQ24: 0 | JR24: 0 | JS24: 0 | JT24: 0 | JU24: 0 | JV24: 0 | JW24: 0 | JX24: 0 | JY24: 0 | JZ24: 0 | KA24: 0 | KB24: 0 | KC24: 0 | KD24: 0 | KE24: 0 | KF24: 0 | KG24: 0 | KH24: 0 | KI24: 0 | KJ24: 0 | KK24: 0 | KL24: 0 | KM24: 0 | KN24: 0 | KO24: 0 | KP24: 0 | KQ24: 0 | KR24: 0 | KS24: 0 | KT24: 0 | KU24: 0 | KV24: 0 | KW24: 0 | KX24: 0 | KY24: 0 | KZ24: 0 | LA24: 0 | LB24: 0 | LC24: 0 | LD24: 0 | LE24: 0 | LF24: 0 | LG24: 0 | LH24: 0 | LI24: 0 | LJ24: 0 | LK24: =LK22+LJ24 -> 0 | LL24: 0 | LM24: 0 | LN24: 0 | LO24: 0 | LP24: 0 | LQ24: 0 | LR24: 0 | LS24: 0 | LT24: 0 | LU24: 0 | LV24: 0 | LW24: 0 | LX24: 0 | LY24: 0 | LZ24: 0 | MA24: 0 | MB24: 0 | MC24: 0 | MD24: 0 | ME24: 0 | MF24: 0 | MG24: 0 | MH24: 0 | MI24: 0 | MJ24: 0 | MK24: 0 | ML24: 0 | MM24: 0 | MN24: 0
A25: =IF(D25="","",A24+1) ->  | B25: =IF(G25="hot",COUNTIF($G$11:G25,"hot"),"") ->  | C25: =IF(G25="cold",COUNTIF($G$11:G25,"cold"),"") ->  | AM25: 0 | AO25: =IF(OR($V25="Utility",$AA25=0),"x",IF($G25="hot","x",IF(AND(AO$10>$E25,AN$10<$F25),IF(AN$10>$E25,IF(AO$10>$F25,$U25/($F25-$E25)*($F25-AN$10),$U25/($F25-$E25)*(AO$10-AN$10)),$U25/($F25-$E25)*(AO$10-$E25)),"x"))) -> x | AP25: x | AQ25: x | AR25: x | AS25: x | AT25: x | AU25: x | AV25: x | AW25: x | AX25: x | AY25: x | AZ25: x | BA25: x | BB25: x | BC25: x | BD25: x | BE25: x | BF25: x | BG25: x | BH25: x | BI25: x | BJ25: x | BK25: x | BL25: x | BM25: x | BN25: x | BO25: x | BP25: x | BQ25: x | BR25: x | BS25: x | BT25: x | BU25: =IF(OR($V25="Utility",$AA25=0),"x",IF($G25="hot","x",IF(AND(BU$10>$E25,BT$10<$F25),IF(BT$10>$E25,IF(BU$10>$F25,$U25/($F25-$E25)*($F25-BT$10),$U25/($F25-$E25)*(BU$10-BT$10)),$U25/($F25-$E25)*(BU$10-$E25)),"x"))) -> x | BV25: x | BW25: x | BX25: x | BY25: x | BZ25: x | CA25: x | CB25: x | CC25: x | CD25: x | CE25: x | CF25: x | CG25: x | CH25: x | CI25: x | CJ25: x | CK25: x | CL25: x | CM25: x | CN25: x | CO25: x | CP25: x | CQ25: x | CR25: x | CS25: x | CT25: x | CU25: x | CV25: x | CW25: x | CX25: x | CY25: x | CZ25: x | DA25: =IF(OR($V25="Utility",$AA25=0),"x",IF($G25="hot","x",IF(AND(DA$10>$E25,CZ$10<$F25),IF(CZ$10>$E25,IF(DA$10>$F25,$U25/($F25-$E25)*($F25-CZ$10),$U25/($F25-$E25)*(DA$10-CZ$10)),$U25/($F25-$E25)*(DA$10-$E25)),"x"))) -> x | DB25: x | DC25: x | DD25: x | DE25: x | DF25: x | DG25: x | DH25: x | DI25: x | DJ25: x | DK25: x | DL25: x | DM25: x | DN25: x | DO25: x | DP25: x | DQ25: x | DR25: x | DS25: x | DT25: x | DU25: x | DV25: x | DW25: x | DX25: x | DY25: x | DZ25: x | EA25: x | EB25: x | EC25: x | ED25: x | EE25: x | EF25: x | EG25: x | EH25: x | EI25: x | EJ25: x | EK25: x | EO25: 0 | EQ25: =IF(OR($V25="Utility",$AA25=0),"x",IF($G25="cold","x",IF(AND(EQ$10>$F25,EP$10<$E25),IF(EP$10>$F25,IF(EQ$10>$E25,$U25/($E25-$F25)*($E25-EP$10),$U25/($E25-$F25)*(EQ$10-EP$10)),$U25/($E25-$F25)*(EQ$10-$F25)),"x"))) -> x | ER25: x | ES25: x | ET25: x | EU25: x | EV25: x | EW25: x | EX25: x | EY25: x | EZ25: x | FA25: x | FB25: x | FC25: x | FD25: x | FE25: x | FF25: x | FG25: x | FH25: x | FI25: x | FJ25: x | FK25: x | FL25: x | FM25: x | FN25: x | FO25: x | FP25: x | FQ25: x | FR25: x | FS25: x | FT25: x | FU25: x | FV25: x | FW25: =IF(OR($V25="Utility",$AA25=0),"x",IF($G25="cold","x",IF(AND(FW$10>$F25,FV$10<$E25),IF(FV$10>$F25,IF(FW$10>$E25,$U25/($E25-$F25)*($E25-FV$10),$U25/($E25-$F25)*(FW$10-FV$10)),$U25/($E25-$F25)*(FW$10-$F25)),"x"))) -> x | FX25: x | FY25: x | FZ25: x | GA25: x | GB25: x | GC25: x | GD25: x | GE25: x | GF25: x | GG25: x | GH25: x | GI25: x | GJ25: x | GK25: x | GL25: x | GM25: x | GN25: x | GO25: x | GP25: x | GQ25: x | GR25: x | GS25: x | GT25: x | GU25: x | GV25: x | GW25: x | GX25: x | GY25: x | GZ25: x | HA25: x | HB25: x | HC25: =IF(OR($V25="Utility",$AA25=0),"x",IF($G25="cold","x",IF(AND(HC$10>$F25,HB$10<$E25),IF(HB$10>$F25,IF(HC$10>$E25,$U25/($E25-$F25)*($E25-HB$10),$U25/($E25-$F25)*(HC$10-HB$10)),$U25/($E25-$F25)*(HC$10-$F25)),"x"))) -> x | HD25: x | HE25: x | HF25: x | HG25: x | HH25: x | HI25: x | HJ25: x | HK25: x | HL25: x | HM25: x | HN25: x | HO25: x | HP25: x | HQ25: x | HR25: x | HS25: x | HT25: x | HU25: x | HV25: x | HW25: x | HX25: x | HY25: x | HZ25: x | IA25: x | IB25: x | IC25: x | ID25: x | IE25: x | IF25: x | IG25: x | IH25: x | II25: x | IJ25: x | IK25: x | IL25: x | IM25: x | IQ25: dH | IR25: =IR23-IR24+ShiftGCC -> 67.392 | IS25: =IS23-IS24+ShiftGCC -> 67.392 | IT25: =IT23-IT24+ShiftGCC -> 67.392 | IU25: 67.392 | IV25: 67.392 | IW25: 67.392 | IX25: 67.392 | IY25: 67.392 | IZ25: =IZ23-IZ24+ShiftGCC -> 67.392 | JA25: 67.392 | JB25: 67.392 | JC25: 67.392 | JD25: 67.392 | JE25: 67.392 | JF25: 67.392 | JG25: 67.392 | JH25: 67.392 | JI25: 67.392 | JJ25: 67.392 | JK25: 67.392 | JL25: 67.392 | JM25: 67.392 | JN25: 67.392 | JO25: 67.392 | JP25: 67.392 | JQ25: 67.392 | JR25: 67.392 | JS25: 67.392 | JT25: 67.392 | JU25: 67.392 | JV25: 67.392 | JW25: 67.392 | JX25: 67.392 | JY25: 67.392 | JZ25: 67.392 | KA25: 67.392 | KB25: 67.392 | KC25: 67.392 | KD25: 67.392 | KE25: 67.392 | KF25: 67.392 | KG25: 67.392 | KH25: 67.392 | KI25: 67.392 | KJ25: 67.392 | KK25: 67.392 | KL25: 67.392 | KM25: 67.392 | KN25: 67.392 | KO25: 67.392 | KP25: 67.392 | KQ25: 67.392 | KR25: 67.392 | KS25: 67.392 | KT25: 67.392 | KU25: 67.392 | KV25: 67.392 | KW25: 67.392 | KX25: 67.392 | KY25: 67.392 | KZ25: 67.392 | LA25: 67.392 | LB25: 67.392 | LC25: 67.392 | LD25: 67.392 | LE25: 67.392 | LF25: =LF23-LF24+ShiftGCC -> 67.392 | LG25: 67.392 | LH25: 67.392 | LI25: 67.392 | LJ25: 67.392 | LK25: 67.392 | LL25: 67.392 | LM25: 67.392 | LN25: 67.392 | LO25: 67.392 | LP25: 67.392 | LQ25: 67.392 | LR25: 67.392 | LS25: 67.392 | LT25: 67.392 | LU25: 67.392 | LV25: 67.392 | LW25: 67.392 | LX25: 67.392 | LY25: 67.392 | LZ25: 67.392 | MA25: 67.392 | MB25: 67.392 | MC25: 67.392 | MD25: 67.392 | ME25: 67.392 | MF25: 67.392 | MG25: 67.392 | MH25: 67.392 | MI25: 67.392 | MJ25: 67.392 | MK25: 67.392 | ML25: 67.392 | MM25: 67.392 | MN25: 67.392
B26: =IF(G26="hot",COUNTIF($G$11:G26,"hot"),"") ->  | C26: =IF(G26="cold",COUNTIF($G$11:G26,"cold"),"") ->  | AM26: 0 | AO26: =IF(OR($V26="Utility",$AA26=0),"x",IF($G26="hot","x",IF(AND(AO$10>$E26,AN$10<$F26),IF(AN$10>$E26,IF(AO$10>$F26,$U26/($F26-$E26)*($F26-AN$10),$U26/($F26-$E26)*(AO$10-AN$10)),$U26/($F26-$E26)*(AO$10-$E26)),"x"))) -> x | AP26: x | AQ26: x | AR26: x | AS26: x | AT26: x | AU26: x | AV26: x | AW26: x | AX26: x | AY26: x | AZ26: x | BA26: x | BB26: x | BC26: x | BD26: x | BE26: x | BF26: x | BG26: x | BH26: x | BI26: x | BJ26: x | BK26: x | BL26: x | BM26: x | BN26: x | BO26: x | BP26: x | BQ26: x | BR26: x | BS26: x | BT26: x | BU26: =IF(OR($V26="Utility",$AA26=0),"x",IF($G26="hot","x",IF(AND(BU$10>$E26,BT$10<$F26),IF(BT$10>$E26,IF(BU$10>$F26,$U26/($F26-$E26)*($F26-BT$10),$U26/($F26-$E26)*(BU$10-BT$10)),$U26/($F26-$E26)*(BU$10-$E26)),"x"))) -> x | BV26: x | BW26: x | BX26: x | BY26: x | BZ26: x | CA26: x | CB26: x | CC26: x | CD26: x | CE26: x | CF26: x | CG26: x | CH26: x | CI26: x | CJ26: x | CK26: x | CL26: x | CM26: x | CN26: x | CO26: x | CP26: x | CQ26: x | CR26: x | CS26: x | CT26: x | CU26: x | CV26: x | CW26: x | CX26: x | CY26: x | CZ26: x | DA26: =IF(OR($V26="Utility",$AA26=0),"x",IF($G26="hot","x",IF(AND(DA$10>$E26,CZ$10<$F26),IF(CZ$10>$E26,IF(DA$10>$F26,$U26/($F26-$E26)*($F26-CZ$10),$U26/($F26-$E26)*(DA$10-CZ$10)),$U26/($F26-$E26)*(DA$10-$E26)),"x"))) -> x | DB26: x | DC26: x | DD26: x | DE26: x | DF26: x | DG26: x | DH26: x | DI26: x | DJ26: x | DK26: x | DL26: x | DM26: x | DN26: x | DO26: x | DP26: x | DQ26: x | DR26: x | DS26: x | DT26: x | DU26: x | DV26: x | DW26: x | DX26: x | DY26: x | DZ26: x | EA26: x | EB26: x | EC26: x | ED26: x | EE26: x | EF26: x | EG26: x | EH26: x | EI26: x | EJ26: x | EK26: x | EO26: 0 | EQ26: =IF(OR($V26="Utility",$AA26=0),"x",IF($G26="cold","x",IF(AND(EQ$10>$F26,EP$10<$E26),IF(EP$10>$F26,IF(EQ$10>$E26,$U26/($E26-$F26)*($E26-EP$10),$U26/($E26-$F26)*(EQ$10-EP$10)),$U26/($E26-$F26)*(EQ$10-$F26)),"x"))) -> x | ER26: x | ES26: x | ET26: x | EU26: x | EV26: x | EW26: x | EX26: x | EY26: x | EZ26: x | FA26: x | FB26: x | FC26: x | FD26: x | FE26: x | FF26: x | FG26: x | FH26: x | FI26: x | FJ26: x | FK26: x | FL26: x | FM26: x | FN26: x | FO26: x | FP26: x | FQ26: x | FR26: x | FS26: x | FT26: x | FU26: x | FV26: x | FW26: =IF(OR($V26="Utility",$AA26=0),"x",IF($G26="cold","x",IF(AND(FW$10>$F26,FV$10<$E26),IF(FV$10>$F26,IF(FW$10>$E26,$U26/($E26-$F26)*($E26-FV$10),$U26/($E26-$F26)*(FW$10-FV$10)),$U26/($E26-$F26)*(FW$10-$F26)),"x"))) -> x | FX26: x | FY26: x | FZ26: x | GA26: x | GB26: x | GC26: x | GD26: x | GE26: x | GF26: x | GG26: x | GH26: x | GI26: x | GJ26: x | GK26: x | GL26: x | GM26: x | GN26: x | GO26: x | GP26: x | GQ26: x | GR26: x | GS26: x | GT26: x | GU26: x | GV26: x | GW26: x | GX26: x | GY26: x | GZ26: x | HA26: x | HB26: x | HC26: =IF(OR($V26="Utility",$AA26=0),"x",IF($G26="cold","x",IF(AND(HC$10>$F26,HB$10<$E26),IF(HB$10>$F26,IF(HC$10>$E26,$U26/($E26-$F26)*($E26-HB$10),$U26/($E26-$F26)*(HC$10-HB$10)),$U26/($E26-$F26)*(HC$10-$F26)),"x"))) -> x | HD26: x | HE26: x | HF26: x | HG26: x | HH26: x | HI26: x | HJ26: x | HK26: x | HL26: x | HM26: x | HN26: x | HO26: x | HP26: x | HQ26: x | HR26: x | HS26: x | HT26: x | HU26: x | HV26: x | HW26: x | HX26: x | HY26: x | HZ26: x | IA26: x | IB26: x | IC26: x | ID26: x | IE26: x | IF26: x | IG26: x | IH26: x | II26: x | IJ26: x | IK26: x | IL26: x | IM26: x
B27: =IF(G27="hot",COUNTIF($G$11:G27,"hot"),"") ->  | C27: =IF(G27="cold",COUNTIF($G$11:G27,"cold"),"") ->  | AM27: 0 | AO27: =IF(OR($V27="Utility",$AA27=0),"x",IF($G27="hot","x",IF(AND(AO$10>$E27,AN$10<$F27),IF(AN$10>$E27,IF(AO$10>$F27,$U27/($F27-$E27)*($F27-AN$10),$U27/($F27-$E27)*(AO$10-AN$10)),$U27/($F27-$E27)*(AO$10-$E27)),"x"))) -> x | AP27: x | AQ27: x | AR27: x | AS27: x | AT27: x | AU27: x | AV27: x | AW27: x | AX27: x | AY27: x | AZ27: x | BA27: x | BB27: x | BC27: x | BD27: x | BE27: x | BF27: x | BG27: x | BH27: x | BI27: x | BJ27: x | BK27: x | BL27: x | BM27: x | BN27: x | BO27: x | BP27: x | BQ27: x | BR27: x | BS27: x | BT27: x | BU27: =IF(OR($V27="Utility",$AA27=0),"x",IF($G27="hot","x",IF(AND(BU$10>$E27,BT$10<$F27),IF(BT$10>$E27,IF(BU$10>$F27,$U27/($F27-$E27)*($F27-BT$10),$U27/($F27-$E27)*(BU$10-BT$10)),$U27/($F27-$E27)*(BU$10-$E27)),"x"))) -> x | BV27: x | BW27: x | BX27: x | BY27: x | BZ27: x | CA27: x | CB27: x | CC27: x | CD27: x | CE27: x | CF27: x | CG27: x | CH27: x | CI27: x | CJ27: x | CK27: x | CL27: x | CM27: x | CN27: x | CO27: x | CP27: x | CQ27: x | CR27: x | CS27: x | CT27: x | CU27: x | CV27: x | CW27: x | CX27: x | CY27: x | CZ27: x | DA27: =IF(OR($V27="Utility",$AA27=0),"x",IF($G27="hot","x",IF(AND(DA$10>$E27,CZ$10<$F27),IF(CZ$10>$E27,IF(DA$10>$F27,$U27/($F27-$E27)*($F27-CZ$10),$U27/($F27-$E27)*(DA$10-CZ$10)),$U27/($F27-$E27)*(DA$10-$E27)),"x"))) -> x | DB27: x | DC27: x | DD27: x | DE27: x | DF27: x | DG27: x | DH27: x | DI27: x | DJ27: x | DK27: x | DL27: x | DM27: x | DN27: x | DO27: x | DP27: x | DQ27: x | DR27: x | DS27: x | DT27: x | DU27: x | DV27: x | DW27: x | DX27: x | DY27: x | DZ27: x | EA27: x | EB27: x | EC27: x | ED27: x | EE27: x | EF27: x | EG27: x | EH27: x | EI27: x | EJ27: x | EK27: x | EO27: 0 | EQ27: =IF(OR($V27="Utility",$AA27=0),"x",IF($G27="cold","x",IF(AND(EQ$10>$F27,EP$10<$E27),IF(EP$10>$F27,IF(EQ$10>$E27,$U27/($E27-$F27)*($E27-EP$10),$U27/($E27-$F27)*(EQ$10-EP$10)),$U27/($E27-$F27)*(EQ$10-$F27)),"x"))) -> x | ER27: x | ES27: x | ET27: x | EU27: x | EV27: x | EW27: x | EX27: x | EY27: x | EZ27: x | FA27: x | FB27: x | FC27: x | FD27: x | FE27: x | FF27: x | FG27: x | FH27: x | FI27: x | FJ27: x | FK27: x | FL27: x | FM27: x | FN27: x | FO27: x | FP27: x | FQ27: x | FR27: x | FS27: x | FT27: x | FU27: x | FV27: x | FW27: =IF(OR($V27="Utility",$AA27=0),"x",IF($G27="cold","x",IF(AND(FW$10>$F27,FV$10<$E27),IF(FV$10>$F27,IF(FW$10>$E27,$U27/($E27-$F27)*($E27-FV$10),$U27/($E27-$F27)*(FW$10-FV$10)),$U27/($E27-$F27)*(FW$10-$F27)),"x"))) -> x | FX27: x | FY27: x | FZ27: x | GA27: x | GB27: x | GC27: x | GD27: x | GE27: x | GF27: x | GG27: x | GH27: x | GI27: x | GJ27: x | GK27: x | GL27: x | GM27: x | GN27: x | GO27: x | GP27: x | GQ27: x | GR27: x | GS27: x | GT27: x | GU27: x | GV27: x | GW27: x | GX27: x | GY27: x | GZ27: x | HA27: x | HB27: x | HC27: =IF(OR($V27="Utility",$AA27=0),"x",IF($G27="cold","x",IF(AND(HC$10>$F27,HB$10<$E27),IF(HB$10>$F27,IF(HC$10>$E27,$U27/($E27-$F27)*($E27-HB$10),$U27/($E27-$F27)*(HC$10-HB$10)),$U27/($E27-$F27)*(HC$10-$F27)),"x"))) -> x | HD27: x | HE27: x | HF27: x | HG27: x | HH27: x | HI27: x | HJ27: x | HK27: x | HL27: x | HM27: x | HN27: x | HO27: x | HP27: x | HQ27: x | HR27: x | HS27: x | HT27: x | HU27: x | HV27: x | HW27: x | HX27: x | HY27: x | HZ27: x | IA27: x | IB27: x | IC27: x | ID27: x | IE27: x | IF27: x | IG27: x | IH27: x | II27: x | IJ27: x | IK27: x | IL27: x | IM27: x | IQ27: Column CCC | IR27: =MATCH(IR16,$AO$9:$EK$9,1) -> 101 | IS27: 101 | IT27: 101 | IU27: 101 | IV27: 101 | IW27: 101 | IX27: 101 | IY27: 101 | IZ27: 101 | JA27: 101 | JB27: 101 | JC27: 101 | JD27: 101 | JE27: 101 | JF27: 101 | JG27: 101 | JH27: 101 | JI27: 101 | JJ27: 101 | JK27: 101 | JL27: 101 | JM27: 101 | JN27: 101 | JO27: 101 | JP27: 101 | JQ27: 101 | JR27: 101 | JS27: 101 | JT27: 101 | JU27: 101 | JV27: 101 | JW27: 101 | JX27: 101 | JY27: 101 | JZ27: 101 | KA27: 101 | KB27: 101 | KC27: 101 | KD27: 101 | KE27: 101 | KF27: 101 | KG27: 101 | KH27: 101 | KI27: 101 | KJ27: 101 | KK27: 101 | KL27: 101 | KM27: 101 | KN27: 101 | KO27: 101 | KP27: 101 | KQ27: 101 | KR27: 101 | KS27: 101 | KT27: 101 | KU27: 101 | KV27: 101 | KW27: 101 | KX27: 101 | KY27: 101 | KZ27: 101 | LA27: 101 | LB27: 101 | LC27: 101 | LD27: =MATCH(LD16,$AO$9:$EK$9,1) -> 101 | LE27: 101 | LF27: 101 | LG27: 101 | LH27: 101 | LI27: 101 | LJ27: 101 | LK27: 101 | LL27: 101 | LM27: 101 | LN27: 101 | LO27: 101 | LP27: 101 | LQ27: 101 | LR27: 101 | LS27: 101 | LT27: 101 | LU27: 101 | LV27: 101 | LW27: 101 | LX27: 101 | LY27: 101 | LZ27: 101 | MA27: 101 | MB27: 101 | MC27: 101 | MD27: 101 | ME27: 101 | MF27: 101 | MG27: 101 | MH27: 101 | MI27: 101 | MJ27: 101 | MK27: 101 | ML27: 101 | MM27: 101 | MN27: 101
B28: =IF(G28="hot",COUNTIF($G$11:G28,"hot"),"") ->  | C28: =IF(G28="cold",COUNTIF($G$11:G28,"cold"),"") ->  | AI28: Maximal Heat Recovery | AJ28: =IF(MinHU=0,AJ21-AJ22,AJ23-AJ22) -> -62.4 | AK28: MWh | AM28: 0 | AO28: =IF(OR($V28="Utility",$AA28=0),"x",IF($G28="hot","x",IF(AND(AO$10>$E28,AN$10<$F28),IF(AN$10>$E28,IF(AO$10>$F28,$U28/($F28-$E28)*($F28-AN$10),$U28/($F28-$E28)*(AO$10-AN$10)),$U28/($F28-$E28)*(AO$10-$E28)),"x"))) -> x | AP28: x | AQ28: x | AR28: x | AS28: x | AT28: x | AU28: x | AV28: x | AW28: x | AX28: x | AY28: x | AZ28: x | BA28: x | BB28: x | BC28: x | BD28: x | BE28: x | BF28: x | BG28: x | BH28: x | BI28: x | BJ28: x | BK28: x | BL28: x | BM28: x | BN28: x | BO28: x | BP28: x | BQ28: x | BR28: x | BS28: x | BT28: x | BU28: =IF(OR($V28="Utility",$AA28=0),"x",IF($G28="hot","x",IF(AND(BU$10>$E28,BT$10<$F28),IF(BT$10>$E28,IF(BU$10>$F28,$U28/($F28-$E28)*($F28-BT$10),$U28/($F28-$E28)*(BU$10-BT$10)),$U28/($F28-$E28)*(BU$10-$E28)),"x"))) -> x | BV28: x | BW28: x | BX28: x | BY28: x | BZ28: x | CA28: x | CB28: x | CC28: x | CD28: x | CE28: x | CF28: x | CG28: x | CH28: x | CI28: x | CJ28: x | CK28: x | CL28: x | CM28: x | CN28: x | CO28: x | CP28: x | CQ28: x | CR28: x | CS28: x | CT28: x | CU28: x | CV28: x | CW28: x | CX28: x | CY28: x | CZ28: x | DA28: =IF(OR($V28="Utility",$AA28=0),"x",IF($G28="hot","x",IF(AND(DA$10>$E28,CZ$10<$F28),IF(CZ$10>$E28,IF(DA$10>$F28,$U28/($F28-$E28)*($F28-CZ$10),$U28/($F28-$E28)*(DA$10-CZ$10)),$U28/($F28-$E28)*(DA$10-$E28)),"x"))) -> x | DB28: x | DC28: x | DD28: x | DE28: x | DF28: x | DG28: x | DH28: x | DI28: x | DJ28: x | DK28: x | DL28: x | DM28: x | DN28: x | DO28: x | DP28: x | DQ28: x | DR28: x | DS28: x | DT28: x | DU28: x | DV28: x | DW28: x | DX28: x | DY28: x | DZ28: x | EA28: x | EB28: x | EC28: x | ED28: x | EE28: x | EF28: x | EG28: x | EH28: x | EI28: x | EJ28: x | EK28: x | EO28: 0 | EQ28: =IF(OR($V28="Utility",$AA28=0),"x",IF($G28="cold","x",IF(AND(EQ$10>$F28,EP$10<$E28),IF(EP$10>$F28,IF(EQ$10>$E28,$U28/($E28-$F28)*($E28-EP$10),$U28/($E28-$F28)*(EQ$10-EP$10)),$U28/($E28-$F28)*(EQ$10-$F28)),"x"))) -> x | ER28: x | ES28: x | ET28: x | EU28: x | EV28: x | EW28: x | EX28: x | EY28: x | EZ28: x | FA28: x | FB28: x | FC28: x | FD28: x | FE28: x | FF28: x | FG28: x | FH28: x | FI28: x | FJ28: x | FK28: x | FL28: x | FM28: x | FN28: x | FO28: x | FP28: x | FQ28: x | FR28: x | FS28: x | FT28: x | FU28: x | FV28: x | FW28: =IF(OR($V28="Utility",$AA28=0),"x",IF($G28="cold","x",IF(AND(FW$10>$F28,FV$10<$E28),IF(FV$10>$F28,IF(FW$10>$E28,$U28/($E28-$F28)*($E28-FV$10),$U28/($E28-$F28)*(FW$10-FV$10)),$U28/($E28-$F28)*(FW$10-$F28)),"x"))) -> x | FX28: x | FY28: x | FZ28: x | GA28: x | GB28: x | GC28: x | GD28: x | GE28: x | GF28: x | GG28: x | GH28: x | GI28: x | GJ28: x | GK28: x | GL28: x | GM28: x | GN28: x | GO28: x | GP28: x | GQ28: x | GR28: x | GS28: x | GT28: x | GU28: x | GV28: x | GW28: x | GX28: x | GY28: x | GZ28: x | HA28: x | HB28: x | HC28: =IF(OR($V28="Utility",$AA28=0),"x",IF($G28="cold","x",IF(AND(HC$10>$F28,HB$10<$E28),IF(HB$10>$F28,IF(HC$10>$E28,$U28/($E28-$F28)*($E28-HB$10),$U28/($E28-$F28)*(HC$10-HB$10)),$U28/($E28-$F28)*(HC$10-$F28)),"x"))) -> x | HD28: x | HE28: x | HF28: x | HG28: x | HH28: x | HI28: x | HJ28: x | HK28: x | HL28: x | HM28: x | HN28: x | HO28: x | HP28: x | HQ28: x | HR28: x | HS28: x | HT28: x | HU28: x | HV28: x | HW28: x | HX28: x | HY28: x | HZ28: x | IA28: x | IB28: x | IC28: x | ID28: x | IE28: x | IF28: x | IG28: x | IH28: x | II28: x | IJ28: x | IK28: x | IL28: x | IM28: x | IQ28: Column HCCC | IR28: =MATCH(IR16,$EQ$9:$IM$9,1) -> 101 | IS28: 101 | IT28: 101 | IU28: 101 | IV28: 101 | IW28: 101 | IX28: 101 | IY28: 101 | IZ28: 101 | JA28: 101 | JB28: 101 | JC28: 101 | JD28: 101 | JE28: 101 | JF28: 101 | JG28: 101 | JH28: 101 | JI28: 101 | JJ28: 101 | JK28: 101 | JL28: 101 | JM28: 101 | JN28: 101 | JO28: 101 | JP28: 101 | JQ28: 101 | JR28: 101 | JS28: 101 | JT28: 101 | JU28: 101 | JV28: 101 | JW28: 101 | JX28: 101 | JY28: 101 | JZ28: 101 | KA28: 101 | KB28: 101 | KC28: 101 | KD28: 101 | KE28: 101 | KF28: 101 | KG28: 101 | KH28: 101 | KI28: 101 | KJ28: 101 | KK28: 101 | KL28: 101 | KM28: 101 | KN28: 101 | KO28: 101 | KP28: 101 | KQ28: 101 | KR28: 101 | KS28: 101 | KT28: 101 | KU28: 101 | KV28: 101 | KW28: 101 | KX28: 101 | KY28: 101 | KZ28: 101 | LA28: 101 | LB28: 101 | LC28: 101 | LD28: =MATCH(LD16,$EQ$9:$IM$9,1) -> 101 | LE28: 101 | LF28: 101 | LG28: 101 | LH28: 101 | LI28: 101 | LJ28: 101 | LK28: 101 | LL28: 101 | LM28: 101 | LN28: 101 | LO28: 101 | LP28: 101 | LQ28: 101 | LR28: 101 | LS28: 101 | LT28: 101 | LU28: 101 | LV28: 101 | LW28: 101 | LX28: 101 | LY28: 101 | LZ28: 101 | MA28: 101 | MB28: 101 | MC28: 101 | MD28: 101 | ME28: 101 | MF28: 101 | MG28: 101 | MH28: 101 | MI28: 101 | MJ28: 101 | MK28: 101 | ML28: 101 | MM28: 101 | MN28: 101
B29: =IF(G29="hot",COUNTIF($G$11:G29,"hot"),"") ->  | C29: =IF(G29="cold",COUNTIF($G$11:G29,"cold"),"") ->  | AI29: Minimal Hot Utility | AJ29: =IF(AJ21-AJ23<0,0,AJ21-AJ23) -> 62.4 | AK29: MWh | AM29: 0 | AO29: =IF(OR($V29="Utility",$AA29=0),"x",IF($G29="hot","x",IF(AND(AO$10>$E29,AN$10<$F29),IF(AN$10>$E29,IF(AO$10>$F29,$U29/($F29-$E29)*($F29-AN$10),$U29/($F29-$E29)*(AO$10-AN$10)),$U29/($F29-$E29)*(AO$10-$E29)),"x"))) -> x | AP29: x | AQ29: x | AR29: x | AS29: x | AT29: x | AU29: x | AV29: x | AW29: x | AX29: x | AY29: x | AZ29: x | BA29: x | BB29: x | BC29: x | BD29: x | BE29: x | BF29: x | BG29: x | BH29: x | BI29: x | BJ29: x | BK29: x | BL29: x | BM29: x | BN29: x | BO29: x | BP29: x | BQ29: x | BR29: x | BS29: x | BT29: x | BU29: =IF(OR($V29="Utility",$AA29=0),"x",IF($G29="hot","x",IF(AND(BU$10>$E29,BT$10<$F29),IF(BT$10>$E29,IF(BU$10>$F29,$U29/($F29-$E29)*($F29-BT$10),$U29/($F29-$E29)*(BU$10-BT$10)),$U29/($F29-$E29)*(BU$10-$E29)),"x"))) -> x | BV29: x | BW29: x | BX29: x | BY29: x | BZ29: x | CA29: x | CB29: x | CC29: x | CD29: x | CE29: x | CF29: x | CG29: x | CH29: x | CI29: x | CJ29: x | CK29: x | CL29: x | CM29: x | CN29: x | CO29: x | CP29: x | CQ29: x | CR29: x | CS29: x | CT29: x | CU29: x | CV29: x | CW29: x | CX29: x | CY29: x | CZ29: x | DA29: =IF(OR($V29="Utility",$AA29=0),"x",IF($G29="hot","x",IF(AND(DA$10>$E29,CZ$10<$F29),IF(CZ$10>$E29,IF(DA$10>$F29,$U29/($F29-$E29)*($F29-CZ$10),$U29/($F29-$E29)*(DA$10-CZ$10)),$U29/($F29-$E29)*(DA$10-$E29)),"x"))) -> x | DB29: x | DC29: x | DD29: x | DE29: x | DF29: x | DG29: x | DH29: x | DI29: x | DJ29: x | DK29: x | DL29: x | DM29: x | DN29: x | DO29: x | DP29: x | DQ29: x | DR29: x | DS29: x | DT29: x | DU29: x | DV29: x | DW29: x | DX29: x | DY29: x | DZ29: x | EA29: x | EB29: x | EC29: x | ED29: x | EE29: x | EF29: x | EG29: x | EH29: x | EI29: x | EJ29: x | EK29: x | EO29: 0 | EQ29: =IF(OR($V29="Utility",$AA29=0),"x",IF($G29="cold","x",IF(AND(EQ$10>$F29,EP$10<$E29),IF(EP$10>$F29,IF(EQ$10>$E29,$U29/($E29-$F29)*($E29-EP$10),$U29/($E29-$F29)*(EQ$10-EP$10)),$U29/($E29-$F29)*(EQ$10-$F29)),"x"))) -> x | ER29: x | ES29: x | ET29: x | EU29: x | EV29: x | EW29: x | EX29: x | EY29: x | EZ29: x | FA29: x | FB29: x | FC29: x | FD29: x | FE29: x | FF29: x | FG29: x | FH29: x | FI29: x | FJ29: x | FK29: x | FL29: x | FM29: x | FN29: x | FO29: x | FP29: x | FQ29: x | FR29: x | FS29: x | FT29: x | FU29: x | FV29: x | FW29: =IF(OR($V29="Utility",$AA29=0),"x",IF($G29="cold","x",IF(AND(FW$10>$F29,FV$10<$E29),IF(FV$10>$F29,IF(FW$10>$E29,$U29/($E29-$F29)*($E29-FV$10),$U29/($E29-$F29)*(FW$10-FV$10)),$U29/($E29-$F29)*(FW$10-$F29)),"x"))) -> x | FX29: x | FY29: x | FZ29: x | GA29: x | GB29: x | GC29: x | GD29: x | GE29: x | GF29: x | GG29: x | GH29: x | GI29: x | GJ29: x | GK29: x | GL29: x | GM29: x | GN29: x | GO29: x | GP29: x | GQ29: x | GR29: x | GS29: x | GT29: x | GU29: x | GV29: x | GW29: x | GX29: x | GY29: x | GZ29: x | HA29: x | HB29: x | HC29: =IF(OR($V29="Utility",$AA29=0),"x",IF($G29="cold","x",IF(AND(HC$10>$F29,HB$10<$E29),IF(HB$10>$F29,IF(HC$10>$E29,$U29/($E29-$F29)*($E29-HB$10),$U29/($E29-$F29)*(HC$10-HB$10)),$U29/($E29-$F29)*(HC$10-$F29)),"x"))) -> x | HD29: x | HE29: x | HF29: x | HG29: x | HH29: x | HI29: x | HJ29: x | HK29: x | HL29: x | HM29: x | HN29: x | HO29: x | HP29: x | HQ29: x | HR29: x | HS29: x | HT29: x | HU29: x | HV29: x | HW29: x | HX29: x | HY29: x | HZ29: x | IA29: x | IB29: x | IC29: x | ID29: x | IE29: x | IF29: x | IG29: x | IH29: x | II29: x | IJ29: x | IK29: x | IL29: x | IM29: x
B30: =IF(G30="hot",COUNTIF($G$11:G30,"hot"),"") ->  | C30: =IF(G30="cold",COUNTIF($G$11:G30,"cold"),"") ->  | AI30: Minimal Cold Utility | AJ30: =AJ22-AJ24 -> 62.4 | AK30: MWh | AM30: 0 | AO30: =IF(OR($V30="Utility",$AA30=0),"x",IF($G30="hot","x",IF(AND(AO$10>$E30,AN$10<$F30),IF(AN$10>$E30,IF(AO$10>$F30,$U30/($F30-$E30)*($F30-AN$10),$U30/($F30-$E30)*(AO$10-AN$10)),$U30/($F30-$E30)*(AO$10-$E30)),"x"))) -> x | AP30: x | AQ30: x | AR30: x | AS30: x | AT30: x | AU30: x | AV30: x | AW30: x | AX30: x | AY30: x | AZ30: x | BA30: x | BB30: x | BC30: x | BD30: x | BE30: x | BF30: x | BG30: x | BH30: x | BI30: x | BJ30: x | BK30: x | BL30: x | BM30: x | BN30: x | BO30: x | BP30: x | BQ30: x | BR30: x | BS30: x | BT30: x | BU30: =IF(OR($V30="Utility",$AA30=0),"x",IF($G30="hot","x",IF(AND(BU$10>$E30,BT$10<$F30),IF(BT$10>$E30,IF(BU$10>$F30,$U30/($F30-$E30)*($F30-BT$10),$U30/($F30-$E30)*(BU$10-BT$10)),$U30/($F30-$E30)*(BU$10-$E30)),"x"))) -> x | BV30: x | BW30: x | BX30: x | BY30: x | BZ30: x | CA30: x | CB30: x | CC30: x | CD30: x | CE30: x | CF30: x | CG30: x | CH30: x | CI30: x | CJ30: x | CK30: x | CL30: x | CM30: x | CN30: x | CO30: x | CP30: x | CQ30: x | CR30: x | CS30: x | CT30: x | CU30: x | CV30: x | CW30: x | CX30: x | CY30: x | CZ30: x | DA30: =IF(OR($V30="Utility",$AA30=0),"x",IF($G30="hot","x",IF(AND(DA$10>$E30,CZ$10<$F30),IF(CZ$10>$E30,IF(DA$10>$F30,$U30/($F30-$E30)*($F30-CZ$10),$U30/($F30-$E30)*(DA$10-CZ$10)),$U30/($F30-$E30)*(DA$10-$E30)),"x"))) -> x | DB30: x | DC30: x | DD30: x | DE30: x | DF30: x | DG30: x | DH30: x | DI30: x | DJ30: x | DK30: x | DL30: x | DM30: x | DN30: x | DO30: x | DP30: x | DQ30: x | DR30: x | DS30: x | DT30: x | DU30: x | DV30: x | DW30: x | DX30: x | DY30: x | DZ30: x | EA30: x | EB30: x | EC30: x | ED30: x | EE30: x | EF30: x | EG30: x | EH30: x | EI30: x | EJ30: x | EK30: x | EO30: 0 | EQ30: =IF(OR($V30="Utility",$AA30=0),"x",IF($G30="cold","x",IF(AND(EQ$10>$F30,EP$10<$E30),IF(EP$10>$F30,IF(EQ$10>$E30,$U30/($E30-$F30)*($E30-EP$10),$U30/($E30-$F30)*(EQ$10-EP$10)),$U30/($E30-$F30)*(EQ$10-$F30)),"x"))) -> x | ER30: x | ES30: x | ET30: x | EU30: x | EV30: x | EW30: x | EX30: x | EY30: x | EZ30: x | FA30: x | FB30: x | FC30: x | FD30: x | FE30: x | FF30: x | FG30: x | FH30: x | FI30: x | FJ30: x | FK30: x | FL30: x | FM30: x | FN30: x | FO30: x | FP30: x | FQ30: x | FR30: x | FS30: x | FT30: x | FU30: x | FV30: x | FW30: =IF(OR($V30="Utility",$AA30=0),"x",IF($G30="cold","x",IF(AND(FW$10>$F30,FV$10<$E30),IF(FV$10>$F30,IF(FW$10>$E30,$U30/($E30-$F30)*($E30-FV$10),$U30/($E30-$F30)*(FW$10-FV$10)),$U30/($E30-$F30)*(FW$10-$F30)),"x"))) -> x | FX30: x | FY30: x | FZ30: x | GA30: x | GB30: x | GC30: x | GD30: x | GE30: x | GF30: x | GG30: x | GH30: x | GI30: x | GJ30: x | GK30: x | GL30: x | GM30: x | GN30: x | GO30: x | GP30: x | GQ30: x | GR30: x | GS30: x | GT30: x | GU30: x | GV30: x | GW30: x | GX30: x | GY30: x | GZ30: x | HA30: x | HB30: x | HC30: =IF(OR($V30="Utility",$AA30=0),"x",IF($G30="cold","x",IF(AND(HC$10>$F30,HB$10<$E30),IF(HB$10>$F30,IF(HC$10>$E30,$U30/($E30-$F30)*($E30-HB$10),$U30/($E30-$F30)*(HC$10-HB$10)),$U30/($E30-$F30)*(HC$10-$F30)),"x"))) -> x | HD30: x | HE30: x | HF30: x | HG30: x | HH30: x | HI30: x | HJ30: x | HK30: x | HL30: x | HM30: x | HN30: x | HO30: x | HP30: x | HQ30: x | HR30: x | HS30: x | HT30: x | HU30: x | HV30: x | HW30: x | HX30: x | HY30: x | HZ30: x | IA30: x | IB30: x | IC30: x | ID30: x | IE30: x | IF30: x | IG30: x | IH30: x | II30: x | IJ30: x | IK30: x | IL30: x | IM30: x
B31: =IF(G31="hot",COUNTIF($G$11:G31,"hot"),"") ->  | C31: =IF(G31="cold",COUNTIF($G$11:G31,"cold"),"") ->  | AM31: 0 | AO31: =IF(OR($V31="Utility",$AA31=0),"x",IF($G31="hot","x",IF(AND(AO$10>$E31,AN$10<$F31),IF(AN$10>$E31,IF(AO$10>$F31,$U31/($F31-$E31)*($F31-AN$10),$U31/($F31-$E31)*(AO$10-AN$10)),$U31/($F31-$E31)*(AO$10-$E31)),"x"))) -> x | AP31: x | AQ31: x | AR31: x | AS31: x | AT31: x | AU31: x | AV31: x | AW31: x | AX31: x | AY31: x | AZ31: x | BA31: x | BB31: x | BC31: x | BD31: x | BE31: x | BF31: x | BG31: x | BH31: x | BI31: x | BJ31: x | BK31: x | BL31: x | BM31: x | BN31: x | BO31: x | BP31: x | BQ31: x | BR31: x | BS31: x | BT31: x | BU31: =IF(OR($V31="Utility",$AA31=0),"x",IF($G31="hot","x",IF(AND(BU$10>$E31,BT$10<$F31),IF(BT$10>$E31,IF(BU$10>$F31,$U31/($F31-$E31)*($F31-BT$10),$U31/($F31-$E31)*(BU$10-BT$10)),$U31/($F31-$E31)*(BU$10-$E31)),"x"))) -> x | BV31: x | BW31: x | BX31: x | BY31: x | BZ31: x | CA31: x | CB31: x | CC31: x | CD31: x | CE31: x | CF31: x | CG31: x | CH31: x | CI31: x | CJ31: x | CK31: x | CL31: x | CM31: x | CN31: x | CO31: x | CP31: x | CQ31: x | CR31: x | CS31: x | CT31: x | CU31: x | CV31: x | CW31: x | CX31: x | CY31: x | CZ31: x | DA31: =IF(OR($V31="Utility",$AA31=0),"x",IF($G31="hot","x",IF(AND(DA$10>$E31,CZ$10<$F31),IF(CZ$10>$E31,IF(DA$10>$F31,$U31/($F31-$E31)*($F31-CZ$10),$U31/($F31-$E31)*(DA$10-CZ$10)),$U31/($F31-$E31)*(DA$10-$E31)),"x"))) -> x | DB31: x | DC31: x | DD31: x | DE31: x | DF31: x | DG31: x | DH31: x | DI31: x | DJ31: x | DK31: x | DL31: x | DM31: x | DN31: x | DO31: x | DP31: x | DQ31: x | DR31: x | DS31: x | DT31: x | DU31: x | DV31: x | DW31: x | DX31: x | DY31: x | DZ31: x | EA31: x | EB31: x | EC31: x | ED31: x | EE31: x | EF31: x | EG31: x | EH31: x | EI31: x | EJ31: x | EK31: x | EO31: 0 | EQ31: =IF(OR($V31="Utility",$AA31=0),"x",IF($G31="cold","x",IF(AND(EQ$10>$F31,EP$10<$E31),IF(EP$10>$F31,IF(EQ$10>$E31,$U31/($E31-$F31)*($E31-EP$10),$U31/($E31-$F31)*(EQ$10-EP$10)),$U31/($E31-$F31)*(EQ$10-$F31)),"x"))) -> x | ER31: x | ES31: x | ET31: x | EU31: x | EV31: x | EW31: x | EX31: x | EY31: x | EZ31: x | FA31: x | FB31: x | FC31: x | FD31: x | FE31: x | FF31: x | FG31: x | FH31: x | FI31: x | FJ31: x | FK31: x | FL31: x | FM31: x | FN31: x | FO31: x | FP31: x | FQ31: x | FR31: x | FS31: x | FT31: x | FU31: x | FV31: x | FW31: =IF(OR($V31="Utility",$AA31=0),"x",IF($G31="cold","x",IF(AND(FW$10>$F31,FV$10<$E31),IF(FV$10>$F31,IF(FW$10>$E31,$U31/($E31-$F31)*($E31-FV$10),$U31/($E31-$F31)*(FW$10-FV$10)),$U31/($E31-$F31)*(FW$10-$F31)),"x"))) -> x | FX31: x | FY31: x | FZ31: x | GA31: x | GB31: x | GC31: x | GD31: x | GE31: x | GF31: x | GG31: x | GH31: x | GI31: x | GJ31: x | GK31: x | GL31: x | GM31: x | GN31: x | GO31: x | GP31: x | GQ31: x | GR31: x | GS31: x | GT31: x | GU31: x | GV31: x | GW31: x | GX31: x | GY31: x | GZ31: x | HA31: x | HB31: x | HC31: =IF(OR($V31="Utility",$AA31=0),"x",IF($G31="cold","x",IF(AND(HC$10>$F31,HB$10<$E31),IF(HB$10>$F31,IF(HC$10>$E31,$U31/($E31-$F31)*($E31-HB$10),$U31/($E31-$F31)*(HC$10-HB$10)),$U31/($E31-$F31)*(HC$10-$F31)),"x"))) -> x | HD31: x | HE31: x | HF31: x | HG31: x | HH31: x | HI31: x | HJ31: x | HK31: x | HL31: x | HM31: x | HN31: x | HO31: x | HP31: x | HQ31: x | HR31: x | HS31: x | HT31: x | HU31: x | HV31: x | HW31: x | HX31: x | HY31: x | HZ31: x | IA31: x | IB31: x | IC31: x | ID31: x | IE31: x | IF31: x | IG31: x | IH31: x | II31: x | IJ31: x | IK31: x | IL31: x | IM31: x
B32: =IF(G32="hot",COUNTIF($G$11:G32,"hot"),"") ->  | C32: =IF(G32="cold",COUNTIF($G$11:G32,"cold"),"") ->  | AM32: 0 | AO32: =IF(OR($V32="Utility",$AA32=0),"x",IF($G32="hot","x",IF(AND(AO$10>$E32,AN$10<$F32),IF(AN$10>$E32,IF(AO$10>$F32,$U32/($F32-$E32)*($F32-AN$10),$U32/($F32-$E32)*(AO$10-AN$10)),$U32/($F32-$E32)*(AO$10-$E32)),"x"))) -> x | AP32: x | AQ32: x | AR32: x | AS32: x | AT32: x | AU32: x | AV32: x | AW32: x | AX32: x | AY32: x | AZ32: x | BA32: x | BB32: x | BC32: x | BD32: x | BE32: x | BF32: x | BG32: x | BH32: x | BI32: x | BJ32: x | BK32: x | BL32: x | BM32: x | BN32: x | BO32: x | BP32: x | BQ32: x | BR32: x | BS32: x | BT32: x | BU32: =IF(OR($V32="Utility",$AA32=0),"x",IF($G32="hot","x",IF(AND(BU$10>$E32,BT$10<$F32),IF(BT$10>$E32,IF(BU$10>$F32,$U32/($F32-$E32)*($F32-BT$10),$U32/($F32-$E32)*(BU$10-BT$10)),$U32/($F32-$E32)*(BU$10-$E32)),"x"))) -> x | BV32: x | BW32: x | BX32: x | BY32: x | BZ32: x | CA32: x | CB32: x | CC32: x | CD32: x | CE32: x | CF32: x | CG32: x | CH32: x | CI32: x | CJ32: x | CK32: x | CL32: x | CM32: x | CN32: x | CO32: x | CP32: x | CQ32: x | CR32: x | CS32: x | CT32: x | CU32: x | CV32: x | CW32: x | CX32: x | CY32: x | CZ32: x | DA32: =IF(OR($V32="Utility",$AA32=0),"x",IF($G32="hot","x",IF(AND(DA$10>$E32,CZ$10<$F32),IF(CZ$10>$E32,IF(DA$10>$F32,$U32/($F32-$E32)*($F32-CZ$10),$U32/($F32-$E32)*(DA$10-CZ$10)),$U32/($F32-$E32)*(DA$10-$E32)),"x"))) -> x | DB32: x | DC32: x | DD32: x | DE32: x | DF32: x | DG32: x | DH32: x | DI32: x | DJ32: x | DK32: x | DL32: x | DM32: x | DN32: x | DO32: x | DP32: x | DQ32: x | DR32: x | DS32: x | DT32: x | DU32: x | DV32: x | DW32: x | DX32: x | DY32: x | DZ32: x | EA32: x | EB32: x | EC32: x | ED32: x | EE32: x | EF32: x | EG32: x | EH32: x | EI32: x | EJ32: x | EK32: x | EO32: 0 | EQ32: =IF(OR($V32="Utility",$AA32=0),"x",IF($G32="cold","x",IF(AND(EQ$10>$F32,EP$10<$E32),IF(EP$10>$F32,IF(EQ$10>$E32,$U32/($E32-$F32)*($E32-EP$10),$U32/($E32-$F32)*(EQ$10-EP$10)),$U32/($E32-$F32)*(EQ$10-$F32)),"x"))) -> x | ER32: x | ES32: x | ET32: x | EU32: x | EV32: x | EW32: x | EX32: x | EY32: x | EZ32: x | FA32: x | FB32: x | FC32: x | FD32: x | FE32: x | FF32: x | FG32: x | FH32: x | FI32: x | FJ32: x | FK32: x | FL32: x | FM32: x | FN32: x | FO32: x | FP32: x | FQ32: x | FR32: x | FS32: x | FT32: x | FU32: x | FV32: x | FW32: =IF(OR($V32="Utility",$AA32=0),"x",IF($G32="cold","x",IF(AND(FW$10>$F32,FV$10<$E32),IF(FV$10>$F32,IF(FW$10>$E32,$U32/($E32-$F32)*($E32-FV$10),$U32/($E32-$F32)*(FW$10-FV$10)),$U32/($E32-$F32)*(FW$10-$F32)),"x"))) -> x | FX32: x | FY32: x | FZ32: x | GA32: x | GB32: x | GC32: x | GD32: x | GE32: x | GF32: x | GG32: x | GH32: x | GI32: x | GJ32: x | GK32: x | GL32: x | GM32: x | GN32: x | GO32: x | GP32: x | GQ32: x | GR32: x | GS32: x | GT32: x | GU32: x | GV32: x | GW32: x | GX32: x | GY32: x | GZ32: x | HA32: x | HB32: x | HC32: =IF(OR($V32="Utility",$AA32=0),"x",IF($G32="cold","x",IF(AND(HC$10>$F32,HB$10<$E32),IF(HB$10>$F32,IF(HC$10>$E32,$U32/($E32-$F32)*($E32-HB$10),$U32/($E32-$F32)*(HC$10-HB$10)),$U32/($E32-$F32)*(HC$10-$F32)),"x"))) -> x | HD32: x | HE32: x | HF32: x | HG32: x | HH32: x | HI32: x | HJ32: x | HK32: x | HL32: x | HM32: x | HN32: x | HO32: x | HP32: x | HQ32: x | HR32: x | HS32: x | HT32: x | HU32: x | HV32: x | HW32: x | HX32: x | HY32: x | HZ32: x | IA32: x | IB32: x | IC32: x | ID32: x | IE32: x | IF32: x | IG32: x | IH32: x | II32: x | IJ32: x | IK32: x | IL32: x | IM32: x
B33: =IF(G33="hot",COUNTIF($G$11:G33,"hot"),"") ->  | C33: =IF(G33="cold",COUNTIF($G$11:G33,"cold"),"") ->  | AI33: Shift GCC | AJ33: 67.392 | AK33: MWh | AM33: 0 | AO33: =IF(OR($V33="Utility",$AA33=0),"x",IF($G33="hot","x",IF(AND(AO$10>$E33,AN$10<$F33),IF(AN$10>$E33,IF(AO$10>$F33,$U33/($F33-$E33)*($F33-AN$10),$U33/($F33-$E33)*(AO$10-AN$10)),$U33/($F33-$E33)*(AO$10-$E33)),"x"))) -> x | AP33: x | AQ33: x | AR33: x | AS33: x | AT33: x | AU33: x | AV33: x | AW33: x | AX33: x | AY33: x | AZ33: x | BA33: x | BB33: x | BC33: x | BD33: x | BE33: x | BF33: x | BG33: x | BH33: x | BI33: x | BJ33: x | BK33: x | BL33: x | BM33: x | BN33: x | BO33: x | BP33: x | BQ33: x | BR33: x | BS33: x | BT33: x | BU33: =IF(OR($V33="Utility",$AA33=0),"x",IF($G33="hot","x",IF(AND(BU$10>$E33,BT$10<$F33),IF(BT$10>$E33,IF(BU$10>$F33,$U33/($F33-$E33)*($F33-BT$10),$U33/($F33-$E33)*(BU$10-BT$10)),$U33/($F33-$E33)*(BU$10-$E33)),"x"))) -> x | BV33: x | BW33: x | BX33: x | BY33: x | BZ33: x | CA33: x | CB33: x | CC33: x | CD33: x | CE33: x | CF33: x | CG33: x | CH33: x | CI33: x | CJ33: x | CK33: x | CL33: x | CM33: x | CN33: x | CO33: x | CP33: x | CQ33: x | CR33: x | CS33: x | CT33: x | CU33: x | CV33: x | CW33: x | CX33: x | CY33: x | CZ33: x | DA33: =IF(OR($V33="Utility",$AA33=0),"x",IF($G33="hot","x",IF(AND(DA$10>$E33,CZ$10<$F33),IF(CZ$10>$E33,IF(DA$10>$F33,$U33/($F33-$E33)*($F33-CZ$10),$U33/($F33-$E33)*(DA$10-CZ$10)),$U33/($F33-$E33)*(DA$10-$E33)),"x"))) -> x | DB33: x | DC33: x | DD33: x | DE33: x | DF33: x | DG33: x | DH33: x | DI33: x | DJ33: x | DK33: x | DL33: x | DM33: x | DN33: x | DO33: x | DP33: x | DQ33: x | DR33: x | DS33: x | DT33: x | DU33: x | DV33: x | DW33: x | DX33: x | DY33: x | DZ33: x | EA33: x | EB33: x | EC33: x | ED33: x | EE33: x | EF33: x | EG33: x | EH33: x | EI33: x | EJ33: x | EK33: x | EO33: 0 | EQ33: =IF(OR($V33="Utility",$AA33=0),"x",IF($G33="cold","x",IF(AND(EQ$10>$F33,EP$10<$E33),IF(EP$10>$F33,IF(EQ$10>$E33,$U33/($E33-$F33)*($E33-EP$10),$U33/($E33-$F33)*(EQ$10-EP$10)),$U33/($E33-$F33)*(EQ$10-$F33)),"x"))) -> x | ER33: x | ES33: x | ET33: x | EU33: x | EV33: x | EW33: x | EX33: x | EY33: x | EZ33: x | FA33: x | FB33: x | FC33: x | FD33: x | FE33: x | FF33: x | FG33: x | FH33: x | FI33: x | FJ33: x | FK33: x | FL33: x | FM33: x | FN33: x | FO33: x | FP33: x | FQ33: x | FR33: x | FS33: x | FT33: x | FU33: x | FV33: x | FW33: =IF(OR($V33="Utility",$AA33=0),"x",IF($G33="cold","x",IF(AND(FW$10>$F33,FV$10<$E33),IF(FV$10>$F33,IF(FW$10>$E33,$U33/($E33-$F33)*($E33-FV$10),$U33/($E33-$F33)*(FW$10-FV$10)),$U33/($E33-$F33)*(FW$10-$F33)),"x"))) -> x | FX33: x | FY33: x | FZ33: x | GA33: x | GB33: x | GC33: x | GD33: x | GE33: x | GF33: x | GG33: x | GH33: x | GI33: x | GJ33: x | GK33: x | GL33: x | GM33: x | GN33: x | GO33: x | GP33: x | GQ33: x | GR33: x | GS33: x | GT33: x | GU33: x | GV33: x | GW33: x | GX33: x | GY33: x | GZ33: x | HA33: x | HB33: x | HC33: =IF(OR($V33="Utility",$AA33=0),"x",IF($G33="cold","x",IF(AND(HC$10>$F33,HB$10<$E33),IF(HB$10>$F33,IF(HC$10>$E33,$U33/($E33-$F33)*($E33-HB$10),$U33/($E33-$F33)*(HC$10-HB$10)),$U33/($E33-$F33)*(HC$10-$F33)),"x"))) -> x | HD33: x | HE33: x | HF33: x | HG33: x | HH33: x | HI33: x | HJ33: x | HK33: x | HL33: x | HM33: x | HN33: x | HO33: x | HP33: x | HQ33: x | HR33: x | HS33: x | HT33: x | HU33: x | HV33: x | HW33: x | HX33: x | HY33: x | HZ33: x | IA33: x | IB33: x | IC33: x | ID33: x | IE33: x | IF33: x | IG33: x | IH33: x | II33: x | IJ33: x | IK33: x | IL33: x | IM33: x
B34: =IF(G34="hot",COUNTIF($G$11:G34,"hot"),"") ->  | C34: =IF(G34="cold",COUNTIF($G$11:G34,"cold"),"") ->  | AI34: Diff to Y-Axis | AJ34: =MIN($IR$25:$MN$25) -> 67.392 | AK34: MWh | AM34: 0 | AO34: =IF(OR($V34="Utility",$AA34=0),"x",IF($G34="hot","x",IF(AND(AO$10>$E34,AN$10<$F34),IF(AN$10>$E34,IF(AO$10>$F34,$U34/($F34-$E34)*($F34-AN$10),$U34/($F34-$E34)*(AO$10-AN$10)),$U34/($F34-$E34)*(AO$10-$E34)),"x"))) -> x | AP34: x | AQ34: x | AR34: x | AS34: x | AT34: x | AU34: x | AV34: x | AW34: x | AX34: x | AY34: x | AZ34: x | BA34: x | BB34: x | BC34: x | BD34: x | BE34: x | BF34: x | BG34: x | BH34: x | BI34: x | BJ34: x | BK34: x | BL34: x | BM34: x | BN34: x | BO34: x | BP34: x | BQ34: x | BR34: x | BS34: x | BT34: x | BU34: =IF(OR($V34="Utility",$AA34=0),"x",IF($G34="hot","x",IF(AND(BU$10>$E34,BT$10<$F34),IF(BT$10>$E34,IF(BU$10>$F34,$U34/($F34-$E34)*($F34-BT$10),$U34/($F34-$E34)*(BU$10-BT$10)),$U34/($F34-$E34)*(BU$10-$E34)),"x"))) -> x | BV34: x | BW34: x | BX34: x | BY34: x | BZ34: x | CA34: x | CB34: x | CC34: x | CD34: x | CE34: x | CF34: x | CG34: x | CH34: x | CI34: x | CJ34: x | CK34: x | CL34: x | CM34: x | CN34: x | CO34: x | CP34: x | CQ34: x | CR34: x | CS34: x | CT34: x | CU34: x | CV34: x | CW34: x | CX34: x | CY34: x | CZ34: x | DA34: =IF(OR($V34="Utility",$AA34=0),"x",IF($G34="hot","x",IF(AND(DA$10>$E34,CZ$10<$F34),IF(CZ$10>$E34,IF(DA$10>$F34,$U34/($F34-$E34)*($F34-CZ$10),$U34/($F34-$E34)*(DA$10-CZ$10)),$U34/($F34-$E34)*(DA$10-$E34)),"x"))) -> x | DB34: x | DC34: x | DD34: x | DE34: x | DF34: x | DG34: x | DH34: x | DI34: x | DJ34: x | DK34: x | DL34: x | DM34: x | DN34: x | DO34: x | DP34: x | DQ34: x | DR34: x | DS34: x | DT34: x | DU34: x | DV34: x | DW34: x | DX34: x | DY34: x | DZ34: x | EA34: x | EB34: x | EC34: x | ED34: x | EE34: x | EF34: x | EG34: x | EH34: x | EI34: x | EJ34: x | EK34: x | EO34: 0 | EQ34: =IF(OR($V34="Utility",$AA34=0),"x",IF($G34="cold","x",IF(AND(EQ$10>$F34,EP$10<$E34),IF(EP$10>$F34,IF(EQ$10>$E34,$U34/($E34-$F34)*($E34-EP$10),$U34/($E34-$F34)*(EQ$10-EP$10)),$U34/($E34-$F34)*(EQ$10-$F34)),"x"))) -> x | ER34: x | ES34: x | ET34: x | EU34: x | EV34: x | EW34: x | EX34: x | EY34: x | EZ34: x | FA34: x | FB34: x | FC34: x | FD34: x | FE34: x | FF34: x | FG34: x | FH34: x | FI34: x | FJ34: x | FK34: x | FL34: x | FM34: x | FN34: x | FO34: x | FP34: x | FQ34: x | FR34: x | FS34: x | FT34: x | FU34: x | FV34: x | FW34: =IF(OR($V34="Utility",$AA34=0),"x",IF($G34="cold","x",IF(AND(FW$10>$F34,FV$10<$E34),IF(FV$10>$F34,IF(FW$10>$E34,$U34/($E34-$F34)*($E34-FV$10),$U34/($E34-$F34)*(FW$10-FV$10)),$U34/($E34-$F34)*(FW$10-$F34)),"x"))) -> x | FX34: x | FY34: x | FZ34: x | GA34: x | GB34: x | GC34: x | GD34: x | GE34: x | GF34: x | GG34: x | GH34: x | GI34: x | GJ34: x | GK34: x | GL34: x | GM34: x | GN34: x | GO34: x | GP34: x | GQ34: x | GR34: x | GS34: x | GT34: x | GU34: x | GV34: x | GW34: x | GX34: x | GY34: x | GZ34: x | HA34: x | HB34: x | HC34: =IF(OR($V34="Utility",$AA34=0),"x",IF($G34="cold","x",IF(AND(HC$10>$F34,HB$10<$E34),IF(HB$10>$F34,IF(HC$10>$E34,$U34/($E34-$F34)*($E34-HB$10),$U34/($E34-$F34)*(HC$10-HB$10)),$U34/($E34-$F34)*(HC$10-$F34)),"x"))) -> x | HD34: x | HE34: x | HF34: x | HG34: x | HH34: x | HI34: x | HJ34: x | HK34: x | HL34: x | HM34: x | HN34: x | HO34: x | HP34: x | HQ34: x | HR34: x | HS34: x | HT34: x | HU34: x | HV34: x | HW34: x | HX34: x | HY34: x | HZ34: x | IA34: x | IB34: x | IC34: x | ID34: x | IE34: x | IF34: x | IG34: x | IH34: x | II34: x | IJ34: x | IK34: x | IL34: x | IM34: x
B35: =IF(G35="hot",COUNTIF($G$11:G35,"hot"),"") ->  | C35: =IF(G35="cold",COUNTIF($G$11:G35,"cold"),"") ->  | AM35: 0 | AO35: =IF(OR($V35="Utility",$AA35=0),"x",IF($G35="hot","x",IF(AND(AO$10>$E35,AN$10<$F35),IF(AN$10>$E35,IF(AO$10>$F35,$U35/($F35-$E35)*($F35-AN$10),$U35/($F35-$E35)*(AO$10-AN$10)),$U35/($F35-$E35)*(AO$10-$E35)),"x"))) -> x | AP35: x | AQ35: x | AR35: x | AS35: x | AT35: x | AU35: x | AV35: x | AW35: x | AX35: x | AY35: x | AZ35: x | BA35: x | BB35: x | BC35: x | BD35: x | BE35: x | BF35: x | BG35: x | BH35: x | BI35: x | BJ35: x | BK35: x | BL35: x | BM35: x | BN35: x | BO35: x | BP35: x | BQ35: x | BR35: x | BS35: x | BT35: x | BU35: =IF(OR($V35="Utility",$AA35=0),"x",IF($G35="hot","x",IF(AND(BU$10>$E35,BT$10<$F35),IF(BT$10>$E35,IF(BU$10>$F35,$U35/($F35-$E35)*($F35-BT$10),$U35/($F35-$E35)*(BU$10-BT$10)),$U35/($F35-$E35)*(BU$10-$E35)),"x"))) -> x | BV35: x | BW35: x | BX35: x | BY35: x | BZ35: x | CA35: x | CB35: x | CC35: x | CD35: x | CE35: x | CF35: x | CG35: x | CH35: x | CI35: x | CJ35: x | CK35: x | CL35: x | CM35: x | CN35: x | CO35: x | CP35: x | CQ35: x | CR35: x | CS35: x | CT35: x | CU35: x | CV35: x | CW35: x | CX35: x | CY35: x | CZ35: x | DA35: =IF(OR($V35="Utility",$AA35=0),"x",IF($G35="hot","x",IF(AND(DA$10>$E35,CZ$10<$F35),IF(CZ$10>$E35,IF(DA$10>$F35,$U35/($F35-$E35)*($F35-CZ$10),$U35/($F35-$E35)*(DA$10-CZ$10)),$U35/($F35-$E35)*(DA$10-$E35)),"x"))) -> x | DB35: x | DC35: x | DD35: x | DE35: x | DF35: x | DG35: x | DH35: x | DI35: x | DJ35: x | DK35: x | DL35: x | DM35: x | DN35: x | DO35: x | DP35: x | DQ35: x | DR35: x | DS35: x | DT35: x | DU35: x | DV35: x | DW35: x | DX35: x | DY35: x | DZ35: x | EA35: x | EB35: x | EC35: x | ED35: x | EE35: x | EF35: x | EG35: x | EH35: x | EI35: x | EJ35: x | EK35: x | EO35: 0 | EQ35: =IF(OR($V35="Utility",$AA35=0),"x",IF($G35="cold","x",IF(AND(EQ$10>$F35,EP$10<$E35),IF(EP$10>$F35,IF(EQ$10>$E35,$U35/($E35-$F35)*($E35-EP$10),$U35/($E35-$F35)*(EQ$10-EP$10)),$U35/($E35-$F35)*(EQ$10-$F35)),"x"))) -> x | ER35: x | ES35: x | ET35: x | EU35: x | EV35: x | EW35: x | EX35: x | EY35: x | EZ35: x | FA35: x | FB35: x | FC35: x | FD35: x | FE35: x | FF35: x | FG35: x | FH35: x | FI35: x | FJ35: x | FK35: x | FL35: x | FM35: x | FN35: x | FO35: x | FP35: x | FQ35: x | FR35: x | FS35: x | FT35: x | FU35: x | FV35: x | FW35: =IF(OR($V35="Utility",$AA35=0),"x",IF($G35="cold","x",IF(AND(FW$10>$F35,FV$10<$E35),IF(FV$10>$F35,IF(FW$10>$E35,$U35/($E35-$F35)*($E35-FV$10),$U35/($E35-$F35)*(FW$10-FV$10)),$U35/($E35-$F35)*(FW$10-$F35)),"x"))) -> x | FX35: x | FY35: x | FZ35: x | GA35: x | GB35: x | GC35: x | GD35: x | GE35: x | GF35: x | GG35: x | GH35: x | GI35: x | GJ35: x | GK35: x | GL35: x | GM35: x | GN35: x | GO35: x | GP35: x | GQ35: x | GR35: x | GS35: x | GT35: x | GU35: x | GV35: x | GW35: x | GX35: x | GY35: x | GZ35: x | HA35: x | HB35: x | HC35: =IF(OR($V35="Utility",$AA35=0),"x",IF($G35="cold","x",IF(AND(HC$10>$F35,HB$10<$E35),IF(HB$10>$F35,IF(HC$10>$E35,$U35/($E35-$F35)*($E35-HB$10),$U35/($E35-$F35)*(HC$10-HB$10)),$U35/($E35-$F35)*(HC$10-$F35)),"x"))) -> x | HD35: x | HE35: x | HF35: x | HG35: x | HH35: x | HI35: x | HJ35: x | HK35: x | HL35: x | HM35: x | HN35: x | HO35: x | HP35: x | HQ35: x | HR35: x | HS35: x | HT35: x | HU35: x | HV35: x | HW35: x | HX35: x | HY35: x | HZ35: x | IA35: x | IB35: x | IC35: x | ID35: x | IE35: x | IF35: x | IG35: x | IH35: x | II35: x | IJ35: x | IK35: x | IL35: x | IM35: x
B36: =IF(G36="hot",COUNTIF($G$11:G36,"hot"),"") ->  | C36: =IF(G36="cold",COUNTIF($G$11:G36,"cold"),"") ->  | AI36: Nebenbedingung 1 | AJ36: =SUMIF($G$11:$G$110,"hot",$L$11:$L$110) -> 0 | AK36: MWh | AM36: 0 | AO36: =IF(OR($V36="Utility",$AA36=0),"x",IF($G36="hot","x",IF(AND(AO$10>$E36,AN$10<$F36),IF(AN$10>$E36,IF(AO$10>$F36,$U36/($F36-$E36)*($F36-AN$10),$U36/($F36-$E36)*(AO$10-AN$10)),$U36/($F36-$E36)*(AO$10-$E36)),"x"))) -> x | AP36: x | AQ36: x | AR36: x | AS36: x | AT36: x | AU36: x | AV36: x | AW36: x | AX36: x | AY36: x | AZ36: x | BA36: x | BB36: x | BC36: x | BD36: x | BE36: x | BF36: x | BG36: x | BH36: x | BI36: x | BJ36: x | BK36: x | BL36: x | BM36: x | BN36: x | BO36: x | BP36: x | BQ36: x | BR36: x | BS36: x | BT36: x | BU36: =IF(OR($V36="Utility",$AA36=0),"x",IF($G36="hot","x",IF(AND(BU$10>$E36,BT$10<$F36),IF(BT$10>$E36,IF(BU$10>$F36,$U36/($F36-$E36)*($F36-BT$10),$U36/($F36-$E36)*(BU$10-BT$10)),$U36/($F36-$E36)*(BU$10-$E36)),"x"))) -> x | BV36: x | BW36: x | BX36: x | BY36: x | BZ36: x | CA36: x | CB36: x | CC36: x | CD36: x | CE36: x | CF36: x | CG36: x | CH36: x | CI36: x | CJ36: x | CK36: x | CL36: x | CM36: x | CN36: x | CO36: x | CP36: x | CQ36: x | CR36: x | CS36: x | CT36: x | CU36: x | CV36: x | CW36: x | CX36: x | CY36: x | CZ36: x | DA36: =IF(OR($V36="Utility",$AA36=0),"x",IF($G36="hot","x",IF(AND(DA$10>$E36,CZ$10<$F36),IF(CZ$10>$E36,IF(DA$10>$F36,$U36/($F36-$E36)*($F36-CZ$10),$U36/($F36-$E36)*(DA$10-CZ$10)),$U36/($F36-$E36)*(DA$10-$E36)),"x"))) -> x | DB36: x | DC36: x | DD36: x | DE36: x | DF36: x | DG36: x | DH36: x | DI36: x | DJ36: x | DK36: x | DL36: x | DM36: x | DN36: x | DO36: x | DP36: x | DQ36: x | DR36: x | DS36: x | DT36: x | DU36: x | DV36: x | DW36: x | DX36: x | DY36: x | DZ36: x | EA36: x | EB36: x | EC36: x | ED36: x | EE36: x | EF36: x | EG36: x | EH36: x | EI36: x | EJ36: x | EK36: x | EO36: 0 | EQ36: =IF(OR($V36="Utility",$AA36=0),"x",IF($G36="cold","x",IF(AND(EQ$10>$F36,EP$10<$E36),IF(EP$10>$F36,IF(EQ$10>$E36,$U36/($E36-$F36)*($E36-EP$10),$U36/($E36-$F36)*(EQ$10-EP$10)),$U36/($E36-$F36)*(EQ$10-$F36)),"x"))) -> x | ER36: x | ES36: x | ET36: x | EU36: x | EV36: x | EW36: x | EX36: x | EY36: x | EZ36: x | FA36: x | FB36: x | FC36: x | FD36: x | FE36: x | FF36: x | FG36: x | FH36: x | FI36: x | FJ36: x | FK36: x | FL36: x | FM36: x | FN36: x | FO36: x | FP36: x | FQ36: x | FR36: x | FS36: x | FT36: x | FU36: x | FV36: x | FW36: =IF(OR($V36="Utility",$AA36=0),"x",IF($G36="cold","x",IF(AND(FW$10>$F36,FV$10<$E36),IF(FV$10>$F36,IF(FW$10>$E36,$U36/($E36-$F36)*($E36-FV$10),$U36/($E36-$F36)*(FW$10-FV$10)),$U36/($E36-$F36)*(FW$10-$F36)),"x"))) -> x | FX36: x | FY36: x | FZ36: x | GA36: x | GB36: x | GC36: x | GD36: x | GE36: x | GF36: x | GG36: x | GH36: x | GI36: x | GJ36: x | GK36: x | GL36: x | GM36: x | GN36: x | GO36: x | GP36: x | GQ36: x | GR36: x | GS36: x | GT36: x | GU36: x | GV36: x | GW36: x | GX36: x | GY36: x | GZ36: x | HA36: x | HB36: x | HC36: =IF(OR($V36="Utility",$AA36=0),"x",IF($G36="cold","x",IF(AND(HC$10>$F36,HB$10<$E36),IF(HB$10>$F36,IF(HC$10>$E36,$U36/($E36-$F36)*($E36-HB$10),$U36/($E36-$F36)*(HC$10-HB$10)),$U36/($E36-$F36)*(HC$10-$F36)),"x"))) -> x | HD36: x | HE36: x | HF36: x | HG36: x | HH36: x | HI36: x | HJ36: x | HK36: x | HL36: x | HM36: x | HN36: x | HO36: x | HP36: x | HQ36: x | HR36: x | HS36: x | HT36: x | HU36: x | HV36: x | HW36: x | HX36: x | HY36: x | HZ36: x | IA36: x | IB36: x | IC36: x | ID36: x | IE36: x | IF36: x | IG36: x | IH36: x | II36: x | IJ36: x | IK36: x | IL36: x | IM36: x
B37: =IF(G37="hot",COUNTIF($G$11:G37,"hot"),"") ->  | C37: =IF(G37="cold",COUNTIF($G$11:G37,"cold"),"") ->  | AI37: Startwert | AJ37: =lngMaxShift/3 -> 0 | AK37: MWh | AM37: 0 | AO37: =IF(OR($V37="Utility",$AA37=0),"x",IF($G37="hot","x",IF(AND(AO$10>$E37,AN$10<$F37),IF(AN$10>$E37,IF(AO$10>$F37,$U37/($F37-$E37)*($F37-AN$10),$U37/($F37-$E37)*(AO$10-AN$10)),$U37/($F37-$E37)*(AO$10-$E37)),"x"))) -> x | AP37: x | AQ37: x | AR37: x | AS37: x | AT37: x | AU37: x | AV37: x | AW37: x | AX37: x | AY37: x | AZ37: x | BA37: x | BB37: x | BC37: x | BD37: x | BE37: x | BF37: x | BG37: x | BH37: x | BI37: x | BJ37: x | BK37: x | BL37: x | BM37: x | BN37: x | BO37: x | BP37: x | BQ37: x | BR37: x | BS37: x | BT37: x | BU37: =IF(OR($V37="Utility",$AA37=0),"x",IF($G37="hot","x",IF(AND(BU$10>$E37,BT$10<$F37),IF(BT$10>$E37,IF(BU$10>$F37,$U37/($F37-$E37)*($F37-BT$10),$U37/($F37-$E37)*(BU$10-BT$10)),$U37/($F37-$E37)*(BU$10-$E37)),"x"))) -> x | BV37: x | BW37: x | BX37: x | BY37: x | BZ37: x | CA37: x | CB37: x | CC37: x | CD37: x | CE37: x | CF37: x | CG37: x | CH37: x | CI37: x | CJ37: x | CK37: x | CL37: x | CM37: x | CN37: x | CO37: x | CP37: x | CQ37: x | CR37: x | CS37: x | CT37: x | CU37: x | CV37: x | CW37: x | CX37: x | CY37: x | CZ37: x | DA37: =IF(OR($V37="Utility",$AA37=0),"x",IF($G37="hot","x",IF(AND(DA$10>$E37,CZ$10<$F37),IF(CZ$10>$E37,IF(DA$10>$F37,$U37/($F37-$E37)*($F37-CZ$10),$U37/($F37-$E37)*(DA$10-CZ$10)),$U37/($F37-$E37)*(DA$10-$E37)),"x"))) -> x | DB37: x | DC37: x | DD37: x | DE37: x | DF37: x | DG37: x | DH37: x | DI37: x | DJ37: x | DK37: x | DL37: x | DM37: x | DN37: x | DO37: x | DP37: x | DQ37: x | DR37: x | DS37: x | DT37: x | DU37: x | DV37: x | DW37: x | DX37: x | DY37: x | DZ37: x | EA37: x | EB37: x | EC37: x | ED37: x | EE37: x | EF37: x | EG37: x | EH37: x | EI37: x | EJ37: x | EK37: x | EO37: 0 | EQ37: =IF(OR($V37="Utility",$AA37=0),"x",IF($G37="cold","x",IF(AND(EQ$10>$F37,EP$10<$E37),IF(EP$10>$F37,IF(EQ$10>$E37,$U37/($E37-$F37)*($E37-EP$10),$U37/($E37-$F37)*(EQ$10-EP$10)),$U37/($E37-$F37)*(EQ$10-$F37)),"x"))) -> x | ER37: x | ES37: x | ET37: x | EU37: x | EV37: x | EW37: x | EX37: x | EY37: x | EZ37: x | FA37: x | FB37: x | FC37: x | FD37: x | FE37: x | FF37: x | FG37: x | FH37: x | FI37: x | FJ37: x | FK37: x | FL37: x | FM37: x | FN37: x | FO37: x | FP37: x | FQ37: x | FR37: x | FS37: x | FT37: x | FU37: x | FV37: x | FW37: =IF(OR($V37="Utility",$AA37=0),"x",IF($G37="cold","x",IF(AND(FW$10>$F37,FV$10<$E37),IF(FV$10>$F37,IF(FW$10>$E37,$U37/($E37-$F37)*($E37-FV$10),$U37/($E37-$F37)*(FW$10-FV$10)),$U37/($E37-$F37)*(FW$10-$F37)),"x"))) -> x | FX37: x | FY37: x | FZ37: x | GA37: x | GB37: x | GC37: x | GD37: x | GE37: x | GF37: x | GG37: x | GH37: x | GI37: x | GJ37: x | GK37: x | GL37: x | GM37: x | GN37: x | GO37: x | GP37: x | GQ37: x | GR37: x | GS37: x | GT37: x | GU37: x | GV37: x | GW37: x | GX37: x | GY37: x | GZ37: x | HA37: x | HB37: x | HC37: =IF(OR($V37="Utility",$AA37=0),"x",IF($G37="cold","x",IF(AND(HC$10>$F37,HB$10<$E37),IF(HB$10>$F37,IF(HC$10>$E37,$U37/($E37-$F37)*($E37-HB$10),$U37/($E37-$F37)*(HC$10-HB$10)),$U37/($E37-$F37)*(HC$10-$F37)),"x"))) -> x | HD37: x | HE37: x | HF37: x | HG37: x | HH37: x | HI37: x | HJ37: x | HK37: x | HL37: x | HM37: x | HN37: x | HO37: x | HP37: x | HQ37: x | HR37: x | HS37: x | HT37: x | HU37: x | HV37: x | HW37: x | HX37: x | HY37: x | HZ37: x | IA37: x | IB37: x | IC37: x | ID37: x | IE37: x | IF37: x | IG37: x | IH37: x | II37: x | IJ37: x | IK37: x | IL37: x | IM37: x
B38: =IF(G38="hot",COUNTIF($G$11:G38,"hot"),"") ->  | C38: =IF(G38="cold",COUNTIF($G$11:G38,"cold"),"") ->  | AM38: 0 | AO38: =IF(OR($V38="Utility",$AA38=0),"x",IF($G38="hot","x",IF(AND(AO$10>$E38,AN$10<$F38),IF(AN$10>$E38,IF(AO$10>$F38,$U38/($F38-$E38)*($F38-AN$10),$U38/($F38-$E38)*(AO$10-AN$10)),$U38/($F38-$E38)*(AO$10-$E38)),"x"))) -> x | AP38: x | AQ38: x | AR38: x | AS38: x | AT38: x | AU38: x | AV38: x | AW38: x | AX38: x | AY38: x | AZ38: x | BA38: x | BB38: x | BC38: x | BD38: x | BE38: x | BF38: x | BG38: x | BH38: x | BI38: x | BJ38: x | BK38: x | BL38: x | BM38: x | BN38: x | BO38: x | BP38: x | BQ38: x | BR38: x | BS38: x | BT38: x | BU38: =IF(OR($V38="Utility",$AA38=0),"x",IF($G38="hot","x",IF(AND(BU$10>$E38,BT$10<$F38),IF(BT$10>$E38,IF(BU$10>$F38,$U38/($F38-$E38)*($F38-BT$10),$U38/($F38-$E38)*(BU$10-BT$10)),$U38/($F38-$E38)*(BU$10-$E38)),"x"))) -> x | BV38: x | BW38: x | BX38: x | BY38: x | BZ38: x | CA38: x | CB38: x | CC38: x | CD38: x | CE38: x | CF38: x | CG38: x | CH38: x | CI38: x | CJ38: x | CK38: x | CL38: x | CM38: x | CN38: x | CO38: x | CP38: x | CQ38: x | CR38: x | CS38: x | CT38: x | CU38: x | CV38: x | CW38: x | CX38: x | CY38: x | CZ38: x | DA38: =IF(OR($V38="Utility",$AA38=0),"x",IF($G38="hot","x",IF(AND(DA$10>$E38,CZ$10<$F38),IF(CZ$10>$E38,IF(DA$10>$F38,$U38/($F38-$E38)*($F38-CZ$10),$U38/($F38-$E38)*(DA$10-CZ$10)),$U38/($F38-$E38)*(DA$10-$E38)),"x"))) -> x | DB38: x | DC38: x | DD38: x | DE38: x | DF38: x | DG38: x | DH38: x | DI38: x | DJ38: x | DK38: x | DL38: x | DM38: x | DN38: x | DO38: x | DP38: x | DQ38: x | DR38: x | DS38: x | DT38: x | DU38: x | DV38: x | DW38: x | DX38: x | DY38: x | DZ38: x | EA38: x | EB38: x | EC38: x | ED38: x | EE38: x | EF38: x | EG38: x | EH38: x | EI38: x | EJ38: x | EK38: x | EO38: 0 | EQ38: =IF(OR($V38="Utility",$AA38=0),"x",IF($G38="cold","x",IF(AND(EQ$10>$F38,EP$10<$E38),IF(EP$10>$F38,IF(EQ$10>$E38,$U38/($E38-$F38)*($E38-EP$10),$U38/($E38-$F38)*(EQ$10-EP$10)),$U38/($E38-$F38)*(EQ$10-$F38)),"x"))) -> x | ER38: x | ES38: x | ET38: x | EU38: x | EV38: x | EW38: x | EX38: x | EY38: x | EZ38: x | FA38: x | FB38: x | FC38: x | FD38: x | FE38: x | FF38: x | FG38: x | FH38: x | FI38: x | FJ38: x | FK38: x | FL38: x | FM38: x | FN38: x | FO38: x | FP38: x | FQ38: x | FR38: x | FS38: x | FT38: x | FU38: x | FV38: x | FW38: =IF(OR($V38="Utility",$AA38=0),"x",IF($G38="cold","x",IF(AND(FW$10>$F38,FV$10<$E38),IF(FV$10>$F38,IF(FW$10>$E38,$U38/($E38-$F38)*($E38-FV$10),$U38/($E38-$F38)*(FW$10-FV$10)),$U38/($E38-$F38)*(FW$10-$F38)),"x"))) -> x | FX38: x | FY38: x | FZ38: x | GA38: x | GB38: x | GC38: x | GD38: x | GE38: x | GF38: x | GG38: x | GH38: x | GI38: x | GJ38: x | GK38: x | GL38: x | GM38: x | GN38: x | GO38: x | GP38: x | GQ38: x | GR38: x | GS38: x | GT38: x | GU38: x | GV38: x | GW38: x | GX38: x | GY38: x | GZ38: x | HA38: x | HB38: x | HC38: =IF(OR($V38="Utility",$AA38=0),"x",IF($G38="cold","x",IF(AND(HC$10>$F38,HB$10<$E38),IF(HB$10>$F38,IF(HC$10>$E38,$U38/($E38-$F38)*($E38-HB$10),$U38/($E38-$F38)*(HC$10-HB$10)),$U38/($E38-$F38)*(HC$10-$F38)),"x"))) -> x | HD38: x | HE38: x | HF38: x | HG38: x | HH38: x | HI38: x | HJ38: x | HK38: x | HL38: x | HM38: x | HN38: x | HO38: x | HP38: x | HQ38: x | HR38: x | HS38: x | HT38: x | HU38: x | HV38: x | HW38: x | HX38: x | HY38: x | HZ38: x | IA38: x | IB38: x | IC38: x | ID38: x | IE38: x | IF38: x | IG38: x | IH38: x | II38: x | IJ38: x | IK38: x | IL38: x | IM38: x
B39: =IF(G39="hot",COUNTIF($G$11:G39,"hot"),"") ->  | C39: =IF(G39="cold",COUNTIF($G$11:G39,"cold"),"") ->  | AI39: Pinch T high | AJ39: =INDEX($IR$9:$MN$10,2,$AJ$41) ->  | AK39: °C | AM39: 0 | AO39: =IF(OR($V39="Utility",$AA39=0),"x",IF($G39="hot","x",IF(AND(AO$10>$E39,AN$10<$F39),IF(AN$10>$E39,IF(AO$10>$F39,$U39/($F39-$E39)*($F39-AN$10),$U39/($F39-$E39)*(AO$10-AN$10)),$U39/($F39-$E39)*(AO$10-$E39)),"x"))) -> x | AP39: x | AQ39: x | AR39: x | AS39: x | AT39: x | AU39: x | AV39: x | AW39: x | AX39: x | AY39: x | AZ39: x | BA39: x | BB39: x | BC39: x | BD39: x | BE39: x | BF39: x | BG39: x | BH39: x | BI39: x | BJ39: x | BK39: x | BL39: x | BM39: x | BN39: x | BO39: x | BP39: x | BQ39: x | BR39: x | BS39: x | BT39: x | BU39: =IF(OR($V39="Utility",$AA39=0),"x",IF($G39="hot","x",IF(AND(BU$10>$E39,BT$10<$F39),IF(BT$10>$E39,IF(BU$10>$F39,$U39/($F39-$E39)*($F39-BT$10),$U39/($F39-$E39)*(BU$10-BT$10)),$U39/($F39-$E39)*(BU$10-$E39)),"x"))) -> x | BV39: x | BW39: x | BX39: x | BY39: x | BZ39: x | CA39: x | CB39: x | CC39: x | CD39: x | CE39: x | CF39: x | CG39: x | CH39: x | CI39: x | CJ39: x | CK39: x | CL39: x | CM39: x | CN39: x | CO39: x | CP39: x | CQ39: x | CR39: x | CS39: x | CT39: x | CU39: x | CV39: x | CW39: x | CX39: x | CY39: x | CZ39: x | DA39: =IF(OR($V39="Utility",$AA39=0),"x",IF($G39="hot","x",IF(AND(DA$10>$E39,CZ$10<$F39),IF(CZ$10>$E39,IF(DA$10>$F39,$U39/($F39-$E39)*($F39-CZ$10),$U39/($F39-$E39)*(DA$10-CZ$10)),$U39/($F39-$E39)*(DA$10-$E39)),"x"))) -> x | DB39: x | DC39: x | DD39: x | DE39: x | DF39: x | DG39: x | DH39: x | DI39: x | DJ39: x | DK39: x | DL39: x | DM39: x | DN39: x | DO39: x | DP39: x | DQ39: x | DR39: x | DS39: x | DT39: x | DU39: x | DV39: x | DW39: x | DX39: x | DY39: x | DZ39: x | EA39: x | EB39: x | EC39: x | ED39: x | EE39: x | EF39: x | EG39: x | EH39: x | EI39: x | EJ39: x | EK39: x | EO39: 0 | EQ39: =IF(OR($V39="Utility",$AA39=0),"x",IF($G39="cold","x",IF(AND(EQ$10>$F39,EP$10<$E39),IF(EP$10>$F39,IF(EQ$10>$E39,$U39/($E39-$F39)*($E39-EP$10),$U39/($E39-$F39)*(EQ$10-EP$10)),$U39/($E39-$F39)*(EQ$10-$F39)),"x"))) -> x | ER39: x | ES39: x | ET39: x | EU39: x | EV39: x | EW39: x | EX39: x | EY39: x | EZ39: x | FA39: x | FB39: x | FC39: x | FD39: x | FE39: x | FF39: x | FG39: x | FH39: x | FI39: x | FJ39: x | FK39: x | FL39: x | FM39: x | FN39: x | FO39: x | FP39: x | FQ39: x | FR39: x | FS39: x | FT39: x | FU39: x | FV39: x | FW39: =IF(OR($V39="Utility",$AA39=0),"x",IF($G39="cold","x",IF(AND(FW$10>$F39,FV$10<$E39),IF(FV$10>$F39,IF(FW$10>$E39,$U39/($E39-$F39)*($E39-FV$10),$U39/($E39-$F39)*(FW$10-FV$10)),$U39/($E39-$F39)*(FW$10-$F39)),"x"))) -> x | FX39: x | FY39: x | FZ39: x | GA39: x | GB39: x | GC39: x | GD39: x | GE39: x | GF39: x | GG39: x | GH39: x | GI39: x | GJ39: x | GK39: x | GL39: x | GM39: x | GN39: x | GO39: x | GP39: x | GQ39: x | GR39: x | GS39: x | GT39: x | GU39: x | GV39: x | GW39: x | GX39: x | GY39: x | GZ39: x | HA39: x | HB39: x | HC39: =IF(OR($V39="Utility",$AA39=0),"x",IF($G39="cold","x",IF(AND(HC$10>$F39,HB$10<$E39),IF(HB$10>$F39,IF(HC$10>$E39,$U39/($E39-$F39)*($E39-HB$10),$U39/($E39-$F39)*(HC$10-HB$10)),$U39/($E39-$F39)*(HC$10-$F39)),"x"))) -> x | HD39: x | HE39: x | HF39: x | HG39: x | HH39: x | HI39: x | HJ39: x | HK39: x | HL39: x | HM39: x | HN39: x | HO39: x | HP39: x | HQ39: x | HR39: x | HS39: x | HT39: x | HU39: x | HV39: x | HW39: x | HX39: x | HY39: x | HZ39: x | IA39: x | IB39: x | IC39: x | ID39: x | IE39: x | IF39: x | IG39: x | IH39: x | II39: x | IJ39: x | IK39: x | IL39: x | IM39: x
B40: =IF(G40="hot",COUNTIF($G$11:G40,"hot"),"") ->  | C40: =IF(G40="cold",COUNTIF($G$11:G40,"cold"),"") ->  | AI40: Pinch T low | AJ40: =INDEX($IR$9:$MN$10,1,$AJ$41) ->  | AK40: °C | AM40: 0 | AO40: =IF(OR($V40="Utility",$AA40=0),"x",IF($G40="hot","x",IF(AND(AO$10>$E40,AN$10<$F40),IF(AN$10>$E40,IF(AO$10>$F40,$U40/($F40-$E40)*($F40-AN$10),$U40/($F40-$E40)*(AO$10-AN$10)),$U40/($F40-$E40)*(AO$10-$E40)),"x"))) -> x | AP40: x | AQ40: x | AR40: x | AS40: x | AT40: x | AU40: x | AV40: x | AW40: x | AX40: x | AY40: x | AZ40: x | BA40: x | BB40: x | BC40: x | BD40: x | BE40: x | BF40: x | BG40: x | BH40: x | BI40: x | BJ40: x | BK40: x | BL40: x | BM40: x | BN40: x | BO40: x | BP40: x | BQ40: x | BR40: x | BS40: x | BT40: x | BU40: =IF(OR($V40="Utility",$AA40=0),"x",IF($G40="hot","x",IF(AND(BU$10>$E40,BT$10<$F40),IF(BT$10>$E40,IF(BU$10>$F40,$U40/($F40-$E40)*($F40-BT$10),$U40/($F40-$E40)*(BU$10-BT$10)),$U40/($F40-$E40)*(BU$10-$E40)),"x"))) -> x | BV40: x | BW40: x | BX40: x | BY40: x | BZ40: x | CA40: x | CB40: x | CC40: x | CD40: x | CE40: x | CF40: x | CG40: x | CH40: x | CI40: x | CJ40: x | CK40: x | CL40: x | CM40: x | CN40: x | CO40: x | CP40: x | CQ40: x | CR40: x | CS40: x | CT40: x | CU40: x | CV40: x | CW40: x | CX40: x | CY40: x | CZ40: x | DA40: =IF(OR($V40="Utility",$AA40=0),"x",IF($G40="hot","x",IF(AND(DA$10>$E40,CZ$10<$F40),IF(CZ$10>$E40,IF(DA$10>$F40,$U40/($F40-$E40)*($F40-CZ$10),$U40/($F40-$E40)*(DA$10-CZ$10)),$U40/($F40-$E40)*(DA$10-$E40)),"x"))) -> x | DB40: x | DC40: x | DD40: x | DE40: x | DF40: x | DG40: x | DH40: x | DI40: x | DJ40: x | DK40: x | DL40: x | DM40: x | DN40: x | DO40: x | DP40: x | DQ40: x | DR40: x | DS40: x | DT40: x | DU40: x | DV40: x | DW40: x | DX40: x | DY40: x | DZ40: x | EA40: x | EB40: x | EC40: x | ED40: x | EE40: x | EF40: x | EG40: x | EH40: x | EI40: x | EJ40: x | EK40: x | EO40: 0 | EQ40: =IF(OR($V40="Utility",$AA40=0),"x",IF($G40="cold","x",IF(AND(EQ$10>$F40,EP$10<$E40),IF(EP$10>$F40,IF(EQ$10>$E40,$U40/($E40-$F40)*($E40-EP$10),$U40/($E40-$F40)*(EQ$10-EP$10)),$U40/($E40-$F40)*(EQ$10-$F40)),"x"))) -> x | ER40: x | ES40: x | ET40: x | EU40: x | EV40: x | EW40: x | EX40: x | EY40: x | EZ40: x | FA40: x | FB40: x | FC40: x | FD40: x | FE40: x | FF40: x | FG40: x | FH40: x | FI40: x | FJ40: x | FK40: x | FL40: x | FM40: x | FN40: x | FO40: x | FP40: x | FQ40: x | FR40: x | FS40: x | FT40: x | FU40: x | FV40: x | FW40: =IF(OR($V40="Utility",$AA40=0),"x",IF($G40="cold","x",IF(AND(FW$10>$F40,FV$10<$E40),IF(FV$10>$F40,IF(FW$10>$E40,$U40/($E40-$F40)*($E40-FV$10),$U40/($E40-$F40)*(FW$10-FV$10)),$U40/($E40-$F40)*(FW$10-$F40)),"x"))) -> x | FX40: x | FY40: x | FZ40: x | GA40: x | GB40: x | GC40: x | GD40: x | GE40: x | GF40: x | GG40: x | GH40: x | GI40: x | GJ40: x | GK40: x | GL40: x | GM40: x | GN40: x | GO40: x | GP40: x | GQ40: x | GR40: x | GS40: x | GT40: x | GU40: x | GV40: x | GW40: x | GX40: x | GY40: x | GZ40: x | HA40: x | HB40: x | HC40: =IF(OR($V40="Utility",$AA40=0),"x",IF($G40="cold","x",IF(AND(HC$10>$F40,HB$10<$E40),IF(HB$10>$F40,IF(HC$10>$E40,$U40/($E40-$F40)*($E40-HB$10),$U40/($E40-$F40)*(HC$10-HB$10)),$U40/($E40-$F40)*(HC$10-$F40)),"x"))) -> x | HD40: x | HE40: x | HF40: x | HG40: x | HH40: x | HI40: x | HJ40: x | HK40: x | HL40: x | HM40: x | HN40: x | HO40: x | HP40: x | HQ40: x | HR40: x | HS40: x | HT40: x | HU40: x | HV40: x | HW40: x | HX40: x | HY40: x | HZ40: x | IA40: x | IB40: x | IC40: x | ID40: x | IE40: x | IF40: x | IG40: x | IH40: x | II40: x | IJ40: x | IK40: x | IL40: x | IM40: x
B41: =IF(G41="hot",COUNTIF($G$11:G41,"hot"),"") ->  | C41: =IF(G41="cold",COUNTIF($G$11:G41,"cold"),"") ->  | AI41: Row of Pinch T | AJ41: =MATCH(MIN($IR$11:$MN$11),$IR$11:$MN$11,0) ->  | AK41: - | AM41: 0 | AO41: =IF(OR($V41="Utility",$AA41=0),"x",IF($G41="hot","x",IF(AND(AO$10>$E41,AN$10<$F41),IF(AN$10>$E41,IF(AO$10>$F41,$U41/($F41-$E41)*($F41-AN$10),$U41/($F41-$E41)*(AO$10-AN$10)),$U41/($F41-$E41)*(AO$10-$E41)),"x"))) -> x | AP41: x | AQ41: x | AR41: x | AS41: x | AT41: x | AU41: x | AV41: x | AW41: x | AX41: x | AY41: x | AZ41: x | BA41: x | BB41: x | BC41: x | BD41: x | BE41: x | BF41: x | BG41: x | BH41: x | BI41: x | BJ41: x | BK41: x | BL41: x | BM41: x | BN41: x | BO41: x | BP41: x | BQ41: x | BR41: x | BS41: x | BT41: x | BU41: =IF(OR($V41="Utility",$AA41=0),"x",IF($G41="hot","x",IF(AND(BU$10>$E41,BT$10<$F41),IF(BT$10>$E41,IF(BU$10>$F41,$U41/($F41-$E41)*($F41-BT$10),$U41/($F41-$E41)*(BU$10-BT$10)),$U41/($F41-$E41)*(BU$10-$E41)),"x"))) -> x | BV41: x | BW41: x | BX41: x | BY41: x | BZ41: x | CA41: x | CB41: x | CC41: x | CD41: x | CE41: x | CF41: x | CG41: x | CH41: x | CI41: x | CJ41: x | CK41: x | CL41: x | CM41: x | CN41: x | CO41: x | CP41: x | CQ41: x | CR41: x | CS41: x | CT41: x | CU41: x | CV41: x | CW41: x | CX41: x | CY41: x | CZ41: x | DA41: =IF(OR($V41="Utility",$AA41=0),"x",IF($G41="hot","x",IF(AND(DA$10>$E41,CZ$10<$F41),IF(CZ$10>$E41,IF(DA$10>$F41,$U41/($F41-$E41)*($F41-CZ$10),$U41/($F41-$E41)*(DA$10-CZ$10)),$U41/($F41-$E41)*(DA$10-$E41)),"x"))) -> x | DB41: x | DC41: x | DD41: x | DE41: x | DF41: x | DG41: x | DH41: x | DI41: x | DJ41: x | DK41: x | DL41: x | DM41: x | DN41: x | DO41: x | DP41: x | DQ41: x | DR41: x | DS41: x | DT41: x | DU41: x | DV41: x | DW41: x | DX41: x | DY41: x | DZ41: x | EA41: x | EB41: x | EC41: x | ED41: x | EE41: x | EF41: x | EG41: x | EH41: x | EI41: x | EJ41: x | EK41: x | EO41: 0 | EQ41: =IF(OR($V41="Utility",$AA41=0),"x",IF($G41="cold","x",IF(AND(EQ$10>$F41,EP$10<$E41),IF(EP$10>$F41,IF(EQ$10>$E41,$U41/($E41-$F41)*($E41-EP$10),$U41/($E41-$F41)*(EQ$10-EP$10)),$U41/($E41-$F41)*(EQ$10-$F41)),"x"))) -> x | ER41: x | ES41: x | ET41: x | EU41: x | EV41: x | EW41: x | EX41: x | EY41: x | EZ41: x | FA41: x | FB41: x | FC41: x | FD41: x | FE41: x | FF41: x | FG41: x | FH41: x | FI41: x | FJ41: x | FK41: x | FL41: x | FM41: x | FN41: x | FO41: x | FP41: x | FQ41: x | FR41: x | FS41: x | FT41: x | FU41: x | FV41: x | FW41: =IF(OR($V41="Utility",$AA41=0),"x",IF($G41="cold","x",IF(AND(FW$10>$F41,FV$10<$E41),IF(FV$10>$F41,IF(FW$10>$E41,$U41/($E41-$F41)*($E41-FV$10),$U41/($E41-$F41)*(FW$10-FV$10)),$U41/($E41-$F41)*(FW$10-$F41)),"x"))) -> x | FX41: x | FY41: x | FZ41: x | GA41: x | GB41: x | GC41: x | GD41: x | GE41: x | GF41: x | GG41: x | GH41: x | GI41: x | GJ41: x | GK41: x | GL41: x | GM41: x | GN41: x | GO41: x | GP41: x | GQ41: x | GR41: x | GS41: x | GT41: x | GU41: x | GV41: x | GW41: x | GX41: x | GY41: x | GZ41: x | HA41: x | HB41: x | HC41: =IF(OR($V41="Utility",$AA41=0),"x",IF($G41="cold","x",IF(AND(HC$10>$F41,HB$10<$E41),IF(HB$10>$F41,IF(HC$10>$E41,$U41/($E41-$F41)*($E41-HB$10),$U41/($E41-$F41)*(HC$10-HB$10)),$U41/($E41-$F41)*(HC$10-$F41)),"x"))) -> x | HD41: x | HE41: x | HF41: x | HG41: x | HH41: x | HI41: x | HJ41: x | HK41: x | HL41: x | HM41: x | HN41: x | HO41: x | HP41: x | HQ41: x | HR41: x | HS41: x | HT41: x | HU41: x | HV41: x | HW41: x | HX41: x | HY41: x | HZ41: x | IA41: x | IB41: x | IC41: x | ID41: x | IE41: x | IF41: x | IG41: x | IH41: x | II41: x | IJ41: x | IK41: x | IL41: x | IM41: x
